Workbook

Sheet Cover
B2: PATHWAYS Stock Charts
B5: Prepared by:
B10: 101 Montgomery Street, Suite 1600
B11: San Francisco, CA 94104
B12: (415) 391-5100
B14: 2017-01-17
B18: Table of Contents
B19: Sector | C19: Tab Name | D19: Description
B20: Commercial | C20: COM AC | D20: Commercial Air Conditioning
C21: COM LT | D21: Commercial Lighting
C22: COM SH | D22: Commercial Space Heating
C23: COM WH | D23: Commercial Water Heating
B24: Residential | C24: RES AC | D24: Residential Air Conditioning
C25: RES HS | D25: Residential Housing Shell
C26: RES LT | D26: Residential Lighting
C27: RES SH | D27: Residential Space Heating
C28: RES WH | D28: Residential Water Heating
B29: Transportation | C29: HDV | D29: Heavy-Duty Vehicles
C30: LDV | D30: Light-Duty Vehicles
C31: MDV | D31: Medium-Duty Vehicles
C32: Buses | D32: Buses
B34: * Disclaimer: All results are draft and subject to change

Sheet Comm AC
C2: Active CSV Directory | E2: =outputDir -> S:\E3 Projects\CARB Scoping Plan Update 2016\Model\Case Outputs\LATEST STOCK CHARTS\2016-12-27 | J2: Technology Title | K2: Comm Air Conditioning
C3: Geo Resolution? | E3: =NOT(ISERROR(COM_LT_Collapsed_index_5)) -> FALSE
C5: Case 1 | E5: =case1 -> Reference
C6: Case 2 | E6: =case2 -> Scoping Plan
C7: Case 3 | E7: =case3 -> Alternative 1
B12: =$K$2&" Stocks - "&case1 -> Comm Air Conditioning Stocks - Reference | I12: =$K$2&" Stocks - "&case2 -> Comm Air Conditioning Stocks - Scoping Plan | P12: =$K$2&" Stocks - "&case3 -> Comm Air Conditioning Stocks - Alternative 1
B53: =$K$2&" Share of Sales by Technology - "&case1 -> Comm Air Conditioning Share of Sales by Technology - Reference | I53: =$K$2&" Share of Sales by Technology - "&case2 -> Comm Air Conditioning Share of Sales by Technology - Scoping Plan | P53: =$K$2&" Share of Sales by Technology - "&case3 -> Comm Air Conditioning Share of Sales by Technology - Alternative 1
A55: =$C$52&" Trucking Costs - "&$B55 -> Trucking Costs -
A56: =$C$52&" Trucking Costs - "&$B56 -> Trucking Costs -
A57: =$C$52&" Trucking Costs - "&$B57 -> Trucking Costs -
A58: =$C$52&" Trucking Costs - "&$B58 -> Trucking Costs -
A59: =$C$52&" Trucking Costs - "&$B59 -> Trucking Costs -
B96: =case1 -> Reference
C97: Category | D97: 2015 | E97: =+D97+1 -> 2016 | F97: 2017 | G97: 2018 | H97: 2019 | I97: 2020 | J97: 2021 | K97: 2022 | L97: 2023 | M97: 2024 | N97: 2025 | O97: 2026 | P97: 2027 | Q97: 2028 | R97: 2029 | S97: 2030 | T97: 2031 | U97: 2032 | V97: 2033 | W97: 2034 | X97: 2035 | Y97: 2036 | Z97: 2037 | AA97: 2038 | AB97: 2039 | AC97: 2040 | AD97: 2041 | AE97: 2042 | AF97: 2043 | AG97: 2044 | AH97: 2045 | AI97: 2046 | AJ97: 2047 | AK97: 2048 | AL97: 2049 | AM97: 2050
B98: =IFERROR(INDEX(COM_AC_Collapsed_index_1, MATCH(0,COUNTIF($B$96:B97,COM_AC_Collapsed_index_1), 0)),"not used") -> Reference Central Air Conditioner | C98: =IF(B98="not used",B98,INDEX(Lists!$G$3:$G$12,MATCH('Comm AC'!$B98,Lists!$F$3:$F$17,0))) -> Reference AC | D98: =IF($B98="not used",0,SUMPRODUCT(($B98=COM_AC_Collapsed_index_1)*($B$96=COM_AC_Collapsed_index_3)*(D$97=COM_AC_Collapsed_index_2)*COM_AC_Collapsed_vals)/1000000) -> 142.9047402 | E98: =IF($B98="not used",0,SUMPRODUCT(($B98=COM_AC_Collapsed_index_1)*($B$96=COM_AC_Collapsed_index_3)*(E$97=COM_AC_Collapsed_index_2)*COM_AC_Collapsed_vals)/1000000) -> 145.1208545 | F98: =IF($B98="not used",0,SUMPRODUCT(($B98=COM_AC_Collapsed_index_1)*($B$96=COM_AC_Collapsed_index_3)*(F$97=COM_AC_Collapsed_index_2)*COM_AC_Collapsed_vals)/1000000) -> 147.2181038 | G98: =IF($B98="not used",0,SUMPRODUCT(($B98=COM_AC_Collapsed_index_1)*($B$96=COM_AC_Collapsed_index_3)*(G$97=COM_AC_Collapsed_index_2)*COM_AC_Collapsed_vals)/1000000) -> 148.6640141 | H98: =IF($B98="not used",0,SUMPRODUCT(($B98=COM_AC_Collapsed_index_1)*($B$96=COM_AC_Collapsed_index_3)*(H$97=COM_AC_Collapsed_index_2)*COM_AC_Collapsed_vals)/1000000) -> 148.8455874 | I98: =IF($B98="not used",0,SUMPRODUCT(($B98=COM_AC_Collapsed_index_1)*($B$96=COM_AC_Collapsed_index_3)*(I$97=COM_AC_Collapsed_index_2)*COM_AC_Collapsed_vals)/1000000) -> 146.9082654 | J98: =IF($B98="not used",0,SUMPRODUCT(($B98=COM_AC_Collapsed_index_1)*($B$96=COM_AC_Collapsed_index_3)*(J$97=COM_AC_Collapsed_index_2)*COM_AC_Collapsed_vals)/1000000) -> 142.457869 | K98: =IF($B98="not used",0,SUMPRODUCT(($B98=COM_AC_Collapsed_index_1)*($B$96=COM_AC_Collapsed_index_3)*(K$97=COM_AC_Collapsed_index_2)*COM_AC_Collapsed_vals)/1000000) -> 135.9799863 | L98: =IF($B98="not used",0,SUMPRODUCT(($B98=COM_AC_Collapsed_index_1)*($B$96=COM_AC_Collapsed_index_3)*(L$97=COM_AC_Collapsed_index_2)*COM_AC_Collapsed_vals)/1000000) -> 128.3585164 | M98: =IF($B98="not used",0,SUMPRODUCT(($B98=COM_AC_Collapsed_index_1)*($B$96=COM_AC_Collapsed_index_3)*(M$97=COM_AC_Collapsed_index_2)*COM_AC_Collapsed_vals)/1000000) -> 120.2104004 | N98: =IF($B98="not used",0,SUMPRODUCT(($B98=COM_AC_Collapsed_index_1)*($B$96=COM_AC_Collapsed_index_3)*(N$97=COM_AC_Collapsed_index_2)*COM_AC_Collapsed_vals)/1000000) -> 111.8339781 | O98: =IF($B98="not used",0,SUMPRODUCT(($B98=COM_AC_Collapsed_index_1)*($B$96=COM_AC_Collapsed_index_3)*(O$97=COM_AC_Collapsed_index_2)*COM_AC_Collapsed_vals)/1000000) -> 103.3416536 | P98: =IF($B98="not used",0,SUMPRODUCT(($B98=COM_AC_Collapsed_index_1)*($B$96=COM_AC_Collapsed_index_3)*(P$97=COM_AC_Collapsed_index_2)*COM_AC_Collapsed_vals)/1000000) -> 94.76819192 | Q98: =IF($B98="not used",0,SUMPRODUCT(($B98=COM_AC_Collapsed_index_1)*($B$96=COM_AC_Collapsed_index_3)*(Q$97=COM_AC_Collapsed_index_2)*COM_AC_Collapsed_vals)/1000000) -> 86.122849 | R98: =IF($B98="not used",0,SUMPRODUCT(($B98=COM_AC_Collapsed_index_1)*($B$96=COM_AC_Collapsed_index_3)*(R$97=COM_AC_Collapsed_index_2)*COM_AC_Collapsed_vals)/1000000) -> 77.41984452 | S98: =IF($B98="not used",0,SUMPRODUCT(($B98=COM_AC_Collapsed_index_1)*($B$96=COM_AC_Collapsed_index_3)*(S$97=COM_AC_Collapsed_index_2)*COM_AC_Collapsed_vals)/1000000) -> 68.7005459 | T98: =IF($B98="not used",0,SUMPRODUCT(($B98=COM_AC_Collapsed_index_1)*($B$96=COM_AC_Collapsed_index_3)*(T$97=COM_AC_Collapsed_index_2)*COM_AC_Collapsed_vals)/1000000) -> 60.04465769 | U98: =IF($B98="not used",0,SUMPRODUCT(($B98=COM_AC_Collapsed_index_1)*($B$96=COM_AC_Collapsed_index_3)*(U$97=COM_AC_Collapsed_index_2)*COM_AC_Collapsed_vals)/1000000) -> 51.57091527 | V98: =IF($B98="not used",0,SUMPRODUCT(($B98=COM_AC_Collapsed_index_1)*($B$96=COM_AC_Collapsed_index_3)*(V$97=COM_AC_Collapsed_index_2)*COM_AC_Collapsed_vals)/1000000) -> 43.4313342 | W98: =IF($B98="not used",0,SUMPRODUCT(($B98=COM_AC_Collapsed_index_1)*($B$96=COM_AC_Collapsed_index_3)*(W$97=COM_AC_Collapsed_index_2)*COM_AC_Collapsed_vals)/1000000) -> 35.79138965 | X98: =IF($B98="not used",0,SUMPRODUCT(($B98=COM_AC_Collapsed_index_1)*($B$96=COM_AC_Collapsed_index_3)*(X$97=COM_AC_Collapsed_index_2)*COM_AC_Collapsed_vals)/1000000) -> 28.80944235 | Y98: =IF($B98="not used",0,SUMPRODUCT(($B98=COM_AC_Collapsed_index_1)*($B$96=COM_AC_Collapsed_index_3)*(Y$97=COM_AC_Collapsed_index_2)*COM_AC_Collapsed_vals)/1000000) -> 22.6146123 | Z98: =IF($B98="not used",0,SUMPRODUCT(($B98=COM_AC_Collapsed_index_1)*($B$96=COM_AC_Collapsed_index_3)*(Z$97=COM_AC_Collapsed_index_2)*COM_AC_Collapsed_vals)/1000000) -> 17.28973502 | AA98: =IF($B98="not used",0,SUMPRODUCT(($B98=COM_AC_Collapsed_index_1)*($B$96=COM_AC_Collapsed_index_3)*(AA$97=COM_AC_Collapsed_index_2)*COM_AC_Collapsed_vals)/1000000) -> 12.86023583 | AB98: =IF($B98="not used",0,SUMPRODUCT(($B98=COM_AC_Collapsed_index_1)*($B$96=COM_AC_Collapsed_index_3)*(AB$97=COM_AC_Collapsed_index_2)*COM_AC_Collapsed_vals)/1000000) -> 9.299277823 | AC98: =IF($B98="not used",0,SUMPRODUCT(($B98=COM_AC_Collapsed_index_1)*($B$96=COM_AC_Collapsed_index_3)*(AC$97=COM_AC_Collapsed_index_2)*COM_AC_Collapsed_vals)/1000000) -> 6.532968793 | AD98: =IF($B98="not used",0,SUMPRODUCT(($B98=COM_AC_Collapsed_index_1)*($B$96=COM_AC_Collapsed_index_3)*(AD$97=COM_AC_Collapsed_index_2)*COM_AC_Collapsed_vals)/1000000) -> 4.457053441 | AE98: =IF($B98="not used",0,SUMPRODUCT(($B98=COM_AC_Collapsed_index_1)*($B$96=COM_AC_Collapsed_index_3)*(AE$97=COM_AC_Collapsed_index_2)*COM_AC_Collapsed_vals)/1000000) -> 2.952675383 | AF98: =IF($B98="not used",0,SUMPRODUCT(($B98=COM_AC_Collapsed_index_1)*($B$96=COM_AC_Collapsed_index_3)*(AF$97=COM_AC_Collapsed_index_2)*COM_AC_Collapsed_vals)/1000000) -> 1.899005386 | AG98: =IF($B98="not used",0,SUMPRODUCT(($B98=COM_AC_Collapsed_index_1)*($B$96=COM_AC_Collapsed_index_3)*(AG$97=COM_AC_Collapsed_index_2)*COM_AC_Collapsed_vals)/1000000) -> 1.185072975 | AH98: =IF($B98="not used",0,SUMPRODUCT(($B98=COM_AC_Collapsed_index_1)*($B$96=COM_AC_Collapsed_index_3)*(AH$97=COM_AC_Collapsed_index_2)*COM_AC_Collapsed_vals)/1000000) -> 0.7175596488 | AI98: =IF($B98="not used",0,SUMPRODUCT(($B98=COM_AC_Collapsed_index_1)*($B$96=COM_AC_Collapsed_index_3)*(AI$97=COM_AC_Collapsed_index_2)*COM_AC_Collapsed_vals)/1000000) -> 0.4215104914 | AJ98: =IF($B98="not used",0,SUMPRODUCT(($B98=COM_AC_Collapsed_index_1)*($B$96=COM_AC_Collapsed_index_3)*(AJ$97=COM_AC_Collapsed_index_2)*COM_AC_Collapsed_vals)/1000000) -> 0.2400797858 | AK98: =IF($B98="not used",0,SUMPRODUCT(($B98=COM_AC_Collapsed_index_1)*($B$96=COM_AC_Collapsed_index_3)*(AK$97=COM_AC_Collapsed_index_2)*COM_AC_Collapsed_vals)/1000000) -> 0.13222254 | AL98: =IF($B98="not used",0,SUMPRODUCT(($B98=COM_AC_Collapsed_index_1)*($B$96=COM_AC_Collapsed_index_3)*(AL$97=COM_AC_Collapsed_index_2)*COM_AC_Collapsed_vals)/1000000) -> 0.06988887878 | AM98: =IF($B98="not used",0,SUMPRODUCT(($B98=COM_AC_Collapsed_index_1)*($B$96=COM_AC_Collapsed_index_3)*(AM$97=COM_AC_Collapsed_index_2)*COM_AC_Collapsed_vals)/1000000) -> 0.03482663615
B99: =IFERROR(INDEX(COM_AC_Collapsed_index_1, MATCH(0,COUNTIF($B$96:B98,COM_AC_Collapsed_index_1), 0)),"not used") -> Reference Electric Heat Pump (Cooling) | C99: =IF(B99="not used",B99,INDEX(Lists!$G$3:$G$12,MATCH('Comm AC'!$B99,Lists!$F$3:$F$17,0))) -> Reference Electric Heat Pump | D99: =IF($B99="not used",0,SUMPRODUCT(($B99=COM_AC_Collapsed_index_1)*($B$96=COM_AC_Collapsed_index_3)*(D$97=COM_AC_Collapsed_index_2)*COM_AC_Collapsed_vals)/1000000) -> 22.86790041 | E99: =IF($B99="not used",0,SUMPRODUCT(($B99=COM_AC_Collapsed_index_1)*($B$96=COM_AC_Collapsed_index_3)*(E$97=COM_AC_Collapsed_index_2)*COM_AC_Collapsed_vals)/1000000) -> 23.24202952 | F99: =IF($B99="not used",0,SUMPRODUCT(($B99=COM_AC_Collapsed_index_1)*($B$96=COM_AC_Collapsed_index_3)*(F$97=COM_AC_Collapsed_index_2)*COM_AC_Collapsed_vals)/1000000) -> 23.62990055 | G99: =IF($B99="not used",0,SUMPRODUCT(($B99=COM_AC_Collapsed_index_1)*($B$96=COM_AC_Collapsed_index_3)*(G$97=COM_AC_Collapsed_index_2)*COM_AC_Collapsed_vals)/1000000) -> 23.99331459 | H99: =IF($B99="not used",0,SUMPRODUCT(($B99=COM_AC_Collapsed_index_1)*($B$96=COM_AC_Collapsed_index_3)*(H$97=COM_AC_Collapsed_index_2)*COM_AC_Collapsed_vals)/1000000) -> 24.33118886 | I99: =IF($B99="not used",0,SUMPRODUCT(($B99=COM_AC_Collapsed_index_1)*($B$96=COM_AC_Collapsed_index_3)*(I$97=COM_AC_Collapsed_index_2)*COM_AC_Collapsed_vals)/1000000) -> 24.64368798 | J99: =IF($B99="not used",0,SUMPRODUCT(($B99=COM_AC_Collapsed_index_1)*($B$96=COM_AC_Collapsed_index_3)*(J$97=COM_AC_Collapsed_index_2)*COM_AC_Collapsed_vals)/1000000) -> 24.95051344 | K99: =IF($B99="not used",0,SUMPRODUCT(($B99=COM_AC_Collapsed_index_1)*($B$96=COM_AC_Collapsed_index_3)*(K$97=COM_AC_Collapsed_index_2)*COM_AC_Collapsed_vals)/1000000) -> 25.25453982 | L99: =IF($B99="not used",0,SUMPRODUCT(($B99=COM_AC_Collapsed_index_1)*($B$96=COM_AC_Collapsed_index_3)*(L$97=COM_AC_Collapsed_index_2)*COM_AC_Collapsed_vals)/1000000) -> 25.5602456 | M99: =IF($B99="not used",0,SUMPRODUCT(($B99=COM_AC_Collapsed_index_1)*($B$96=COM_AC_Collapsed_index_3)*(M$97=COM_AC_Collapsed_index_2)*COM_AC_Collapsed_vals)/1000000) -> 25.86569364 | N99: =IF($B99="not used",0,SUMPRODUCT(($B99=COM_AC_Collapsed_index_1)*($B$96=COM_AC_Collapsed_index_3)*(N$97=COM_AC_Collapsed_index_2)*COM_AC_Collapsed_vals)/1000000) -> 26.17287854 | O99: =IF($B99="not used",0,SUMPRODUCT(($B99=COM_AC_Collapsed_index_1)*($B$96=COM_AC_Collapsed_index_3)*(O$97=COM_AC_Collapsed_index_2)*COM_AC_Collapsed_vals)/1000000) -> 26.48035421 | P99: =IF($B99="not used",0,SUMPRODUCT(($B99=COM_AC_Collapsed_index_1)*($B$96=COM_AC_Collapsed_index_3)*(P$97=COM_AC_Collapsed_index_2)*COM_AC_Collapsed_vals)/1000000) -> 26.78812065 | Q99: =IF($B99="not used",0,SUMPRODUCT(($B99=COM_AC_Collapsed_index_1)*($B$96=COM_AC_Collapsed_index_3)*(Q$97=COM_AC_Collapsed_index_2)*COM_AC_Collapsed_vals)/1000000) -> 27.09617786 | R99: =IF($B99="not used",0,SUMPRODUCT(($B99=COM_AC_Collapsed_index_1)*($B$96=COM_AC_Collapsed_index_3)*(R$97=COM_AC_Collapsed_index_2)*COM_AC_Collapsed_vals)/1000000) -> 27.40452584 | S99: =IF($B99="not used",0,SUMPRODUCT(($B99=COM_AC_Collapsed_index_1)*($B$96=COM_AC_Collapsed_index_3)*(S$97=COM_AC_Collapsed_index_2)*COM_AC_Collapsed_vals)/1000000) -> 27.7131646 | T99: =IF($B99="not used",0,SUMPRODUCT(($B99=COM_AC_Collapsed_index_1)*($B$96=COM_AC_Collapsed_index_3)*(T$97=COM_AC_Collapsed_index_2)*COM_AC_Collapsed_vals)/1000000) -> 28.02209412 | U99: =IF($B99="not used",0,SUMPRODUCT(($B99=COM_AC_Collapsed_index_1)*($B$96=COM_AC_Collapsed_index_3)*(U$97=COM_AC_Collapsed_index_2)*COM_AC_Collapsed_vals)/1000000) -> 28.33131442 | V99: =IF($B99="not used",0,SUMPRODUCT(($B99=COM_AC_Collapsed_index_1)*($B$96=COM_AC_Collapsed_index_3)*(V$97=COM_AC_Collapsed_index_2)*COM_AC_Collapsed_vals)/1000000) -> 28.64082548 | W99: =IF($B99="not used",0,SUMPRODUCT(($B99=COM_AC_Collapsed_index_1)*($B$96=COM_AC_Collapsed_index_3)*(W$97=COM_AC_Collapsed_index_2)*COM_AC_Collapsed_vals)/1000000) -> 28.95062732 | X99: =IF($B99="not used",0,SUMPRODUCT(($B99=COM_AC_Collapsed_index_1)*($B$96=COM_AC_Collapsed_index_3)*(X$97=COM_AC_Collapsed_index_2)*COM_AC_Collapsed_vals)/1000000) -> 29.26071992 | Y99: =IF($B99="not used",0,SUMPRODUCT(($B99=COM_AC_Collapsed_index_1)*($B$96=COM_AC_Collapsed_index_3)*(Y$97=COM_AC_Collapsed_index_2)*COM_AC_Collapsed_vals)/1000000) -> 29.5711033 | Z99: =IF($B99="not used",0,SUMPRODUCT(($B99=COM_AC_Collapsed_index_1)*($B$96=COM_AC_Collapsed_index_3)*(Z$97=COM_AC_Collapsed_index_2)*COM_AC_Collapsed_vals)/1000000) -> 29.88177745 | AA99: =IF($B99="not used",0,SUMPRODUCT(($B99=COM_AC_Collapsed_index_1)*($B$96=COM_AC_Collapsed_index_3)*(AA$97=COM_AC_Collapsed_index_2)*COM_AC_Collapsed_vals)/1000000) -> 30.19274237 | AB99: =IF($B99="not used",0,SUMPRODUCT(($B99=COM_AC_Collapsed_index_1)*($B$96=COM_AC_Collapsed_index_3)*(AB$97=COM_AC_Collapsed_index_2)*COM_AC_Collapsed_vals)/1000000) -> 30.50399806 | AC99: =IF($B99="not used",0,SUMPRODUCT(($B99=COM_AC_Collapsed_index_1)*($B$96=COM_AC_Collapsed_index_3)*(AC$97=COM_AC_Collapsed_index_2)*COM_AC_Collapsed_vals)/1000000) -> 30.81554452 | AD99: =IF($B99="not used",0,SUMPRODUCT(($B99=COM_AC_Collapsed_index_1)*($B$96=COM_AC_Collapsed_index_3)*(AD$97=COM_AC_Collapsed_index_2)*COM_AC_Collapsed_vals)/1000000) -> 31.12738175 | AE99: =IF($B99="not used",0,SUMPRODUCT(($B99=COM_AC_Collapsed_index_1)*($B$96=COM_AC_Collapsed_index_3)*(AE$97=COM_AC_Collapsed_index_2)*COM_AC_Collapsed_vals)/1000000) -> 31.43950976 | AF99: =IF($B99="not used",0,SUMPRODUCT(($B99=COM_AC_Collapsed_index_1)*($B$96=COM_AC_Collapsed_index_3)*(AF$97=COM_AC_Collapsed_index_2)*COM_AC_Collapsed_vals)/1000000) -> 31.75192853 | AG99: =IF($B99="not used",0,SUMPRODUCT(($B99=COM_AC_Collapsed_index_1)*($B$96=COM_AC_Collapsed_index_3)*(AG$97=COM_AC_Collapsed_index_2)*COM_AC_Collapsed_vals)/1000000) -> 32.06463807 | AH99: =IF($B99="not used",0,SUMPRODUCT(($B99=COM_AC_Collapsed_index_1)*($B$96=COM_AC_Collapsed_index_3)*(AH$97=COM_AC_Collapsed_index_2)*COM_AC_Collapsed_vals)/1000000) -> 32.37763839 | AI99: =IF($B99="not used",0,SUMPRODUCT(($B99=COM_AC_Collapsed_index_1)*($B$96=COM_AC_Collapsed_index_3)*(AI$97=COM_AC_Collapsed_index_2)*COM_AC_Collapsed_vals)/1000000) -> 32.69092947 | AJ99: =IF($B99="not used",0,SUMPRODUCT(($B99=COM_AC_Collapsed_index_1)*($B$96=COM_AC_Collapsed_index_3)*(AJ$97=COM_AC_Collapsed_index_2)*COM_AC_Collapsed_vals)/1000000) -> 33.00451133 | AK99: =IF($B99="not used",0,SUMPRODUCT(($B99=COM_AC_Collapsed_index_1)*($B$96=COM_AC_Collapsed_index_3)*(AK$97=COM_AC_Collapsed_index_2)*COM_AC_Collapsed_vals)/1000000) -> 33.31838396 | AL99: =IF($B99="not used",0,SUMPRODUCT(($B99=COM_AC_Collapsed_index_1)*($B$96=COM_AC_Collapsed_index_3)*(AL$97=COM_AC_Collapsed_index_2)*COM_AC_Collapsed_vals)/1000000) -> 33.63254736 | AM99: =IF($B99="not used",0,SUMPRODUCT(($B99=COM_AC_Collapsed_index_1)*($B$96=COM_AC_Collapsed_index_3)*(AM$97=COM_AC_Collapsed_index_2)*COM_AC_Collapsed_vals)/1000000) -> 33.94700152
B100: =IFERROR(INDEX(COM_AC_Collapsed_index_1, MATCH(0,COUNTIF($B$96:B99,COM_AC_Collapsed_index_1), 0)),"not used") -> Reference Geothermal Heat Pump (Cooling) | C100: =IF(B100="not used",B100,INDEX(Lists!$G$3:$G$12,MATCH('Comm AC'!$B100,Lists!$F$3:$F$17,0))) -> Reference Geothermal Heat Pump | D100: =IF($B100="not used",0,SUMPRODUCT(($B100=COM_AC_Collapsed_index_1)*($B$96=COM_AC_Collapsed_index_3)*(D$97=COM_AC_Collapsed_index_2)*COM_AC_Collapsed_vals)/1000000) -> 15.24526694 | E100: =IF($B100="not used",0,SUMPRODUCT(($B100=COM_AC_Collapsed_index_1)*($B$96=COM_AC_Collapsed_index_3)*(E$97=COM_AC_Collapsed_index_2)*COM_AC_Collapsed_vals)/1000000) -> 15.49468634 | F100: =IF($B100="not used",0,SUMPRODUCT(($B100=COM_AC_Collapsed_index_1)*($B$96=COM_AC_Collapsed_index_3)*(F$97=COM_AC_Collapsed_index_2)*COM_AC_Collapsed_vals)/1000000) -> 15.75326703 | G100: =IF($B100="not used",0,SUMPRODUCT(($B100=COM_AC_Collapsed_index_1)*($B$96=COM_AC_Collapsed_index_3)*(G$97=COM_AC_Collapsed_index_2)*COM_AC_Collapsed_vals)/1000000) -> 15.99554306 | H100: =IF($B100="not used",0,SUMPRODUCT(($B100=COM_AC_Collapsed_index_1)*($B$96=COM_AC_Collapsed_index_3)*(H$97=COM_AC_Collapsed_index_2)*COM_AC_Collapsed_vals)/1000000) -> 16.22079257 | I100: =IF($B100="not used",0,SUMPRODUCT(($B100=COM_AC_Collapsed_index_1)*($B$96=COM_AC_Collapsed_index_3)*(I$97=COM_AC_Collapsed_index_2)*COM_AC_Collapsed_vals)/1000000) -> 16.42912532 | J100: =IF($B100="not used",0,SUMPRODUCT(($B100=COM_AC_Collapsed_index_1)*($B$96=COM_AC_Collapsed_index_3)*(J$97=COM_AC_Collapsed_index_2)*COM_AC_Collapsed_vals)/1000000) -> 16.63367563 | K100: =IF($B100="not used",0,SUMPRODUCT(($B100=COM_AC_Collapsed_index_1)*($B$96=COM_AC_Collapsed_index_3)*(K$97=COM_AC_Collapsed_index_2)*COM_AC_Collapsed_vals)/1000000) -> 16.83635988 | L100: =IF($B100="not used",0,SUMPRODUCT(($B100=COM_AC_Collapsed_index_1)*($B$96=COM_AC_Collapsed_index_3)*(L$97=COM_AC_Collapsed_index_2)*COM_AC_Collapsed_vals)/1000000) -> 17.04016373 | M100: =IF($B100="not used",0,SUMPRODUCT(($B100=COM_AC_Collapsed_index_1)*($B$96=COM_AC_Collapsed_index_3)*(M$97=COM_AC_Collapsed_index_2)*COM_AC_Collapsed_vals)/1000000) -> 17.24379576 | N100: =IF($B100="not used",0,SUMPRODUCT(($B100=COM_AC_Collapsed_index_1)*($B$96=COM_AC_Collapsed_index_3)*(N$97=COM_AC_Collapsed_index_2)*COM_AC_Collapsed_vals)/1000000) -> 17.44858569 | O100: =IF($B100="not used",0,SUMPRODUCT(($B100=COM_AC_Collapsed_index_1)*($B$96=COM_AC_Collapsed_index_3)*(O$97=COM_AC_Collapsed_index_2)*COM_AC_Collapsed_vals)/1000000) -> 17.65356947 | P100: =IF($B100="not used",0,SUMPRODUCT(($B100=COM_AC_Collapsed_index_1)*($B$96=COM_AC_Collapsed_index_3)*(P$97=COM_AC_Collapsed_index_2)*COM_AC_Collapsed_vals)/1000000) -> 17.8587471 | Q100: =IF($B100="not used",0,SUMPRODUCT(($B100=COM_AC_Collapsed_index_1)*($B$96=COM_AC_Collapsed_index_3)*(Q$97=COM_AC_Collapsed_index_2)*COM_AC_Collapsed_vals)/1000000) -> 18.06411857 | R100: =IF($B100="not used",0,SUMPRODUCT(($B100=COM_AC_Collapsed_index_1)*($B$96=COM_AC_Collapsed_index_3)*(R$97=COM_AC_Collapsed_index_2)*COM_AC_Collapsed_vals)/1000000) -> 18.2696839 | S100: =IF($B100="not used",0,SUMPRODUCT(($B100=COM_AC_Collapsed_index_1)*($B$96=COM_AC_Collapsed_index_3)*(S$97=COM_AC_Collapsed_index_2)*COM_AC_Collapsed_vals)/1000000) -> 18.47544306 | T100: =IF($B100="not used",0,SUMPRODUCT(($B100=COM_AC_Collapsed_index_1)*($B$96=COM_AC_Collapsed_index_3)*(T$97=COM_AC_Collapsed_index_2)*COM_AC_Collapsed_vals)/1000000) -> 18.68139608 | U100: =IF($B100="not used",0,SUMPRODUCT(($B100=COM_AC_Collapsed_index_1)*($B$96=COM_AC_Collapsed_index_3)*(U$97=COM_AC_Collapsed_index_2)*COM_AC_Collapsed_vals)/1000000) -> 18.88754294 | V100: =IF($B100="not used",0,SUMPRODUCT(($B100=COM_AC_Collapsed_index_1)*($B$96=COM_AC_Collapsed_index_3)*(V$97=COM_AC_Collapsed_index_2)*COM_AC_Collapsed_vals)/1000000) -> 19.09388365 | W100: =IF($B100="not used",0,SUMPRODUCT(($B100=COM_AC_Collapsed_index_1)*($B$96=COM_AC_Collapsed_index_3)*(W$97=COM_AC_Collapsed_index_2)*COM_AC_Collapsed_vals)/1000000) -> 19.30041821 | X100: =IF($B100="not used",0,SUMPRODUCT(($B100=COM_AC_Collapsed_index_1)*($B$96=COM_AC_Collapsed_index_3)*(X$97=COM_AC_Collapsed_index_2)*COM_AC_Collapsed_vals)/1000000) -> 19.50714662 | Y100: =IF($B100="not used",0,SUMPRODUCT(($B100=COM_AC_Collapsed_index_1)*($B$96=COM_AC_Collapsed_index_3)*(Y$97=COM_AC_Collapsed_index_2)*COM_AC_Collapsed_vals)/1000000) -> 19.71406887 | Z100: =IF($B100="not used",0,SUMPRODUCT(($B100=COM_AC_Collapsed_index_1)*($B$96=COM_AC_Collapsed_index_3)*(Z$97=COM_AC_Collapsed_index_2)*COM_AC_Collapsed_vals)/1000000) -> 19.92118497 | AA100: =IF($B100="not used",0,SUMPRODUCT(($B100=COM_AC_Collapsed_index_1)*($B$96=COM_AC_Collapsed_index_3)*(AA$97=COM_AC_Collapsed_index_2)*COM_AC_Collapsed_vals)/1000000) -> 20.12849491 | AB100: =IF($B100="not used",0,SUMPRODUCT(($B100=COM_AC_Collapsed_index_1)*($B$96=COM_AC_Collapsed_index_3)*(AB$97=COM_AC_Collapsed_index_2)*COM_AC_Collapsed_vals)/1000000) -> 20.33599871 | AC100: =IF($B100="not used",0,SUMPRODUCT(($B100=COM_AC_Collapsed_index_1)*($B$96=COM_AC_Collapsed_index_3)*(AC$97=COM_AC_Collapsed_index_2)*COM_AC_Collapsed_vals)/1000000) -> 20.54369635 | AD100: =IF($B100="not used",0,SUMPRODUCT(($B100=COM_AC_Collapsed_index_1)*($B$96=COM_AC_Collapsed_index_3)*(AD$97=COM_AC_Collapsed_index_2)*COM_AC_Collapsed_vals)/1000000) -> 20.75158784 | AE100: =IF($B100="not used",0,SUMPRODUCT(($B100=COM_AC_Collapsed_index_1)*($B$96=COM_AC_Collapsed_index_3)*(AE$97=COM_AC_Collapsed_index_2)*COM_AC_Collapsed_vals)/1000000) -> 20.95967317 | AF100: =IF($B100="not used",0,SUMPRODUCT(($B100=COM_AC_Collapsed_index_1)*($B$96=COM_AC_Collapsed_index_3)*(AF$97=COM_AC_Collapsed_index_2)*COM_AC_Collapsed_vals)/1000000) -> 21.16795235 | AG100: =IF($B100="not used",0,SUMPRODUCT(($B100=COM_AC_Collapsed_index_1)*($B$96=COM_AC_Collapsed_index_3)*(AG$97=COM_AC_Collapsed_index_2)*COM_AC_Collapsed_vals)/1000000) -> 21.37642538 | AH100: =IF($B100="not used",0,SUMPRODUCT(($B100=COM_AC_Collapsed_index_1)*($B$96=COM_AC_Collapsed_index_3)*(AH$97=COM_AC_Collapsed_index_2)*COM_AC_Collapsed_vals)/1000000) -> 21.58509226 | AI100: =IF($B100="not used",0,SUMPRODUCT(($B100=COM_AC_Collapsed_index_1)*($B$96=COM_AC_Collapsed_index_3)*(AI$97=COM_AC_Collapsed_index_2)*COM_AC_Collapsed_vals)/1000000) -> 21.79395298 | AJ100: =IF($B100="not used",0,SUMPRODUCT(($B100=COM_AC_Collapsed_index_1)*($B$96=COM_AC_Collapsed_index_3)*(AJ$97=COM_AC_Collapsed_index_2)*COM_AC_Collapsed_vals)/1000000) -> 22.00300755 | AK100: =IF($B100="not used",0,SUMPRODUCT(($B100=COM_AC_Collapsed_index_1)*($B$96=COM_AC_Collapsed_index_3)*(AK$97=COM_AC_Collapsed_index_2)*COM_AC_Collapsed_vals)/1000000) -> 22.21225597 | AL100: =IF($B100="not used",0,SUMPRODUCT(($B100=COM_AC_Collapsed_index_1)*($B$96=COM_AC_Collapsed_index_3)*(AL$97=COM_AC_Collapsed_index_2)*COM_AC_Collapsed_vals)/1000000) -> 22.42169824 | AM100: =IF($B100="not used",0,SUMPRODUCT(($B100=COM_AC_Collapsed_index_1)*($B$96=COM_AC_Collapsed_index_3)*(AM$97=COM_AC_Collapsed_index_2)*COM_AC_Collapsed_vals)/1000000) -> 22.63133435
B101: =IFERROR(INDEX(COM_AC_Collapsed_index_1, MATCH(0,COUNTIF($B$96:B100,COM_AC_Collapsed_index_1), 0)),"not used") -> Reference Centrifugal Chiller | C101: =IF(B101="not used",B101,INDEX(Lists!$G$3:$G$12,MATCH('Comm AC'!$B101,Lists!$F$3:$F$17,0))) -> Reference Chiller | D101: =IF($B101="not used",0,SUMPRODUCT(($B101=COM_AC_Collapsed_index_1)*($B$96=COM_AC_Collapsed_index_3)*(D$97=COM_AC_Collapsed_index_2)*COM_AC_Collapsed_vals)/1000000) -> 12.03988381 | E101: =IF($B101="not used",0,SUMPRODUCT(($B101=COM_AC_Collapsed_index_1)*($B$96=COM_AC_Collapsed_index_3)*(E$97=COM_AC_Collapsed_index_2)*COM_AC_Collapsed_vals)/1000000) -> 12.23004227 | F101: =IF($B101="not used",0,SUMPRODUCT(($B101=COM_AC_Collapsed_index_1)*($B$96=COM_AC_Collapsed_index_3)*(F$97=COM_AC_Collapsed_index_2)*COM_AC_Collapsed_vals)/1000000) -> 12.41590923 | G101: =IF($B101="not used",0,SUMPRODUCT(($B101=COM_AC_Collapsed_index_1)*($B$96=COM_AC_Collapsed_index_3)*(G$97=COM_AC_Collapsed_index_2)*COM_AC_Collapsed_vals)/1000000) -> 12.56119512 | H101: =IF($B101="not used",0,SUMPRODUCT(($B101=COM_AC_Collapsed_index_1)*($B$96=COM_AC_Collapsed_index_3)*(H$97=COM_AC_Collapsed_index_2)*COM_AC_Collapsed_vals)/1000000) -> 12.63187113 | I101: =IF($B101="not used",0,SUMPRODUCT(($B101=COM_AC_Collapsed_index_1)*($B$96=COM_AC_Collapsed_index_3)*(I$97=COM_AC_Collapsed_index_2)*COM_AC_Collapsed_vals)/1000000) -> 12.58078616 | J101: =IF($B101="not used",0,SUMPRODUCT(($B101=COM_AC_Collapsed_index_1)*($B$96=COM_AC_Collapsed_index_3)*(J$97=COM_AC_Collapsed_index_2)*COM_AC_Collapsed_vals)/1000000) -> 12.3871551 | K101: =IF($B101="not used",0,SUMPRODUCT(($B101=COM_AC_Collapsed_index_1)*($B$96=COM_AC_Collapsed_index_3)*(K$97=COM_AC_Collapsed_index_2)*COM_AC_Collapsed_vals)/1000000) -> 12.07551154 | L101: =IF($B101="not used",0,SUMPRODUCT(($B101=COM_AC_Collapsed_index_1)*($B$96=COM_AC_Collapsed_index_3)*(L$97=COM_AC_Collapsed_index_2)*COM_AC_Collapsed_vals)/1000000) -> 11.69320053 | M101: =IF($B101="not used",0,SUMPRODUCT(($B101=COM_AC_Collapsed_index_1)*($B$96=COM_AC_Collapsed_index_3)*(M$97=COM_AC_Collapsed_index_2)*COM_AC_Collapsed_vals)/1000000) -> 11.2741037 | N101: =IF($B101="not used",0,SUMPRODUCT(($B101=COM_AC_Collapsed_index_1)*($B$96=COM_AC_Collapsed_index_3)*(N$97=COM_AC_Collapsed_index_2)*COM_AC_Collapsed_vals)/1000000) -> 10.83533035 | O101: =IF($B101="not used",0,SUMPRODUCT(($B101=COM_AC_Collapsed_index_1)*($B$96=COM_AC_Collapsed_index_3)*(O$97=COM_AC_Collapsed_index_2)*COM_AC_Collapsed_vals)/1000000) -> 10.38480767 | P101: =IF($B101="not used",0,SUMPRODUCT(($B101=COM_AC_Collapsed_index_1)*($B$96=COM_AC_Collapsed_index_3)*(P$97=COM_AC_Collapsed_index_2)*COM_AC_Collapsed_vals)/1000000) -> 9.92626098 | Q101: =IF($B101="not used",0,SUMPRODUCT(($B101=COM_AC_Collapsed_index_1)*($B$96=COM_AC_Collapsed_index_3)*(Q$97=COM_AC_Collapsed_index_2)*COM_AC_Collapsed_vals)/1000000) -> 9.461956474 | R101: =IF($B101="not used",0,SUMPRODUCT(($B101=COM_AC_Collapsed_index_1)*($B$96=COM_AC_Collapsed_index_3)*(R$97=COM_AC_Collapsed_index_2)*COM_AC_Collapsed_vals)/1000000) -> 8.993488212 | S101: =IF($B101="not used",0,SUMPRODUCT(($B101=COM_AC_Collapsed_index_1)*($B$96=COM_AC_Collapsed_index_3)*(S$97=COM_AC_Collapsed_index_2)*COM_AC_Collapsed_vals)/1000000) -> 8.522264985 | T101: =IF($B101="not used",0,SUMPRODUCT(($B101=COM_AC_Collapsed_index_1)*($B$96=COM_AC_Collapsed_index_3)*(T$97=COM_AC_Collapsed_index_2)*COM_AC_Collapsed_vals)/1000000) -> 8.049381485 | U101: =IF($B101="not used",0,SUMPRODUCT(($B101=COM_AC_Collapsed_index_1)*($B$96=COM_AC_Collapsed_index_3)*(U$97=COM_AC_Collapsed_index_2)*COM_AC_Collapsed_vals)/1000000) -> 7.575882157 | V101: =IF($B101="not used",0,SUMPRODUCT(($B101=COM_AC_Collapsed_index_1)*($B$96=COM_AC_Collapsed_index_3)*(V$97=COM_AC_Collapsed_index_2)*COM_AC_Collapsed_vals)/1000000) -> 7.102310445 | W101: =IF($B101="not used",0,SUMPRODUCT(($B101=COM_AC_Collapsed_index_1)*($B$96=COM_AC_Collapsed_index_3)*(W$97=COM_AC_Collapsed_index_2)*COM_AC_Collapsed_vals)/1000000) -> 6.629021418 | X101: =IF($B101="not used",0,SUMPRODUCT(($B101=COM_AC_Collapsed_index_1)*($B$96=COM_AC_Collapsed_index_3)*(X$97=COM_AC_Collapsed_index_2)*COM_AC_Collapsed_vals)/1000000) -> 6.156303922 | Y101: =IF($B101="not used",0,SUMPRODUCT(($B101=COM_AC_Collapsed_index_1)*($B$96=COM_AC_Collapsed_index_3)*(Y$97=COM_AC_Collapsed_index_2)*COM_AC_Collapsed_vals)/1000000) -> 5.684204397 | Z101: =IF($B101="not used",0,SUMPRODUCT(($B101=COM_AC_Collapsed_index_1)*($B$96=COM_AC_Collapsed_index_3)*(Z$97=COM_AC_Collapsed_index_2)*COM_AC_Collapsed_vals)/1000000) -> 5.213174683 | AA101: =IF($B101="not used",0,SUMPRODUCT(($B101=COM_AC_Collapsed_index_1)*($B$96=COM_AC_Collapsed_index_3)*(AA$97=COM_AC_Collapsed_index_2)*COM_AC_Collapsed_vals)/1000000) -> 4.744238073 | AB101: =IF($B101="not used",0,SUMPRODUCT(($B101=COM_AC_Collapsed_index_1)*($B$96=COM_AC_Collapsed_index_3)*(AB$97=COM_AC_Collapsed_index_2)*COM_AC_Collapsed_vals)/1000000) -> 4.279232848 | AC101: =IF($B101="not used",0,SUMPRODUCT(($B101=COM_AC_Collapsed_index_1)*($B$96=COM_AC_Collapsed_index_3)*(AC$97=COM_AC_Collapsed_index_2)*COM_AC_Collapsed_vals)/1000000) -> 3.820894207 | AD101: =IF($B101="not used",0,SUMPRODUCT(($B101=COM_AC_Collapsed_index_1)*($B$96=COM_AC_Collapsed_index_3)*(AD$97=COM_AC_Collapsed_index_2)*COM_AC_Collapsed_vals)/1000000) -> 3.373065962 | AE101: =IF($B101="not used",0,SUMPRODUCT(($B101=COM_AC_Collapsed_index_1)*($B$96=COM_AC_Collapsed_index_3)*(AE$97=COM_AC_Collapsed_index_2)*COM_AC_Collapsed_vals)/1000000) -> 2.940410005 | AF101: =IF($B101="not used",0,SUMPRODUCT(($B101=COM_AC_Collapsed_index_1)*($B$96=COM_AC_Collapsed_index_3)*(AF$97=COM_AC_Collapsed_index_2)*COM_AC_Collapsed_vals)/1000000) -> 2.528154254 | AG101: =IF($B101="not used",0,SUMPRODUCT(($B101=COM_AC_Collapsed_index_1)*($B$96=COM_AC_Collapsed_index_3)*(AG$97=COM_AC_Collapsed_index_2)*COM_AC_Collapsed_vals)/1000000) -> 2.141479012 | AH101: =IF($B101="not used",0,SUMPRODUCT(($B101=COM_AC_Collapsed_index_1)*($B$96=COM_AC_Collapsed_index_3)*(AH$97=COM_AC_Collapsed_index_2)*COM_AC_Collapsed_vals)/1000000) -> 1.785386464 | AI101: =IF($B101="not used",0,SUMPRODUCT(($B101=COM_AC_Collapsed_index_1)*($B$96=COM_AC_Collapsed_index_3)*(AI$97=COM_AC_Collapsed_index_2)*COM_AC_Collapsed_vals)/1000000) -> 1.463635431 | AJ101: =IF($B101="not used",0,SUMPRODUCT(($B101=COM_AC_Collapsed_index_1)*($B$96=COM_AC_Collapsed_index_3)*(AJ$97=COM_AC_Collapsed_index_2)*COM_AC_Collapsed_vals)/1000000) -> 1.178915095 | AK101: =IF($B101="not used",0,SUMPRODUCT(($B101=COM_AC_Collapsed_index_1)*($B$96=COM_AC_Collapsed_index_3)*(AK$97=COM_AC_Collapsed_index_2)*COM_AC_Collapsed_vals)/1000000) -> 0.9323806979 | AL101: =IF($B101="not used",0,SUMPRODUCT(($B101=COM_AC_Collapsed_index_1)*($B$96=COM_AC_Collapsed_index_3)*(AL$97=COM_AC_Collapsed_index_2)*COM_AC_Collapsed_vals)/1000000) -> 0.7236641291 | AM101: =IF($B101="not used",0,SUMPRODUCT(($B101=COM_AC_Collapsed_index_1)*($B$96=COM_AC_Collapsed_index_3)*(AM$97=COM_AC_Collapsed_index_2)*COM_AC_Collapsed_vals)/1000000) -> 0.5508853692
B102: =IFERROR(INDEX(COM_AC_Collapsed_index_1, MATCH(0,COUNTIF($B$96:B101,COM_AC_Collapsed_index_1), 0)),"not used") -> Reference Reciprocating Chiller | C102: =IF(B102="not used",B102,INDEX(Lists!$G$3:$G$12,MATCH('Comm AC'!$B102,Lists!$F$3:$F$17,0))) -> Reference Chiller | D102: =IF($B102="not used",0,SUMPRODUCT(($B102=COM_AC_Collapsed_index_1)*($B$96=COM_AC_Collapsed_index_3)*(D$97=COM_AC_Collapsed_index_2)*COM_AC_Collapsed_vals)/1000000) -> 43.17782417 | E102: =IF($B102="not used",0,SUMPRODUCT(($B102=COM_AC_Collapsed_index_1)*($B$96=COM_AC_Collapsed_index_3)*(E$97=COM_AC_Collapsed_index_2)*COM_AC_Collapsed_vals)/1000000) -> 43.85463177 | F102: =IF($B102="not used",0,SUMPRODUCT(($B102=COM_AC_Collapsed_index_1)*($B$96=COM_AC_Collapsed_index_3)*(F$97=COM_AC_Collapsed_index_2)*COM_AC_Collapsed_vals)/1000000) -> 44.50788764 | G102: =IF($B102="not used",0,SUMPRODUCT(($B102=COM_AC_Collapsed_index_1)*($B$96=COM_AC_Collapsed_index_3)*(G$97=COM_AC_Collapsed_index_2)*COM_AC_Collapsed_vals)/1000000) -> 44.99569796 | H102: =IF($B102="not used",0,SUMPRODUCT(($B102=COM_AC_Collapsed_index_1)*($B$96=COM_AC_Collapsed_index_3)*(H$97=COM_AC_Collapsed_index_2)*COM_AC_Collapsed_vals)/1000000) -> 45.17223849 | I102: =IF($B102="not used",0,SUMPRODUCT(($B102=COM_AC_Collapsed_index_1)*($B$96=COM_AC_Collapsed_index_3)*(I$97=COM_AC_Collapsed_index_2)*COM_AC_Collapsed_vals)/1000000) -> 44.83518104 | J102: =IF($B102="not used",0,SUMPRODUCT(($B102=COM_AC_Collapsed_index_1)*($B$96=COM_AC_Collapsed_index_3)*(J$97=COM_AC_Collapsed_index_2)*COM_AC_Collapsed_vals)/1000000) -> 43.89319691 | K102: =IF($B102="not used",0,SUMPRODUCT(($B102=COM_AC_Collapsed_index_1)*($B$96=COM_AC_Collapsed_index_3)*(K$97=COM_AC_Collapsed_index_2)*COM_AC_Collapsed_vals)/1000000) -> 42.45533848 | L102: =IF($B102="not used",0,SUMPRODUCT(($B102=COM_AC_Collapsed_index_1)*($B$96=COM_AC_Collapsed_index_3)*(L$97=COM_AC_Collapsed_index_2)*COM_AC_Collapsed_vals)/1000000) -> 40.7275657 | M102: =IF($B102="not used",0,SUMPRODUCT(($B102=COM_AC_Collapsed_index_1)*($B$96=COM_AC_Collapsed_index_3)*(M$97=COM_AC_Collapsed_index_2)*COM_AC_Collapsed_vals)/1000000) -> 38.85601063 | N102: =IF($B102="not used",0,SUMPRODUCT(($B102=COM_AC_Collapsed_index_1)*($B$96=COM_AC_Collapsed_index_3)*(N$97=COM_AC_Collapsed_index_2)*COM_AC_Collapsed_vals)/1000000) -> 36.91506904 | O102: =IF($B102="not used",0,SUMPRODUCT(($B102=COM_AC_Collapsed_index_1)*($B$96=COM_AC_Collapsed_index_3)*(O$97=COM_AC_Collapsed_index_2)*COM_AC_Collapsed_vals)/1000000) -> 34.93794166 | P102: =IF($B102="not used",0,SUMPRODUCT(($B102=COM_AC_Collapsed_index_1)*($B$96=COM_AC_Collapsed_index_3)*(P$97=COM_AC_Collapsed_index_2)*COM_AC_Collapsed_vals)/1000000) -> 32.93932274 | Q102: =IF($B102="not used",0,SUMPRODUCT(($B102=COM_AC_Collapsed_index_1)*($B$96=COM_AC_Collapsed_index_3)*(Q$97=COM_AC_Collapsed_index_2)*COM_AC_Collapsed_vals)/1000000) -> 30.92576296 | R102: =IF($B102="not used",0,SUMPRODUCT(($B102=COM_AC_Collapsed_index_1)*($B$96=COM_AC_Collapsed_index_3)*(R$97=COM_AC_Collapsed_index_2)*COM_AC_Collapsed_vals)/1000000) -> 28.89986378 | S102: =IF($B102="not used",0,SUMPRODUCT(($B102=COM_AC_Collapsed_index_1)*($B$96=COM_AC_Collapsed_index_3)*(S$97=COM_AC_Collapsed_index_2)*COM_AC_Collapsed_vals)/1000000) -> 26.86238664 | T102: =IF($B102="not used",0,SUMPRODUCT(($B102=COM_AC_Collapsed_index_1)*($B$96=COM_AC_Collapsed_index_3)*(T$97=COM_AC_Collapsed_index_2)*COM_AC_Collapsed_vals)/1000000) -> 24.81339546 | U102: =IF($B102="not used",0,SUMPRODUCT(($B102=COM_AC_Collapsed_index_1)*($B$96=COM_AC_Collapsed_index_3)*(U$97=COM_AC_Collapsed_index_2)*COM_AC_Collapsed_vals)/1000000) -> 22.75376764 | V102: =IF($B102="not used",0,SUMPRODUCT(($B102=COM_AC_Collapsed_index_1)*($B$96=COM_AC_Collapsed_index_3)*(V$97=COM_AC_Collapsed_index_2)*COM_AC_Collapsed_vals)/1000000) -> 20.68701637 | W102: =IF($B102="not used",0,SUMPRODUCT(($B102=COM_AC_Collapsed_index_1)*($B$96=COM_AC_Collapsed_index_3)*(W$97=COM_AC_Collapsed_index_2)*COM_AC_Collapsed_vals)/1000000) -> 18.62044304 | X102: =IF($B102="not used",0,SUMPRODUCT(($B102=COM_AC_Collapsed_index_1)*($B$96=COM_AC_Collapsed_index_3)*(X$97=COM_AC_Collapsed_index_2)*COM_AC_Collapsed_vals)/1000000) -> 16.56764367 | Y102: =IF($B102="not used",0,SUMPRODUCT(($B102=COM_AC_Collapsed_index_1)*($B$96=COM_AC_Collapsed_index_3)*(Y$97=COM_AC_Collapsed_index_2)*COM_AC_Collapsed_vals)/1000000) -> 14.54824703 | Z102: =IF($B102="not used",0,SUMPRODUCT(($B102=COM_AC_Collapsed_index_1)*($B$96=COM_AC_Collapsed_index_3)*(Z$97=COM_AC_Collapsed_index_2)*COM_AC_Collapsed_vals)/1000000) -> 12.58778838 | AA102: =IF($B102="not used",0,SUMPRODUCT(($B102=COM_AC_Collapsed_index_1)*($B$96=COM_AC_Collapsed_index_3)*(AA$97=COM_AC_Collapsed_index_2)*COM_AC_Collapsed_vals)/1000000) -> 10.71571334 | AB102: =IF($B102="not used",0,SUMPRODUCT(($B102=COM_AC_Collapsed_index_1)*($B$96=COM_AC_Collapsed_index_3)*(AB$97=COM_AC_Collapsed_index_2)*COM_AC_Collapsed_vals)/1000000) -> 8.961709946 | AC102: =IF($B102="not used",0,SUMPRODUCT(($B102=COM_AC_Collapsed_index_1)*($B$96=COM_AC_Collapsed_index_3)*(AC$97=COM_AC_Collapsed_index_2)*COM_AC_Collapsed_vals)/1000000) -> 7.353454785 | AD102: =IF($B102="not used",0,SUMPRODUCT(($B102=COM_AC_Collapsed_index_1)*($B$96=COM_AC_Collapsed_index_3)*(AD$97=COM_AC_Collapsed_index_2)*COM_AC_Collapsed_vals)/1000000) -> 5.913366105 | AE102: =IF($B102="not used",0,SUMPRODUCT(($B102=COM_AC_Collapsed_index_1)*($B$96=COM_AC_Collapsed_index_3)*(AE$97=COM_AC_Collapsed_index_2)*COM_AC_Collapsed_vals)/1000000) -> 4.655887158 | AF102: =IF($B102="not used",0,SUMPRODUCT(($B102=COM_AC_Collapsed_index_1)*($B$96=COM_AC_Collapsed_index_3)*(AF$97=COM_AC_Collapsed_index_2)*COM_AC_Collapsed_vals)/1000000) -> 3.586322564 | AG102: =IF($B102="not used",0,SUMPRODUCT(($B102=COM_AC_Collapsed_index_1)*($B$96=COM_AC_Collapsed_index_3)*(AG$97=COM_AC_Collapsed_index_2)*COM_AC_Collapsed_vals)/1000000) -> 2.701077168 | AH102: =IF($B102="not used",0,SUMPRODUCT(($B102=COM_AC_Collapsed_index_1)*($B$96=COM_AC_Collapsed_index_3)*(AH$97=COM_AC_Collapsed_index_2)*COM_AC_Collapsed_vals)/1000000) -> 1.987724687 | AI102: =IF($B102="not used",0,SUMPRODUCT(($B102=COM_AC_Collapsed_index_1)*($B$96=COM_AC_Collapsed_index_3)*(AI$97=COM_AC_Collapsed_index_2)*COM_AC_Collapsed_vals)/1000000) -> 1.428798586 | AJ102: =IF($B102="not used",0,SUMPRODUCT(($B102=COM_AC_Collapsed_index_1)*($B$96=COM_AC_Collapsed_index_3)*(AJ$97=COM_AC_Collapsed_index_2)*COM_AC_Collapsed_vals)/1000000) -> 1.002968389 | AK102: =IF($B102="not used",0,SUMPRODUCT(($B102=COM_AC_Collapsed_index_1)*($B$96=COM_AC_Collapsed_index_3)*(AK$97=COM_AC_Collapsed_index_2)*COM_AC_Collapsed_vals)/1000000) -> 0.6875398266 | AL102: =IF($B102="not used",0,SUMPRODUCT(($B102=COM_AC_Collapsed_index_1)*($B$96=COM_AC_Collapsed_index_3)*(AL$97=COM_AC_Collapsed_index_2)*COM_AC_Collapsed_vals)/1000000) -> 0.4600784628 | AM102: =IF($B102="not used",0,SUMPRODUCT(($B102=COM_AC_Collapsed_index_1)*($B$96=COM_AC_Collapsed_index_3)*(AM$97=COM_AC_Collapsed_index_2)*COM_AC_Collapsed_vals)/1000000) -> 0.300771831
B103: =IFERROR(INDEX(COM_AC_Collapsed_index_1, MATCH(0,COUNTIF($B$96:B102,COM_AC_Collapsed_index_1), 0)),"not used") -> High Efficiency Room Air Conditioner | C103: =IF(B103="not used",B103,INDEX(Lists!$G$3:$G$12,MATCH('Comm AC'!$B103,Lists!$F$3:$F$17,0))) -> High Efficiency AC | D103: =IF($B103="not used",0,SUMPRODUCT(($B103=COM_AC_Collapsed_index_1)*($B$96=COM_AC_Collapsed_index_3)*(D$97=COM_AC_Collapsed_index_2)*COM_AC_Collapsed_vals)/1000000) -> 14.50841237 | E103: =IF($B103="not used",0,SUMPRODUCT(($B103=COM_AC_Collapsed_index_1)*($B$96=COM_AC_Collapsed_index_3)*(E$97=COM_AC_Collapsed_index_2)*COM_AC_Collapsed_vals)/1000000) -> 14.7457765 | F103: =IF($B103="not used",0,SUMPRODUCT(($B103=COM_AC_Collapsed_index_1)*($B$96=COM_AC_Collapsed_index_3)*(F$97=COM_AC_Collapsed_index_2)*COM_AC_Collapsed_vals)/1000000) -> 14.99185913 | G103: =IF($B103="not used",0,SUMPRODUCT(($B103=COM_AC_Collapsed_index_1)*($B$96=COM_AC_Collapsed_index_3)*(G$97=COM_AC_Collapsed_index_2)*COM_AC_Collapsed_vals)/1000000) -> 15.22242514 | H103: =IF($B103="not used",0,SUMPRODUCT(($B103=COM_AC_Collapsed_index_1)*($B$96=COM_AC_Collapsed_index_3)*(H$97=COM_AC_Collapsed_index_2)*COM_AC_Collapsed_vals)/1000000) -> 15.4367876 | I103: =IF($B103="not used",0,SUMPRODUCT(($B103=COM_AC_Collapsed_index_1)*($B$96=COM_AC_Collapsed_index_3)*(I$97=COM_AC_Collapsed_index_2)*COM_AC_Collapsed_vals)/1000000) -> 15.63505093 | J103: =IF($B103="not used",0,SUMPRODUCT(($B103=COM_AC_Collapsed_index_1)*($B$96=COM_AC_Collapsed_index_3)*(J$97=COM_AC_Collapsed_index_2)*COM_AC_Collapsed_vals)/1000000) -> 15.82971464 | K103: =IF($B103="not used",0,SUMPRODUCT(($B103=COM_AC_Collapsed_index_1)*($B$96=COM_AC_Collapsed_index_3)*(K$97=COM_AC_Collapsed_index_2)*COM_AC_Collapsed_vals)/1000000) -> 16.02260249 | L103: =IF($B103="not used",0,SUMPRODUCT(($B103=COM_AC_Collapsed_index_1)*($B$96=COM_AC_Collapsed_index_3)*(L$97=COM_AC_Collapsed_index_2)*COM_AC_Collapsed_vals)/1000000) -> 16.21655582 | M103: =IF($B103="not used",0,SUMPRODUCT(($B103=COM_AC_Collapsed_index_1)*($B$96=COM_AC_Collapsed_index_3)*(M$97=COM_AC_Collapsed_index_2)*COM_AC_Collapsed_vals)/1000000) -> 16.41034563 | N103: =IF($B103="not used",0,SUMPRODUCT(($B103=COM_AC_Collapsed_index_1)*($B$96=COM_AC_Collapsed_index_3)*(N$97=COM_AC_Collapsed_index_2)*COM_AC_Collapsed_vals)/1000000) -> 16.60523738 | O103: =IF($B103="not used",0,SUMPRODUCT(($B103=COM_AC_Collapsed_index_1)*($B$96=COM_AC_Collapsed_index_3)*(O$97=COM_AC_Collapsed_index_2)*COM_AC_Collapsed_vals)/1000000) -> 16.80031361 | P103: =IF($B103="not used",0,SUMPRODUCT(($B103=COM_AC_Collapsed_index_1)*($B$96=COM_AC_Collapsed_index_3)*(P$97=COM_AC_Collapsed_index_2)*COM_AC_Collapsed_vals)/1000000) -> 16.99557432 | Q103: =IF($B103="not used",0,SUMPRODUCT(($B103=COM_AC_Collapsed_index_1)*($B$96=COM_AC_Collapsed_index_3)*(Q$97=COM_AC_Collapsed_index_2)*COM_AC_Collapsed_vals)/1000000) -> 17.19101951 | R103: =IF($B103="not used",0,SUMPRODUCT(($B103=COM_AC_Collapsed_index_1)*($B$96=COM_AC_Collapsed_index_3)*(R$97=COM_AC_Collapsed_index_2)*COM_AC_Collapsed_vals)/1000000) -> 17.38664917 | S103: =IF($B103="not used",0,SUMPRODUCT(($B103=COM_AC_Collapsed_index_1)*($B$96=COM_AC_Collapsed_index_3)*(S$97=COM_AC_Collapsed_index_2)*COM_AC_Collapsed_vals)/1000000) -> 17.58246332 | T103: =IF($B103="not used",0,SUMPRODUCT(($B103=COM_AC_Collapsed_index_1)*($B$96=COM_AC_Collapsed_index_3)*(T$97=COM_AC_Collapsed_index_2)*COM_AC_Collapsed_vals)/1000000) -> 17.77846194 | U103: =IF($B103="not used",0,SUMPRODUCT(($B103=COM_AC_Collapsed_index_1)*($B$96=COM_AC_Collapsed_index_3)*(U$97=COM_AC_Collapsed_index_2)*COM_AC_Collapsed_vals)/1000000) -> 17.97464504 | V103: =IF($B103="not used",0,SUMPRODUCT(($B103=COM_AC_Collapsed_index_1)*($B$96=COM_AC_Collapsed_index_3)*(V$97=COM_AC_Collapsed_index_2)*COM_AC_Collapsed_vals)/1000000) -> 18.17101261 | W103: =IF($B103="not used",0,SUMPRODUCT(($B103=COM_AC_Collapsed_index_1)*($B$96=COM_AC_Collapsed_index_3)*(W$97=COM_AC_Collapsed_index_2)*COM_AC_Collapsed_vals)/1000000) -> 18.36756467 | X103: =IF($B103="not used",0,SUMPRODUCT(($B103=COM_AC_Collapsed_index_1)*($B$96=COM_AC_Collapsed_index_3)*(X$97=COM_AC_Collapsed_index_2)*COM_AC_Collapsed_vals)/1000000) -> 18.5643012 | Y103: =IF($B103="not used",0,SUMPRODUCT(($B103=COM_AC_Collapsed_index_1)*($B$96=COM_AC_Collapsed_index_3)*(Y$97=COM_AC_Collapsed_index_2)*COM_AC_Collapsed_vals)/1000000) -> 18.76122221 | Z103: =IF($B103="not used",0,SUMPRODUCT(($B103=COM_AC_Collapsed_index_1)*($B$96=COM_AC_Collapsed_index_3)*(Z$97=COM_AC_Collapsed_index_2)*COM_AC_Collapsed_vals)/1000000) -> 18.95832769 | AA103: =IF($B103="not used",0,SUMPRODUCT(($B103=COM_AC_Collapsed_index_1)*($B$96=COM_AC_Collapsed_index_3)*(AA$97=COM_AC_Collapsed_index_2)*COM_AC_Collapsed_vals)/1000000) -> 19.15561766 | AB103: =IF($B103="not used",0,SUMPRODUCT(($B103=COM_AC_Collapsed_index_1)*($B$96=COM_AC_Collapsed_index_3)*(AB$97=COM_AC_Collapsed_index_2)*COM_AC_Collapsed_vals)/1000000) -> 19.3530921 | AC103: =IF($B103="not used",0,SUMPRODUCT(($B103=COM_AC_Collapsed_index_1)*($B$96=COM_AC_Collapsed_index_3)*(AC$97=COM_AC_Collapsed_index_2)*COM_AC_Collapsed_vals)/1000000) -> 19.55075102 | AD103: =IF($B103="not used",0,SUMPRODUCT(($B103=COM_AC_Collapsed_index_1)*($B$96=COM_AC_Collapsed_index_3)*(AD$97=COM_AC_Collapsed_index_2)*COM_AC_Collapsed_vals)/1000000) -> 19.74859442 | AE103: =IF($B103="not used",0,SUMPRODUCT(($B103=COM_AC_Collapsed_index_1)*($B$96=COM_AC_Collapsed_index_3)*(AE$97=COM_AC_Collapsed_index_2)*COM_AC_Collapsed_vals)/1000000) -> 19.9466223 | AF103: =IF($B103="not used",0,SUMPRODUCT(($B103=COM_AC_Collapsed_index_1)*($B$96=COM_AC_Collapsed_index_3)*(AF$97=COM_AC_Collapsed_index_2)*COM_AC_Collapsed_vals)/1000000) -> 20.14483466 | AG103: =IF($B103="not used",0,SUMPRODUCT(($B103=COM_AC_Collapsed_index_1)*($B$96=COM_AC_Collapsed_index_3)*(AG$97=COM_AC_Collapsed_index_2)*COM_AC_Collapsed_vals)/1000000) -> 20.34323149 | AH103: =IF($B103="not used",0,SUMPRODUCT(($B103=COM_AC_Collapsed_index_1)*($B$96=COM_AC_Collapsed_index_3)*(AH$97=COM_AC_Collapsed_index_2)*COM_AC_Collapsed_vals)/1000000) -> 20.5418128 | AI103: =IF($B103="not used",0,SUMPRODUCT(($B103=COM_AC_Collapsed_index_1)*($B$96=COM_AC_Collapsed_index_3)*(AI$97=COM_AC_Collapsed_index_2)*COM_AC_Collapsed_vals)/1000000) -> 20.74057859 | AJ103: =IF($B103="not used",0,SUMPRODUCT(($B103=COM_AC_Collapsed_index_1)*($B$96=COM_AC_Collapsed_index_3)*(AJ$97=COM_AC_Collapsed_index_2)*COM_AC_Collapsed_vals)/1000000) -> 20.93952885 | AK103: =IF($B103="not used",0,SUMPRODUCT(($B103=COM_AC_Collapsed_index_1)*($B$96=COM_AC_Collapsed_index_3)*(AK$97=COM_AC_Collapsed_index_2)*COM_AC_Collapsed_vals)/1000000) -> 21.1386636 | AL103: =IF($B103="not used",0,SUMPRODUCT(($B103=COM_AC_Collapsed_index_1)*($B$96=COM_AC_Collapsed_index_3)*(AL$97=COM_AC_Collapsed_index_2)*COM_AC_Collapsed_vals)/1000000) -> 21.33798282 | AM103: =IF($B103="not used",0,SUMPRODUCT(($B103=COM_AC_Collapsed_index_1)*($B$96=COM_AC_Collapsed_index_3)*(AM$97=COM_AC_Collapsed_index_2)*COM_AC_Collapsed_vals)/1000000) -> 21.53748652
B104: =IFERROR(INDEX(COM_AC_Collapsed_index_1, MATCH(0,COUNTIF($B$96:B103,COM_AC_Collapsed_index_1), 0)),"not used") -> High Efficiency Central Air Conditioner | C104: =IF(B104="not used",B104,INDEX(Lists!$G$3:$G$12,MATCH('Comm AC'!$B104,Lists!$F$3:$F$17,0))) -> High Efficiency AC | D104: =IF($B104="not used",0,SUMPRODUCT(($B104=COM_AC_Collapsed_index_1)*($B$96=COM_AC_Collapsed_index_3)*(D$97=COM_AC_Collapsed_index_2)*COM_AC_Collapsed_vals)/1000000) -> 0.07045492669 | E104: =IF($B104="not used",0,SUMPRODUCT(($B104=COM_AC_Collapsed_index_1)*($B$96=COM_AC_Collapsed_index_3)*(E$97=COM_AC_Collapsed_index_2)*COM_AC_Collapsed_vals)/1000000) -> 0.1934789182 | F104: =IF($B104="not used",0,SUMPRODUCT(($B104=COM_AC_Collapsed_index_1)*($B$96=COM_AC_Collapsed_index_3)*(F$97=COM_AC_Collapsed_index_2)*COM_AC_Collapsed_vals)/1000000) -> 0.5212854836 | G104: =IF($B104="not used",0,SUMPRODUCT(($B104=COM_AC_Collapsed_index_1)*($B$96=COM_AC_Collapsed_index_3)*(G$97=COM_AC_Collapsed_index_2)*COM_AC_Collapsed_vals)/1000000) -> 1.347520567 | H104: =IF($B104="not used",0,SUMPRODUCT(($B104=COM_AC_Collapsed_index_1)*($B$96=COM_AC_Collapsed_index_3)*(H$97=COM_AC_Collapsed_index_2)*COM_AC_Collapsed_vals)/1000000) -> 3.27841224 | I104: =IF($B104="not used",0,SUMPRODUCT(($B104=COM_AC_Collapsed_index_1)*($B$96=COM_AC_Collapsed_index_3)*(I$97=COM_AC_Collapsed_index_2)*COM_AC_Collapsed_vals)/1000000) -> 7.169548203 | J104: =IF($B104="not used",0,SUMPRODUCT(($B104=COM_AC_Collapsed_index_1)*($B$96=COM_AC_Collapsed_index_3)*(J$97=COM_AC_Collapsed_index_2)*COM_AC_Collapsed_vals)/1000000) -> 13.53828564 | K104: =IF($B104="not used",0,SUMPRODUCT(($B104=COM_AC_Collapsed_index_1)*($B$96=COM_AC_Collapsed_index_3)*(K$97=COM_AC_Collapsed_index_2)*COM_AC_Collapsed_vals)/1000000) -> 21.91700873 | L104: =IF($B104="not used",0,SUMPRODUCT(($B104=COM_AC_Collapsed_index_1)*($B$96=COM_AC_Collapsed_index_3)*(L$97=COM_AC_Collapsed_index_2)*COM_AC_Collapsed_vals)/1000000) -> 31.4498191 | M104: =IF($B104="not used",0,SUMPRODUCT(($B104=COM_AC_Collapsed_index_1)*($B$96=COM_AC_Collapsed_index_3)*(M$97=COM_AC_Collapsed_index_2)*COM_AC_Collapsed_vals)/1000000) -> 41.50766417 | N104: =IF($B104="not used",0,SUMPRODUCT(($B104=COM_AC_Collapsed_index_1)*($B$96=COM_AC_Collapsed_index_3)*(N$97=COM_AC_Collapsed_index_2)*COM_AC_Collapsed_vals)/1000000) -> 51.80467468 | O104: =IF($B104="not used",0,SUMPRODUCT(($B104=COM_AC_Collapsed_index_1)*($B$96=COM_AC_Collapsed_index_3)*(O$97=COM_AC_Collapsed_index_2)*COM_AC_Collapsed_vals)/1000000) -> 62.21940541 | P104: =IF($B104="not used",0,SUMPRODUCT(($B104=COM_AC_Collapsed_index_1)*($B$96=COM_AC_Collapsed_index_3)*(P$97=COM_AC_Collapsed_index_2)*COM_AC_Collapsed_vals)/1000000) -> 72.7170913 | Q104: =IF($B104="not used",0,SUMPRODUCT(($B104=COM_AC_Collapsed_index_1)*($B$96=COM_AC_Collapsed_index_3)*(Q$97=COM_AC_Collapsed_index_2)*COM_AC_Collapsed_vals)/1000000) -> 83.28847636 | R104: =IF($B104="not used",0,SUMPRODUCT(($B104=COM_AC_Collapsed_index_1)*($B$96=COM_AC_Collapsed_index_3)*(R$97=COM_AC_Collapsed_index_2)*COM_AC_Collapsed_vals)/1000000) -> 93.91934096 | S104: =IF($B104="not used",0,SUMPRODUCT(($B104=COM_AC_Collapsed_index_1)*($B$96=COM_AC_Collapsed_index_3)*(S$97=COM_AC_Collapsed_index_2)*COM_AC_Collapsed_vals)/1000000) -> 104.5683176 | T104: =IF($B104="not used",0,SUMPRODUCT(($B104=COM_AC_Collapsed_index_1)*($B$96=COM_AC_Collapsed_index_3)*(T$97=COM_AC_Collapsed_index_2)*COM_AC_Collapsed_vals)/1000000) -> 115.1557019 | U104: =IF($B104="not used",0,SUMPRODUCT(($B104=COM_AC_Collapsed_index_1)*($B$96=COM_AC_Collapsed_index_3)*(U$97=COM_AC_Collapsed_index_2)*COM_AC_Collapsed_vals)/1000000) -> 125.5627583 | V104: =IF($B104="not used",0,SUMPRODUCT(($B104=COM_AC_Collapsed_index_1)*($B$96=COM_AC_Collapsed_index_3)*(V$97=COM_AC_Collapsed_index_2)*COM_AC_Collapsed_vals)/1000000) -> 135.6374713 | W104: =IF($B104="not used",0,SUMPRODUCT(($B104=COM_AC_Collapsed_index_1)*($B$96=COM_AC_Collapsed_index_3)*(W$97=COM_AC_Collapsed_index_2)*COM_AC_Collapsed_vals)/1000000) -> 145.2143658 | X104: =IF($B104="not used",0,SUMPRODUCT(($B104=COM_AC_Collapsed_index_1)*($B$96=COM_AC_Collapsed_index_3)*(X$97=COM_AC_Collapsed_index_2)*COM_AC_Collapsed_vals)/1000000) -> 154.135081 | Y104: =IF($B104="not used",0,SUMPRODUCT(($B104=COM_AC_Collapsed_index_1)*($B$96=COM_AC_Collapsed_index_3)*(Y$97=COM_AC_Collapsed_index_2)*COM_AC_Collapsed_vals)/1000000) -> 162.2704969 | Z104: =IF($B104="not used",0,SUMPRODUCT(($B104=COM_AC_Collapsed_index_1)*($B$96=COM_AC_Collapsed_index_3)*(Z$97=COM_AC_Collapsed_index_2)*COM_AC_Collapsed_vals)/1000000) -> 169.537778 | AA104: =IF($B104="not used",0,SUMPRODUCT(($B104=COM_AC_Collapsed_index_1)*($B$96=COM_AC_Collapsed_index_3)*(AA$97=COM_AC_Collapsed_index_2)*COM_AC_Collapsed_vals)/1000000) -> 175.911499 | AB104: =IF($B104="not used",0,SUMPRODUCT(($B104=COM_AC_Collapsed_index_1)*($B$96=COM_AC_Collapsed_index_3)*(AB$97=COM_AC_Collapsed_index_2)*COM_AC_Collapsed_vals)/1000000) -> 181.4184967 | AC104: =IF($B104="not used",0,SUMPRODUCT(($B104=COM_AC_Collapsed_index_1)*($B$96=COM_AC_Collapsed_index_3)*(AC$97=COM_AC_Collapsed_index_2)*COM_AC_Collapsed_vals)/1000000) -> 186.1326635 | AD104: =IF($B104="not used",0,SUMPRODUCT(($B104=COM_AC_Collapsed_index_1)*($B$96=COM_AC_Collapsed_index_3)*(AD$97=COM_AC_Collapsed_index_2)*COM_AC_Collapsed_vals)/1000000) -> 190.1582545 | AE104: =IF($B104="not used",0,SUMPRODUCT(($B104=COM_AC_Collapsed_index_1)*($B$96=COM_AC_Collapsed_index_3)*(AE$97=COM_AC_Collapsed_index_2)*COM_AC_Collapsed_vals)/1000000) -> 193.6141262 | AF104: =IF($B104="not used",0,SUMPRODUCT(($B104=COM_AC_Collapsed_index_1)*($B$96=COM_AC_Collapsed_index_3)*(AF$97=COM_AC_Collapsed_index_2)*COM_AC_Collapsed_vals)/1000000) -> 196.6211078 | AG104: =IF($B104="not used",0,SUMPRODUCT(($B104=COM_AC_Collapsed_index_1)*($B$96=COM_AC_Collapsed_index_3)*(AG$97=COM_AC_Collapsed_index_2)*COM_AC_Collapsed_vals)/1000000) -> 199.2901697 | AH104: =IF($B104="not used",0,SUMPRODUCT(($B104=COM_AC_Collapsed_index_1)*($B$96=COM_AC_Collapsed_index_3)*(AH$97=COM_AC_Collapsed_index_2)*COM_AC_Collapsed_vals)/1000000) -> 201.7146306 | AI104: =IF($B104="not used",0,SUMPRODUCT(($B104=COM_AC_Collapsed_index_1)*($B$96=COM_AC_Collapsed_index_3)*(AI$97=COM_AC_Collapsed_index_2)*COM_AC_Collapsed_vals)/1000000) -> 203.9694452 | AJ104: =IF($B104="not used",0,SUMPRODUCT(($B104=COM_AC_Collapsed_index_1)*($B$96=COM_AC_Collapsed_index_3)*(AJ$97=COM_AC_Collapsed_index_2)*COM_AC_Collapsed_vals)/1000000) -> 206.1114594 | AK104: =IF($B104="not used",0,SUMPRODUCT(($B104=COM_AC_Collapsed_index_1)*($B$96=COM_AC_Collapsed_index_3)*(AK$97=COM_AC_Collapsed_index_2)*COM_AC_Collapsed_vals)/1000000) -> 208.181718 | AL104: =IF($B104="not used",0,SUMPRODUCT(($B104=COM_AC_Collapsed_index_1)*($B$96=COM_AC_Collapsed_index_3)*(AL$97=COM_AC_Collapsed_index_2)*COM_AC_Collapsed_vals)/1000000) -> 210.2082711 | AM104: =IF($B104="not used",0,SUMPRODUCT(($B104=COM_AC_Collapsed_index_1)*($B$96=COM_AC_Collapsed_index_3)*(AM$97=COM_AC_Collapsed_index_2)*COM_AC_Collapsed_vals)/1000000) -> 212.2093707
B105: =IFERROR(INDEX(COM_AC_Collapsed_index_1, MATCH(0,COUNTIF($B$96:B104,COM_AC_Collapsed_index_1), 0)),"not used") -> High Efficiency Reciprocating Chiller | C105: =IF(B105="not used",B105,INDEX(Lists!$G$3:$G$12,MATCH('Comm AC'!$B105,Lists!$F$3:$F$17,0))) -> High Efficiency Heat Pump | D105: =IF($B105="not used",0,SUMPRODUCT(($B105=COM_AC_Collapsed_index_1)*($B$96=COM_AC_Collapsed_index_3)*(D$97=COM_AC_Collapsed_index_2)*COM_AC_Collapsed_vals)/1000000) -> 0.01709882856 | E105: =IF($B105="not used",0,SUMPRODUCT(($B105=COM_AC_Collapsed_index_1)*($B$96=COM_AC_Collapsed_index_3)*(E$97=COM_AC_Collapsed_index_2)*COM_AC_Collapsed_vals)/1000000) -> 0.04697953428 | F105: =IF($B105="not used",0,SUMPRODUCT(($B105=COM_AC_Collapsed_index_1)*($B$96=COM_AC_Collapsed_index_3)*(F$97=COM_AC_Collapsed_index_2)*COM_AC_Collapsed_vals)/1000000) -> 0.1263689489 | G105: =IF($B105="not used",0,SUMPRODUCT(($B105=COM_AC_Collapsed_index_1)*($B$96=COM_AC_Collapsed_index_3)*(G$97=COM_AC_Collapsed_index_2)*COM_AC_Collapsed_vals)/1000000) -> 0.3250073705 | H105: =IF($B105="not used",0,SUMPRODUCT(($B105=COM_AC_Collapsed_index_1)*($B$96=COM_AC_Collapsed_index_3)*(H$97=COM_AC_Collapsed_index_2)*COM_AC_Collapsed_vals)/1000000) -> 0.7866737944 | I105: =IF($B105="not used",0,SUMPRODUCT(($B105=COM_AC_Collapsed_index_1)*($B$96=COM_AC_Collapsed_index_3)*(I$97=COM_AC_Collapsed_index_2)*COM_AC_Collapsed_vals)/1000000) -> 1.714007369 | J105: =IF($B105="not used",0,SUMPRODUCT(($B105=COM_AC_Collapsed_index_1)*($B$96=COM_AC_Collapsed_index_3)*(J$97=COM_AC_Collapsed_index_2)*COM_AC_Collapsed_vals)/1000000) -> 3.235550703 | K105: =IF($B105="not used",0,SUMPRODUCT(($B105=COM_AC_Collapsed_index_1)*($B$96=COM_AC_Collapsed_index_3)*(K$97=COM_AC_Collapsed_index_2)*COM_AC_Collapsed_vals)/1000000) -> 5.247681183 | L105: =IF($B105="not used",0,SUMPRODUCT(($B105=COM_AC_Collapsed_index_1)*($B$96=COM_AC_Collapsed_index_3)*(L$97=COM_AC_Collapsed_index_2)*COM_AC_Collapsed_vals)/1000000) -> 7.5528982 | M105: =IF($B105="not used",0,SUMPRODUCT(($B105=COM_AC_Collapsed_index_1)*($B$96=COM_AC_Collapsed_index_3)*(M$97=COM_AC_Collapsed_index_2)*COM_AC_Collapsed_vals)/1000000) -> 10.00141069 | N105: =IF($B105="not used",0,SUMPRODUCT(($B105=COM_AC_Collapsed_index_1)*($B$96=COM_AC_Collapsed_index_3)*(N$97=COM_AC_Collapsed_index_2)*COM_AC_Collapsed_vals)/1000000) -> 12.52259042 | O105: =IF($B105="not used",0,SUMPRODUCT(($B105=COM_AC_Collapsed_index_1)*($B$96=COM_AC_Collapsed_index_3)*(O$97=COM_AC_Collapsed_index_2)*COM_AC_Collapsed_vals)/1000000) -> 15.08050518 | P105: =IF($B105="not used",0,SUMPRODUCT(($B105=COM_AC_Collapsed_index_1)*($B$96=COM_AC_Collapsed_index_3)*(P$97=COM_AC_Collapsed_index_2)*COM_AC_Collapsed_vals)/1000000) -> 17.66046071 | Q105: =IF($B105="not used",0,SUMPRODUCT(($B105=COM_AC_Collapsed_index_1)*($B$96=COM_AC_Collapsed_index_3)*(Q$97=COM_AC_Collapsed_index_2)*COM_AC_Collapsed_vals)/1000000) -> 20.25590634 | R105: =IF($B105="not used",0,SUMPRODUCT(($B105=COM_AC_Collapsed_index_1)*($B$96=COM_AC_Collapsed_index_3)*(R$97=COM_AC_Collapsed_index_2)*COM_AC_Collapsed_vals)/1000000) -> 22.8642406 | S105: =IF($B105="not used",0,SUMPRODUCT(($B105=COM_AC_Collapsed_index_1)*($B$96=COM_AC_Collapsed_index_3)*(S$97=COM_AC_Collapsed_index_2)*COM_AC_Collapsed_vals)/1000000) -> 25.48470205 | T105: =IF($B105="not used",0,SUMPRODUCT(($B105=COM_AC_Collapsed_index_1)*($B$96=COM_AC_Collapsed_index_3)*(T$97=COM_AC_Collapsed_index_2)*COM_AC_Collapsed_vals)/1000000) -> 28.11722677 | U105: =IF($B105="not used",0,SUMPRODUCT(($B105=COM_AC_Collapsed_index_1)*($B$96=COM_AC_Collapsed_index_3)*(U$97=COM_AC_Collapsed_index_2)*COM_AC_Collapsed_vals)/1000000) -> 30.76093736 | V105: =IF($B105="not used",0,SUMPRODUCT(($B105=COM_AC_Collapsed_index_1)*($B$96=COM_AC_Collapsed_index_3)*(V$97=COM_AC_Collapsed_index_2)*COM_AC_Collapsed_vals)/1000000) -> 33.41232065 | W105: =IF($B105="not used",0,SUMPRODUCT(($B105=COM_AC_Collapsed_index_1)*($B$96=COM_AC_Collapsed_index_3)*(W$97=COM_AC_Collapsed_index_2)*COM_AC_Collapsed_vals)/1000000) -> 36.06407523 | X105: =IF($B105="not used",0,SUMPRODUCT(($B105=COM_AC_Collapsed_index_1)*($B$96=COM_AC_Collapsed_index_3)*(X$97=COM_AC_Collapsed_index_2)*COM_AC_Collapsed_vals)/1000000) -> 38.70260507 | Y105: =IF($B105="not used",0,SUMPRODUCT(($B105=COM_AC_Collapsed_index_1)*($B$96=COM_AC_Collapsed_index_3)*(Y$97=COM_AC_Collapsed_index_2)*COM_AC_Collapsed_vals)/1000000) -> 41.30828143 | Z105: =IF($B105="not used",0,SUMPRODUCT(($B105=COM_AC_Collapsed_index_1)*($B$96=COM_AC_Collapsed_index_3)*(Z$97=COM_AC_Collapsed_index_2)*COM_AC_Collapsed_vals)/1000000) -> 43.85556903 | AA105: =IF($B105="not used",0,SUMPRODUCT(($B105=COM_AC_Collapsed_index_1)*($B$96=COM_AC_Collapsed_index_3)*(AA$97=COM_AC_Collapsed_index_2)*COM_AC_Collapsed_vals)/1000000) -> 46.31502225 | AB105: =IF($B105="not used",0,SUMPRODUCT(($B105=COM_AC_Collapsed_index_1)*($B$96=COM_AC_Collapsed_index_3)*(AB$97=COM_AC_Collapsed_index_2)*COM_AC_Collapsed_vals)/1000000) -> 48.65695306 | AC105: =IF($B105="not used",0,SUMPRODUCT(($B105=COM_AC_Collapsed_index_1)*($B$96=COM_AC_Collapsed_index_3)*(AC$97=COM_AC_Collapsed_index_2)*COM_AC_Collapsed_vals)/1000000) -> 50.85368487 | AD105: =IF($B105="not used",0,SUMPRODUCT(($B105=COM_AC_Collapsed_index_1)*($B$96=COM_AC_Collapsed_index_3)*(AD$97=COM_AC_Collapsed_index_2)*COM_AC_Collapsed_vals)/1000000) -> 52.88279943 | AE105: =IF($B105="not used",0,SUMPRODUCT(($B105=COM_AC_Collapsed_index_1)*($B$96=COM_AC_Collapsed_index_3)*(AE$97=COM_AC_Collapsed_index_2)*COM_AC_Collapsed_vals)/1000000) -> 54.72985349 | AF105: =IF($B105="not used",0,SUMPRODUCT(($B105=COM_AC_Collapsed_index_1)*($B$96=COM_AC_Collapsed_index_3)*(AF$97=COM_AC_Collapsed_index_2)*COM_AC_Collapsed_vals)/1000000) -> 56.38954244 | AG105: =IF($B105="not used",0,SUMPRODUCT(($B105=COM_AC_Collapsed_index_1)*($B$96=COM_AC_Collapsed_index_3)*(AG$97=COM_AC_Collapsed_index_2)*COM_AC_Collapsed_vals)/1000000) -> 57.86546142 | AH105: =IF($B105="not used",0,SUMPRODUCT(($B105=COM_AC_Collapsed_index_1)*($B$96=COM_AC_Collapsed_index_3)*(AH$97=COM_AC_Collapsed_index_2)*COM_AC_Collapsed_vals)/1000000) -> 59.17003671 | AI105: =IF($B105="not used",0,SUMPRODUCT(($B105=COM_AC_Collapsed_index_1)*($B$96=COM_AC_Collapsed_index_3)*(AI$97=COM_AC_Collapsed_index_2)*COM_AC_Collapsed_vals)/1000000) -> 60.32073486 | AJ105: =IF($B105="not used",0,SUMPRODUCT(($B105=COM_AC_Collapsed_index_1)*($B$96=COM_AC_Collapsed_index_3)*(AJ$97=COM_AC_Collapsed_index_2)*COM_AC_Collapsed_vals)/1000000) -> 61.33888635 | AK105: =IF($B105="not used",0,SUMPRODUCT(($B105=COM_AC_Collapsed_index_1)*($B$96=COM_AC_Collapsed_index_3)*(AK$97=COM_AC_Collapsed_index_2)*COM_AC_Collapsed_vals)/1000000) -> 62.24718543 | AL105: =IF($B105="not used",0,SUMPRODUCT(($B105=COM_AC_Collapsed_index_1)*($B$96=COM_AC_Collapsed_index_3)*(AL$97=COM_AC_Collapsed_index_2)*COM_AC_Collapsed_vals)/1000000) -> 63.06806654 | AM105: =IF($B105="not used",0,SUMPRODUCT(($B105=COM_AC_Collapsed_index_1)*($B$96=COM_AC_Collapsed_index_3)*(AM$97=COM_AC_Collapsed_index_2)*COM_AC_Collapsed_vals)/1000000) -> 63.82134216
B106: =IFERROR(INDEX(COM_AC_Collapsed_index_1, MATCH(0,COUNTIF($B$96:B105,COM_AC_Collapsed_index_1), 0)),"not used") -> High Efficiency Centrifugal Chiller | C106: =IF(B106="not used",B106,INDEX(Lists!$G$3:$G$12,MATCH('Comm AC'!$B106,Lists!$F$3:$F$17,0))) -> High Efficiency Chiller | D106: =IF($B106="not used",0,SUMPRODUCT(($B106=COM_AC_Collapsed_index_1)*($B$96=COM_AC_Collapsed_index_3)*(D$97=COM_AC_Collapsed_index_2)*COM_AC_Collapsed_vals)/1000000) -> 0.003877072762 | E106: =IF($B106="not used",0,SUMPRODUCT(($B106=COM_AC_Collapsed_index_1)*($B$96=COM_AC_Collapsed_index_3)*(E$97=COM_AC_Collapsed_index_2)*COM_AC_Collapsed_vals)/1000000) -> 0.01075993955 | F106: =IF($B106="not used",0,SUMPRODUCT(($B106=COM_AC_Collapsed_index_1)*($B$96=COM_AC_Collapsed_index_3)*(F$97=COM_AC_Collapsed_index_2)*COM_AC_Collapsed_vals)/1000000) -> 0.02917172564 | G106: =IF($B106="not used",0,SUMPRODUCT(($B106=COM_AC_Collapsed_index_1)*($B$96=COM_AC_Collapsed_index_3)*(G$97=COM_AC_Collapsed_index_2)*COM_AC_Collapsed_vals)/1000000) -> 0.07528389721 | H106: =IF($B106="not used",0,SUMPRODUCT(($B106=COM_AC_Collapsed_index_1)*($B$96=COM_AC_Collapsed_index_3)*(H$97=COM_AC_Collapsed_index_2)*COM_AC_Collapsed_vals)/1000000) -> 0.1825550018 | I106: =IF($B106="not used",0,SUMPRODUCT(($B106=COM_AC_Collapsed_index_1)*($B$96=COM_AC_Collapsed_index_3)*(I$97=COM_AC_Collapsed_index_2)*COM_AC_Collapsed_vals)/1000000) -> 0.39822284 | J106: =IF($B106="not used",0,SUMPRODUCT(($B106=COM_AC_Collapsed_index_1)*($B$96=COM_AC_Collapsed_index_3)*(J$97=COM_AC_Collapsed_index_2)*COM_AC_Collapsed_vals)/1000000) -> 0.7534486469 | K106: =IF($B106="not used",0,SUMPRODUCT(($B106=COM_AC_Collapsed_index_1)*($B$96=COM_AC_Collapsed_index_3)*(K$97=COM_AC_Collapsed_index_2)*COM_AC_Collapsed_vals)/1000000) -> 1.225212761 | L106: =IF($B106="not used",0,SUMPRODUCT(($B106=COM_AC_Collapsed_index_1)*($B$96=COM_AC_Collapsed_index_3)*(L$97=COM_AC_Collapsed_index_2)*COM_AC_Collapsed_vals)/1000000) -> 1.768528814 | M106: =IF($B106="not used",0,SUMPRODUCT(($B106=COM_AC_Collapsed_index_1)*($B$96=COM_AC_Collapsed_index_3)*(M$97=COM_AC_Collapsed_index_2)*COM_AC_Collapsed_vals)/1000000) -> 2.348494955 | N106: =IF($B106="not used",0,SUMPRODUCT(($B106=COM_AC_Collapsed_index_1)*($B$96=COM_AC_Collapsed_index_3)*(N$97=COM_AC_Collapsed_index_2)*COM_AC_Collapsed_vals)/1000000) -> 2.949052351 | O106: =IF($B106="not used",0,SUMPRODUCT(($B106=COM_AC_Collapsed_index_1)*($B$96=COM_AC_Collapsed_index_3)*(O$97=COM_AC_Collapsed_index_2)*COM_AC_Collapsed_vals)/1000000) -> 3.561512217 | P106: =IF($B106="not used",0,SUMPRODUCT(($B106=COM_AC_Collapsed_index_1)*($B$96=COM_AC_Collapsed_index_3)*(P$97=COM_AC_Collapsed_index_2)*COM_AC_Collapsed_vals)/1000000) -> 4.182149229 | Q106: =IF($B106="not used",0,SUMPRODUCT(($B106=COM_AC_Collapsed_index_1)*($B$96=COM_AC_Collapsed_index_3)*(Q$97=COM_AC_Collapsed_index_2)*COM_AC_Collapsed_vals)/1000000) -> 4.8086972 | R106: =IF($B106="not used",0,SUMPRODUCT(($B106=COM_AC_Collapsed_index_1)*($B$96=COM_AC_Collapsed_index_3)*(R$97=COM_AC_Collapsed_index_2)*COM_AC_Collapsed_vals)/1000000) -> 5.439562066 | S106: =IF($B106="not used",0,SUMPRODUCT(($B106=COM_AC_Collapsed_index_1)*($B$96=COM_AC_Collapsed_index_3)*(S$97=COM_AC_Collapsed_index_2)*COM_AC_Collapsed_vals)/1000000) -> 6.073335036 | T106: =IF($B106="not used",0,SUMPRODUCT(($B106=COM_AC_Collapsed_index_1)*($B$96=COM_AC_Collapsed_index_3)*(T$97=COM_AC_Collapsed_index_2)*COM_AC_Collapsed_vals)/1000000) -> 6.708921419 | U106: =IF($B106="not used",0,SUMPRODUCT(($B106=COM_AC_Collapsed_index_1)*($B$96=COM_AC_Collapsed_index_3)*(U$97=COM_AC_Collapsed_index_2)*COM_AC_Collapsed_vals)/1000000) -> 7.345276769 | V106: =IF($B106="not used",0,SUMPRODUCT(($B106=COM_AC_Collapsed_index_1)*($B$96=COM_AC_Collapsed_index_3)*(V$97=COM_AC_Collapsed_index_2)*COM_AC_Collapsed_vals)/1000000) -> 7.981857642 | W106: =IF($B106="not used",0,SUMPRODUCT(($B106=COM_AC_Collapsed_index_1)*($B$96=COM_AC_Collapsed_index_3)*(W$97=COM_AC_Collapsed_index_2)*COM_AC_Collapsed_vals)/1000000) -> 8.61830897 | X106: =IF($B106="not used",0,SUMPRODUCT(($B106=COM_AC_Collapsed_index_1)*($B$96=COM_AC_Collapsed_index_3)*(X$97=COM_AC_Collapsed_index_2)*COM_AC_Collapsed_vals)/1000000) -> 9.254341905 | Y106: =IF($B106="not used",0,SUMPRODUCT(($B106=COM_AC_Collapsed_index_1)*($B$96=COM_AC_Collapsed_index_3)*(Y$97=COM_AC_Collapsed_index_2)*COM_AC_Collapsed_vals)/1000000) -> 9.889910009 | Z106: =IF($B106="not used",0,SUMPRODUCT(($B106=COM_AC_Collapsed_index_1)*($B$96=COM_AC_Collapsed_index_3)*(Z$97=COM_AC_Collapsed_index_2)*COM_AC_Collapsed_vals)/1000000) -> 10.52456144 | AA106: =IF($B106="not used",0,SUMPRODUCT(($B106=COM_AC_Collapsed_index_1)*($B$96=COM_AC_Collapsed_index_3)*(AA$97=COM_AC_Collapsed_index_2)*COM_AC_Collapsed_vals)/1000000) -> 11.15727291 | AB106: =IF($B106="not used",0,SUMPRODUCT(($B106=COM_AC_Collapsed_index_1)*($B$96=COM_AC_Collapsed_index_3)*(AB$97=COM_AC_Collapsed_index_2)*COM_AC_Collapsed_vals)/1000000) -> 11.78620613 | AC106: =IF($B106="not used",0,SUMPRODUCT(($B106=COM_AC_Collapsed_index_1)*($B$96=COM_AC_Collapsed_index_3)*(AC$97=COM_AC_Collapsed_index_2)*COM_AC_Collapsed_vals)/1000000) -> 12.40862591 | AD106: =IF($B106="not used",0,SUMPRODUCT(($B106=COM_AC_Collapsed_index_1)*($B$96=COM_AC_Collapsed_index_3)*(AD$97=COM_AC_Collapsed_index_2)*COM_AC_Collapsed_vals)/1000000) -> 13.02068843 | AE106: =IF($B106="not used",0,SUMPRODUCT(($B106=COM_AC_Collapsed_index_1)*($B$96=COM_AC_Collapsed_index_3)*(AE$97=COM_AC_Collapsed_index_2)*COM_AC_Collapsed_vals)/1000000) -> 13.6177318 | AF106: =IF($B106="not used",0,SUMPRODUCT(($B106=COM_AC_Collapsed_index_1)*($B$96=COM_AC_Collapsed_index_3)*(AF$97=COM_AC_Collapsed_index_2)*COM_AC_Collapsed_vals)/1000000) -> 14.19452811 | AG106: =IF($B106="not used",0,SUMPRODUCT(($B106=COM_AC_Collapsed_index_1)*($B$96=COM_AC_Collapsed_index_3)*(AG$97=COM_AC_Collapsed_index_2)*COM_AC_Collapsed_vals)/1000000) -> 14.74589704 | AH106: =IF($B106="not used",0,SUMPRODUCT(($B106=COM_AC_Collapsed_index_1)*($B$96=COM_AC_Collapsed_index_3)*(AH$97=COM_AC_Collapsed_index_2)*COM_AC_Collapsed_vals)/1000000) -> 15.26683642 | AI106: =IF($B106="not used",0,SUMPRODUCT(($B106=COM_AC_Collapsed_index_1)*($B$96=COM_AC_Collapsed_index_3)*(AI$97=COM_AC_Collapsed_index_2)*COM_AC_Collapsed_vals)/1000000) -> 15.75358742 | AJ106: =IF($B106="not used",0,SUMPRODUCT(($B106=COM_AC_Collapsed_index_1)*($B$96=COM_AC_Collapsed_index_3)*(AJ$97=COM_AC_Collapsed_index_2)*COM_AC_Collapsed_vals)/1000000) -> 16.20346087 | AK106: =IF($B106="not used",0,SUMPRODUCT(($B106=COM_AC_Collapsed_index_1)*($B$96=COM_AC_Collapsed_index_3)*(AK$97=COM_AC_Collapsed_index_2)*COM_AC_Collapsed_vals)/1000000) -> 16.61530152 | AL106: =IF($B106="not used",0,SUMPRODUCT(($B106=COM_AC_Collapsed_index_1)*($B$96=COM_AC_Collapsed_index_3)*(AL$97=COM_AC_Collapsed_index_2)*COM_AC_Collapsed_vals)/1000000) -> 16.98947748 | AM106: =IF($B106="not used",0,SUMPRODUCT(($B106=COM_AC_Collapsed_index_1)*($B$96=COM_AC_Collapsed_index_3)*(AM$97=COM_AC_Collapsed_index_2)*COM_AC_Collapsed_vals)/1000000) -> 17.32786877
B107: =IFERROR(INDEX(COM_AC_Collapsed_index_1, MATCH(0,COUNTIF($B$96:B106,COM_AC_Collapsed_index_1), 0)),"not used") -> High Efficiency Electric Heat Pump (Cooling) | C107: =IF(B107="not used",B107,INDEX(Lists!$G$3:$G$12,MATCH('Comm AC'!$B107,Lists!$F$3:$F$17,0))) -> High Efficiency Chiller | D107: =IF($B107="not used",0,SUMPRODUCT(($B107=COM_AC_Collapsed_index_1)*($B$96=COM_AC_Collapsed_index_3)*(D$97=COM_AC_Collapsed_index_2)*COM_AC_Collapsed_vals)/1000000) -> 0 | E107: =IF($B107="not used",0,SUMPRODUCT(($B107=COM_AC_Collapsed_index_1)*($B$96=COM_AC_Collapsed_index_3)*(E$97=COM_AC_Collapsed_index_2)*COM_AC_Collapsed_vals)/1000000) -> 0 | F107: =IF($B107="not used",0,SUMPRODUCT(($B107=COM_AC_Collapsed_index_1)*($B$96=COM_AC_Collapsed_index_3)*(F$97=COM_AC_Collapsed_index_2)*COM_AC_Collapsed_vals)/1000000) -> 0 | G107: =IF($B107="not used",0,SUMPRODUCT(($B107=COM_AC_Collapsed_index_1)*($B$96=COM_AC_Collapsed_index_3)*(G$97=COM_AC_Collapsed_index_2)*COM_AC_Collapsed_vals)/1000000) -> 0 | H107: =IF($B107="not used",0,SUMPRODUCT(($B107=COM_AC_Collapsed_index_1)*($B$96=COM_AC_Collapsed_index_3)*(H$97=COM_AC_Collapsed_index_2)*COM_AC_Collapsed_vals)/1000000) -> 0 | I107: =IF($B107="not used",0,SUMPRODUCT(($B107=COM_AC_Collapsed_index_1)*($B$96=COM_AC_Collapsed_index_3)*(I$97=COM_AC_Collapsed_index_2)*COM_AC_Collapsed_vals)/1000000) -> 0 | J107: =IF($B107="not used",0,SUMPRODUCT(($B107=COM_AC_Collapsed_index_1)*($B$96=COM_AC_Collapsed_index_3)*(J$97=COM_AC_Collapsed_index_2)*COM_AC_Collapsed_vals)/1000000) -> 0 | K107: =IF($B107="not used",0,SUMPRODUCT(($B107=COM_AC_Collapsed_index_1)*($B$96=COM_AC_Collapsed_index_3)*(K$97=COM_AC_Collapsed_index_2)*COM_AC_Collapsed_vals)/1000000) -> 0 | L107: =IF($B107="not used",0,SUMPRODUCT(($B107=COM_AC_Collapsed_index_1)*($B$96=COM_AC_Collapsed_index_3)*(L$97=COM_AC_Collapsed_index_2)*COM_AC_Collapsed_vals)/1000000) -> 0 | M107: =IF($B107="not used",0,SUMPRODUCT(($B107=COM_AC_Collapsed_index_1)*($B$96=COM_AC_Collapsed_index_3)*(M$97=COM_AC_Collapsed_index_2)*COM_AC_Collapsed_vals)/1000000) -> 0 | N107: =IF($B107="not used",0,SUMPRODUCT(($B107=COM_AC_Collapsed_index_1)*($B$96=COM_AC_Collapsed_index_3)*(N$97=COM_AC_Collapsed_index_2)*COM_AC_Collapsed_vals)/1000000) -> 0 | O107: =IF($B107="not used",0,SUMPRODUCT(($B107=COM_AC_Collapsed_index_1)*($B$96=COM_AC_Collapsed_index_3)*(O$97=COM_AC_Collapsed_index_2)*COM_AC_Collapsed_vals)/1000000) -> 0 | P107: =IF($B107="not used",0,SUMPRODUCT(($B107=COM_AC_Collapsed_index_1)*($B$96=COM_AC_Collapsed_index_3)*(P$97=COM_AC_Collapsed_index_2)*COM_AC_Collapsed_vals)/1000000) -> 0 | Q107: =IF($B107="not used",0,SUMPRODUCT(($B107=COM_AC_Collapsed_index_1)*($B$96=COM_AC_Collapsed_index_3)*(Q$97=COM_AC_Collapsed_index_2)*COM_AC_Collapsed_vals)/1000000) -> 0 | R107: =IF($B107="not used",0,SUMPRODUCT(($B107=COM_AC_Collapsed_index_1)*($B$96=COM_AC_Collapsed_index_3)*(R$97=COM_AC_Collapsed_index_2)*COM_AC_Collapsed_vals)/1000000) -> 0 | S107: =IF($B107="not used",0,SUMPRODUCT(($B107=COM_AC_Collapsed_index_1)*($B$96=COM_AC_Collapsed_index_3)*(S$97=COM_AC_Collapsed_index_2)*COM_AC_Collapsed_vals)/1000000) -> 0 | T107: =IF($B107="not used",0,SUMPRODUCT(($B107=COM_AC_Collapsed_index_1)*($B$96=COM_AC_Collapsed_index_3)*(T$97=COM_AC_Collapsed_index_2)*COM_AC_Collapsed_vals)/1000000) -> 0 | U107: =IF($B107="not used",0,SUMPRODUCT(($B107=COM_AC_Collapsed_index_1)*($B$96=COM_AC_Collapsed_index_3)*(U$97=COM_AC_Collapsed_index_2)*COM_AC_Collapsed_vals)/1000000) -> 0 | V107: =IF($B107="not used",0,SUMPRODUCT(($B107=COM_AC_Collapsed_index_1)*($B$96=COM_AC_Collapsed_index_3)*(V$97=COM_AC_Collapsed_index_2)*COM_AC_Collapsed_vals)/1000000) -> 0 | W107: =IF($B107="not used",0,SUMPRODUCT(($B107=COM_AC_Collapsed_index_1)*($B$96=COM_AC_Collapsed_index_3)*(W$97=COM_AC_Collapsed_index_2)*COM_AC_Collapsed_vals)/1000000) -> 0 | X107: =IF($B107="not used",0,SUMPRODUCT(($B107=COM_AC_Collapsed_index_1)*($B$96=COM_AC_Collapsed_index_3)*(X$97=COM_AC_Collapsed_index_2)*COM_AC_Collapsed_vals)/1000000) -> 0 | Y107: =IF($B107="not used",0,SUMPRODUCT(($B107=COM_AC_Collapsed_index_1)*($B$96=COM_AC_Collapsed_index_3)*(Y$97=COM_AC_Collapsed_index_2)*COM_AC_Collapsed_vals)/1000000) -> 0 | Z107: =IF($B107="not used",0,SUMPRODUCT(($B107=COM_AC_Collapsed_index_1)*($B$96=COM_AC_Collapsed_index_3)*(Z$97=COM_AC_Collapsed_index_2)*COM_AC_Collapsed_vals)/1000000) -> 0 | AA107: =IF($B107="not used",0,SUMPRODUCT(($B107=COM_AC_Collapsed_index_1)*($B$96=COM_AC_Collapsed_index_3)*(AA$97=COM_AC_Collapsed_index_2)*COM_AC_Collapsed_vals)/1000000) -> 0 | AB107: =IF($B107="not used",0,SUMPRODUCT(($B107=COM_AC_Collapsed_index_1)*($B$96=COM_AC_Collapsed_index_3)*(AB$97=COM_AC_Collapsed_index_2)*COM_AC_Collapsed_vals)/1000000) -> 0 | AC107: =IF($B107="not used",0,SUMPRODUCT(($B107=COM_AC_Collapsed_index_1)*($B$96=COM_AC_Collapsed_index_3)*(AC$97=COM_AC_Collapsed_index_2)*COM_AC_Collapsed_vals)/1000000) -> 0 | AD107: =IF($B107="not used",0,SUMPRODUCT(($B107=COM_AC_Collapsed_index_1)*($B$96=COM_AC_Collapsed_index_3)*(AD$97=COM_AC_Collapsed_index_2)*COM_AC_Collapsed_vals)/1000000) -> 0 | AE107: =IF($B107="not used",0,SUMPRODUCT(($B107=COM_AC_Collapsed_index_1)*($B$96=COM_AC_Collapsed_index_3)*(AE$97=COM_AC_Collapsed_index_2)*COM_AC_Collapsed_vals)/1000000) -> 0 | AF107: =IF($B107="not used",0,SUMPRODUCT(($B107=COM_AC_Collapsed_index_1)*($B$96=COM_AC_Collapsed_index_3)*(AF$97=COM_AC_Collapsed_index_2)*COM_AC_Collapsed_vals)/1000000) -> 0 | AG107: =IF($B107="not used",0,SUMPRODUCT(($B107=COM_AC_Collapsed_index_1)*($B$96=COM_AC_Collapsed_index_3)*(AG$97=COM_AC_Collapsed_index_2)*COM_AC_Collapsed_vals)/1000000) -> 0 | AH107: =IF($B107="not used",0,SUMPRODUCT(($B107=COM_AC_Collapsed_index_1)*($B$96=COM_AC_Collapsed_index_3)*(AH$97=COM_AC_Collapsed_index_2)*COM_AC_Collapsed_vals)/1000000) -> 0 | AI107: =IF($B107="not used",0,SUMPRODUCT(($B107=COM_AC_Collapsed_index_1)*($B$96=COM_AC_Collapsed_index_3)*(AI$97=COM_AC_Collapsed_index_2)*COM_AC_Collapsed_vals)/1000000) -> 0 | AJ107: =IF($B107="not used",0,SUMPRODUCT(($B107=COM_AC_Collapsed_index_1)*($B$96=COM_AC_Collapsed_index_3)*(AJ$97=COM_AC_Collapsed_index_2)*COM_AC_Collapsed_vals)/1000000) -> 0 | AK107: =IF($B107="not used",0,SUMPRODUCT(($B107=COM_AC_Collapsed_index_1)*($B$96=COM_AC_Collapsed_index_3)*(AK$97=COM_AC_Collapsed_index_2)*COM_AC_Collapsed_vals)/1000000) -> 0 | AL107: =IF($B107="not used",0,SUMPRODUCT(($B107=COM_AC_Collapsed_index_1)*($B$96=COM_AC_Collapsed_index_3)*(AL$97=COM_AC_Collapsed_index_2)*COM_AC_Collapsed_vals)/1000000) -> 0 | AM107: =IF($B107="not used",0,SUMPRODUCT(($B107=COM_AC_Collapsed_index_1)*($B$96=COM_AC_Collapsed_index_3)*(AM$97=COM_AC_Collapsed_index_2)*COM_AC_Collapsed_vals)/1000000) -> 0
B108: =IFERROR(INDEX(COM_AC_Collapsed_index_1, MATCH(0,COUNTIF($B$96:B107,COM_AC_Collapsed_index_1), 0)),"not used") -> not used | C108: =IF(B108="not used",B108,INDEX(Lists!$G$3:$G$12,MATCH('Comm AC'!$B108,Lists!$F$3:$F$17,0))) -> not used | D108: =IF($B108="not used",0,SUMPRODUCT(($B108=COM_AC_Collapsed_index_1)*($B$96=COM_AC_Collapsed_index_3)*(D$97=COM_AC_Collapsed_index_2)*COM_AC_Collapsed_vals)/1000000) -> 0 | E108: =IF($B108="not used",0,SUMPRODUCT(($B108=COM_AC_Collapsed_index_1)*($B$96=COM_AC_Collapsed_index_3)*(E$97=COM_AC_Collapsed_index_2)*COM_AC_Collapsed_vals)/1000000) -> 0 | F108: =IF($B108="not used",0,SUMPRODUCT(($B108=COM_AC_Collapsed_index_1)*($B$96=COM_AC_Collapsed_index_3)*(F$97=COM_AC_Collapsed_index_2)*COM_AC_Collapsed_vals)/1000000) -> 0 | G108: =IF($B108="not used",0,SUMPRODUCT(($B108=COM_AC_Collapsed_index_1)*($B$96=COM_AC_Collapsed_index_3)*(G$97=COM_AC_Collapsed_index_2)*COM_AC_Collapsed_vals)/1000000) -> 0 | H108: =IF($B108="not used",0,SUMPRODUCT(($B108=COM_AC_Collapsed_index_1)*($B$96=COM_AC_Collapsed_index_3)*(H$97=COM_AC_Collapsed_index_2)*COM_AC_Collapsed_vals)/1000000) -> 0 | I108: =IF($B108="not used",0,SUMPRODUCT(($B108=COM_AC_Collapsed_index_1)*($B$96=COM_AC_Collapsed_index_3)*(I$97=COM_AC_Collapsed_index_2)*COM_AC_Collapsed_vals)/1000000) -> 0 | J108: =IF($B108="not used",0,SUMPRODUCT(($B108=COM_AC_Collapsed_index_1)*($B$96=COM_AC_Collapsed_index_3)*(J$97=COM_AC_Collapsed_index_2)*COM_AC_Collapsed_vals)/1000000) -> 0 | K108: =IF($B108="not used",0,SUMPRODUCT(($B108=COM_AC_Collapsed_index_1)*($B$96=COM_AC_Collapsed_index_3)*(K$97=COM_AC_Collapsed_index_2)*COM_AC_Collapsed_vals)/1000000) -> 0 | L108: =IF($B108="not used",0,SUMPRODUCT(($B108=COM_AC_Collapsed_index_1)*($B$96=COM_AC_Collapsed_index_3)*(L$97=COM_AC_Collapsed_index_2)*COM_AC_Collapsed_vals)/1000000) -> 0 | M108: =IF($B108="not used",0,SUMPRODUCT(($B108=COM_AC_Collapsed_index_1)*($B$96=COM_AC_Collapsed_index_3)*(M$97=COM_AC_Collapsed_index_2)*COM_AC_Collapsed_vals)/1000000) -> 0 | N108: =IF($B108="not used",0,SUMPRODUCT(($B108=COM_AC_Collapsed_index_1)*($B$96=COM_AC_Collapsed_index_3)*(N$97=COM_AC_Collapsed_index_2)*COM_AC_Collapsed_vals)/1000000) -> 0 | O108: =IF($B108="not used",0,SUMPRODUCT(($B108=COM_AC_Collapsed_index_1)*($B$96=COM_AC_Collapsed_index_3)*(O$97=COM_AC_Collapsed_index_2)*COM_AC_Collapsed_vals)/1000000) -> 0 | P108: =IF($B108="not used",0,SUMPRODUCT(($B108=COM_AC_Collapsed_index_1)*($B$96=COM_AC_Collapsed_index_3)*(P$97=COM_AC_Collapsed_index_2)*COM_AC_Collapsed_vals)/1000000) -> 0 | Q108: =IF($B108="not used",0,SUMPRODUCT(($B108=COM_AC_Collapsed_index_1)*($B$96=COM_AC_Collapsed_index_3)*(Q$97=COM_AC_Collapsed_index_2)*COM_AC_Collapsed_vals)/1000000) -> 0 | R108: =IF($B108="not used",0,SUMPRODUCT(($B108=COM_AC_Collapsed_index_1)*($B$96=COM_AC_Collapsed_index_3)*(R$97=COM_AC_Collapsed_index_2)*COM_AC_Collapsed_vals)/1000000) -> 0 | S108: =IF($B108="not used",0,SUMPRODUCT(($B108=COM_AC_Collapsed_index_1)*($B$96=COM_AC_Collapsed_index_3)*(S$97=COM_AC_Collapsed_index_2)*COM_AC_Collapsed_vals)/1000000) -> 0 | T108: =IF($B108="not used",0,SUMPRODUCT(($B108=COM_AC_Collapsed_index_1)*($B$96=COM_AC_Collapsed_index_3)*(T$97=COM_AC_Collapsed_index_2)*COM_AC_Collapsed_vals)/1000000) -> 0 | U108: =IF($B108="not used",0,SUMPRODUCT(($B108=COM_AC_Collapsed_index_1)*($B$96=COM_AC_Collapsed_index_3)*(U$97=COM_AC_Collapsed_index_2)*COM_AC_Collapsed_vals)/1000000) -> 0 | V108: =IF($B108="not used",0,SUMPRODUCT(($B108=COM_AC_Collapsed_index_1)*($B$96=COM_AC_Collapsed_index_3)*(V$97=COM_AC_Collapsed_index_2)*COM_AC_Collapsed_vals)/1000000) -> 0 | W108: =IF($B108="not used",0,SUMPRODUCT(($B108=COM_AC_Collapsed_index_1)*($B$96=COM_AC_Collapsed_index_3)*(W$97=COM_AC_Collapsed_index_2)*COM_AC_Collapsed_vals)/1000000) -> 0 | X108: =IF($B108="not used",0,SUMPRODUCT(($B108=COM_AC_Collapsed_index_1)*($B$96=COM_AC_Collapsed_index_3)*(X$97=COM_AC_Collapsed_index_2)*COM_AC_Collapsed_vals)/1000000) -> 0 | Y108: =IF($B108="not used",0,SUMPRODUCT(($B108=COM_AC_Collapsed_index_1)*($B$96=COM_AC_Collapsed_index_3)*(Y$97=COM_AC_Collapsed_index_2)*COM_AC_Collapsed_vals)/1000000) -> 0 | Z108: =IF($B108="not used",0,SUMPRODUCT(($B108=COM_AC_Collapsed_index_1)*($B$96=COM_AC_Collapsed_index_3)*(Z$97=COM_AC_Collapsed_index_2)*COM_AC_Collapsed_vals)/1000000) -> 0 | AA108: =IF($B108="not used",0,SUMPRODUCT(($B108=COM_AC_Collapsed_index_1)*($B$96=COM_AC_Collapsed_index_3)*(AA$97=COM_AC_Collapsed_index_2)*COM_AC_Collapsed_vals)/1000000) -> 0 | AB108: =IF($B108="not used",0,SUMPRODUCT(($B108=COM_AC_Collapsed_index_1)*($B$96=COM_AC_Collapsed_index_3)*(AB$97=COM_AC_Collapsed_index_2)*COM_AC_Collapsed_vals)/1000000) -> 0 | AC108: =IF($B108="not used",0,SUMPRODUCT(($B108=COM_AC_Collapsed_index_1)*($B$96=COM_AC_Collapsed_index_3)*(AC$97=COM_AC_Collapsed_index_2)*COM_AC_Collapsed_vals)/1000000) -> 0 | AD108: =IF($B108="not used",0,SUMPRODUCT(($B108=COM_AC_Collapsed_index_1)*($B$96=COM_AC_Collapsed_index_3)*(AD$97=COM_AC_Collapsed_index_2)*COM_AC_Collapsed_vals)/1000000) -> 0 | AE108: =IF($B108="not used",0,SUMPRODUCT(($B108=COM_AC_Collapsed_index_1)*($B$96=COM_AC_Collapsed_index_3)*(AE$97=COM_AC_Collapsed_index_2)*COM_AC_Collapsed_vals)/1000000) -> 0 | AF108: =IF($B108="not used",0,SUMPRODUCT(($B108=COM_AC_Collapsed_index_1)*($B$96=COM_AC_Collapsed_index_3)*(AF$97=COM_AC_Collapsed_index_2)*COM_AC_Collapsed_vals)/1000000) -> 0 | AG108: =IF($B108="not used",0,SUMPRODUCT(($B108=COM_AC_Collapsed_index_1)*($B$96=COM_AC_Collapsed_index_3)*(AG$97=COM_AC_Collapsed_index_2)*COM_AC_Collapsed_vals)/1000000) -> 0 | AH108: =IF($B108="not used",0,SUMPRODUCT(($B108=COM_AC_Collapsed_index_1)*($B$96=COM_AC_Collapsed_index_3)*(AH$97=COM_AC_Collapsed_index_2)*COM_AC_Collapsed_vals)/1000000) -> 0 | AI108: =IF($B108="not used",0,SUMPRODUCT(($B108=COM_AC_Collapsed_index_1)*($B$96=COM_AC_Collapsed_index_3)*(AI$97=COM_AC_Collapsed_index_2)*COM_AC_Collapsed_vals)/1000000) -> 0 | AJ108: =IF($B108="not used",0,SUMPRODUCT(($B108=COM_AC_Collapsed_index_1)*($B$96=COM_AC_Collapsed_index_3)*(AJ$97=COM_AC_Collapsed_index_2)*COM_AC_Collapsed_vals)/1000000) -> 0 | AK108: =IF($B108="not used",0,SUMPRODUCT(($B108=COM_AC_Collapsed_index_1)*($B$96=COM_AC_Collapsed_index_3)*(AK$97=COM_AC_Collapsed_index_2)*COM_AC_Collapsed_vals)/1000000) -> 0 | AL108: =IF($B108="not used",0,SUMPRODUCT(($B108=COM_AC_Collapsed_index_1)*($B$96=COM_AC_Collapsed_index_3)*(AL$97=COM_AC_Collapsed_index_2)*COM_AC_Collapsed_vals)/1000000) -> 0 | AM108: =IF($B108="not used",0,SUMPRODUCT(($B108=COM_AC_Collapsed_index_1)*($B$96=COM_AC_Collapsed_index_3)*(AM$97=COM_AC_Collapsed_index_2)*COM_AC_Collapsed_vals)/1000000) -> 0
B109: =IFERROR(INDEX(COM_AC_Collapsed_index_1, MATCH(0,COUNTIF($B$96:B108,COM_AC_Collapsed_index_1), 0)),"not used") -> not used | C109: =IF(B109="not used",B109,INDEX(Lists!$G$3:$G$12,MATCH('Comm AC'!$B109,Lists!$F$3:$F$17,0))) -> not used | D109: =IF($B109="not used",0,SUMPRODUCT(($B109=COM_AC_Collapsed_index_1)*($B$96=COM_AC_Collapsed_index_3)*(D$97=COM_AC_Collapsed_index_2)*COM_AC_Collapsed_vals)/1000000) -> 0 | E109: =IF($B109="not used",0,SUMPRODUCT(($B109=COM_AC_Collapsed_index_1)*($B$96=COM_AC_Collapsed_index_3)*(E$97=COM_AC_Collapsed_index_2)*COM_AC_Collapsed_vals)/1000000) -> 0 | F109: =IF($B109="not used",0,SUMPRODUCT(($B109=COM_AC_Collapsed_index_1)*($B$96=COM_AC_Collapsed_index_3)*(F$97=COM_AC_Collapsed_index_2)*COM_AC_Collapsed_vals)/1000000) -> 0 | G109: =IF($B109="not used",0,SUMPRODUCT(($B109=COM_AC_Collapsed_index_1)*($B$96=COM_AC_Collapsed_index_3)*(G$97=COM_AC_Collapsed_index_2)*COM_AC_Collapsed_vals)/1000000) -> 0 | H109: =IF($B109="not used",0,SUMPRODUCT(($B109=COM_AC_Collapsed_index_1)*($B$96=COM_AC_Collapsed_index_3)*(H$97=COM_AC_Collapsed_index_2)*COM_AC_Collapsed_vals)/1000000) -> 0 | I109: =IF($B109="not used",0,SUMPRODUCT(($B109=COM_AC_Collapsed_index_1)*($B$96=COM_AC_Collapsed_index_3)*(I$97=COM_AC_Collapsed_index_2)*COM_AC_Collapsed_vals)/1000000) -> 0 | J109: =IF($B109="not used",0,SUMPRODUCT(($B109=COM_AC_Collapsed_index_1)*($B$96=COM_AC_Collapsed_index_3)*(J$97=COM_AC_Collapsed_index_2)*COM_AC_Collapsed_vals)/1000000) -> 0 | K109: =IF($B109="not used",0,SUMPRODUCT(($B109=COM_AC_Collapsed_index_1)*($B$96=COM_AC_Collapsed_index_3)*(K$97=COM_AC_Collapsed_index_2)*COM_AC_Collapsed_vals)/1000000) -> 0 | L109: =IF($B109="not used",0,SUMPRODUCT(($B109=COM_AC_Collapsed_index_1)*($B$96=COM_AC_Collapsed_index_3)*(L$97=COM_AC_Collapsed_index_2)*COM_AC_Collapsed_vals)/1000000) -> 0 | M109: =IF($B109="not used",0,SUMPRODUCT(($B109=COM_AC_Collapsed_index_1)*($B$96=COM_AC_Collapsed_index_3)*(M$97=COM_AC_Collapsed_index_2)*COM_AC_Collapsed_vals)/1000000) -> 0 | N109: =IF($B109="not used",0,SUMPRODUCT(($B109=COM_AC_Collapsed_index_1)*($B$96=COM_AC_Collapsed_index_3)*(N$97=COM_AC_Collapsed_index_2)*COM_AC_Collapsed_vals)/1000000) -> 0 | O109: =IF($B109="not used",0,SUMPRODUCT(($B109=COM_AC_Collapsed_index_1)*($B$96=COM_AC_Collapsed_index_3)*(O$97=COM_AC_Collapsed_index_2)*COM_AC_Collapsed_vals)/1000000) -> 0 | P109: =IF($B109="not used",0,SUMPRODUCT(($B109=COM_AC_Collapsed_index_1)*($B$96=COM_AC_Collapsed_index_3)*(P$97=COM_AC_Collapsed_index_2)*COM_AC_Collapsed_vals)/1000000) -> 0 | Q109: =IF($B109="not used",0,SUMPRODUCT(($B109=COM_AC_Collapsed_index_1)*($B$96=COM_AC_Collapsed_index_3)*(Q$97=COM_AC_Collapsed_index_2)*COM_AC_Collapsed_vals)/1000000) -> 0 | R109: =IF($B109="not used",0,SUMPRODUCT(($B109=COM_AC_Collapsed_index_1)*($B$96=COM_AC_Collapsed_index_3)*(R$97=COM_AC_Collapsed_index_2)*COM_AC_Collapsed_vals)/1000000) -> 0 | S109: =IF($B109="not used",0,SUMPRODUCT(($B109=COM_AC_Collapsed_index_1)*($B$96=COM_AC_Collapsed_index_3)*(S$97=COM_AC_Collapsed_index_2)*COM_AC_Collapsed_vals)/1000000) -> 0 | T109: =IF($B109="not used",0,SUMPRODUCT(($B109=COM_AC_Collapsed_index_1)*($B$96=COM_AC_Collapsed_index_3)*(T$97=COM_AC_Collapsed_index_2)*COM_AC_Collapsed_vals)/1000000) -> 0 | U109: =IF($B109="not used",0,SUMPRODUCT(($B109=COM_AC_Collapsed_index_1)*($B$96=COM_AC_Collapsed_index_3)*(U$97=COM_AC_Collapsed_index_2)*COM_AC_Collapsed_vals)/1000000) -> 0 | V109: =IF($B109="not used",0,SUMPRODUCT(($B109=COM_AC_Collapsed_index_1)*($B$96=COM_AC_Collapsed_index_3)*(V$97=COM_AC_Collapsed_index_2)*COM_AC_Collapsed_vals)/1000000) -> 0 | W109: =IF($B109="not used",0,SUMPRODUCT(($B109=COM_AC_Collapsed_index_1)*($B$96=COM_AC_Collapsed_index_3)*(W$97=COM_AC_Collapsed_index_2)*COM_AC_Collapsed_vals)/1000000) -> 0 | X109: =IF($B109="not used",0,SUMPRODUCT(($B109=COM_AC_Collapsed_index_1)*($B$96=COM_AC_Collapsed_index_3)*(X$97=COM_AC_Collapsed_index_2)*COM_AC_Collapsed_vals)/1000000) -> 0 | Y109: =IF($B109="not used",0,SUMPRODUCT(($B109=COM_AC_Collapsed_index_1)*($B$96=COM_AC_Collapsed_index_3)*(Y$97=COM_AC_Collapsed_index_2)*COM_AC_Collapsed_vals)/1000000) -> 0 | Z109: =IF($B109="not used",0,SUMPRODUCT(($B109=COM_AC_Collapsed_index_1)*($B$96=COM_AC_Collapsed_index_3)*(Z$97=COM_AC_Collapsed_index_2)*COM_AC_Collapsed_vals)/1000000) -> 0 | AA109: =IF($B109="not used",0,SUMPRODUCT(($B109=COM_AC_Collapsed_index_1)*($B$96=COM_AC_Collapsed_index_3)*(AA$97=COM_AC_Collapsed_index_2)*COM_AC_Collapsed_vals)/1000000) -> 0 | AB109: =IF($B109="not used",0,SUMPRODUCT(($B109=COM_AC_Collapsed_index_1)*($B$96=COM_AC_Collapsed_index_3)*(AB$97=COM_AC_Collapsed_index_2)*COM_AC_Collapsed_vals)/1000000) -> 0 | AC109: =IF($B109="not used",0,SUMPRODUCT(($B109=COM_AC_Collapsed_index_1)*($B$96=COM_AC_Collapsed_index_3)*(AC$97=COM_AC_Collapsed_index_2)*COM_AC_Collapsed_vals)/1000000) -> 0 | AD109: =IF($B109="not used",0,SUMPRODUCT(($B109=COM_AC_Collapsed_index_1)*($B$96=COM_AC_Collapsed_index_3)*(AD$97=COM_AC_Collapsed_index_2)*COM_AC_Collapsed_vals)/1000000) -> 0 | AE109: =IF($B109="not used",0,SUMPRODUCT(($B109=COM_AC_Collapsed_index_1)*($B$96=COM_AC_Collapsed_index_3)*(AE$97=COM_AC_Collapsed_index_2)*COM_AC_Collapsed_vals)/1000000) -> 0 | AF109: =IF($B109="not used",0,SUMPRODUCT(($B109=COM_AC_Collapsed_index_1)*($B$96=COM_AC_Collapsed_index_3)*(AF$97=COM_AC_Collapsed_index_2)*COM_AC_Collapsed_vals)/1000000) -> 0 | AG109: =IF($B109="not used",0,SUMPRODUCT(($B109=COM_AC_Collapsed_index_1)*($B$96=COM_AC_Collapsed_index_3)*(AG$97=COM_AC_Collapsed_index_2)*COM_AC_Collapsed_vals)/1000000) -> 0 | AH109: =IF($B109="not used",0,SUMPRODUCT(($B109=COM_AC_Collapsed_index_1)*($B$96=COM_AC_Collapsed_index_3)*(AH$97=COM_AC_Collapsed_index_2)*COM_AC_Collapsed_vals)/1000000) -> 0 | AI109: =IF($B109="not used",0,SUMPRODUCT(($B109=COM_AC_Collapsed_index_1)*($B$96=COM_AC_Collapsed_index_3)*(AI$97=COM_AC_Collapsed_index_2)*COM_AC_Collapsed_vals)/1000000) -> 0 | AJ109: =IF($B109="not used",0,SUMPRODUCT(($B109=COM_AC_Collapsed_index_1)*($B$96=COM_AC_Collapsed_index_3)*(AJ$97=COM_AC_Collapsed_index_2)*COM_AC_Collapsed_vals)/1000000) -> 0 | AK109: =IF($B109="not used",0,SUMPRODUCT(($B109=COM_AC_Collapsed_index_1)*($B$96=COM_AC_Collapsed_index_3)*(AK$97=COM_AC_Collapsed_index_2)*COM_AC_Collapsed_vals)/1000000) -> 0 | AL109: =IF($B109="not used",0,SUMPRODUCT(($B109=COM_AC_Collapsed_index_1)*($B$96=COM_AC_Collapsed_index_3)*(AL$97=COM_AC_Collapsed_index_2)*COM_AC_Collapsed_vals)/1000000) -> 0 | AM109: =IF($B109="not used",0,SUMPRODUCT(($B109=COM_AC_Collapsed_index_1)*($B$96=COM_AC_Collapsed_index_3)*(AM$97=COM_AC_Collapsed_index_2)*COM_AC_Collapsed_vals)/1000000) -> 0
B110: =IFERROR(INDEX(COM_AC_Collapsed_index_1, MATCH(0,COUNTIF($B$96:B109,COM_AC_Collapsed_index_1), 0)),"not used") -> not used | C110: =IF(B110="not used",B110,INDEX(Lists!$G$3:$G$12,MATCH('Comm AC'!$B110,Lists!$F$3:$F$17,0))) -> not used | D110: =IF($B110="not used",0,SUMPRODUCT(($B110=COM_AC_Collapsed_index_1)*($B$96=COM_AC_Collapsed_index_3)*(D$97=COM_AC_Collapsed_index_2)*COM_AC_Collapsed_vals)/1000000) -> 0 | E110: =IF($B110="not used",0,SUMPRODUCT(($B110=COM_AC_Collapsed_index_1)*($B$96=COM_AC_Collapsed_index_3)*(E$97=COM_AC_Collapsed_index_2)*COM_AC_Collapsed_vals)/1000000) -> 0 | F110: =IF($B110="not used",0,SUMPRODUCT(($B110=COM_AC_Collapsed_index_1)*($B$96=COM_AC_Collapsed_index_3)*(F$97=COM_AC_Collapsed_index_2)*COM_AC_Collapsed_vals)/1000000) -> 0 | G110: =IF($B110="not used",0,SUMPRODUCT(($B110=COM_AC_Collapsed_index_1)*($B$96=COM_AC_Collapsed_index_3)*(G$97=COM_AC_Collapsed_index_2)*COM_AC_Collapsed_vals)/1000000) -> 0 | H110: =IF($B110="not used",0,SUMPRODUCT(($B110=COM_AC_Collapsed_index_1)*($B$96=COM_AC_Collapsed_index_3)*(H$97=COM_AC_Collapsed_index_2)*COM_AC_Collapsed_vals)/1000000) -> 0 | I110: =IF($B110="not used",0,SUMPRODUCT(($B110=COM_AC_Collapsed_index_1)*($B$96=COM_AC_Collapsed_index_3)*(I$97=COM_AC_Collapsed_index_2)*COM_AC_Collapsed_vals)/1000000) -> 0 | J110: =IF($B110="not used",0,SUMPRODUCT(($B110=COM_AC_Collapsed_index_1)*($B$96=COM_AC_Collapsed_index_3)*(J$97=COM_AC_Collapsed_index_2)*COM_AC_Collapsed_vals)/1000000) -> 0 | K110: =IF($B110="not used",0,SUMPRODUCT(($B110=COM_AC_Collapsed_index_1)*($B$96=COM_AC_Collapsed_index_3)*(K$97=COM_AC_Collapsed_index_2)*COM_AC_Collapsed_vals)/1000000) -> 0 | L110: =IF($B110="not used",0,SUMPRODUCT(($B110=COM_AC_Collapsed_index_1)*($B$96=COM_AC_Collapsed_index_3)*(L$97=COM_AC_Collapsed_index_2)*COM_AC_Collapsed_vals)/1000000) -> 0 | M110: =IF($B110="not used",0,SUMPRODUCT(($B110=COM_AC_Collapsed_index_1)*($B$96=COM_AC_Collapsed_index_3)*(M$97=COM_AC_Collapsed_index_2)*COM_AC_Collapsed_vals)/1000000) -> 0 | N110: =IF($B110="not used",0,SUMPRODUCT(($B110=COM_AC_Collapsed_index_1)*($B$96=COM_AC_Collapsed_index_3)*(N$97=COM_AC_Collapsed_index_2)*COM_AC_Collapsed_vals)/1000000) -> 0 | O110: =IF($B110="not used",0,SUMPRODUCT(($B110=COM_AC_Collapsed_index_1)*($B$96=COM_AC_Collapsed_index_3)*(O$97=COM_AC_Collapsed_index_2)*COM_AC_Collapsed_vals)/1000000) -> 0 | P110: =IF($B110="not used",0,SUMPRODUCT(($B110=COM_AC_Collapsed_index_1)*($B$96=COM_AC_Collapsed_index_3)*(P$97=COM_AC_Collapsed_index_2)*COM_AC_Collapsed_vals)/1000000) -> 0 | Q110: =IF($B110="not used",0,SUMPRODUCT(($B110=COM_AC_Collapsed_index_1)*($B$96=COM_AC_Collapsed_index_3)*(Q$97=COM_AC_Collapsed_index_2)*COM_AC_Collapsed_vals)/1000000) -> 0 | R110: =IF($B110="not used",0,SUMPRODUCT(($B110=COM_AC_Collapsed_index_1)*($B$96=COM_AC_Collapsed_index_3)*(R$97=COM_AC_Collapsed_index_2)*COM_AC_Collapsed_vals)/1000000) -> 0 | S110: =IF($B110="not used",0,SUMPRODUCT(($B110=COM_AC_Collapsed_index_1)*($B$96=COM_AC_Collapsed_index_3)*(S$97=COM_AC_Collapsed_index_2)*COM_AC_Collapsed_vals)/1000000) -> 0 | T110: =IF($B110="not used",0,SUMPRODUCT(($B110=COM_AC_Collapsed_index_1)*($B$96=COM_AC_Collapsed_index_3)*(T$97=COM_AC_Collapsed_index_2)*COM_AC_Collapsed_vals)/1000000) -> 0 | U110: =IF($B110="not used",0,SUMPRODUCT(($B110=COM_AC_Collapsed_index_1)*($B$96=COM_AC_Collapsed_index_3)*(U$97=COM_AC_Collapsed_index_2)*COM_AC_Collapsed_vals)/1000000) -> 0 | V110: =IF($B110="not used",0,SUMPRODUCT(($B110=COM_AC_Collapsed_index_1)*($B$96=COM_AC_Collapsed_index_3)*(V$97=COM_AC_Collapsed_index_2)*COM_AC_Collapsed_vals)/1000000) -> 0 | W110: =IF($B110="not used",0,SUMPRODUCT(($B110=COM_AC_Collapsed_index_1)*($B$96=COM_AC_Collapsed_index_3)*(W$97=COM_AC_Collapsed_index_2)*COM_AC_Collapsed_vals)/1000000) -> 0 | X110: =IF($B110="not used",0,SUMPRODUCT(($B110=COM_AC_Collapsed_index_1)*($B$96=COM_AC_Collapsed_index_3)*(X$97=COM_AC_Collapsed_index_2)*COM_AC_Collapsed_vals)/1000000) -> 0 | Y110: =IF($B110="not used",0,SUMPRODUCT(($B110=COM_AC_Collapsed_index_1)*($B$96=COM_AC_Collapsed_index_3)*(Y$97=COM_AC_Collapsed_index_2)*COM_AC_Collapsed_vals)/1000000) -> 0 | Z110: =IF($B110="not used",0,SUMPRODUCT(($B110=COM_AC_Collapsed_index_1)*($B$96=COM_AC_Collapsed_index_3)*(Z$97=COM_AC_Collapsed_index_2)*COM_AC_Collapsed_vals)/1000000) -> 0 | AA110: =IF($B110="not used",0,SUMPRODUCT(($B110=COM_AC_Collapsed_index_1)*($B$96=COM_AC_Collapsed_index_3)*(AA$97=COM_AC_Collapsed_index_2)*COM_AC_Collapsed_vals)/1000000) -> 0 | AB110: =IF($B110="not used",0,SUMPRODUCT(($B110=COM_AC_Collapsed_index_1)*($B$96=COM_AC_Collapsed_index_3)*(AB$97=COM_AC_Collapsed_index_2)*COM_AC_Collapsed_vals)/1000000) -> 0 | AC110: =IF($B110="not used",0,SUMPRODUCT(($B110=COM_AC_Collapsed_index_1)*($B$96=COM_AC_Collapsed_index_3)*(AC$97=COM_AC_Collapsed_index_2)*COM_AC_Collapsed_vals)/1000000) -> 0 | AD110: =IF($B110="not used",0,SUMPRODUCT(($B110=COM_AC_Collapsed_index_1)*($B$96=COM_AC_Collapsed_index_3)*(AD$97=COM_AC_Collapsed_index_2)*COM_AC_Collapsed_vals)/1000000) -> 0 | AE110: =IF($B110="not used",0,SUMPRODUCT(($B110=COM_AC_Collapsed_index_1)*($B$96=COM_AC_Collapsed_index_3)*(AE$97=COM_AC_Collapsed_index_2)*COM_AC_Collapsed_vals)/1000000) -> 0 | AF110: =IF($B110="not used",0,SUMPRODUCT(($B110=COM_AC_Collapsed_index_1)*($B$96=COM_AC_Collapsed_index_3)*(AF$97=COM_AC_Collapsed_index_2)*COM_AC_Collapsed_vals)/1000000) -> 0 | AG110: =IF($B110="not used",0,SUMPRODUCT(($B110=COM_AC_Collapsed_index_1)*($B$96=COM_AC_Collapsed_index_3)*(AG$97=COM_AC_Collapsed_index_2)*COM_AC_Collapsed_vals)/1000000) -> 0 | AH110: =IF($B110="not used",0,SUMPRODUCT(($B110=COM_AC_Collapsed_index_1)*($B$96=COM_AC_Collapsed_index_3)*(AH$97=COM_AC_Collapsed_index_2)*COM_AC_Collapsed_vals)/1000000) -> 0 | AI110: =IF($B110="not used",0,SUMPRODUCT(($B110=COM_AC_Collapsed_index_1)*($B$96=COM_AC_Collapsed_index_3)*(AI$97=COM_AC_Collapsed_index_2)*COM_AC_Collapsed_vals)/1000000) -> 0 | AJ110: =IF($B110="not used",0,SUMPRODUCT(($B110=COM_AC_Collapsed_index_1)*($B$96=COM_AC_Collapsed_index_3)*(AJ$97=COM_AC_Collapsed_index_2)*COM_AC_Collapsed_vals)/1000000) -> 0 | AK110: =IF($B110="not used",0,SUMPRODUCT(($B110=COM_AC_Collapsed_index_1)*($B$96=COM_AC_Collapsed_index_3)*(AK$97=COM_AC_Collapsed_index_2)*COM_AC_Collapsed_vals)/1000000) -> 0 | AL110: =IF($B110="not used",0,SUMPRODUCT(($B110=COM_AC_Collapsed_index_1)*($B$96=COM_AC_Collapsed_index_3)*(AL$97=COM_AC_Collapsed_index_2)*COM_AC_Collapsed_vals)/1000000) -> 0 | AM110: =IF($B110="not used",0,SUMPRODUCT(($B110=COM_AC_Collapsed_index_1)*($B$96=COM_AC_Collapsed_index_3)*(AM$97=COM_AC_Collapsed_index_2)*COM_AC_Collapsed_vals)/1000000) -> 0
B111: =IFERROR(INDEX(COM_AC_Collapsed_index_1, MATCH(0,COUNTIF($B$96:B110,COM_AC_Collapsed_index_1), 0)),"not used") -> not used | C111: =IF(B111="not used",B111,INDEX(Lists!$G$3:$G$12,MATCH('Comm AC'!$B111,Lists!$F$3:$F$17,0))) -> not used | D111: =IF($B111="not used",0,SUMPRODUCT(($B111=COM_AC_Collapsed_index_1)*($B$96=COM_AC_Collapsed_index_3)*(D$97=COM_AC_Collapsed_index_2)*COM_AC_Collapsed_vals)/1000000) -> 0 | E111: =IF($B111="not used",0,SUMPRODUCT(($B111=COM_AC_Collapsed_index_1)*($B$96=COM_AC_Collapsed_index_3)*(E$97=COM_AC_Collapsed_index_2)*COM_AC_Collapsed_vals)/1000000) -> 0 | F111: =IF($B111="not used",0,SUMPRODUCT(($B111=COM_AC_Collapsed_index_1)*($B$96=COM_AC_Collapsed_index_3)*(F$97=COM_AC_Collapsed_index_2)*COM_AC_Collapsed_vals)/1000000) -> 0 | G111: =IF($B111="not used",0,SUMPRODUCT(($B111=COM_AC_Collapsed_index_1)*($B$96=COM_AC_Collapsed_index_3)*(G$97=COM_AC_Collapsed_index_2)*COM_AC_Collapsed_vals)/1000000) -> 0 | H111: =IF($B111="not used",0,SUMPRODUCT(($B111=COM_AC_Collapsed_index_1)*($B$96=COM_AC_Collapsed_index_3)*(H$97=COM_AC_Collapsed_index_2)*COM_AC_Collapsed_vals)/1000000) -> 0 | I111: =IF($B111="not used",0,SUMPRODUCT(($B111=COM_AC_Collapsed_index_1)*($B$96=COM_AC_Collapsed_index_3)*(I$97=COM_AC_Collapsed_index_2)*COM_AC_Collapsed_vals)/1000000) -> 0 | J111: =IF($B111="not used",0,SUMPRODUCT(($B111=COM_AC_Collapsed_index_1)*($B$96=COM_AC_Collapsed_index_3)*(J$97=COM_AC_Collapsed_index_2)*COM_AC_Collapsed_vals)/1000000) -> 0 | K111: =IF($B111="not used",0,SUMPRODUCT(($B111=COM_AC_Collapsed_index_1)*($B$96=COM_AC_Collapsed_index_3)*(K$97=COM_AC_Collapsed_index_2)*COM_AC_Collapsed_vals)/1000000) -> 0 | L111: =IF($B111="not used",0,SUMPRODUCT(($B111=COM_AC_Collapsed_index_1)*($B$96=COM_AC_Collapsed_index_3)*(L$97=COM_AC_Collapsed_index_2)*COM_AC_Collapsed_vals)/1000000) -> 0 | M111: =IF($B111="not used",0,SUMPRODUCT(($B111=COM_AC_Collapsed_index_1)*($B$96=COM_AC_Collapsed_index_3)*(M$97=COM_AC_Collapsed_index_2)*COM_AC_Collapsed_vals)/1000000) -> 0 | N111: =IF($B111="not used",0,SUMPRODUCT(($B111=COM_AC_Collapsed_index_1)*($B$96=COM_AC_Collapsed_index_3)*(N$97=COM_AC_Collapsed_index_2)*COM_AC_Collapsed_vals)/1000000) -> 0 | O111: =IF($B111="not used",0,SUMPRODUCT(($B111=COM_AC_Collapsed_index_1)*($B$96=COM_AC_Collapsed_index_3)*(O$97=COM_AC_Collapsed_index_2)*COM_AC_Collapsed_vals)/1000000) -> 0 | P111: =IF($B111="not used",0,SUMPRODUCT(($B111=COM_AC_Collapsed_index_1)*($B$96=COM_AC_Collapsed_index_3)*(P$97=COM_AC_Collapsed_index_2)*COM_AC_Collapsed_vals)/1000000) -> 0 | Q111: =IF($B111="not used",0,SUMPRODUCT(($B111=COM_AC_Collapsed_index_1)*($B$96=COM_AC_Collapsed_index_3)*(Q$97=COM_AC_Collapsed_index_2)*COM_AC_Collapsed_vals)/1000000) -> 0 | R111: =IF($B111="not used",0,SUMPRODUCT(($B111=COM_AC_Collapsed_index_1)*($B$96=COM_AC_Collapsed_index_3)*(R$97=COM_AC_Collapsed_index_2)*COM_AC_Collapsed_vals)/1000000) -> 0 | S111: =IF($B111="not used",0,SUMPRODUCT(($B111=COM_AC_Collapsed_index_1)*($B$96=COM_AC_Collapsed_index_3)*(S$97=COM_AC_Collapsed_index_2)*COM_AC_Collapsed_vals)/1000000) -> 0 | T111: =IF($B111="not used",0,SUMPRODUCT(($B111=COM_AC_Collapsed_index_1)*($B$96=COM_AC_Collapsed_index_3)*(T$97=COM_AC_Collapsed_index_2)*COM_AC_Collapsed_vals)/1000000) -> 0 | U111: =IF($B111="not used",0,SUMPRODUCT(($B111=COM_AC_Collapsed_index_1)*($B$96=COM_AC_Collapsed_index_3)*(U$97=COM_AC_Collapsed_index_2)*COM_AC_Collapsed_vals)/1000000) -> 0 | V111: =IF($B111="not used",0,SUMPRODUCT(($B111=COM_AC_Collapsed_index_1)*($B$96=COM_AC_Collapsed_index_3)*(V$97=COM_AC_Collapsed_index_2)*COM_AC_Collapsed_vals)/1000000) -> 0 | W111: =IF($B111="not used",0,SUMPRODUCT(($B111=COM_AC_Collapsed_index_1)*($B$96=COM_AC_Collapsed_index_3)*(W$97=COM_AC_Collapsed_index_2)*COM_AC_Collapsed_vals)/1000000) -> 0 | X111: =IF($B111="not used",0,SUMPRODUCT(($B111=COM_AC_Collapsed_index_1)*($B$96=COM_AC_Collapsed_index_3)*(X$97=COM_AC_Collapsed_index_2)*COM_AC_Collapsed_vals)/1000000) -> 0 | Y111: =IF($B111="not used",0,SUMPRODUCT(($B111=COM_AC_Collapsed_index_1)*($B$96=COM_AC_Collapsed_index_3)*(Y$97=COM_AC_Collapsed_index_2)*COM_AC_Collapsed_vals)/1000000) -> 0 | Z111: =IF($B111="not used",0,SUMPRODUCT(($B111=COM_AC_Collapsed_index_1)*($B$96=COM_AC_Collapsed_index_3)*(Z$97=COM_AC_Collapsed_index_2)*COM_AC_Collapsed_vals)/1000000) -> 0 | AA111: =IF($B111="not used",0,SUMPRODUCT(($B111=COM_AC_Collapsed_index_1)*($B$96=COM_AC_Collapsed_index_3)*(AA$97=COM_AC_Collapsed_index_2)*COM_AC_Collapsed_vals)/1000000) -> 0 | AB111: =IF($B111="not used",0,SUMPRODUCT(($B111=COM_AC_Collapsed_index_1)*($B$96=COM_AC_Collapsed_index_3)*(AB$97=COM_AC_Collapsed_index_2)*COM_AC_Collapsed_vals)/1000000) -> 0 | AC111: =IF($B111="not used",0,SUMPRODUCT(($B111=COM_AC_Collapsed_index_1)*($B$96=COM_AC_Collapsed_index_3)*(AC$97=COM_AC_Collapsed_index_2)*COM_AC_Collapsed_vals)/1000000) -> 0 | AD111: =IF($B111="not used",0,SUMPRODUCT(($B111=COM_AC_Collapsed_index_1)*($B$96=COM_AC_Collapsed_index_3)*(AD$97=COM_AC_Collapsed_index_2)*COM_AC_Collapsed_vals)/1000000) -> 0 | AE111: =IF($B111="not used",0,SUMPRODUCT(($B111=COM_AC_Collapsed_index_1)*($B$96=COM_AC_Collapsed_index_3)*(AE$97=COM_AC_Collapsed_index_2)*COM_AC_Collapsed_vals)/1000000) -> 0 | AF111: =IF($B111="not used",0,SUMPRODUCT(($B111=COM_AC_Collapsed_index_1)*($B$96=COM_AC_Collapsed_index_3)*(AF$97=COM_AC_Collapsed_index_2)*COM_AC_Collapsed_vals)/1000000) -> 0 | AG111: =IF($B111="not used",0,SUMPRODUCT(($B111=COM_AC_Collapsed_index_1)*($B$96=COM_AC_Collapsed_index_3)*(AG$97=COM_AC_Collapsed_index_2)*COM_AC_Collapsed_vals)/1000000) -> 0 | AH111: =IF($B111="not used",0,SUMPRODUCT(($B111=COM_AC_Collapsed_index_1)*($B$96=COM_AC_Collapsed_index_3)*(AH$97=COM_AC_Collapsed_index_2)*COM_AC_Collapsed_vals)/1000000) -> 0 | AI111: =IF($B111="not used",0,SUMPRODUCT(($B111=COM_AC_Collapsed_index_1)*($B$96=COM_AC_Collapsed_index_3)*(AI$97=COM_AC_Collapsed_index_2)*COM_AC_Collapsed_vals)/1000000) -> 0 | AJ111: =IF($B111="not used",0,SUMPRODUCT(($B111=COM_AC_Collapsed_index_1)*($B$96=COM_AC_Collapsed_index_3)*(AJ$97=COM_AC_Collapsed_index_2)*COM_AC_Collapsed_vals)/1000000) -> 0 | AK111: =IF($B111="not used",0,SUMPRODUCT(($B111=COM_AC_Collapsed_index_1)*($B$96=COM_AC_Collapsed_index_3)*(AK$97=COM_AC_Collapsed_index_2)*COM_AC_Collapsed_vals)/1000000) -> 0 | AL111: =IF($B111="not used",0,SUMPRODUCT(($B111=COM_AC_Collapsed_index_1)*($B$96=COM_AC_Collapsed_index_3)*(AL$97=COM_AC_Collapsed_index_2)*COM_AC_Collapsed_vals)/1000000) -> 0 | AM111: =IF($B111="not used",0,SUMPRODUCT(($B111=COM_AC_Collapsed_index_1)*($B$96=COM_AC_Collapsed_index_3)*(AM$97=COM_AC_Collapsed_index_2)*COM_AC_Collapsed_vals)/1000000) -> 0
B112: =IFERROR(INDEX(COM_AC_Collapsed_index_1, MATCH(0,COUNTIF($B$96:B111,COM_AC_Collapsed_index_1), 0)),"not used") -> not used | C112: =IF(B112="not used",B112,INDEX(Lists!$G$3:$G$12,MATCH('Comm AC'!$B112,Lists!$F$3:$F$17,0))) -> not used | D112: =IF($B112="not used",0,SUMPRODUCT(($B112=COM_AC_Collapsed_index_1)*($B$96=COM_AC_Collapsed_index_3)*(D$97=COM_AC_Collapsed_index_2)*COM_AC_Collapsed_vals)/1000000) -> 0 | E112: =IF($B112="not used",0,SUMPRODUCT(($B112=COM_AC_Collapsed_index_1)*($B$96=COM_AC_Collapsed_index_3)*(E$97=COM_AC_Collapsed_index_2)*COM_AC_Collapsed_vals)/1000000) -> 0 | F112: =IF($B112="not used",0,SUMPRODUCT(($B112=COM_AC_Collapsed_index_1)*($B$96=COM_AC_Collapsed_index_3)*(F$97=COM_AC_Collapsed_index_2)*COM_AC_Collapsed_vals)/1000000) -> 0 | G112: =IF($B112="not used",0,SUMPRODUCT(($B112=COM_AC_Collapsed_index_1)*($B$96=COM_AC_Collapsed_index_3)*(G$97=COM_AC_Collapsed_index_2)*COM_AC_Collapsed_vals)/1000000) -> 0 | H112: =IF($B112="not used",0,SUMPRODUCT(($B112=COM_AC_Collapsed_index_1)*($B$96=COM_AC_Collapsed_index_3)*(H$97=COM_AC_Collapsed_index_2)*COM_AC_Collapsed_vals)/1000000) -> 0 | I112: =IF($B112="not used",0,SUMPRODUCT(($B112=COM_AC_Collapsed_index_1)*($B$96=COM_AC_Collapsed_index_3)*(I$97=COM_AC_Collapsed_index_2)*COM_AC_Collapsed_vals)/1000000) -> 0 | J112: =IF($B112="not used",0,SUMPRODUCT(($B112=COM_AC_Collapsed_index_1)*($B$96=COM_AC_Collapsed_index_3)*(J$97=COM_AC_Collapsed_index_2)*COM_AC_Collapsed_vals)/1000000) -> 0 | K112: =IF($B112="not used",0,SUMPRODUCT(($B112=COM_AC_Collapsed_index_1)*($B$96=COM_AC_Collapsed_index_3)*(K$97=COM_AC_Collapsed_index_2)*COM_AC_Collapsed_vals)/1000000) -> 0 | L112: =IF($B112="not used",0,SUMPRODUCT(($B112=COM_AC_Collapsed_index_1)*($B$96=COM_AC_Collapsed_index_3)*(L$97=COM_AC_Collapsed_index_2)*COM_AC_Collapsed_vals)/1000000) -> 0 | M112: =IF($B112="not used",0,SUMPRODUCT(($B112=COM_AC_Collapsed_index_1)*($B$96=COM_AC_Collapsed_index_3)*(M$97=COM_AC_Collapsed_index_2)*COM_AC_Collapsed_vals)/1000000) -> 0 | N112: =IF($B112="not used",0,SUMPRODUCT(($B112=COM_AC_Collapsed_index_1)*($B$96=COM_AC_Collapsed_index_3)*(N$97=COM_AC_Collapsed_index_2)*COM_AC_Collapsed_vals)/1000000) -> 0 | O112: =IF($B112="not used",0,SUMPRODUCT(($B112=COM_AC_Collapsed_index_1)*($B$96=COM_AC_Collapsed_index_3)*(O$97=COM_AC_Collapsed_index_2)*COM_AC_Collapsed_vals)/1000000) -> 0 | P112: =IF($B112="not used",0,SUMPRODUCT(($B112=COM_AC_Collapsed_index_1)*($B$96=COM_AC_Collapsed_index_3)*(P$97=COM_AC_Collapsed_index_2)*COM_AC_Collapsed_vals)/1000000) -> 0 | Q112: =IF($B112="not used",0,SUMPRODUCT(($B112=COM_AC_Collapsed_index_1)*($B$96=COM_AC_Collapsed_index_3)*(Q$97=COM_AC_Collapsed_index_2)*COM_AC_Collapsed_vals)/1000000) -> 0 | R112: =IF($B112="not used",0,SUMPRODUCT(($B112=COM_AC_Collapsed_index_1)*($B$96=COM_AC_Collapsed_index_3)*(R$97=COM_AC_Collapsed_index_2)*COM_AC_Collapsed_vals)/1000000) -> 0 | S112: =IF($B112="not used",0,SUMPRODUCT(($B112=COM_AC_Collapsed_index_1)*($B$96=COM_AC_Collapsed_index_3)*(S$97=COM_AC_Collapsed_index_2)*COM_AC_Collapsed_vals)/1000000) -> 0 | T112: =IF($B112="not used",0,SUMPRODUCT(($B112=COM_AC_Collapsed_index_1)*($B$96=COM_AC_Collapsed_index_3)*(T$97=COM_AC_Collapsed_index_2)*COM_AC_Collapsed_vals)/1000000) -> 0 | U112: =IF($B112="not used",0,SUMPRODUCT(($B112=COM_AC_Collapsed_index_1)*($B$96=COM_AC_Collapsed_index_3)*(U$97=COM_AC_Collapsed_index_2)*COM_AC_Collapsed_vals)/1000000) -> 0 | V112: =IF($B112="not used",0,SUMPRODUCT(($B112=COM_AC_Collapsed_index_1)*($B$96=COM_AC_Collapsed_index_3)*(V$97=COM_AC_Collapsed_index_2)*COM_AC_Collapsed_vals)/1000000) -> 0 | W112: =IF($B112="not used",0,SUMPRODUCT(($B112=COM_AC_Collapsed_index_1)*($B$96=COM_AC_Collapsed_index_3)*(W$97=COM_AC_Collapsed_index_2)*COM_AC_Collapsed_vals)/1000000) -> 0 | X112: =IF($B112="not used",0,SUMPRODUCT(($B112=COM_AC_Collapsed_index_1)*($B$96=COM_AC_Collapsed_index_3)*(X$97=COM_AC_Collapsed_index_2)*COM_AC_Collapsed_vals)/1000000) -> 0 | Y112: =IF($B112="not used",0,SUMPRODUCT(($B112=COM_AC_Collapsed_index_1)*($B$96=COM_AC_Collapsed_index_3)*(Y$97=COM_AC_Collapsed_index_2)*COM_AC_Collapsed_vals)/1000000) -> 0 | Z112: =IF($B112="not used",0,SUMPRODUCT(($B112=COM_AC_Collapsed_index_1)*($B$96=COM_AC_Collapsed_index_3)*(Z$97=COM_AC_Collapsed_index_2)*COM_AC_Collapsed_vals)/1000000) -> 0 | AA112: =IF($B112="not used",0,SUMPRODUCT(($B112=COM_AC_Collapsed_index_1)*($B$96=COM_AC_Collapsed_index_3)*(AA$97=COM_AC_Collapsed_index_2)*COM_AC_Collapsed_vals)/1000000) -> 0 | AB112: =IF($B112="not used",0,SUMPRODUCT(($B112=COM_AC_Collapsed_index_1)*($B$96=COM_AC_Collapsed_index_3)*(AB$97=COM_AC_Collapsed_index_2)*COM_AC_Collapsed_vals)/1000000) -> 0 | AC112: =IF($B112="not used",0,SUMPRODUCT(($B112=COM_AC_Collapsed_index_1)*($B$96=COM_AC_Collapsed_index_3)*(AC$97=COM_AC_Collapsed_index_2)*COM_AC_Collapsed_vals)/1000000) -> 0 | AD112: =IF($B112="not used",0,SUMPRODUCT(($B112=COM_AC_Collapsed_index_1)*($B$96=COM_AC_Collapsed_index_3)*(AD$97=COM_AC_Collapsed_index_2)*COM_AC_Collapsed_vals)/1000000) -> 0 | AE112: =IF($B112="not used",0,SUMPRODUCT(($B112=COM_AC_Collapsed_index_1)*($B$96=COM_AC_Collapsed_index_3)*(AE$97=COM_AC_Collapsed_index_2)*COM_AC_Collapsed_vals)/1000000) -> 0 | AF112: =IF($B112="not used",0,SUMPRODUCT(($B112=COM_AC_Collapsed_index_1)*($B$96=COM_AC_Collapsed_index_3)*(AF$97=COM_AC_Collapsed_index_2)*COM_AC_Collapsed_vals)/1000000) -> 0 | AG112: =IF($B112="not used",0,SUMPRODUCT(($B112=COM_AC_Collapsed_index_1)*($B$96=COM_AC_Collapsed_index_3)*(AG$97=COM_AC_Collapsed_index_2)*COM_AC_Collapsed_vals)/1000000) -> 0 | AH112: =IF($B112="not used",0,SUMPRODUCT(($B112=COM_AC_Collapsed_index_1)*($B$96=COM_AC_Collapsed_index_3)*(AH$97=COM_AC_Collapsed_index_2)*COM_AC_Collapsed_vals)/1000000) -> 0 | AI112: =IF($B112="not used",0,SUMPRODUCT(($B112=COM_AC_Collapsed_index_1)*($B$96=COM_AC_Collapsed_index_3)*(AI$97=COM_AC_Collapsed_index_2)*COM_AC_Collapsed_vals)/1000000) -> 0 | AJ112: =IF($B112="not used",0,SUMPRODUCT(($B112=COM_AC_Collapsed_index_1)*($B$96=COM_AC_Collapsed_index_3)*(AJ$97=COM_AC_Collapsed_index_2)*COM_AC_Collapsed_vals)/1000000) -> 0 | AK112: =IF($B112="not used",0,SUMPRODUCT(($B112=COM_AC_Collapsed_index_1)*($B$96=COM_AC_Collapsed_index_3)*(AK$97=COM_AC_Collapsed_index_2)*COM_AC_Collapsed_vals)/1000000) -> 0 | AL112: =IF($B112="not used",0,SUMPRODUCT(($B112=COM_AC_Collapsed_index_1)*($B$96=COM_AC_Collapsed_index_3)*(AL$97=COM_AC_Collapsed_index_2)*COM_AC_Collapsed_vals)/1000000) -> 0 | AM112: =IF($B112="not used",0,SUMPRODUCT(($B112=COM_AC_Collapsed_index_1)*($B$96=COM_AC_Collapsed_index_3)*(AM$97=COM_AC_Collapsed_index_2)*COM_AC_Collapsed_vals)/1000000) -> 0
B113: =IFERROR(INDEX(COM_AC_Collapsed_index_1, MATCH(0,COUNTIF($B$96:B112,COM_AC_Collapsed_index_1), 0)),"not used") -> not used | C113: =IF(B113="not used",B113,INDEX(Lists!$G$3:$G$12,MATCH('Comm AC'!$B113,Lists!$F$3:$F$17,0))) -> not used | D113: =IF($B113="not used",0,SUMPRODUCT(($B113=COM_AC_Collapsed_index_1)*($B$96=COM_AC_Collapsed_index_3)*(D$97=COM_AC_Collapsed_index_2)*COM_AC_Collapsed_vals)/1000000) -> 0 | E113: =IF($B113="not used",0,SUMPRODUCT(($B113=COM_AC_Collapsed_index_1)*($B$96=COM_AC_Collapsed_index_3)*(E$97=COM_AC_Collapsed_index_2)*COM_AC_Collapsed_vals)/1000000) -> 0 | F113: =IF($B113="not used",0,SUMPRODUCT(($B113=COM_AC_Collapsed_index_1)*($B$96=COM_AC_Collapsed_index_3)*(F$97=COM_AC_Collapsed_index_2)*COM_AC_Collapsed_vals)/1000000) -> 0 | G113: =IF($B113="not used",0,SUMPRODUCT(($B113=COM_AC_Collapsed_index_1)*($B$96=COM_AC_Collapsed_index_3)*(G$97=COM_AC_Collapsed_index_2)*COM_AC_Collapsed_vals)/1000000) -> 0 | H113: =IF($B113="not used",0,SUMPRODUCT(($B113=COM_AC_Collapsed_index_1)*($B$96=COM_AC_Collapsed_index_3)*(H$97=COM_AC_Collapsed_index_2)*COM_AC_Collapsed_vals)/1000000) -> 0 | I113: =IF($B113="not used",0,SUMPRODUCT(($B113=COM_AC_Collapsed_index_1)*($B$96=COM_AC_Collapsed_index_3)*(I$97=COM_AC_Collapsed_index_2)*COM_AC_Collapsed_vals)/1000000) -> 0 | J113: =IF($B113="not used",0,SUMPRODUCT(($B113=COM_AC_Collapsed_index_1)*($B$96=COM_AC_Collapsed_index_3)*(J$97=COM_AC_Collapsed_index_2)*COM_AC_Collapsed_vals)/1000000) -> 0 | K113: =IF($B113="not used",0,SUMPRODUCT(($B113=COM_AC_Collapsed_index_1)*($B$96=COM_AC_Collapsed_index_3)*(K$97=COM_AC_Collapsed_index_2)*COM_AC_Collapsed_vals)/1000000) -> 0 | L113: =IF($B113="not used",0,SUMPRODUCT(($B113=COM_AC_Collapsed_index_1)*($B$96=COM_AC_Collapsed_index_3)*(L$97=COM_AC_Collapsed_index_2)*COM_AC_Collapsed_vals)/1000000) -> 0 | M113: =IF($B113="not used",0,SUMPRODUCT(($B113=COM_AC_Collapsed_index_1)*($B$96=COM_AC_Collapsed_index_3)*(M$97=COM_AC_Collapsed_index_2)*COM_AC_Collapsed_vals)/1000000) -> 0 | N113: =IF($B113="not used",0,SUMPRODUCT(($B113=COM_AC_Collapsed_index_1)*($B$96=COM_AC_Collapsed_index_3)*(N$97=COM_AC_Collapsed_index_2)*COM_AC_Collapsed_vals)/1000000) -> 0 | O113: =IF($B113="not used",0,SUMPRODUCT(($B113=COM_AC_Collapsed_index_1)*($B$96=COM_AC_Collapsed_index_3)*(O$97=COM_AC_Collapsed_index_2)*COM_AC_Collapsed_vals)/1000000) -> 0 | P113: =IF($B113="not used",0,SUMPRODUCT(($B113=COM_AC_Collapsed_index_1)*($B$96=COM_AC_Collapsed_index_3)*(P$97=COM_AC_Collapsed_index_2)*COM_AC_Collapsed_vals)/1000000) -> 0 | Q113: =IF($B113="not used",0,SUMPRODUCT(($B113=COM_AC_Collapsed_index_1)*($B$96=COM_AC_Collapsed_index_3)*(Q$97=COM_AC_Collapsed_index_2)*COM_AC_Collapsed_vals)/1000000) -> 0 | R113: =IF($B113="not used",0,SUMPRODUCT(($B113=COM_AC_Collapsed_index_1)*($B$96=COM_AC_Collapsed_index_3)*(R$97=COM_AC_Collapsed_index_2)*COM_AC_Collapsed_vals)/1000000) -> 0 | S113: =IF($B113="not used",0,SUMPRODUCT(($B113=COM_AC_Collapsed_index_1)*($B$96=COM_AC_Collapsed_index_3)*(S$97=COM_AC_Collapsed_index_2)*COM_AC_Collapsed_vals)/1000000) -> 0 | T113: =IF($B113="not used",0,SUMPRODUCT(($B113=COM_AC_Collapsed_index_1)*($B$96=COM_AC_Collapsed_index_3)*(T$97=COM_AC_Collapsed_index_2)*COM_AC_Collapsed_vals)/1000000) -> 0 | U113: =IF($B113="not used",0,SUMPRODUCT(($B113=COM_AC_Collapsed_index_1)*($B$96=COM_AC_Collapsed_index_3)*(U$97=COM_AC_Collapsed_index_2)*COM_AC_Collapsed_vals)/1000000) -> 0 | V113: =IF($B113="not used",0,SUMPRODUCT(($B113=COM_AC_Collapsed_index_1)*($B$96=COM_AC_Collapsed_index_3)*(V$97=COM_AC_Collapsed_index_2)*COM_AC_Collapsed_vals)/1000000) -> 0 | W113: =IF($B113="not used",0,SUMPRODUCT(($B113=COM_AC_Collapsed_index_1)*($B$96=COM_AC_Collapsed_index_3)*(W$97=COM_AC_Collapsed_index_2)*COM_AC_Collapsed_vals)/1000000) -> 0 | X113: =IF($B113="not used",0,SUMPRODUCT(($B113=COM_AC_Collapsed_index_1)*($B$96=COM_AC_Collapsed_index_3)*(X$97=COM_AC_Collapsed_index_2)*COM_AC_Collapsed_vals)/1000000) -> 0 | Y113: =IF($B113="not used",0,SUMPRODUCT(($B113=COM_AC_Collapsed_index_1)*($B$96=COM_AC_Collapsed_index_3)*(Y$97=COM_AC_Collapsed_index_2)*COM_AC_Collapsed_vals)/1000000) -> 0 | Z113: =IF($B113="not used",0,SUMPRODUCT(($B113=COM_AC_Collapsed_index_1)*($B$96=COM_AC_Collapsed_index_3)*(Z$97=COM_AC_Collapsed_index_2)*COM_AC_Collapsed_vals)/1000000) -> 0 | AA113: =IF($B113="not used",0,SUMPRODUCT(($B113=COM_AC_Collapsed_index_1)*($B$96=COM_AC_Collapsed_index_3)*(AA$97=COM_AC_Collapsed_index_2)*COM_AC_Collapsed_vals)/1000000) -> 0 | AB113: =IF($B113="not used",0,SUMPRODUCT(($B113=COM_AC_Collapsed_index_1)*($B$96=COM_AC_Collapsed_index_3)*(AB$97=COM_AC_Collapsed_index_2)*COM_AC_Collapsed_vals)/1000000) -> 0 | AC113: =IF($B113="not used",0,SUMPRODUCT(($B113=COM_AC_Collapsed_index_1)*($B$96=COM_AC_Collapsed_index_3)*(AC$97=COM_AC_Collapsed_index_2)*COM_AC_Collapsed_vals)/1000000) -> 0 | AD113: =IF($B113="not used",0,SUMPRODUCT(($B113=COM_AC_Collapsed_index_1)*($B$96=COM_AC_Collapsed_index_3)*(AD$97=COM_AC_Collapsed_index_2)*COM_AC_Collapsed_vals)/1000000) -> 0 | AE113: =IF($B113="not used",0,SUMPRODUCT(($B113=COM_AC_Collapsed_index_1)*($B$96=COM_AC_Collapsed_index_3)*(AE$97=COM_AC_Collapsed_index_2)*COM_AC_Collapsed_vals)/1000000) -> 0 | AF113: =IF($B113="not used",0,SUMPRODUCT(($B113=COM_AC_Collapsed_index_1)*($B$96=COM_AC_Collapsed_index_3)*(AF$97=COM_AC_Collapsed_index_2)*COM_AC_Collapsed_vals)/1000000) -> 0 | AG113: =IF($B113="not used",0,SUMPRODUCT(($B113=COM_AC_Collapsed_index_1)*($B$96=COM_AC_Collapsed_index_3)*(AG$97=COM_AC_Collapsed_index_2)*COM_AC_Collapsed_vals)/1000000) -> 0 | AH113: =IF($B113="not used",0,SUMPRODUCT(($B113=COM_AC_Collapsed_index_1)*($B$96=COM_AC_Collapsed_index_3)*(AH$97=COM_AC_Collapsed_index_2)*COM_AC_Collapsed_vals)/1000000) -> 0 | AI113: =IF($B113="not used",0,SUMPRODUCT(($B113=COM_AC_Collapsed_index_1)*($B$96=COM_AC_Collapsed_index_3)*(AI$97=COM_AC_Collapsed_index_2)*COM_AC_Collapsed_vals)/1000000) -> 0 | AJ113: =IF($B113="not used",0,SUMPRODUCT(($B113=COM_AC_Collapsed_index_1)*($B$96=COM_AC_Collapsed_index_3)*(AJ$97=COM_AC_Collapsed_index_2)*COM_AC_Collapsed_vals)/1000000) -> 0 | AK113: =IF($B113="not used",0,SUMPRODUCT(($B113=COM_AC_Collapsed_index_1)*($B$96=COM_AC_Collapsed_index_3)*(AK$97=COM_AC_Collapsed_index_2)*COM_AC_Collapsed_vals)/1000000) -> 0 | AL113: =IF($B113="not used",0,SUMPRODUCT(($B113=COM_AC_Collapsed_index_1)*($B$96=COM_AC_Collapsed_index_3)*(AL$97=COM_AC_Collapsed_index_2)*COM_AC_Collapsed_vals)/1000000) -> 0 | AM113: =IF($B113="not used",0,SUMPRODUCT(($B113=COM_AC_Collapsed_index_1)*($B$96=COM_AC_Collapsed_index_3)*(AM$97=COM_AC_Collapsed_index_2)*COM_AC_Collapsed_vals)/1000000) -> 0
B114: =IFERROR(INDEX(COM_AC_Collapsed_index_1, MATCH(0,COUNTIF($B$96:B113,COM_AC_Collapsed_index_1), 0)),"not used") -> not used | C114: =IF(B114="not used",B114,INDEX(Lists!$G$3:$G$12,MATCH('Comm AC'!$B114,Lists!$F$3:$F$17,0))) -> not used | D114: =IF($B114="not used",0,SUMPRODUCT(($B114=COM_AC_Collapsed_index_1)*($B$96=COM_AC_Collapsed_index_3)*(D$97=COM_AC_Collapsed_index_2)*COM_AC_Collapsed_vals)/1000000) -> 0 | E114: =IF($B114="not used",0,SUMPRODUCT(($B114=COM_AC_Collapsed_index_1)*($B$96=COM_AC_Collapsed_index_3)*(E$97=COM_AC_Collapsed_index_2)*COM_AC_Collapsed_vals)/1000000) -> 0 | F114: =IF($B114="not used",0,SUMPRODUCT(($B114=COM_AC_Collapsed_index_1)*($B$96=COM_AC_Collapsed_index_3)*(F$97=COM_AC_Collapsed_index_2)*COM_AC_Collapsed_vals)/1000000) -> 0 | G114: =IF($B114="not used",0,SUMPRODUCT(($B114=COM_AC_Collapsed_index_1)*($B$96=COM_AC_Collapsed_index_3)*(G$97=COM_AC_Collapsed_index_2)*COM_AC_Collapsed_vals)/1000000) -> 0 | H114: =IF($B114="not used",0,SUMPRODUCT(($B114=COM_AC_Collapsed_index_1)*($B$96=COM_AC_Collapsed_index_3)*(H$97=COM_AC_Collapsed_index_2)*COM_AC_Collapsed_vals)/1000000) -> 0 | I114: =IF($B114="not used",0,SUMPRODUCT(($B114=COM_AC_Collapsed_index_1)*($B$96=COM_AC_Collapsed_index_3)*(I$97=COM_AC_Collapsed_index_2)*COM_AC_Collapsed_vals)/1000000) -> 0 | J114: =IF($B114="not used",0,SUMPRODUCT(($B114=COM_AC_Collapsed_index_1)*($B$96=COM_AC_Collapsed_index_3)*(J$97=COM_AC_Collapsed_index_2)*COM_AC_Collapsed_vals)/1000000) -> 0 | K114: =IF($B114="not used",0,SUMPRODUCT(($B114=COM_AC_Collapsed_index_1)*($B$96=COM_AC_Collapsed_index_3)*(K$97=COM_AC_Collapsed_index_2)*COM_AC_Collapsed_vals)/1000000) -> 0 | L114: =IF($B114="not used",0,SUMPRODUCT(($B114=COM_AC_Collapsed_index_1)*($B$96=COM_AC_Collapsed_index_3)*(L$97=COM_AC_Collapsed_index_2)*COM_AC_Collapsed_vals)/1000000) -> 0 | M114: =IF($B114="not used",0,SUMPRODUCT(($B114=COM_AC_Collapsed_index_1)*($B$96=COM_AC_Collapsed_index_3)*(M$97=COM_AC_Collapsed_index_2)*COM_AC_Collapsed_vals)/1000000) -> 0 | N114: =IF($B114="not used",0,SUMPRODUCT(($B114=COM_AC_Collapsed_index_1)*($B$96=COM_AC_Collapsed_index_3)*(N$97=COM_AC_Collapsed_index_2)*COM_AC_Collapsed_vals)/1000000) -> 0 | O114: =IF($B114="not used",0,SUMPRODUCT(($B114=COM_AC_Collapsed_index_1)*($B$96=COM_AC_Collapsed_index_3)*(O$97=COM_AC_Collapsed_index_2)*COM_AC_Collapsed_vals)/1000000) -> 0 | P114: =IF($B114="not used",0,SUMPRODUCT(($B114=COM_AC_Collapsed_index_1)*($B$96=COM_AC_Collapsed_index_3)*(P$97=COM_AC_Collapsed_index_2)*COM_AC_Collapsed_vals)/1000000) -> 0 | Q114: =IF($B114="not used",0,SUMPRODUCT(($B114=COM_AC_Collapsed_index_1)*($B$96=COM_AC_Collapsed_index_3)*(Q$97=COM_AC_Collapsed_index_2)*COM_AC_Collapsed_vals)/1000000) -> 0 | R114: =IF($B114="not used",0,SUMPRODUCT(($B114=COM_AC_Collapsed_index_1)*($B$96=COM_AC_Collapsed_index_3)*(R$97=COM_AC_Collapsed_index_2)*COM_AC_Collapsed_vals)/1000000) -> 0 | S114: =IF($B114="not used",0,SUMPRODUCT(($B114=COM_AC_Collapsed_index_1)*($B$96=COM_AC_Collapsed_index_3)*(S$97=COM_AC_Collapsed_index_2)*COM_AC_Collapsed_vals)/1000000) -> 0 | T114: =IF($B114="not used",0,SUMPRODUCT(($B114=COM_AC_Collapsed_index_1)*($B$96=COM_AC_Collapsed_index_3)*(T$97=COM_AC_Collapsed_index_2)*COM_AC_Collapsed_vals)/1000000) -> 0 | U114: =IF($B114="not used",0,SUMPRODUCT(($B114=COM_AC_Collapsed_index_1)*($B$96=COM_AC_Collapsed_index_3)*(U$97=COM_AC_Collapsed_index_2)*COM_AC_Collapsed_vals)/1000000) -> 0 | V114: =IF($B114="not used",0,SUMPRODUCT(($B114=COM_AC_Collapsed_index_1)*($B$96=COM_AC_Collapsed_index_3)*(V$97=COM_AC_Collapsed_index_2)*COM_AC_Collapsed_vals)/1000000) -> 0 | W114: =IF($B114="not used",0,SUMPRODUCT(($B114=COM_AC_Collapsed_index_1)*($B$96=COM_AC_Collapsed_index_3)*(W$97=COM_AC_Collapsed_index_2)*COM_AC_Collapsed_vals)/1000000) -> 0 | X114: =IF($B114="not used",0,SUMPRODUCT(($B114=COM_AC_Collapsed_index_1)*($B$96=COM_AC_Collapsed_index_3)*(X$97=COM_AC_Collapsed_index_2)*COM_AC_Collapsed_vals)/1000000) -> 0 | Y114: =IF($B114="not used",0,SUMPRODUCT(($B114=COM_AC_Collapsed_index_1)*($B$96=COM_AC_Collapsed_index_3)*(Y$97=COM_AC_Collapsed_index_2)*COM_AC_Collapsed_vals)/1000000) -> 0 | Z114: =IF($B114="not used",0,SUMPRODUCT(($B114=COM_AC_Collapsed_index_1)*($B$96=COM_AC_Collapsed_index_3)*(Z$97=COM_AC_Collapsed_index_2)*COM_AC_Collapsed_vals)/1000000) -> 0 | AA114: =IF($B114="not used",0,SUMPRODUCT(($B114=COM_AC_Collapsed_index_1)*($B$96=COM_AC_Collapsed_index_3)*(AA$97=COM_AC_Collapsed_index_2)*COM_AC_Collapsed_vals)/1000000) -> 0 | AB114: =IF($B114="not used",0,SUMPRODUCT(($B114=COM_AC_Collapsed_index_1)*($B$96=COM_AC_Collapsed_index_3)*(AB$97=COM_AC_Collapsed_index_2)*COM_AC_Collapsed_vals)/1000000) -> 0 | AC114: =IF($B114="not used",0,SUMPRODUCT(($B114=COM_AC_Collapsed_index_1)*($B$96=COM_AC_Collapsed_index_3)*(AC$97=COM_AC_Collapsed_index_2)*COM_AC_Collapsed_vals)/1000000) -> 0 | AD114: =IF($B114="not used",0,SUMPRODUCT(($B114=COM_AC_Collapsed_index_1)*($B$96=COM_AC_Collapsed_index_3)*(AD$97=COM_AC_Collapsed_index_2)*COM_AC_Collapsed_vals)/1000000) -> 0 | AE114: =IF($B114="not used",0,SUMPRODUCT(($B114=COM_AC_Collapsed_index_1)*($B$96=COM_AC_Collapsed_index_3)*(AE$97=COM_AC_Collapsed_index_2)*COM_AC_Collapsed_vals)/1000000) -> 0 | AF114: =IF($B114="not used",0,SUMPRODUCT(($B114=COM_AC_Collapsed_index_1)*($B$96=COM_AC_Collapsed_index_3)*(AF$97=COM_AC_Collapsed_index_2)*COM_AC_Collapsed_vals)/1000000) -> 0 | AG114: =IF($B114="not used",0,SUMPRODUCT(($B114=COM_AC_Collapsed_index_1)*($B$96=COM_AC_Collapsed_index_3)*(AG$97=COM_AC_Collapsed_index_2)*COM_AC_Collapsed_vals)/1000000) -> 0 | AH114: =IF($B114="not used",0,SUMPRODUCT(($B114=COM_AC_Collapsed_index_1)*($B$96=COM_AC_Collapsed_index_3)*(AH$97=COM_AC_Collapsed_index_2)*COM_AC_Collapsed_vals)/1000000) -> 0 | AI114: =IF($B114="not used",0,SUMPRODUCT(($B114=COM_AC_Collapsed_index_1)*($B$96=COM_AC_Collapsed_index_3)*(AI$97=COM_AC_Collapsed_index_2)*COM_AC_Collapsed_vals)/1000000) -> 0 | AJ114: =IF($B114="not used",0,SUMPRODUCT(($B114=COM_AC_Collapsed_index_1)*($B$96=COM_AC_Collapsed_index_3)*(AJ$97=COM_AC_Collapsed_index_2)*COM_AC_Collapsed_vals)/1000000) -> 0 | AK114: =IF($B114="not used",0,SUMPRODUCT(($B114=COM_AC_Collapsed_index_1)*($B$96=COM_AC_Collapsed_index_3)*(AK$97=COM_AC_Collapsed_index_2)*COM_AC_Collapsed_vals)/1000000) -> 0 | AL114: =IF($B114="not used",0,SUMPRODUCT(($B114=COM_AC_Collapsed_index_1)*($B$96=COM_AC_Collapsed_index_3)*(AL$97=COM_AC_Collapsed_index_2)*COM_AC_Collapsed_vals)/1000000) -> 0 | AM114: =IF($B114="not used",0,SUMPRODUCT(($B114=COM_AC_Collapsed_index_1)*($B$96=COM_AC_Collapsed_index_3)*(AM$97=COM_AC_Collapsed_index_2)*COM_AC_Collapsed_vals)/1000000) -> 0
B115: =IFERROR(INDEX(COM_AC_Collapsed_index_1, MATCH(0,COUNTIF($B$96:B114,COM_AC_Collapsed_index_1), 0)),"not used") -> not used | C115: =IF(B115="not used",B115,INDEX(Lists!$G$3:$G$12,MATCH('Comm AC'!$B115,Lists!$F$3:$F$17,0))) -> not used | D115: =IF($B115="not used",0,SUMPRODUCT(($B115=COM_AC_Collapsed_index_1)*($B$96=COM_AC_Collapsed_index_3)*(D$97=COM_AC_Collapsed_index_2)*COM_AC_Collapsed_vals)/1000000) -> 0 | E115: =IF($B115="not used",0,SUMPRODUCT(($B115=COM_AC_Collapsed_index_1)*($B$96=COM_AC_Collapsed_index_3)*(E$97=COM_AC_Collapsed_index_2)*COM_AC_Collapsed_vals)/1000000) -> 0 | F115: =IF($B115="not used",0,SUMPRODUCT(($B115=COM_AC_Collapsed_index_1)*($B$96=COM_AC_Collapsed_index_3)*(F$97=COM_AC_Collapsed_index_2)*COM_AC_Collapsed_vals)/1000000) -> 0 | G115: =IF($B115="not used",0,SUMPRODUCT(($B115=COM_AC_Collapsed_index_1)*($B$96=COM_AC_Collapsed_index_3)*(G$97=COM_AC_Collapsed_index_2)*COM_AC_Collapsed_vals)/1000000) -> 0 | H115: =IF($B115="not used",0,SUMPRODUCT(($B115=COM_AC_Collapsed_index_1)*($B$96=COM_AC_Collapsed_index_3)*(H$97=COM_AC_Collapsed_index_2)*COM_AC_Collapsed_vals)/1000000) -> 0 | I115: =IF($B115="not used",0,SUMPRODUCT(($B115=COM_AC_Collapsed_index_1)*($B$96=COM_AC_Collapsed_index_3)*(I$97=COM_AC_Collapsed_index_2)*COM_AC_Collapsed_vals)/1000000) -> 0 | J115: =IF($B115="not used",0,SUMPRODUCT(($B115=COM_AC_Collapsed_index_1)*($B$96=COM_AC_Collapsed_index_3)*(J$97=COM_AC_Collapsed_index_2)*COM_AC_Collapsed_vals)/1000000) -> 0 | K115: =IF($B115="not used",0,SUMPRODUCT(($B115=COM_AC_Collapsed_index_1)*($B$96=COM_AC_Collapsed_index_3)*(K$97=COM_AC_Collapsed_index_2)*COM_AC_Collapsed_vals)/1000000) -> 0 | L115: =IF($B115="not used",0,SUMPRODUCT(($B115=COM_AC_Collapsed_index_1)*($B$96=COM_AC_Collapsed_index_3)*(L$97=COM_AC_Collapsed_index_2)*COM_AC_Collapsed_vals)/1000000) -> 0 | M115: =IF($B115="not used",0,SUMPRODUCT(($B115=COM_AC_Collapsed_index_1)*($B$96=COM_AC_Collapsed_index_3)*(M$97=COM_AC_Collapsed_index_2)*COM_AC_Collapsed_vals)/1000000) -> 0 | N115: =IF($B115="not used",0,SUMPRODUCT(($B115=COM_AC_Collapsed_index_1)*($B$96=COM_AC_Collapsed_index_3)*(N$97=COM_AC_Collapsed_index_2)*COM_AC_Collapsed_vals)/1000000) -> 0 | O115: =IF($B115="not used",0,SUMPRODUCT(($B115=COM_AC_Collapsed_index_1)*($B$96=COM_AC_Collapsed_index_3)*(O$97=COM_AC_Collapsed_index_2)*COM_AC_Collapsed_vals)/1000000) -> 0 | P115: =IF($B115="not used",0,SUMPRODUCT(($B115=COM_AC_Collapsed_index_1)*($B$96=COM_AC_Collapsed_index_3)*(P$97=COM_AC_Collapsed_index_2)*COM_AC_Collapsed_vals)/1000000) -> 0 | Q115: =IF($B115="not used",0,SUMPRODUCT(($B115=COM_AC_Collapsed_index_1)*($B$96=COM_AC_Collapsed_index_3)*(Q$97=COM_AC_Collapsed_index_2)*COM_AC_Collapsed_vals)/1000000) -> 0 | R115: =IF($B115="not used",0,SUMPRODUCT(($B115=COM_AC_Collapsed_index_1)*($B$96=COM_AC_Collapsed_index_3)*(R$97=COM_AC_Collapsed_index_2)*COM_AC_Collapsed_vals)/1000000) -> 0 | S115: =IF($B115="not used",0,SUMPRODUCT(($B115=COM_AC_Collapsed_index_1)*($B$96=COM_AC_Collapsed_index_3)*(S$97=COM_AC_Collapsed_index_2)*COM_AC_Collapsed_vals)/1000000) -> 0 | T115: =IF($B115="not used",0,SUMPRODUCT(($B115=COM_AC_Collapsed_index_1)*($B$96=COM_AC_Collapsed_index_3)*(T$97=COM_AC_Collapsed_index_2)*COM_AC_Collapsed_vals)/1000000) -> 0 | U115: =IF($B115="not used",0,SUMPRODUCT(($B115=COM_AC_Collapsed_index_1)*($B$96=COM_AC_Collapsed_index_3)*(U$97=COM_AC_Collapsed_index_2)*COM_AC_Collapsed_vals)/1000000) -> 0 | V115: =IF($B115="not used",0,SUMPRODUCT(($B115=COM_AC_Collapsed_index_1)*($B$96=COM_AC_Collapsed_index_3)*(V$97=COM_AC_Collapsed_index_2)*COM_AC_Collapsed_vals)/1000000) -> 0 | W115: =IF($B115="not used",0,SUMPRODUCT(($B115=COM_AC_Collapsed_index_1)*($B$96=COM_AC_Collapsed_index_3)*(W$97=COM_AC_Collapsed_index_2)*COM_AC_Collapsed_vals)/1000000) -> 0 | X115: =IF($B115="not used",0,SUMPRODUCT(($B115=COM_AC_Collapsed_index_1)*($B$96=COM_AC_Collapsed_index_3)*(X$97=COM_AC_Collapsed_index_2)*COM_AC_Collapsed_vals)/1000000) -> 0 | Y115: =IF($B115="not used",0,SUMPRODUCT(($B115=COM_AC_Collapsed_index_1)*($B$96=COM_AC_Collapsed_index_3)*(Y$97=COM_AC_Collapsed_index_2)*COM_AC_Collapsed_vals)/1000000) -> 0 | Z115: =IF($B115="not used",0,SUMPRODUCT(($B115=COM_AC_Collapsed_index_1)*($B$96=COM_AC_Collapsed_index_3)*(Z$97=COM_AC_Collapsed_index_2)*COM_AC_Collapsed_vals)/1000000) -> 0 | AA115: =IF($B115="not used",0,SUMPRODUCT(($B115=COM_AC_Collapsed_index_1)*($B$96=COM_AC_Collapsed_index_3)*(AA$97=COM_AC_Collapsed_index_2)*COM_AC_Collapsed_vals)/1000000) -> 0 | AB115: =IF($B115="not used",0,SUMPRODUCT(($B115=COM_AC_Collapsed_index_1)*($B$96=COM_AC_Collapsed_index_3)*(AB$97=COM_AC_Collapsed_index_2)*COM_AC_Collapsed_vals)/1000000) -> 0 | AC115: =IF($B115="not used",0,SUMPRODUCT(($B115=COM_AC_Collapsed_index_1)*($B$96=COM_AC_Collapsed_index_3)*(AC$97=COM_AC_Collapsed_index_2)*COM_AC_Collapsed_vals)/1000000) -> 0 | AD115: =IF($B115="not used",0,SUMPRODUCT(($B115=COM_AC_Collapsed_index_1)*($B$96=COM_AC_Collapsed_index_3)*(AD$97=COM_AC_Collapsed_index_2)*COM_AC_Collapsed_vals)/1000000) -> 0 | AE115: =IF($B115="not used",0,SUMPRODUCT(($B115=COM_AC_Collapsed_index_1)*($B$96=COM_AC_Collapsed_index_3)*(AE$97=COM_AC_Collapsed_index_2)*COM_AC_Collapsed_vals)/1000000) -> 0 | AF115: =IF($B115="not used",0,SUMPRODUCT(($B115=COM_AC_Collapsed_index_1)*($B$96=COM_AC_Collapsed_index_3)*(AF$97=COM_AC_Collapsed_index_2)*COM_AC_Collapsed_vals)/1000000) -> 0 | AG115: =IF($B115="not used",0,SUMPRODUCT(($B115=COM_AC_Collapsed_index_1)*($B$96=COM_AC_Collapsed_index_3)*(AG$97=COM_AC_Collapsed_index_2)*COM_AC_Collapsed_vals)/1000000) -> 0 | AH115: =IF($B115="not used",0,SUMPRODUCT(($B115=COM_AC_Collapsed_index_1)*($B$96=COM_AC_Collapsed_index_3)*(AH$97=COM_AC_Collapsed_index_2)*COM_AC_Collapsed_vals)/1000000) -> 0 | AI115: =IF($B115="not used",0,SUMPRODUCT(($B115=COM_AC_Collapsed_index_1)*($B$96=COM_AC_Collapsed_index_3)*(AI$97=COM_AC_Collapsed_index_2)*COM_AC_Collapsed_vals)/1000000) -> 0 | AJ115: =IF($B115="not used",0,SUMPRODUCT(($B115=COM_AC_Collapsed_index_1)*($B$96=COM_AC_Collapsed_index_3)*(AJ$97=COM_AC_Collapsed_index_2)*COM_AC_Collapsed_vals)/1000000) -> 0 | AK115: =IF($B115="not used",0,SUMPRODUCT(($B115=COM_AC_Collapsed_index_1)*($B$96=COM_AC_Collapsed_index_3)*(AK$97=COM_AC_Collapsed_index_2)*COM_AC_Collapsed_vals)/1000000) -> 0 | AL115: =IF($B115="not used",0,SUMPRODUCT(($B115=COM_AC_Collapsed_index_1)*($B$96=COM_AC_Collapsed_index_3)*(AL$97=COM_AC_Collapsed_index_2)*COM_AC_Collapsed_vals)/1000000) -> 0 | AM115: =IF($B115="not used",0,SUMPRODUCT(($B115=COM_AC_Collapsed_index_1)*($B$96=COM_AC_Collapsed_index_3)*(AM$97=COM_AC_Collapsed_index_2)*COM_AC_Collapsed_vals)/1000000) -> 0
B116: =IFERROR(INDEX(COM_AC_Collapsed_index_1, MATCH(0,COUNTIF($B$96:B115,COM_AC_Collapsed_index_1), 0)),"not used") -> not used | C116: =IF(B116="not used",B116,INDEX(Lists!$G$3:$G$12,MATCH('Comm AC'!$B116,Lists!$F$3:$F$17,0))) -> not used | D116: =IF($B116="not used",0,SUMPRODUCT(($B116=COM_AC_Collapsed_index_1)*($B$96=COM_AC_Collapsed_index_3)*(D$97=COM_AC_Collapsed_index_2)*COM_AC_Collapsed_vals)/1000000) -> 0 | E116: =IF($B116="not used",0,SUMPRODUCT(($B116=COM_AC_Collapsed_index_1)*($B$96=COM_AC_Collapsed_index_3)*(E$97=COM_AC_Collapsed_index_2)*COM_AC_Collapsed_vals)/1000000) -> 0 | F116: =IF($B116="not used",0,SUMPRODUCT(($B116=COM_AC_Collapsed_index_1)*($B$96=COM_AC_Collapsed_index_3)*(F$97=COM_AC_Collapsed_index_2)*COM_AC_Collapsed_vals)/1000000) -> 0 | G116: =IF($B116="not used",0,SUMPRODUCT(($B116=COM_AC_Collapsed_index_1)*($B$96=COM_AC_Collapsed_index_3)*(G$97=COM_AC_Collapsed_index_2)*COM_AC_Collapsed_vals)/1000000) -> 0 | H116: =IF($B116="not used",0,SUMPRODUCT(($B116=COM_AC_Collapsed_index_1)*($B$96=COM_AC_Collapsed_index_3)*(H$97=COM_AC_Collapsed_index_2)*COM_AC_Collapsed_vals)/1000000) -> 0 | I116: =IF($B116="not used",0,SUMPRODUCT(($B116=COM_AC_Collapsed_index_1)*($B$96=COM_AC_Collapsed_index_3)*(I$97=COM_AC_Collapsed_index_2)*COM_AC_Collapsed_vals)/1000000) -> 0 | J116: =IF($B116="not used",0,SUMPRODUCT(($B116=COM_AC_Collapsed_index_1)*($B$96=COM_AC_Collapsed_index_3)*(J$97=COM_AC_Collapsed_index_2)*COM_AC_Collapsed_vals)/1000000) -> 0 | K116: =IF($B116="not used",0,SUMPRODUCT(($B116=COM_AC_Collapsed_index_1)*($B$96=COM_AC_Collapsed_index_3)*(K$97=COM_AC_Collapsed_index_2)*COM_AC_Collapsed_vals)/1000000) -> 0 | L116: =IF($B116="not used",0,SUMPRODUCT(($B116=COM_AC_Collapsed_index_1)*($B$96=COM_AC_Collapsed_index_3)*(L$97=COM_AC_Collapsed_index_2)*COM_AC_Collapsed_vals)/1000000) -> 0 | M116: =IF($B116="not used",0,SUMPRODUCT(($B116=COM_AC_Collapsed_index_1)*($B$96=COM_AC_Collapsed_index_3)*(M$97=COM_AC_Collapsed_index_2)*COM_AC_Collapsed_vals)/1000000) -> 0 | N116: =IF($B116="not used",0,SUMPRODUCT(($B116=COM_AC_Collapsed_index_1)*($B$96=COM_AC_Collapsed_index_3)*(N$97=COM_AC_Collapsed_index_2)*COM_AC_Collapsed_vals)/1000000) -> 0 | O116: =IF($B116="not used",0,SUMPRODUCT(($B116=COM_AC_Collapsed_index_1)*($B$96=COM_AC_Collapsed_index_3)*(O$97=COM_AC_Collapsed_index_2)*COM_AC_Collapsed_vals)/1000000) -> 0 | P116: =IF($B116="not used",0,SUMPRODUCT(($B116=COM_AC_Collapsed_index_1)*($B$96=COM_AC_Collapsed_index_3)*(P$97=COM_AC_Collapsed_index_2)*COM_AC_Collapsed_vals)/1000000) -> 0 | Q116: =IF($B116="not used",0,SUMPRODUCT(($B116=COM_AC_Collapsed_index_1)*($B$96=COM_AC_Collapsed_index_3)*(Q$97=COM_AC_Collapsed_index_2)*COM_AC_Collapsed_vals)/1000000) -> 0 | R116: =IF($B116="not used",0,SUMPRODUCT(($B116=COM_AC_Collapsed_index_1)*($B$96=COM_AC_Collapsed_index_3)*(R$97=COM_AC_Collapsed_index_2)*COM_AC_Collapsed_vals)/1000000) -> 0 | S116: =IF($B116="not used",0,SUMPRODUCT(($B116=COM_AC_Collapsed_index_1)*($B$96=COM_AC_Collapsed_index_3)*(S$97=COM_AC_Collapsed_index_2)*COM_AC_Collapsed_vals)/1000000) -> 0 | T116: =IF($B116="not used",0,SUMPRODUCT(($B116=COM_AC_Collapsed_index_1)*($B$96=COM_AC_Collapsed_index_3)*(T$97=COM_AC_Collapsed_index_2)*COM_AC_Collapsed_vals)/1000000) -> 0 | U116: =IF($B116="not used",0,SUMPRODUCT(($B116=COM_AC_Collapsed_index_1)*($B$96=COM_AC_Collapsed_index_3)*(U$97=COM_AC_Collapsed_index_2)*COM_AC_Collapsed_vals)/1000000) -> 0 | V116: =IF($B116="not used",0,SUMPRODUCT(($B116=COM_AC_Collapsed_index_1)*($B$96=COM_AC_Collapsed_index_3)*(V$97=COM_AC_Collapsed_index_2)*COM_AC_Collapsed_vals)/1000000) -> 0 | W116: =IF($B116="not used",0,SUMPRODUCT(($B116=COM_AC_Collapsed_index_1)*($B$96=COM_AC_Collapsed_index_3)*(W$97=COM_AC_Collapsed_index_2)*COM_AC_Collapsed_vals)/1000000) -> 0 | X116: =IF($B116="not used",0,SUMPRODUCT(($B116=COM_AC_Collapsed_index_1)*($B$96=COM_AC_Collapsed_index_3)*(X$97=COM_AC_Collapsed_index_2)*COM_AC_Collapsed_vals)/1000000) -> 0 | Y116: =IF($B116="not used",0,SUMPRODUCT(($B116=COM_AC_Collapsed_index_1)*($B$96=COM_AC_Collapsed_index_3)*(Y$97=COM_AC_Collapsed_index_2)*COM_AC_Collapsed_vals)/1000000) -> 0 | Z116: =IF($B116="not used",0,SUMPRODUCT(($B116=COM_AC_Collapsed_index_1)*($B$96=COM_AC_Collapsed_index_3)*(Z$97=COM_AC_Collapsed_index_2)*COM_AC_Collapsed_vals)/1000000) -> 0 | AA116: =IF($B116="not used",0,SUMPRODUCT(($B116=COM_AC_Collapsed_index_1)*($B$96=COM_AC_Collapsed_index_3)*(AA$97=COM_AC_Collapsed_index_2)*COM_AC_Collapsed_vals)/1000000) -> 0 | AB116: =IF($B116="not used",0,SUMPRODUCT(($B116=COM_AC_Collapsed_index_1)*($B$96=COM_AC_Collapsed_index_3)*(AB$97=COM_AC_Collapsed_index_2)*COM_AC_Collapsed_vals)/1000000) -> 0 | AC116: =IF($B116="not used",0,SUMPRODUCT(($B116=COM_AC_Collapsed_index_1)*($B$96=COM_AC_Collapsed_index_3)*(AC$97=COM_AC_Collapsed_index_2)*COM_AC_Collapsed_vals)/1000000) -> 0 | AD116: =IF($B116="not used",0,SUMPRODUCT(($B116=COM_AC_Collapsed_index_1)*($B$96=COM_AC_Collapsed_index_3)*(AD$97=COM_AC_Collapsed_index_2)*COM_AC_Collapsed_vals)/1000000) -> 0 | AE116: =IF($B116="not used",0,SUMPRODUCT(($B116=COM_AC_Collapsed_index_1)*($B$96=COM_AC_Collapsed_index_3)*(AE$97=COM_AC_Collapsed_index_2)*COM_AC_Collapsed_vals)/1000000) -> 0 | AF116: =IF($B116="not used",0,SUMPRODUCT(($B116=COM_AC_Collapsed_index_1)*($B$96=COM_AC_Collapsed_index_3)*(AF$97=COM_AC_Collapsed_index_2)*COM_AC_Collapsed_vals)/1000000) -> 0 | AG116: =IF($B116="not used",0,SUMPRODUCT(($B116=COM_AC_Collapsed_index_1)*($B$96=COM_AC_Collapsed_index_3)*(AG$97=COM_AC_Collapsed_index_2)*COM_AC_Collapsed_vals)/1000000) -> 0 | AH116: =IF($B116="not used",0,SUMPRODUCT(($B116=COM_AC_Collapsed_index_1)*($B$96=COM_AC_Collapsed_index_3)*(AH$97=COM_AC_Collapsed_index_2)*COM_AC_Collapsed_vals)/1000000) -> 0 | AI116: =IF($B116="not used",0,SUMPRODUCT(($B116=COM_AC_Collapsed_index_1)*($B$96=COM_AC_Collapsed_index_3)*(AI$97=COM_AC_Collapsed_index_2)*COM_AC_Collapsed_vals)/1000000) -> 0 | AJ116: =IF($B116="not used",0,SUMPRODUCT(($B116=COM_AC_Collapsed_index_1)*($B$96=COM_AC_Collapsed_index_3)*(AJ$97=COM_AC_Collapsed_index_2)*COM_AC_Collapsed_vals)/1000000) -> 0 | AK116: =IF($B116="not used",0,SUMPRODUCT(($B116=COM_AC_Collapsed_index_1)*($B$96=COM_AC_Collapsed_index_3)*(AK$97=COM_AC_Collapsed_index_2)*COM_AC_Collapsed_vals)/1000000) -> 0 | AL116: =IF($B116="not used",0,SUMPRODUCT(($B116=COM_AC_Collapsed_index_1)*($B$96=COM_AC_Collapsed_index_3)*(AL$97=COM_AC_Collapsed_index_2)*COM_AC_Collapsed_vals)/1000000) -> 0 | AM116: =IF($B116="not used",0,SUMPRODUCT(($B116=COM_AC_Collapsed_index_1)*($B$96=COM_AC_Collapsed_index_3)*(AM$97=COM_AC_Collapsed_index_2)*COM_AC_Collapsed_vals)/1000000) -> 0
B117: =IFERROR(INDEX(COM_AC_Collapsed_index_1, MATCH(0,COUNTIF($B$96:B116,COM_AC_Collapsed_index_1), 0)),"not used") -> not used | C117: =IF(B117="not used",B117,INDEX(Lists!$G$3:$G$12,MATCH('Comm AC'!$B117,Lists!$F$3:$F$17,0))) -> not used | D117: =IF($B117="not used",0,SUMPRODUCT(($B117=COM_AC_Collapsed_index_1)*($B$96=COM_AC_Collapsed_index_3)*(D$97=COM_AC_Collapsed_index_2)*COM_AC_Collapsed_vals)/1000000) -> 0 | E117: =IF($B117="not used",0,SUMPRODUCT(($B117=COM_AC_Collapsed_index_1)*($B$96=COM_AC_Collapsed_index_3)*(E$97=COM_AC_Collapsed_index_2)*COM_AC_Collapsed_vals)/1000000) -> 0 | F117: =IF($B117="not used",0,SUMPRODUCT(($B117=COM_AC_Collapsed_index_1)*($B$96=COM_AC_Collapsed_index_3)*(F$97=COM_AC_Collapsed_index_2)*COM_AC_Collapsed_vals)/1000000) -> 0 | G117: =IF($B117="not used",0,SUMPRODUCT(($B117=COM_AC_Collapsed_index_1)*($B$96=COM_AC_Collapsed_index_3)*(G$97=COM_AC_Collapsed_index_2)*COM_AC_Collapsed_vals)/1000000) -> 0 | H117: =IF($B117="not used",0,SUMPRODUCT(($B117=COM_AC_Collapsed_index_1)*($B$96=COM_AC_Collapsed_index_3)*(H$97=COM_AC_Collapsed_index_2)*COM_AC_Collapsed_vals)/1000000) -> 0 | I117: =IF($B117="not used",0,SUMPRODUCT(($B117=COM_AC_Collapsed_index_1)*($B$96=COM_AC_Collapsed_index_3)*(I$97=COM_AC_Collapsed_index_2)*COM_AC_Collapsed_vals)/1000000) -> 0 | J117: =IF($B117="not used",0,SUMPRODUCT(($B117=COM_AC_Collapsed_index_1)*($B$96=COM_AC_Collapsed_index_3)*(J$97=COM_AC_Collapsed_index_2)*COM_AC_Collapsed_vals)/1000000) -> 0 | K117: =IF($B117="not used",0,SUMPRODUCT(($B117=COM_AC_Collapsed_index_1)*($B$96=COM_AC_Collapsed_index_3)*(K$97=COM_AC_Collapsed_index_2)*COM_AC_Collapsed_vals)/1000000) -> 0 | L117: =IF($B117="not used",0,SUMPRODUCT(($B117=COM_AC_Collapsed_index_1)*($B$96=COM_AC_Collapsed_index_3)*(L$97=COM_AC_Collapsed_index_2)*COM_AC_Collapsed_vals)/1000000) -> 0 | M117: =IF($B117="not used",0,SUMPRODUCT(($B117=COM_AC_Collapsed_index_1)*($B$96=COM_AC_Collapsed_index_3)*(M$97=COM_AC_Collapsed_index_2)*COM_AC_Collapsed_vals)/1000000) -> 0 | N117: =IF($B117="not used",0,SUMPRODUCT(($B117=COM_AC_Collapsed_index_1)*($B$96=COM_AC_Collapsed_index_3)*(N$97=COM_AC_Collapsed_index_2)*COM_AC_Collapsed_vals)/1000000) -> 0 | O117: =IF($B117="not used",0,SUMPRODUCT(($B117=COM_AC_Collapsed_index_1)*($B$96=COM_AC_Collapsed_index_3)*(O$97=COM_AC_Collapsed_index_2)*COM_AC_Collapsed_vals)/1000000) -> 0 | P117: =IF($B117="not used",0,SUMPRODUCT(($B117=COM_AC_Collapsed_index_1)*($B$96=COM_AC_Collapsed_index_3)*(P$97=COM_AC_Collapsed_index_2)*COM_AC_Collapsed_vals)/1000000) -> 0 | Q117: =IF($B117="not used",0,SUMPRODUCT(($B117=COM_AC_Collapsed_index_1)*($B$96=COM_AC_Collapsed_index_3)*(Q$97=COM_AC_Collapsed_index_2)*COM_AC_Collapsed_vals)/1000000) -> 0 | R117: =IF($B117="not used",0,SUMPRODUCT(($B117=COM_AC_Collapsed_index_1)*($B$96=COM_AC_Collapsed_index_3)*(R$97=COM_AC_Collapsed_index_2)*COM_AC_Collapsed_vals)/1000000) -> 0 | S117: =IF($B117="not used",0,SUMPRODUCT(($B117=COM_AC_Collapsed_index_1)*($B$96=COM_AC_Collapsed_index_3)*(S$97=COM_AC_Collapsed_index_2)*COM_AC_Collapsed_vals)/1000000) -> 0 | T117: =IF($B117="not used",0,SUMPRODUCT(($B117=COM_AC_Collapsed_index_1)*($B$96=COM_AC_Collapsed_index_3)*(T$97=COM_AC_Collapsed_index_2)*COM_AC_Collapsed_vals)/1000000) -> 0 | U117: =IF($B117="not used",0,SUMPRODUCT(($B117=COM_AC_Collapsed_index_1)*($B$96=COM_AC_Collapsed_index_3)*(U$97=COM_AC_Collapsed_index_2)*COM_AC_Collapsed_vals)/1000000) -> 0 | V117: =IF($B117="not used",0,SUMPRODUCT(($B117=COM_AC_Collapsed_index_1)*($B$96=COM_AC_Collapsed_index_3)*(V$97=COM_AC_Collapsed_index_2)*COM_AC_Collapsed_vals)/1000000) -> 0 | W117: =IF($B117="not used",0,SUMPRODUCT(($B117=COM_AC_Collapsed_index_1)*($B$96=COM_AC_Collapsed_index_3)*(W$97=COM_AC_Collapsed_index_2)*COM_AC_Collapsed_vals)/1000000) -> 0 | X117: =IF($B117="not used",0,SUMPRODUCT(($B117=COM_AC_Collapsed_index_1)*($B$96=COM_AC_Collapsed_index_3)*(X$97=COM_AC_Collapsed_index_2)*COM_AC_Collapsed_vals)/1000000) -> 0 | Y117: =IF($B117="not used",0,SUMPRODUCT(($B117=COM_AC_Collapsed_index_1)*($B$96=COM_AC_Collapsed_index_3)*(Y$97=COM_AC_Collapsed_index_2)*COM_AC_Collapsed_vals)/1000000) -> 0 | Z117: =IF($B117="not used",0,SUMPRODUCT(($B117=COM_AC_Collapsed_index_1)*($B$96=COM_AC_Collapsed_index_3)*(Z$97=COM_AC_Collapsed_index_2)*COM_AC_Collapsed_vals)/1000000) -> 0 | AA117: =IF($B117="not used",0,SUMPRODUCT(($B117=COM_AC_Collapsed_index_1)*($B$96=COM_AC_Collapsed_index_3)*(AA$97=COM_AC_Collapsed_index_2)*COM_AC_Collapsed_vals)/1000000) -> 0 | AB117: =IF($B117="not used",0,SUMPRODUCT(($B117=COM_AC_Collapsed_index_1)*($B$96=COM_AC_Collapsed_index_3)*(AB$97=COM_AC_Collapsed_index_2)*COM_AC_Collapsed_vals)/1000000) -> 0 | AC117: =IF($B117="not used",0,SUMPRODUCT(($B117=COM_AC_Collapsed_index_1)*($B$96=COM_AC_Collapsed_index_3)*(AC$97=COM_AC_Collapsed_index_2)*COM_AC_Collapsed_vals)/1000000) -> 0 | AD117: =IF($B117="not used",0,SUMPRODUCT(($B117=COM_AC_Collapsed_index_1)*($B$96=COM_AC_Collapsed_index_3)*(AD$97=COM_AC_Collapsed_index_2)*COM_AC_Collapsed_vals)/1000000) -> 0 | AE117: =IF($B117="not used",0,SUMPRODUCT(($B117=COM_AC_Collapsed_index_1)*($B$96=COM_AC_Collapsed_index_3)*(AE$97=COM_AC_Collapsed_index_2)*COM_AC_Collapsed_vals)/1000000) -> 0 | AF117: =IF($B117="not used",0,SUMPRODUCT(($B117=COM_AC_Collapsed_index_1)*($B$96=COM_AC_Collapsed_index_3)*(AF$97=COM_AC_Collapsed_index_2)*COM_AC_Collapsed_vals)/1000000) -> 0 | AG117: =IF($B117="not used",0,SUMPRODUCT(($B117=COM_AC_Collapsed_index_1)*($B$96=COM_AC_Collapsed_index_3)*(AG$97=COM_AC_Collapsed_index_2)*COM_AC_Collapsed_vals)/1000000) -> 0 | AH117: =IF($B117="not used",0,SUMPRODUCT(($B117=COM_AC_Collapsed_index_1)*($B$96=COM_AC_Collapsed_index_3)*(AH$97=COM_AC_Collapsed_index_2)*COM_AC_Collapsed_vals)/1000000) -> 0 | AI117: =IF($B117="not used",0,SUMPRODUCT(($B117=COM_AC_Collapsed_index_1)*($B$96=COM_AC_Collapsed_index_3)*(AI$97=COM_AC_Collapsed_index_2)*COM_AC_Collapsed_vals)/1000000) -> 0 | AJ117: =IF($B117="not used",0,SUMPRODUCT(($B117=COM_AC_Collapsed_index_1)*($B$96=COM_AC_Collapsed_index_3)*(AJ$97=COM_AC_Collapsed_index_2)*COM_AC_Collapsed_vals)/1000000) -> 0 | AK117: =IF($B117="not used",0,SUMPRODUCT(($B117=COM_AC_Collapsed_index_1)*($B$96=COM_AC_Collapsed_index_3)*(AK$97=COM_AC_Collapsed_index_2)*COM_AC_Collapsed_vals)/1000000) -> 0 | AL117: =IF($B117="not used",0,SUMPRODUCT(($B117=COM_AC_Collapsed_index_1)*($B$96=COM_AC_Collapsed_index_3)*(AL$97=COM_AC_Collapsed_index_2)*COM_AC_Collapsed_vals)/1000000) -> 0 | AM117: =IF($B117="not used",0,SUMPRODUCT(($B117=COM_AC_Collapsed_index_1)*($B$96=COM_AC_Collapsed_index_3)*(AM$97=COM_AC_Collapsed_index_2)*COM_AC_Collapsed_vals)/1000000) -> 0
B118: =IFERROR(INDEX(COM_AC_Collapsed_index_1, MATCH(0,COUNTIF($B$96:B117,COM_AC_Collapsed_index_1), 0)),"not used") -> not used | C118: =IF(B118="not used",B118,INDEX(Lists!$G$3:$G$12,MATCH('Comm AC'!$B118,Lists!$F$3:$F$17,0))) -> not used | D118: =IF($B118="not used",0,SUMPRODUCT(($B118=COM_AC_Collapsed_index_1)*($B$96=COM_AC_Collapsed_index_3)*(D$97=COM_AC_Collapsed_index_2)*COM_AC_Collapsed_vals)/1000000) -> 0 | E118: =IF($B118="not used",0,SUMPRODUCT(($B118=COM_AC_Collapsed_index_1)*($B$96=COM_AC_Collapsed_index_3)*(E$97=COM_AC_Collapsed_index_2)*COM_AC_Collapsed_vals)/1000000) -> 0 | F118: =IF($B118="not used",0,SUMPRODUCT(($B118=COM_AC_Collapsed_index_1)*($B$96=COM_AC_Collapsed_index_3)*(F$97=COM_AC_Collapsed_index_2)*COM_AC_Collapsed_vals)/1000000) -> 0 | G118: =IF($B118="not used",0,SUMPRODUCT(($B118=COM_AC_Collapsed_index_1)*($B$96=COM_AC_Collapsed_index_3)*(G$97=COM_AC_Collapsed_index_2)*COM_AC_Collapsed_vals)/1000000) -> 0 | H118: =IF($B118="not used",0,SUMPRODUCT(($B118=COM_AC_Collapsed_index_1)*($B$96=COM_AC_Collapsed_index_3)*(H$97=COM_AC_Collapsed_index_2)*COM_AC_Collapsed_vals)/1000000) -> 0 | I118: =IF($B118="not used",0,SUMPRODUCT(($B118=COM_AC_Collapsed_index_1)*($B$96=COM_AC_Collapsed_index_3)*(I$97=COM_AC_Collapsed_index_2)*COM_AC_Collapsed_vals)/1000000) -> 0 | J118: =IF($B118="not used",0,SUMPRODUCT(($B118=COM_AC_Collapsed_index_1)*($B$96=COM_AC_Collapsed_index_3)*(J$97=COM_AC_Collapsed_index_2)*COM_AC_Collapsed_vals)/1000000) -> 0 | K118: =IF($B118="not used",0,SUMPRODUCT(($B118=COM_AC_Collapsed_index_1)*($B$96=COM_AC_Collapsed_index_3)*(K$97=COM_AC_Collapsed_index_2)*COM_AC_Collapsed_vals)/1000000) -> 0 | L118: =IF($B118="not used",0,SUMPRODUCT(($B118=COM_AC_Collapsed_index_1)*($B$96=COM_AC_Collapsed_index_3)*(L$97=COM_AC_Collapsed_index_2)*COM_AC_Collapsed_vals)/1000000) -> 0 | M118: =IF($B118="not used",0,SUMPRODUCT(($B118=COM_AC_Collapsed_index_1)*($B$96=COM_AC_Collapsed_index_3)*(M$97=COM_AC_Collapsed_index_2)*COM_AC_Collapsed_vals)/1000000) -> 0 | N118: =IF($B118="not used",0,SUMPRODUCT(($B118=COM_AC_Collapsed_index_1)*($B$96=COM_AC_Collapsed_index_3)*(N$97=COM_AC_Collapsed_index_2)*COM_AC_Collapsed_vals)/1000000) -> 0 | O118: =IF($B118="not used",0,SUMPRODUCT(($B118=COM_AC_Collapsed_index_1)*($B$96=COM_AC_Collapsed_index_3)*(O$97=COM_AC_Collapsed_index_2)*COM_AC_Collapsed_vals)/1000000) -> 0 | P118: =IF($B118="not used",0,SUMPRODUCT(($B118=COM_AC_Collapsed_index_1)*($B$96=COM_AC_Collapsed_index_3)*(P$97=COM_AC_Collapsed_index_2)*COM_AC_Collapsed_vals)/1000000) -> 0 | Q118: =IF($B118="not used",0,SUMPRODUCT(($B118=COM_AC_Collapsed_index_1)*($B$96=COM_AC_Collapsed_index_3)*(Q$97=COM_AC_Collapsed_index_2)*COM_AC_Collapsed_vals)/1000000) -> 0 | R118: =IF($B118="not used",0,SUMPRODUCT(($B118=COM_AC_Collapsed_index_1)*($B$96=COM_AC_Collapsed_index_3)*(R$97=COM_AC_Collapsed_index_2)*COM_AC_Collapsed_vals)/1000000) -> 0 | S118: =IF($B118="not used",0,SUMPRODUCT(($B118=COM_AC_Collapsed_index_1)*($B$96=COM_AC_Collapsed_index_3)*(S$97=COM_AC_Collapsed_index_2)*COM_AC_Collapsed_vals)/1000000) -> 0 | T118: =IF($B118="not used",0,SUMPRODUCT(($B118=COM_AC_Collapsed_index_1)*($B$96=COM_AC_Collapsed_index_3)*(T$97=COM_AC_Collapsed_index_2)*COM_AC_Collapsed_vals)/1000000) -> 0 | U118: =IF($B118="not used",0,SUMPRODUCT(($B118=COM_AC_Collapsed_index_1)*($B$96=COM_AC_Collapsed_index_3)*(U$97=COM_AC_Collapsed_index_2)*COM_AC_Collapsed_vals)/1000000) -> 0 | V118: =IF($B118="not used",0,SUMPRODUCT(($B118=COM_AC_Collapsed_index_1)*($B$96=COM_AC_Collapsed_index_3)*(V$97=COM_AC_Collapsed_index_2)*COM_AC_Collapsed_vals)/1000000) -> 0 | W118: =IF($B118="not used",0,SUMPRODUCT(($B118=COM_AC_Collapsed_index_1)*($B$96=COM_AC_Collapsed_index_3)*(W$97=COM_AC_Collapsed_index_2)*COM_AC_Collapsed_vals)/1000000) -> 0 | X118: =IF($B118="not used",0,SUMPRODUCT(($B118=COM_AC_Collapsed_index_1)*($B$96=COM_AC_Collapsed_index_3)*(X$97=COM_AC_Collapsed_index_2)*COM_AC_Collapsed_vals)/1000000) -> 0 | Y118: =IF($B118="not used",0,SUMPRODUCT(($B118=COM_AC_Collapsed_index_1)*($B$96=COM_AC_Collapsed_index_3)*(Y$97=COM_AC_Collapsed_index_2)*COM_AC_Collapsed_vals)/1000000) -> 0 | Z118: =IF($B118="not used",0,SUMPRODUCT(($B118=COM_AC_Collapsed_index_1)*($B$96=COM_AC_Collapsed_index_3)*(Z$97=COM_AC_Collapsed_index_2)*COM_AC_Collapsed_vals)/1000000) -> 0 | AA118: =IF($B118="not used",0,SUMPRODUCT(($B118=COM_AC_Collapsed_index_1)*($B$96=COM_AC_Collapsed_index_3)*(AA$97=COM_AC_Collapsed_index_2)*COM_AC_Collapsed_vals)/1000000) -> 0 | AB118: =IF($B118="not used",0,SUMPRODUCT(($B118=COM_AC_Collapsed_index_1)*($B$96=COM_AC_Collapsed_index_3)*(AB$97=COM_AC_Collapsed_index_2)*COM_AC_Collapsed_vals)/1000000) -> 0 | AC118: =IF($B118="not used",0,SUMPRODUCT(($B118=COM_AC_Collapsed_index_1)*($B$96=COM_AC_Collapsed_index_3)*(AC$97=COM_AC_Collapsed_index_2)*COM_AC_Collapsed_vals)/1000000) -> 0 | AD118: =IF($B118="not used",0,SUMPRODUCT(($B118=COM_AC_Collapsed_index_1)*($B$96=COM_AC_Collapsed_index_3)*(AD$97=COM_AC_Collapsed_index_2)*COM_AC_Collapsed_vals)/1000000) -> 0 | AE118: =IF($B118="not used",0,SUMPRODUCT(($B118=COM_AC_Collapsed_index_1)*($B$96=COM_AC_Collapsed_index_3)*(AE$97=COM_AC_Collapsed_index_2)*COM_AC_Collapsed_vals)/1000000) -> 0 | AF118: =IF($B118="not used",0,SUMPRODUCT(($B118=COM_AC_Collapsed_index_1)*($B$96=COM_AC_Collapsed_index_3)*(AF$97=COM_AC_Collapsed_index_2)*COM_AC_Collapsed_vals)/1000000) -> 0 | AG118: =IF($B118="not used",0,SUMPRODUCT(($B118=COM_AC_Collapsed_index_1)*($B$96=COM_AC_Collapsed_index_3)*(AG$97=COM_AC_Collapsed_index_2)*COM_AC_Collapsed_vals)/1000000) -> 0 | AH118: =IF($B118="not used",0,SUMPRODUCT(($B118=COM_AC_Collapsed_index_1)*($B$96=COM_AC_Collapsed_index_3)*(AH$97=COM_AC_Collapsed_index_2)*COM_AC_Collapsed_vals)/1000000) -> 0 | AI118: =IF($B118="not used",0,SUMPRODUCT(($B118=COM_AC_Collapsed_index_1)*($B$96=COM_AC_Collapsed_index_3)*(AI$97=COM_AC_Collapsed_index_2)*COM_AC_Collapsed_vals)/1000000) -> 0 | AJ118: =IF($B118="not used",0,SUMPRODUCT(($B118=COM_AC_Collapsed_index_1)*($B$96=COM_AC_Collapsed_index_3)*(AJ$97=COM_AC_Collapsed_index_2)*COM_AC_Collapsed_vals)/1000000) -> 0 | AK118: =IF($B118="not used",0,SUMPRODUCT(($B118=COM_AC_Collapsed_index_1)*($B$96=COM_AC_Collapsed_index_3)*(AK$97=COM_AC_Collapsed_index_2)*COM_AC_Collapsed_vals)/1000000) -> 0 | AL118: =IF($B118="not used",0,SUMPRODUCT(($B118=COM_AC_Collapsed_index_1)*($B$96=COM_AC_Collapsed_index_3)*(AL$97=COM_AC_Collapsed_index_2)*COM_AC_Collapsed_vals)/1000000) -> 0 | AM118: =IF($B118="not used",0,SUMPRODUCT(($B118=COM_AC_Collapsed_index_1)*($B$96=COM_AC_Collapsed_index_3)*(AM$97=COM_AC_Collapsed_index_2)*COM_AC_Collapsed_vals)/1000000) -> 0
B119: =IFERROR(INDEX(COM_AC_Collapsed_index_1, MATCH(0,COUNTIF($B$96:B118,COM_AC_Collapsed_index_1), 0)),"not used") -> not used | C119: =IF(B119="not used",B119,INDEX(Lists!$G$3:$G$12,MATCH('Comm AC'!$B119,Lists!$F$3:$F$17,0))) -> not used | D119: =IF($B119="not used",0,SUMPRODUCT(($B119=COM_AC_Collapsed_index_1)*($B$96=COM_AC_Collapsed_index_3)*(D$97=COM_AC_Collapsed_index_2)*COM_AC_Collapsed_vals)/1000000) -> 0 | E119: =IF($B119="not used",0,SUMPRODUCT(($B119=COM_AC_Collapsed_index_1)*($B$96=COM_AC_Collapsed_index_3)*(E$97=COM_AC_Collapsed_index_2)*COM_AC_Collapsed_vals)/1000000) -> 0 | F119: =IF($B119="not used",0,SUMPRODUCT(($B119=COM_AC_Collapsed_index_1)*($B$96=COM_AC_Collapsed_index_3)*(F$97=COM_AC_Collapsed_index_2)*COM_AC_Collapsed_vals)/1000000) -> 0 | G119: =IF($B119="not used",0,SUMPRODUCT(($B119=COM_AC_Collapsed_index_1)*($B$96=COM_AC_Collapsed_index_3)*(G$97=COM_AC_Collapsed_index_2)*COM_AC_Collapsed_vals)/1000000) -> 0 | H119: =IF($B119="not used",0,SUMPRODUCT(($B119=COM_AC_Collapsed_index_1)*($B$96=COM_AC_Collapsed_index_3)*(H$97=COM_AC_Collapsed_index_2)*COM_AC_Collapsed_vals)/1000000) -> 0 | I119: =IF($B119="not used",0,SUMPRODUCT(($B119=COM_AC_Collapsed_index_1)*($B$96=COM_AC_Collapsed_index_3)*(I$97=COM_AC_Collapsed_index_2)*COM_AC_Collapsed_vals)/1000000) -> 0 | J119: =IF($B119="not used",0,SUMPRODUCT(($B119=COM_AC_Collapsed_index_1)*($B$96=COM_AC_Collapsed_index_3)*(J$97=COM_AC_Collapsed_index_2)*COM_AC_Collapsed_vals)/1000000) -> 0 | K119: =IF($B119="not used",0,SUMPRODUCT(($B119=COM_AC_Collapsed_index_1)*($B$96=COM_AC_Collapsed_index_3)*(K$97=COM_AC_Collapsed_index_2)*COM_AC_Collapsed_vals)/1000000) -> 0 | L119: =IF($B119="not used",0,SUMPRODUCT(($B119=COM_AC_Collapsed_index_1)*($B$96=COM_AC_Collapsed_index_3)*(L$97=COM_AC_Collapsed_index_2)*COM_AC_Collapsed_vals)/1000000) -> 0 | M119: =IF($B119="not used",0,SUMPRODUCT(($B119=COM_AC_Collapsed_index_1)*($B$96=COM_AC_Collapsed_index_3)*(M$97=COM_AC_Collapsed_index_2)*COM_AC_Collapsed_vals)/1000000) -> 0 | N119: =IF($B119="not used",0,SUMPRODUCT(($B119=COM_AC_Collapsed_index_1)*($B$96=COM_AC_Collapsed_index_3)*(N$97=COM_AC_Collapsed_index_2)*COM_AC_Collapsed_vals)/1000000) -> 0 | O119: =IF($B119="not used",0,SUMPRODUCT(($B119=COM_AC_Collapsed_index_1)*($B$96=COM_AC_Collapsed_index_3)*(O$97=COM_AC_Collapsed_index_2)*COM_AC_Collapsed_vals)/1000000) -> 0 | P119: =IF($B119="not used",0,SUMPRODUCT(($B119=COM_AC_Collapsed_index_1)*($B$96=COM_AC_Collapsed_index_3)*(P$97=COM_AC_Collapsed_index_2)*COM_AC_Collapsed_vals)/1000000) -> 0 | Q119: =IF($B119="not used",0,SUMPRODUCT(($B119=COM_AC_Collapsed_index_1)*($B$96=COM_AC_Collapsed_index_3)*(Q$97=COM_AC_Collapsed_index_2)*COM_AC_Collapsed_vals)/1000000) -> 0 | R119: =IF($B119="not used",0,SUMPRODUCT(($B119=COM_AC_Collapsed_index_1)*($B$96=COM_AC_Collapsed_index_3)*(R$97=COM_AC_Collapsed_index_2)*COM_AC_Collapsed_vals)/1000000) -> 0 | S119: =IF($B119="not used",0,SUMPRODUCT(($B119=COM_AC_Collapsed_index_1)*($B$96=COM_AC_Collapsed_index_3)*(S$97=COM_AC_Collapsed_index_2)*COM_AC_Collapsed_vals)/1000000) -> 0 | T119: =IF($B119="not used",0,SUMPRODUCT(($B119=COM_AC_Collapsed_index_1)*($B$96=COM_AC_Collapsed_index_3)*(T$97=COM_AC_Collapsed_index_2)*COM_AC_Collapsed_vals)/1000000) -> 0 | U119: =IF($B119="not used",0,SUMPRODUCT(($B119=COM_AC_Collapsed_index_1)*($B$96=COM_AC_Collapsed_index_3)*(U$97=COM_AC_Collapsed_index_2)*COM_AC_Collapsed_vals)/1000000) -> 0 | V119: =IF($B119="not used",0,SUMPRODUCT(($B119=COM_AC_Collapsed_index_1)*($B$96=COM_AC_Collapsed_index_3)*(V$97=COM_AC_Collapsed_index_2)*COM_AC_Collapsed_vals)/1000000) -> 0 | W119: =IF($B119="not used",0,SUMPRODUCT(($B119=COM_AC_Collapsed_index_1)*($B$96=COM_AC_Collapsed_index_3)*(W$97=COM_AC_Collapsed_index_2)*COM_AC_Collapsed_vals)/1000000) -> 0 | X119: =IF($B119="not used",0,SUMPRODUCT(($B119=COM_AC_Collapsed_index_1)*($B$96=COM_AC_Collapsed_index_3)*(X$97=COM_AC_Collapsed_index_2)*COM_AC_Collapsed_vals)/1000000) -> 0 | Y119: =IF($B119="not used",0,SUMPRODUCT(($B119=COM_AC_Collapsed_index_1)*($B$96=COM_AC_Collapsed_index_3)*(Y$97=COM_AC_Collapsed_index_2)*COM_AC_Collapsed_vals)/1000000) -> 0 | Z119: =IF($B119="not used",0,SUMPRODUCT(($B119=COM_AC_Collapsed_index_1)*($B$96=COM_AC_Collapsed_index_3)*(Z$97=COM_AC_Collapsed_index_2)*COM_AC_Collapsed_vals)/1000000) -> 0 | AA119: =IF($B119="not used",0,SUMPRODUCT(($B119=COM_AC_Collapsed_index_1)*($B$96=COM_AC_Collapsed_index_3)*(AA$97=COM_AC_Collapsed_index_2)*COM_AC_Collapsed_vals)/1000000) -> 0 | AB119: =IF($B119="not used",0,SUMPRODUCT(($B119=COM_AC_Collapsed_index_1)*($B$96=COM_AC_Collapsed_index_3)*(AB$97=COM_AC_Collapsed_index_2)*COM_AC_Collapsed_vals)/1000000) -> 0 | AC119: =IF($B119="not used",0,SUMPRODUCT(($B119=COM_AC_Collapsed_index_1)*($B$96=COM_AC_Collapsed_index_3)*(AC$97=COM_AC_Collapsed_index_2)*COM_AC_Collapsed_vals)/1000000) -> 0 | AD119: =IF($B119="not used",0,SUMPRODUCT(($B119=COM_AC_Collapsed_index_1)*($B$96=COM_AC_Collapsed_index_3)*(AD$97=COM_AC_Collapsed_index_2)*COM_AC_Collapsed_vals)/1000000) -> 0 | AE119: =IF($B119="not used",0,SUMPRODUCT(($B119=COM_AC_Collapsed_index_1)*($B$96=COM_AC_Collapsed_index_3)*(AE$97=COM_AC_Collapsed_index_2)*COM_AC_Collapsed_vals)/1000000) -> 0 | AF119: =IF($B119="not used",0,SUMPRODUCT(($B119=COM_AC_Collapsed_index_1)*($B$96=COM_AC_Collapsed_index_3)*(AF$97=COM_AC_Collapsed_index_2)*COM_AC_Collapsed_vals)/1000000) -> 0 | AG119: =IF($B119="not used",0,SUMPRODUCT(($B119=COM_AC_Collapsed_index_1)*($B$96=COM_AC_Collapsed_index_3)*(AG$97=COM_AC_Collapsed_index_2)*COM_AC_Collapsed_vals)/1000000) -> 0 | AH119: =IF($B119="not used",0,SUMPRODUCT(($B119=COM_AC_Collapsed_index_1)*($B$96=COM_AC_Collapsed_index_3)*(AH$97=COM_AC_Collapsed_index_2)*COM_AC_Collapsed_vals)/1000000) -> 0 | AI119: =IF($B119="not used",0,SUMPRODUCT(($B119=COM_AC_Collapsed_index_1)*($B$96=COM_AC_Collapsed_index_3)*(AI$97=COM_AC_Collapsed_index_2)*COM_AC_Collapsed_vals)/1000000) -> 0 | AJ119: =IF($B119="not used",0,SUMPRODUCT(($B119=COM_AC_Collapsed_index_1)*($B$96=COM_AC_Collapsed_index_3)*(AJ$97=COM_AC_Collapsed_index_2)*COM_AC_Collapsed_vals)/1000000) -> 0 | AK119: =IF($B119="not used",0,SUMPRODUCT(($B119=COM_AC_Collapsed_index_1)*($B$96=COM_AC_Collapsed_index_3)*(AK$97=COM_AC_Collapsed_index_2)*COM_AC_Collapsed_vals)/1000000) -> 0 | AL119: =IF($B119="not used",0,SUMPRODUCT(($B119=COM_AC_Collapsed_index_1)*($B$96=COM_AC_Collapsed_index_3)*(AL$97=COM_AC_Collapsed_index_2)*COM_AC_Collapsed_vals)/1000000) -> 0 | AM119: =IF($B119="not used",0,SUMPRODUCT(($B119=COM_AC_Collapsed_index_1)*($B$96=COM_AC_Collapsed_index_3)*(AM$97=COM_AC_Collapsed_index_2)*COM_AC_Collapsed_vals)/1000000) -> 0
B120: =IFERROR(INDEX(COM_AC_Collapsed_index_1, MATCH(0,COUNTIF($B$96:B119,COM_AC_Collapsed_index_1), 0)),"not used") -> not used | C120: =IF(B120="not used",B120,INDEX(Lists!$G$3:$G$12,MATCH('Comm AC'!$B120,Lists!$F$3:$F$17,0))) -> not used | D120: =IF($B120="not used",0,SUMPRODUCT(($B120=COM_AC_Collapsed_index_1)*($B$96=COM_AC_Collapsed_index_3)*(D$97=COM_AC_Collapsed_index_2)*COM_AC_Collapsed_vals)/1000000) -> 0 | E120: =IF($B120="not used",0,SUMPRODUCT(($B120=COM_AC_Collapsed_index_1)*($B$96=COM_AC_Collapsed_index_3)*(E$97=COM_AC_Collapsed_index_2)*COM_AC_Collapsed_vals)/1000000) -> 0 | F120: =IF($B120="not used",0,SUMPRODUCT(($B120=COM_AC_Collapsed_index_1)*($B$96=COM_AC_Collapsed_index_3)*(F$97=COM_AC_Collapsed_index_2)*COM_AC_Collapsed_vals)/1000000) -> 0 | G120: =IF($B120="not used",0,SUMPRODUCT(($B120=COM_AC_Collapsed_index_1)*($B$96=COM_AC_Collapsed_index_3)*(G$97=COM_AC_Collapsed_index_2)*COM_AC_Collapsed_vals)/1000000) -> 0 | H120: =IF($B120="not used",0,SUMPRODUCT(($B120=COM_AC_Collapsed_index_1)*($B$96=COM_AC_Collapsed_index_3)*(H$97=COM_AC_Collapsed_index_2)*COM_AC_Collapsed_vals)/1000000) -> 0 | I120: =IF($B120="not used",0,SUMPRODUCT(($B120=COM_AC_Collapsed_index_1)*($B$96=COM_AC_Collapsed_index_3)*(I$97=COM_AC_Collapsed_index_2)*COM_AC_Collapsed_vals)/1000000) -> 0 | J120: =IF($B120="not used",0,SUMPRODUCT(($B120=COM_AC_Collapsed_index_1)*($B$96=COM_AC_Collapsed_index_3)*(J$97=COM_AC_Collapsed_index_2)*COM_AC_Collapsed_vals)/1000000) -> 0 | K120: =IF($B120="not used",0,SUMPRODUCT(($B120=COM_AC_Collapsed_index_1)*($B$96=COM_AC_Collapsed_index_3)*(K$97=COM_AC_Collapsed_index_2)*COM_AC_Collapsed_vals)/1000000) -> 0 | L120: =IF($B120="not used",0,SUMPRODUCT(($B120=COM_AC_Collapsed_index_1)*($B$96=COM_AC_Collapsed_index_3)*(L$97=COM_AC_Collapsed_index_2)*COM_AC_Collapsed_vals)/1000000) -> 0 | M120: =IF($B120="not used",0,SUMPRODUCT(($B120=COM_AC_Collapsed_index_1)*($B$96=COM_AC_Collapsed_index_3)*(M$97=COM_AC_Collapsed_index_2)*COM_AC_Collapsed_vals)/1000000) -> 0 | N120: =IF($B120="not used",0,SUMPRODUCT(($B120=COM_AC_Collapsed_index_1)*($B$96=COM_AC_Collapsed_index_3)*(N$97=COM_AC_Collapsed_index_2)*COM_AC_Collapsed_vals)/1000000) -> 0 | O120: =IF($B120="not used",0,SUMPRODUCT(($B120=COM_AC_Collapsed_index_1)*($B$96=COM_AC_Collapsed_index_3)*(O$97=COM_AC_Collapsed_index_2)*COM_AC_Collapsed_vals)/1000000) -> 0 | P120: =IF($B120="not used",0,SUMPRODUCT(($B120=COM_AC_Collapsed_index_1)*($B$96=COM_AC_Collapsed_index_3)*(P$97=COM_AC_Collapsed_index_2)*COM_AC_Collapsed_vals)/1000000) -> 0 | Q120: =IF($B120="not used",0,SUMPRODUCT(($B120=COM_AC_Collapsed_index_1)*($B$96=COM_AC_Collapsed_index_3)*(Q$97=COM_AC_Collapsed_index_2)*COM_AC_Collapsed_vals)/1000000) -> 0 | R120: =IF($B120="not used",0,SUMPRODUCT(($B120=COM_AC_Collapsed_index_1)*($B$96=COM_AC_Collapsed_index_3)*(R$97=COM_AC_Collapsed_index_2)*COM_AC_Collapsed_vals)/1000000) -> 0 | S120: =IF($B120="not used",0,SUMPRODUCT(($B120=COM_AC_Collapsed_index_1)*($B$96=COM_AC_Collapsed_index_3)*(S$97=COM_AC_Collapsed_index_2)*COM_AC_Collapsed_vals)/1000000) -> 0 | T120: =IF($B120="not used",0,SUMPRODUCT(($B120=COM_AC_Collapsed_index_1)*($B$96=COM_AC_Collapsed_index_3)*(T$97=COM_AC_Collapsed_index_2)*COM_AC_Collapsed_vals)/1000000) -> 0 | U120: =IF($B120="not used",0,SUMPRODUCT(($B120=COM_AC_Collapsed_index_1)*($B$96=COM_AC_Collapsed_index_3)*(U$97=COM_AC_Collapsed_index_2)*COM_AC_Collapsed_vals)/1000000) -> 0 | V120: =IF($B120="not used",0,SUMPRODUCT(($B120=COM_AC_Collapsed_index_1)*($B$96=COM_AC_Collapsed_index_3)*(V$97=COM_AC_Collapsed_index_2)*COM_AC_Collapsed_vals)/1000000) -> 0 | W120: =IF($B120="not used",0,SUMPRODUCT(($B120=COM_AC_Collapsed_index_1)*($B$96=COM_AC_Collapsed_index_3)*(W$97=COM_AC_Collapsed_index_2)*COM_AC_Collapsed_vals)/1000000) -> 0 | X120: =IF($B120="not used",0,SUMPRODUCT(($B120=COM_AC_Collapsed_index_1)*($B$96=COM_AC_Collapsed_index_3)*(X$97=COM_AC_Collapsed_index_2)*COM_AC_Collapsed_vals)/1000000) -> 0 | Y120: =IF($B120="not used",0,SUMPRODUCT(($B120=COM_AC_Collapsed_index_1)*($B$96=COM_AC_Collapsed_index_3)*(Y$97=COM_AC_Collapsed_index_2)*COM_AC_Collapsed_vals)/1000000) -> 0 | Z120: =IF($B120="not used",0,SUMPRODUCT(($B120=COM_AC_Collapsed_index_1)*($B$96=COM_AC_Collapsed_index_3)*(Z$97=COM_AC_Collapsed_index_2)*COM_AC_Collapsed_vals)/1000000) -> 0 | AA120: =IF($B120="not used",0,SUMPRODUCT(($B120=COM_AC_Collapsed_index_1)*($B$96=COM_AC_Collapsed_index_3)*(AA$97=COM_AC_Collapsed_index_2)*COM_AC_Collapsed_vals)/1000000) -> 0 | AB120: =IF($B120="not used",0,SUMPRODUCT(($B120=COM_AC_Collapsed_index_1)*($B$96=COM_AC_Collapsed_index_3)*(AB$97=COM_AC_Collapsed_index_2)*COM_AC_Collapsed_vals)/1000000) -> 0 | AC120: =IF($B120="not used",0,SUMPRODUCT(($B120=COM_AC_Collapsed_index_1)*($B$96=COM_AC_Collapsed_index_3)*(AC$97=COM_AC_Collapsed_index_2)*COM_AC_Collapsed_vals)/1000000) -> 0 | AD120: =IF($B120="not used",0,SUMPRODUCT(($B120=COM_AC_Collapsed_index_1)*($B$96=COM_AC_Collapsed_index_3)*(AD$97=COM_AC_Collapsed_index_2)*COM_AC_Collapsed_vals)/1000000) -> 0 | AE120: =IF($B120="not used",0,SUMPRODUCT(($B120=COM_AC_Collapsed_index_1)*($B$96=COM_AC_Collapsed_index_3)*(AE$97=COM_AC_Collapsed_index_2)*COM_AC_Collapsed_vals)/1000000) -> 0 | AF120: =IF($B120="not used",0,SUMPRODUCT(($B120=COM_AC_Collapsed_index_1)*($B$96=COM_AC_Collapsed_index_3)*(AF$97=COM_AC_Collapsed_index_2)*COM_AC_Collapsed_vals)/1000000) -> 0 | AG120: =IF($B120="not used",0,SUMPRODUCT(($B120=COM_AC_Collapsed_index_1)*($B$96=COM_AC_Collapsed_index_3)*(AG$97=COM_AC_Collapsed_index_2)*COM_AC_Collapsed_vals)/1000000) -> 0 | AH120: =IF($B120="not used",0,SUMPRODUCT(($B120=COM_AC_Collapsed_index_1)*($B$96=COM_AC_Collapsed_index_3)*(AH$97=COM_AC_Collapsed_index_2)*COM_AC_Collapsed_vals)/1000000) -> 0 | AI120: =IF($B120="not used",0,SUMPRODUCT(($B120=COM_AC_Collapsed_index_1)*($B$96=COM_AC_Collapsed_index_3)*(AI$97=COM_AC_Collapsed_index_2)*COM_AC_Collapsed_vals)/1000000) -> 0 | AJ120: =IF($B120="not used",0,SUMPRODUCT(($B120=COM_AC_Collapsed_index_1)*($B$96=COM_AC_Collapsed_index_3)*(AJ$97=COM_AC_Collapsed_index_2)*COM_AC_Collapsed_vals)/1000000) -> 0 | AK120: =IF($B120="not used",0,SUMPRODUCT(($B120=COM_AC_Collapsed_index_1)*($B$96=COM_AC_Collapsed_index_3)*(AK$97=COM_AC_Collapsed_index_2)*COM_AC_Collapsed_vals)/1000000) -> 0 | AL120: =IF($B120="not used",0,SUMPRODUCT(($B120=COM_AC_Collapsed_index_1)*($B$96=COM_AC_Collapsed_index_3)*(AL$97=COM_AC_Collapsed_index_2)*COM_AC_Collapsed_vals)/1000000) -> 0 | AM120: =IF($B120="not used",0,SUMPRODUCT(($B120=COM_AC_Collapsed_index_1)*($B$96=COM_AC_Collapsed_index_3)*(AM$97=COM_AC_Collapsed_index_2)*COM_AC_Collapsed_vals)/1000000) -> 0
B121: =IFERROR(INDEX(COM_AC_Collapsed_index_1, MATCH(0,COUNTIF($B$96:B120,COM_AC_Collapsed_index_1), 0)),"not used") -> not used | C121: =IF(B121="not used",B121,INDEX(Lists!$G$3:$G$12,MATCH('Comm AC'!$B121,Lists!$F$3:$F$17,0))) -> not used | D121: =IF($B121="not used",0,SUMPRODUCT(($B121=COM_AC_Collapsed_index_1)*($B$96=COM_AC_Collapsed_index_3)*(D$97=COM_AC_Collapsed_index_2)*COM_AC_Collapsed_vals)/1000000) -> 0 | E121: =IF($B121="not used",0,SUMPRODUCT(($B121=COM_AC_Collapsed_index_1)*($B$96=COM_AC_Collapsed_index_3)*(E$97=COM_AC_Collapsed_index_2)*COM_AC_Collapsed_vals)/1000000) -> 0 | F121: =IF($B121="not used",0,SUMPRODUCT(($B121=COM_AC_Collapsed_index_1)*($B$96=COM_AC_Collapsed_index_3)*(F$97=COM_AC_Collapsed_index_2)*COM_AC_Collapsed_vals)/1000000) -> 0 | G121: =IF($B121="not used",0,SUMPRODUCT(($B121=COM_AC_Collapsed_index_1)*($B$96=COM_AC_Collapsed_index_3)*(G$97=COM_AC_Collapsed_index_2)*COM_AC_Collapsed_vals)/1000000) -> 0 | H121: =IF($B121="not used",0,SUMPRODUCT(($B121=COM_AC_Collapsed_index_1)*($B$96=COM_AC_Collapsed_index_3)*(H$97=COM_AC_Collapsed_index_2)*COM_AC_Collapsed_vals)/1000000) -> 0 | I121: =IF($B121="not used",0,SUMPRODUCT(($B121=COM_AC_Collapsed_index_1)*($B$96=COM_AC_Collapsed_index_3)*(I$97=COM_AC_Collapsed_index_2)*COM_AC_Collapsed_vals)/1000000) -> 0 | J121: =IF($B121="not used",0,SUMPRODUCT(($B121=COM_AC_Collapsed_index_1)*($B$96=COM_AC_Collapsed_index_3)*(J$97=COM_AC_Collapsed_index_2)*COM_AC_Collapsed_vals)/1000000) -> 0 | K121: =IF($B121="not used",0,SUMPRODUCT(($B121=COM_AC_Collapsed_index_1)*($B$96=COM_AC_Collapsed_index_3)*(K$97=COM_AC_Collapsed_index_2)*COM_AC_Collapsed_vals)/1000000) -> 0 | L121: =IF($B121="not used",0,SUMPRODUCT(($B121=COM_AC_Collapsed_index_1)*($B$96=COM_AC_Collapsed_index_3)*(L$97=COM_AC_Collapsed_index_2)*COM_AC_Collapsed_vals)/1000000) -> 0 | M121: =IF($B121="not used",0,SUMPRODUCT(($B121=COM_AC_Collapsed_index_1)*($B$96=COM_AC_Collapsed_index_3)*(M$97=COM_AC_Collapsed_index_2)*COM_AC_Collapsed_vals)/1000000) -> 0 | N121: =IF($B121="not used",0,SUMPRODUCT(($B121=COM_AC_Collapsed_index_1)*($B$96=COM_AC_Collapsed_index_3)*(N$97=COM_AC_Collapsed_index_2)*COM_AC_Collapsed_vals)/1000000) -> 0 | O121: =IF($B121="not used",0,SUMPRODUCT(($B121=COM_AC_Collapsed_index_1)*($B$96=COM_AC_Collapsed_index_3)*(O$97=COM_AC_Collapsed_index_2)*COM_AC_Collapsed_vals)/1000000) -> 0 | P121: =IF($B121="not used",0,SUMPRODUCT(($B121=COM_AC_Collapsed_index_1)*($B$96=COM_AC_Collapsed_index_3)*(P$97=COM_AC_Collapsed_index_2)*COM_AC_Collapsed_vals)/1000000) -> 0 | Q121: =IF($B121="not used",0,SUMPRODUCT(($B121=COM_AC_Collapsed_index_1)*($B$96=COM_AC_Collapsed_index_3)*(Q$97=COM_AC_Collapsed_index_2)*COM_AC_Collapsed_vals)/1000000) -> 0 | R121: =IF($B121="not used",0,SUMPRODUCT(($B121=COM_AC_Collapsed_index_1)*($B$96=COM_AC_Collapsed_index_3)*(R$97=COM_AC_Collapsed_index_2)*COM_AC_Collapsed_vals)/1000000) -> 0 | S121: =IF($B121="not used",0,SUMPRODUCT(($B121=COM_AC_Collapsed_index_1)*($B$96=COM_AC_Collapsed_index_3)*(S$97=COM_AC_Collapsed_index_2)*COM_AC_Collapsed_vals)/1000000) -> 0 | T121: =IF($B121="not used",0,SUMPRODUCT(($B121=COM_AC_Collapsed_index_1)*($B$96=COM_AC_Collapsed_index_3)*(T$97=COM_AC_Collapsed_index_2)*COM_AC_Collapsed_vals)/1000000) -> 0 | U121: =IF($B121="not used",0,SUMPRODUCT(($B121=COM_AC_Collapsed_index_1)*($B$96=COM_AC_Collapsed_index_3)*(U$97=COM_AC_Collapsed_index_2)*COM_AC_Collapsed_vals)/1000000) -> 0 | V121: =IF($B121="not used",0,SUMPRODUCT(($B121=COM_AC_Collapsed_index_1)*($B$96=COM_AC_Collapsed_index_3)*(V$97=COM_AC_Collapsed_index_2)*COM_AC_Collapsed_vals)/1000000) -> 0 | W121: =IF($B121="not used",0,SUMPRODUCT(($B121=COM_AC_Collapsed_index_1)*($B$96=COM_AC_Collapsed_index_3)*(W$97=COM_AC_Collapsed_index_2)*COM_AC_Collapsed_vals)/1000000) -> 0 | X121: =IF($B121="not used",0,SUMPRODUCT(($B121=COM_AC_Collapsed_index_1)*($B$96=COM_AC_Collapsed_index_3)*(X$97=COM_AC_Collapsed_index_2)*COM_AC_Collapsed_vals)/1000000) -> 0 | Y121: =IF($B121="not used",0,SUMPRODUCT(($B121=COM_AC_Collapsed_index_1)*($B$96=COM_AC_Collapsed_index_3)*(Y$97=COM_AC_Collapsed_index_2)*COM_AC_Collapsed_vals)/1000000) -> 0 | Z121: =IF($B121="not used",0,SUMPRODUCT(($B121=COM_AC_Collapsed_index_1)*($B$96=COM_AC_Collapsed_index_3)*(Z$97=COM_AC_Collapsed_index_2)*COM_AC_Collapsed_vals)/1000000) -> 0 | AA121: =IF($B121="not used",0,SUMPRODUCT(($B121=COM_AC_Collapsed_index_1)*($B$96=COM_AC_Collapsed_index_3)*(AA$97=COM_AC_Collapsed_index_2)*COM_AC_Collapsed_vals)/1000000) -> 0 | AB121: =IF($B121="not used",0,SUMPRODUCT(($B121=COM_AC_Collapsed_index_1)*($B$96=COM_AC_Collapsed_index_3)*(AB$97=COM_AC_Collapsed_index_2)*COM_AC_Collapsed_vals)/1000000) -> 0 | AC121: =IF($B121="not used",0,SUMPRODUCT(($B121=COM_AC_Collapsed_index_1)*($B$96=COM_AC_Collapsed_index_3)*(AC$97=COM_AC_Collapsed_index_2)*COM_AC_Collapsed_vals)/1000000) -> 0 | AD121: =IF($B121="not used",0,SUMPRODUCT(($B121=COM_AC_Collapsed_index_1)*($B$96=COM_AC_Collapsed_index_3)*(AD$97=COM_AC_Collapsed_index_2)*COM_AC_Collapsed_vals)/1000000) -> 0 | AE121: =IF($B121="not used",0,SUMPRODUCT(($B121=COM_AC_Collapsed_index_1)*($B$96=COM_AC_Collapsed_index_3)*(AE$97=COM_AC_Collapsed_index_2)*COM_AC_Collapsed_vals)/1000000) -> 0 | AF121: =IF($B121="not used",0,SUMPRODUCT(($B121=COM_AC_Collapsed_index_1)*($B$96=COM_AC_Collapsed_index_3)*(AF$97=COM_AC_Collapsed_index_2)*COM_AC_Collapsed_vals)/1000000) -> 0 | AG121: =IF($B121="not used",0,SUMPRODUCT(($B121=COM_AC_Collapsed_index_1)*($B$96=COM_AC_Collapsed_index_3)*(AG$97=COM_AC_Collapsed_index_2)*COM_AC_Collapsed_vals)/1000000) -> 0 | AH121: =IF($B121="not used",0,SUMPRODUCT(($B121=COM_AC_Collapsed_index_1)*($B$96=COM_AC_Collapsed_index_3)*(AH$97=COM_AC_Collapsed_index_2)*COM_AC_Collapsed_vals)/1000000) -> 0 | AI121: =IF($B121="not used",0,SUMPRODUCT(($B121=COM_AC_Collapsed_index_1)*($B$96=COM_AC_Collapsed_index_3)*(AI$97=COM_AC_Collapsed_index_2)*COM_AC_Collapsed_vals)/1000000) -> 0 | AJ121: =IF($B121="not used",0,SUMPRODUCT(($B121=COM_AC_Collapsed_index_1)*($B$96=COM_AC_Collapsed_index_3)*(AJ$97=COM_AC_Collapsed_index_2)*COM_AC_Collapsed_vals)/1000000) -> 0 | AK121: =IF($B121="not used",0,SUMPRODUCT(($B121=COM_AC_Collapsed_index_1)*($B$96=COM_AC_Collapsed_index_3)*(AK$97=COM_AC_Collapsed_index_2)*COM_AC_Collapsed_vals)/1000000) -> 0 | AL121: =IF($B121="not used",0,SUMPRODUCT(($B121=COM_AC_Collapsed_index_1)*($B$96=COM_AC_Collapsed_index_3)*(AL$97=COM_AC_Collapsed_index_2)*COM_AC_Collapsed_vals)/1000000) -> 0 | AM121: =IF($B121="not used",0,SUMPRODUCT(($B121=COM_AC_Collapsed_index_1)*($B$96=COM_AC_Collapsed_index_3)*(AM$97=COM_AC_Collapsed_index_2)*COM_AC_Collapsed_vals)/1000000) -> 0
B123: Categorized | D123: =D97 -> 2015 | E123: 2016 | F123: 2017 | G123: 2018 | H123: 2019 | I123: 2020 | J123: 2021 | K123: 2022 | L123: 2023 | M123: 2024 | N123: 2025 | O123: 2026 | P123: 2027 | Q123: 2028 | R123: 2029 | S123: 2030 | T123: 2031 | U123: 2032 | V123: 2033 | W123: 2034 | X123: 2035 | Y123: 2036 | Z123: 2037 | AA123: 2038 | AB123: 2039 | AC123: 2040 | AD123: 2041 | AE123: 2042 | AF123: 2043 | AG123: 2044 | AH123: 2045 | AI123: 2046 | AJ123: 2047 | AK123: 2048 | AL123: 2049 | AM123: 2050
B124: =IFERROR(INDEX($C$98:$C$121, MATCH(0,COUNTIF($B$123:B123,$C$98:$C$121), 0)),"") -> Reference AC | D124: =IF($B124="","",SUMPRODUCT(($B124=$C$98:$C$121)*(D$98:D$121))) -> 142.9047402 | E124: =IF($B124="","",SUMPRODUCT(($B124=$C$98:$C$121)*(E$98:E$121))) -> 145.1208545 | F124: =IF($B124="","",SUMPRODUCT(($B124=$C$98:$C$121)*(F$98:F$121))) -> 147.2181038 | G124: =IF($B124="","",SUMPRODUCT(($B124=$C$98:$C$121)*(G$98:G$121))) -> 148.6640141 | H124: =IF($B124="","",SUMPRODUCT(($B124=$C$98:$C$121)*(H$98:H$121))) -> 148.8455874 | I124: =IF($B124="","",SUMPRODUCT(($B124=$C$98:$C$121)*(I$98:I$121))) -> 146.9082654 | J124: =IF($B124="","",SUMPRODUCT(($B124=$C$98:$C$121)*(J$98:J$121))) -> 142.457869 | K124: =IF($B124="","",SUMPRODUCT(($B124=$C$98:$C$121)*(K$98:K$121))) -> 135.9799863 | L124: =IF($B124="","",SUMPRODUCT(($B124=$C$98:$C$121)*(L$98:L$121))) -> 128.3585164 | M124: =IF($B124="","",SUMPRODUCT(($B124=$C$98:$C$121)*(M$98:M$121))) -> 120.2104004 | N124: =IF($B124="","",SUMPRODUCT(($B124=$C$98:$C$121)*(N$98:N$121))) -> 111.8339781 | O124: =IF($B124="","",SUMPRODUCT(($B124=$C$98:$C$121)*(O$98:O$121))) -> 103.3416536 | P124: =IF($B124="","",SUMPRODUCT(($B124=$C$98:$C$121)*(P$98:P$121))) -> 94.76819192 | Q124: =IF($B124="","",SUMPRODUCT(($B124=$C$98:$C$121)*(Q$98:Q$121))) -> 86.122849 | R124: =IF($B124="","",SUMPRODUCT(($B124=$C$98:$C$121)*(R$98:R$121))) -> 77.41984452 | S124: =IF($B124="","",SUMPRODUCT(($B124=$C$98:$C$121)*(S$98:S$121))) -> 68.7005459 | T124: =IF($B124="","",SUMPRODUCT(($B124=$C$98:$C$121)*(T$98:T$121))) -> 60.04465769 | U124: =IF($B124="","",SUMPRODUCT(($B124=$C$98:$C$121)*(U$98:U$121))) -> 51.57091527 | V124: =IF($B124="","",SUMPRODUCT(($B124=$C$98:$C$121)*(V$98:V$121))) -> 43.4313342 | W124: =IF($B124="","",SUMPRODUCT(($B124=$C$98:$C$121)*(W$98:W$121))) -> 35.79138965 | X124: =IF($B124="","",SUMPRODUCT(($B124=$C$98:$C$121)*(X$98:X$121))) -> 28.80944235 | Y124: =IF($B124="","",SUMPRODUCT(($B124=$C$98:$C$121)*(Y$98:Y$121))) -> 22.6146123 | Z124: =IF($B124="","",SUMPRODUCT(($B124=$C$98:$C$121)*(Z$98:Z$121))) -> 17.28973502 | AA124: =IF($B124="","",SUMPRODUCT(($B124=$C$98:$C$121)*(AA$98:AA$121))) -> 12.86023583 | AB124: =IF($B124="","",SUMPRODUCT(($B124=$C$98:$C$121)*(AB$98:AB$121))) -> 9.299277823 | AC124: =IF($B124="","",SUMPRODUCT(($B124=$C$98:$C$121)*(AC$98:AC$121))) -> 6.532968793 | AD124: =IF($B124="","",SUMPRODUCT(($B124=$C$98:$C$121)*(AD$98:AD$121))) -> 4.457053441 | AE124: =IF($B124="","",SUMPRODUCT(($B124=$C$98:$C$121)*(AE$98:AE$121))) -> 2.952675383 | AF124: =IF($B124="","",SUMPRODUCT(($B124=$C$98:$C$121)*(AF$98:AF$121))) -> 1.899005386 | AG124: =IF($B124="","",SUMPRODUCT(($B124=$C$98:$C$121)*(AG$98:AG$121))) -> 1.185072975 | AH124: =IF($B124="","",SUMPRODUCT(($B124=$C$98:$C$121)*(AH$98:AH$121))) -> 0.7175596488 | AI124: =IF($B124="","",SUMPRODUCT(($B124=$C$98:$C$121)*(AI$98:AI$121))) -> 0.4215104914 | AJ124: =IF($B124="","",SUMPRODUCT(($B124=$C$98:$C$121)*(AJ$98:AJ$121))) -> 0.2400797858 | AK124: =IF($B124="","",SUMPRODUCT(($B124=$C$98:$C$121)*(AK$98:AK$121))) -> 0.13222254 | AL124: =IF($B124="","",SUMPRODUCT(($B124=$C$98:$C$121)*(AL$98:AL$121))) -> 0.06988887878 | AM124: =IF($B124="","",SUMPRODUCT(($B124=$C$98:$C$121)*(AM$98:AM$121))) -> 0.03482663615
B125: =IFERROR(INDEX($C$98:$C$121, MATCH(0,COUNTIF($B$123:B124,$C$98:$C$121), 0)),"") -> Reference Electric Heat Pump | D125: =IF($B125="","",SUMPRODUCT(($B125=$C$98:$C$121)*(D$98:D$121))) -> 22.86790041 | E125: =IF($B125="","",SUMPRODUCT(($B125=$C$98:$C$121)*(E$98:E$121))) -> 23.24202952 | F125: =IF($B125="","",SUMPRODUCT(($B125=$C$98:$C$121)*(F$98:F$121))) -> 23.62990055 | G125: =IF($B125="","",SUMPRODUCT(($B125=$C$98:$C$121)*(G$98:G$121))) -> 23.99331459 | H125: =IF($B125="","",SUMPRODUCT(($B125=$C$98:$C$121)*(H$98:H$121))) -> 24.33118886 | I125: =IF($B125="","",SUMPRODUCT(($B125=$C$98:$C$121)*(I$98:I$121))) -> 24.64368798 | J125: =IF($B125="","",SUMPRODUCT(($B125=$C$98:$C$121)*(J$98:J$121))) -> 24.95051344 | K125: =IF($B125="","",SUMPRODUCT(($B125=$C$98:$C$121)*(K$98:K$121))) -> 25.25453982 | L125: =IF($B125="","",SUMPRODUCT(($B125=$C$98:$C$121)*(L$98:L$121))) -> 25.5602456 | M125: =IF($B125="","",SUMPRODUCT(($B125=$C$98:$C$121)*(M$98:M$121))) -> 25.86569364 | N125: =IF($B125="","",SUMPRODUCT(($B125=$C$98:$C$121)*(N$98:N$121))) -> 26.17287854 | O125: =IF($B125="","",SUMPRODUCT(($B125=$C$98:$C$121)*(O$98:O$121))) -> 26.48035421 | P125: =IF($B125="","",SUMPRODUCT(($B125=$C$98:$C$121)*(P$98:P$121))) -> 26.78812065 | Q125: =IF($B125="","",SUMPRODUCT(($B125=$C$98:$C$121)*(Q$98:Q$121))) -> 27.09617786 | R125: =IF($B125="","",SUMPRODUCT(($B125=$C$98:$C$121)*(R$98:R$121))) -> 27.40452584 | S125: =IF($B125="","",SUMPRODUCT(($B125=$C$98:$C$121)*(S$98:S$121))) -> 27.7131646 | T125: =IF($B125="","",SUMPRODUCT(($B125=$C$98:$C$121)*(T$98:T$121))) -> 28.02209412 | U125: =IF($B125="","",SUMPRODUCT(($B125=$C$98:$C$121)*(U$98:U$121))) -> 28.33131442 | V125: =IF($B125="","",SUMPRODUCT(($B125=$C$98:$C$121)*(V$98:V$121))) -> 28.64082548 | W125: =IF($B125="","",SUMPRODUCT(($B125=$C$98:$C$121)*(W$98:W$121))) -> 28.95062732 | X125: =IF($B125="","",SUMPRODUCT(($B125=$C$98:$C$121)*(X$98:X$121))) -> 29.26071992 | Y125: =IF($B125="","",SUMPRODUCT(($B125=$C$98:$C$121)*(Y$98:Y$121))) -> 29.5711033 | Z125: =IF($B125="","",SUMPRODUCT(($B125=$C$98:$C$121)*(Z$98:Z$121))) -> 29.88177745 | AA125: =IF($B125="","",SUMPRODUCT(($B125=$C$98:$C$121)*(AA$98:AA$121))) -> 30.19274237 | AB125: =IF($B125="","",SUMPRODUCT(($B125=$C$98:$C$121)*(AB$98:AB$121))) -> 30.50399806 | AC125: =IF($B125="","",SUMPRODUCT(($B125=$C$98:$C$121)*(AC$98:AC$121))) -> 30.81554452 | AD125: =IF($B125="","",SUMPRODUCT(($B125=$C$98:$C$121)*(AD$98:AD$121))) -> 31.12738175 | AE125: =IF($B125="","",SUMPRODUCT(($B125=$C$98:$C$121)*(AE$98:AE$121))) -> 31.43950976 | AF125: =IF($B125="","",SUMPRODUCT(($B125=$C$98:$C$121)*(AF$98:AF$121))) -> 31.75192853 | AG125: =IF($B125="","",SUMPRODUCT(($B125=$C$98:$C$121)*(AG$98:AG$121))) -> 32.06463807 | AH125: =IF($B125="","",SUMPRODUCT(($B125=$C$98:$C$121)*(AH$98:AH$121))) -> 32.37763839 | AI125: =IF($B125="","",SUMPRODUCT(($B125=$C$98:$C$121)*(AI$98:AI$121))) -> 32.69092947 | AJ125: =IF($B125="","",SUMPRODUCT(($B125=$C$98:$C$121)*(AJ$98:AJ$121))) -> 33.00451133 | AK125: =IF($B125="","",SUMPRODUCT(($B125=$C$98:$C$121)*(AK$98:AK$121))) -> 33.31838396 | AL125: =IF($B125="","",SUMPRODUCT(($B125=$C$98:$C$121)*(AL$98:AL$121))) -> 33.63254736 | AM125: =IF($B125="","",SUMPRODUCT(($B125=$C$98:$C$121)*(AM$98:AM$121))) -> 33.94700152
B126: =IFERROR(INDEX($C$98:$C$121, MATCH(0,COUNTIF($B$123:B125,$C$98:$C$121), 0)),"") -> Reference Geothermal Heat Pump | D126: =IF($B126="","",SUMPRODUCT(($B126=$C$98:$C$121)*(D$98:D$121))) -> 15.24526694 | E126: =IF($B126="","",SUMPRODUCT(($B126=$C$98:$C$121)*(E$98:E$121))) -> 15.49468634 | F126: =IF($B126="","",SUMPRODUCT(($B126=$C$98:$C$121)*(F$98:F$121))) -> 15.75326703 | G126: =IF($B126="","",SUMPRODUCT(($B126=$C$98:$C$121)*(G$98:G$121))) -> 15.99554306 | H126: =IF($B126="","",SUMPRODUCT(($B126=$C$98:$C$121)*(H$98:H$121))) -> 16.22079257 | I126: =IF($B126="","",SUMPRODUCT(($B126=$C$98:$C$121)*(I$98:I$121))) -> 16.42912532 | J126: =IF($B126="","",SUMPRODUCT(($B126=$C$98:$C$121)*(J$98:J$121))) -> 16.63367563 | K126: =IF($B126="","",SUMPRODUCT(($B126=$C$98:$C$121)*(K$98:K$121))) -> 16.83635988 | L126: =IF($B126="","",SUMPRODUCT(($B126=$C$98:$C$121)*(L$98:L$121))) -> 17.04016373 | M126: =IF($B126="","",SUMPRODUCT(($B126=$C$98:$C$121)*(M$98:M$121))) -> 17.24379576 | N126: =IF($B126="","",SUMPRODUCT(($B126=$C$98:$C$121)*(N$98:N$121))) -> 17.44858569 | O126: =IF($B126="","",SUMPRODUCT(($B126=$C$98:$C$121)*(O$98:O$121))) -> 17.65356947 | P126: =IF($B126="","",SUMPRODUCT(($B126=$C$98:$C$121)*(P$98:P$121))) -> 17.8587471 | Q126: =IF($B126="","",SUMPRODUCT(($B126=$C$98:$C$121)*(Q$98:Q$121))) -> 18.06411857 | R126: =IF($B126="","",SUMPRODUCT(($B126=$C$98:$C$121)*(R$98:R$121))) -> 18.2696839 | S126: =IF($B126="","",SUMPRODUCT(($B126=$C$98:$C$121)*(S$98:S$121))) -> 18.47544306 | T126: =IF($B126="","",SUMPRODUCT(($B126=$C$98:$C$121)*(T$98:T$121))) -> 18.68139608 | U126: =IF($B126="","",SUMPRODUCT(($B126=$C$98:$C$121)*(U$98:U$121))) -> 18.88754294 | V126: =IF($B126="","",SUMPRODUCT(($B126=$C$98:$C$121)*(V$98:V$121))) -> 19.09388365 | W126: =IF($B126="","",SUMPRODUCT(($B126=$C$98:$C$121)*(W$98:W$121))) -> 19.30041821 | X126: =IF($B126="","",SUMPRODUCT(($B126=$C$98:$C$121)*(X$98:X$121))) -> 19.50714662 | Y126: =IF($B126="","",SUMPRODUCT(($B126=$C$98:$C$121)*(Y$98:Y$121))) -> 19.71406887 | Z126: =IF($B126="","",SUMPRODUCT(($B126=$C$98:$C$121)*(Z$98:Z$121))) -> 19.92118497 | AA126: =IF($B126="","",SUMPRODUCT(($B126=$C$98:$C$121)*(AA$98:AA$121))) -> 20.12849491 | AB126: =IF($B126="","",SUMPRODUCT(($B126=$C$98:$C$121)*(AB$98:AB$121))) -> 20.33599871 | AC126: =IF($B126="","",SUMPRODUCT(($B126=$C$98:$C$121)*(AC$98:AC$121))) -> 20.54369635 | AD126: =IF($B126="","",SUMPRODUCT(($B126=$C$98:$C$121)*(AD$98:AD$121))) -> 20.75158784 | AE126: =IF($B126="","",SUMPRODUCT(($B126=$C$98:$C$121)*(AE$98:AE$121))) -> 20.95967317 | AF126: =IF($B126="","",SUMPRODUCT(($B126=$C$98:$C$121)*(AF$98:AF$121))) -> 21.16795235 | AG126: =IF($B126="","",SUMPRODUCT(($B126=$C$98:$C$121)*(AG$98:AG$121))) -> 21.37642538 | AH126: =IF($B126="","",SUMPRODUCT(($B126=$C$98:$C$121)*(AH$98:AH$121))) -> 21.58509226 | AI126: =IF($B126="","",SUMPRODUCT(($B126=$C$98:$C$121)*(AI$98:AI$121))) -> 21.79395298 | AJ126: =IF($B126="","",SUMPRODUCT(($B126=$C$98:$C$121)*(AJ$98:AJ$121))) -> 22.00300755 | AK126: =IF($B126="","",SUMPRODUCT(($B126=$C$98:$C$121)*(AK$98:AK$121))) -> 22.21225597 | AL126: =IF($B126="","",SUMPRODUCT(($B126=$C$98:$C$121)*(AL$98:AL$121))) -> 22.42169824 | AM126: =IF($B126="","",SUMPRODUCT(($B126=$C$98:$C$121)*(AM$98:AM$121))) -> 22.63133435
B127: =IFERROR(INDEX($C$98:$C$121, MATCH(0,COUNTIF($B$123:B126,$C$98:$C$121), 0)),"") -> Reference Chiller | D127: =IF($B127="","",SUMPRODUCT(($B127=$C$98:$C$121)*(D$98:D$121))) -> 55.21770799 | E127: =IF($B127="","",SUMPRODUCT(($B127=$C$98:$C$121)*(E$98:E$121))) -> 56.08467404 | F127: =IF($B127="","",SUMPRODUCT(($B127=$C$98:$C$121)*(F$98:F$121))) -> 56.92379687 | G127: =IF($B127="","",SUMPRODUCT(($B127=$C$98:$C$121)*(G$98:G$121))) -> 57.55689308 | H127: =IF($B127="","",SUMPRODUCT(($B127=$C$98:$C$121)*(H$98:H$121))) -> 57.80410962 | I127: =IF($B127="","",SUMPRODUCT(($B127=$C$98:$C$121)*(I$98:I$121))) -> 57.41596721 | J127: =IF($B127="","",SUMPRODUCT(($B127=$C$98:$C$121)*(J$98:J$121))) -> 56.28035201 | K127: =IF($B127="","",SUMPRODUCT(($B127=$C$98:$C$121)*(K$98:K$121))) -> 54.53085002 | L127: =IF($B127="","",SUMPRODUCT(($B127=$C$98:$C$121)*(L$98:L$121))) -> 52.42076624 | M127: =IF($B127="","",SUMPRODUCT(($B127=$C$98:$C$121)*(M$98:M$121))) -> 50.13011433 | N127: =IF($B127="","",SUMPRODUCT(($B127=$C$98:$C$121)*(N$98:N$121))) -> 47.75039939 | O127: =IF($B127="","",SUMPRODUCT(($B127=$C$98:$C$121)*(O$98:O$121))) -> 45.32274933 | P127: =IF($B127="","",SUMPRODUCT(($B127=$C$98:$C$121)*(P$98:P$121))) -> 42.86558372 | Q127: =IF($B127="","",SUMPRODUCT(($B127=$C$98:$C$121)*(Q$98:Q$121))) -> 40.38771943 | R127: =IF($B127="","",SUMPRODUCT(($B127=$C$98:$C$121)*(R$98:R$121))) -> 37.89335199 | S127: =IF($B127="","",SUMPRODUCT(($B127=$C$98:$C$121)*(S$98:S$121))) -> 35.38465162 | T127: =IF($B127="","",SUMPRODUCT(($B127=$C$98:$C$121)*(T$98:T$121))) -> 32.86277695 | U127: =IF($B127="","",SUMPRODUCT(($B127=$C$98:$C$121)*(U$98:U$121))) -> 30.3296498 | V127: =IF($B127="","",SUMPRODUCT(($B127=$C$98:$C$121)*(V$98:V$121))) -> 27.78932682 | W127: =IF($B127="","",SUMPRODUCT(($B127=$C$98:$C$121)*(W$98:W$121))) -> 25.24946445 | X127: =IF($B127="","",SUMPRODUCT(($B127=$C$98:$C$121)*(X$98:X$121))) -> 22.7239476 | Y127: =IF($B127="","",SUMPRODUCT(($B127=$C$98:$C$121)*(Y$98:Y$121))) -> 20.23245143 | Z127: =IF($B127="","",SUMPRODUCT(($B127=$C$98:$C$121)*(Z$98:Z$121))) -> 17.80096307 | AA127: =IF($B127="","",SUMPRODUCT(($B127=$C$98:$C$121)*(AA$98:AA$121))) -> 15.45995141 | AB127: =IF($B127="","",SUMPRODUCT(($B127=$C$98:$C$121)*(AB$98:AB$121))) -> 13.24094279 | AC127: =IF($B127="","",SUMPRODUCT(($B127=$C$98:$C$121)*(AC$98:AC$121))) -> 11.17434899 | AD127: =IF($B127="","",SUMPRODUCT(($B127=$C$98:$C$121)*(AD$98:AD$121))) -> 9.286432067 | AE127: =IF($B127="","",SUMPRODUCT(($B127=$C$98:$C$121)*(AE$98:AE$121))) -> 7.596297163 | AF127: =IF($B127="","",SUMPRODUCT(($B127=$C$98:$C$121)*(AF$98:AF$121))) -> 6.114476817 | AG127: =IF($B127="","",SUMPRODUCT(($B127=$C$98:$C$121)*(AG$98:AG$121))) -> 4.842556179 | AH127: =IF($B127="","",SUMPRODUCT(($B127=$C$98:$C$121)*(AH$98:AH$121))) -> 3.773111151 | AI127: =IF($B127="","",SUMPRODUCT(($B127=$C$98:$C$121)*(AI$98:AI$121))) -> 2.892434018 | AJ127: =IF($B127="","",SUMPRODUCT(($B127=$C$98:$C$121)*(AJ$98:AJ$121))) -> 2.181883485 | AK127: =IF($B127="","",SUMPRODUCT(($B127=$C$98:$C$121)*(AK$98:AK$121))) -> 1.619920525 | AL127: =IF($B127="","",SUMPRODUCT(($B127=$C$98:$C$121)*(AL$98:AL$121))) -> 1.183742592 | AM127: =IF($B127="","",SUMPRODUCT(($B127=$C$98:$C$121)*(AM$98:AM$121))) -> 0.8516572002
B128: =IFERROR(INDEX($C$98:$C$121, MATCH(0,COUNTIF($B$123:B127,$C$98:$C$121), 0)),"") -> High Efficiency AC | D128: =IF($B128="","",SUMPRODUCT(($B128=$C$98:$C$121)*(D$98:D$121))) -> 14.5788673 | E128: =IF($B128="","",SUMPRODUCT(($B128=$C$98:$C$121)*(E$98:E$121))) -> 14.93925542 | F128: =IF($B128="","",SUMPRODUCT(($B128=$C$98:$C$121)*(F$98:F$121))) -> 15.51314461 | G128: =IF($B128="","",SUMPRODUCT(($B128=$C$98:$C$121)*(G$98:G$121))) -> 16.56994571 | H128: =IF($B128="","",SUMPRODUCT(($B128=$C$98:$C$121)*(H$98:H$121))) -> 18.71519984 | I128: =IF($B128="","",SUMPRODUCT(($B128=$C$98:$C$121)*(I$98:I$121))) -> 22.80459913 | J128: =IF($B128="","",SUMPRODUCT(($B128=$C$98:$C$121)*(J$98:J$121))) -> 29.36800028 | K128: =IF($B128="","",SUMPRODUCT(($B128=$C$98:$C$121)*(K$98:K$121))) -> 37.93961122 | L128: =IF($B128="","",SUMPRODUCT(($B128=$C$98:$C$121)*(L$98:L$121))) -> 47.66637492 | M128: =IF($B128="","",SUMPRODUCT(($B128=$C$98:$C$121)*(M$98:M$121))) -> 57.9180098 | N128: =IF($B128="","",SUMPRODUCT(($B128=$C$98:$C$121)*(N$98:N$121))) -> 68.40991206 | O128: =IF($B128="","",SUMPRODUCT(($B128=$C$98:$C$121)*(O$98:O$121))) -> 79.01971903 | P128: =IF($B128="","",SUMPRODUCT(($B128=$C$98:$C$121)*(P$98:P$121))) -> 89.71266562 | Q128: =IF($B128="","",SUMPRODUCT(($B128=$C$98:$C$121)*(Q$98:Q$121))) -> 100.4794959 | R128: =IF($B128="","",SUMPRODUCT(($B128=$C$98:$C$121)*(R$98:R$121))) -> 111.3059901 | S128: =IF($B128="","",SUMPRODUCT(($B128=$C$98:$C$121)*(S$98:S$121))) -> 122.150781 | T128: =IF($B128="","",SUMPRODUCT(($B128=$C$98:$C$121)*(T$98:T$121))) -> 132.9341638 | U128: =IF($B128="","",SUMPRODUCT(($B128=$C$98:$C$121)*(U$98:U$121))) -> 143.5374033 | V128: =IF($B128="","",SUMPRODUCT(($B128=$C$98:$C$121)*(V$98:V$121))) -> 153.8084839 | W128: =IF($B128="","",SUMPRODUCT(($B128=$C$98:$C$121)*(W$98:W$121))) -> 163.5819305 | X128: =IF($B128="","",SUMPRODUCT(($B128=$C$98:$C$121)*(X$98:X$121))) -> 172.6993822 | Y128: =IF($B128="","",SUMPRODUCT(($B128=$C$98:$C$121)*(Y$98:Y$121))) -> 181.0317191 | Z128: =IF($B128="","",SUMPRODUCT(($B128=$C$98:$C$121)*(Z$98:Z$121))) -> 188.4961057 | AA128: =IF($B128="","",SUMPRODUCT(($B128=$C$98:$C$121)*(AA$98:AA$121))) -> 195.0671166 | AB128: =IF($B128="","",SUMPRODUCT(($B128=$C$98:$C$121)*(AB$98:AB$121))) -> 200.7715888 | AC128: =IF($B128="","",SUMPRODUCT(($B128=$C$98:$C$121)*(AC$98:AC$121))) -> 205.6834145 | AD128: =IF($B128="","",SUMPRODUCT(($B128=$C$98:$C$121)*(AD$98:AD$121))) -> 209.9068489 | AE128: =IF($B128="","",SUMPRODUCT(($B128=$C$98:$C$121)*(AE$98:AE$121))) -> 213.5607485 | AF128: =IF($B128="","",SUMPRODUCT(($B128=$C$98:$C$121)*(AF$98:AF$121))) -> 216.7659424 | AG128: =IF($B128="","",SUMPRODUCT(($B128=$C$98:$C$121)*(AG$98:AG$121))) -> 219.6334012 | AH128: =IF($B128="","",SUMPRODUCT(($B128=$C$98:$C$121)*(AH$98:AH$121))) -> 222.2564434 | AI128: =IF($B128="","",SUMPRODUCT(($B128=$C$98:$C$121)*(AI$98:AI$121))) -> 224.7100238 | AJ128: =IF($B128="","",SUMPRODUCT(($B128=$C$98:$C$121)*(AJ$98:AJ$121))) -> 227.0509882 | AK128: =IF($B128="","",SUMPRODUCT(($B128=$C$98:$C$121)*(AK$98:AK$121))) -> 229.3203816 | AL128: =IF($B128="","",SUMPRODUCT(($B128=$C$98:$C$121)*(AL$98:AL$121))) -> 231.5462539 | AM128: =IF($B128="","",SUMPRODUCT(($B128=$C$98:$C$121)*(AM$98:AM$121))) -> 233.7468572
B129: =IFERROR(INDEX($C$98:$C$121, MATCH(0,COUNTIF($B$123:B128,$C$98:$C$121), 0)),"") -> High Efficiency Heat Pump | D129: =IF($B129="","",SUMPRODUCT(($B129=$C$98:$C$121)*(D$98:D$121))) -> 0.01709882856 | E129: =IF($B129="","",SUMPRODUCT(($B129=$C$98:$C$121)*(E$98:E$121))) -> 0.04697953428 | F129: =IF($B129="","",SUMPRODUCT(($B129=$C$98:$C$121)*(F$98:F$121))) -> 0.1263689489 | G129: =IF($B129="","",SUMPRODUCT(($B129=$C$98:$C$121)*(G$98:G$121))) -> 0.3250073705 | H129: =IF($B129="","",SUMPRODUCT(($B129=$C$98:$C$121)*(H$98:H$121))) -> 0.7866737944 | I129: =IF($B129="","",SUMPRODUCT(($B129=$C$98:$C$121)*(I$98:I$121))) -> 1.714007369 | J129: =IF($B129="","",SUMPRODUCT(($B129=$C$98:$C$121)*(J$98:J$121))) -> 3.235550703 | K129: =IF($B129="","",SUMPRODUCT(($B129=$C$98:$C$121)*(K$98:K$121))) -> 5.247681183 | L129: =IF($B129="","",SUMPRODUCT(($B129=$C$98:$C$121)*(L$98:L$121))) -> 7.5528982 | M129: =IF($B129="","",SUMPRODUCT(($B129=$C$98:$C$121)*(M$98:M$121))) -> 10.00141069 | N129: =IF($B129="","",SUMPRODUCT(($B129=$C$98:$C$121)*(N$98:N$121))) -> 12.52259042 | O129: =IF($B129="","",SUMPRODUCT(($B129=$C$98:$C$121)*(O$98:O$121))) -> 15.08050518 | P129: =IF($B129="","",SUMPRODUCT(($B129=$C$98:$C$121)*(P$98:P$121))) -> 17.66046071 | Q129: =IF($B129="","",SUMPRODUCT(($B129=$C$98:$C$121)*(Q$98:Q$121))) -> 20.25590634 | R129: =IF($B129="","",SUMPRODUCT(($B129=$C$98:$C$121)*(R$98:R$121))) -> 22.8642406 | S129: =IF($B129="","",SUMPRODUCT(($B129=$C$98:$C$121)*(S$98:S$121))) -> 25.48470205 | T129: =IF($B129="","",SUMPRODUCT(($B129=$C$98:$C$121)*(T$98:T$121))) -> 28.11722677 | U129: =IF($B129="","",SUMPRODUCT(($B129=$C$98:$C$121)*(U$98:U$121))) -> 30.76093736 | V129: =IF($B129="","",SUMPRODUCT(($B129=$C$98:$C$121)*(V$98:V$121))) -> 33.41232065 | W129: =IF($B129="","",SUMPRODUCT(($B129=$C$98:$C$121)*(W$98:W$121))) -> 36.06407523 | X129: =IF($B129="","",SUMPRODUCT(($B129=$C$98:$C$121)*(X$98:X$121))) -> 38.70260507 | Y129: =IF($B129="","",SUMPRODUCT(($B129=$C$98:$C$121)*(Y$98:Y$121))) -> 41.30828143 | Z129: =IF($B129="","",SUMPRODUCT(($B129=$C$98:$C$121)*(Z$98:Z$121))) -> 43.85556903 | AA129: =IF($B129="","",SUMPRODUCT(($B129=$C$98:$C$121)*(AA$98:AA$121))) -> 46.31502225 | AB129: =IF($B129="","",SUMPRODUCT(($B129=$C$98:$C$121)*(AB$98:AB$121))) -> 48.65695306 | AC129: =IF($B129="","",SUMPRODUCT(($B129=$C$98:$C$121)*(AC$98:AC$121))) -> 50.85368487 | AD129: =IF($B129="","",SUMPRODUCT(($B129=$C$98:$C$121)*(AD$98:AD$121))) -> 52.88279943 | AE129: =IF($B129="","",SUMPRODUCT(($B129=$C$98:$C$121)*(AE$98:AE$121))) -> 54.72985349 | AF129: =IF($B129="","",SUMPRODUCT(($B129=$C$98:$C$121)*(AF$98:AF$121))) -> 56.38954244 | AG129: =IF($B129="","",SUMPRODUCT(($B129=$C$98:$C$121)*(AG$98:AG$121))) -> 57.86546142 | AH129: =IF($B129="","",SUMPRODUCT(($B129=$C$98:$C$121)*(AH$98:AH$121))) -> 59.17003671 | AI129: =IF($B129="","",SUMPRODUCT(($B129=$C$98:$C$121)*(AI$98:AI$121))) -> 60.32073486 | AJ129: =IF($B129="","",SUMPRODUCT(($B129=$C$98:$C$121)*(AJ$98:AJ$121))) -> 61.33888635 | AK129: =IF($B129="","",SUMPRODUCT(($B129=$C$98:$C$121)*(AK$98:AK$121))) -> 62.24718543 | AL129: =IF($B129="","",SUMPRODUCT(($B129=$C$98:$C$121)*(AL$98:AL$121))) -> 63.06806654 | AM129: =IF($B129="","",SUMPRODUCT(($B129=$C$98:$C$121)*(AM$98:AM$121))) -> 63.82134216
B130: =IFERROR(INDEX($C$98:$C$121, MATCH(0,COUNTIF($B$123:B129,$C$98:$C$121), 0)),"") -> High Efficiency Chiller | D130: =IF($B130="","",SUMPRODUCT(($B130=$C$98:$C$121)*(D$98:D$121))) -> 0.003877072762 | E130: =IF($B130="","",SUMPRODUCT(($B130=$C$98:$C$121)*(E$98:E$121))) -> 0.01075993955 | F130: =IF($B130="","",SUMPRODUCT(($B130=$C$98:$C$121)*(F$98:F$121))) -> 0.02917172564 | G130: =IF($B130="","",SUMPRODUCT(($B130=$C$98:$C$121)*(G$98:G$121))) -> 0.07528389721 | H130: =IF($B130="","",SUMPRODUCT(($B130=$C$98:$C$121)*(H$98:H$121))) -> 0.1825550018 | I130: =IF($B130="","",SUMPRODUCT(($B130=$C$98:$C$121)*(I$98:I$121))) -> 0.39822284 | J130: =IF($B130="","",SUMPRODUCT(($B130=$C$98:$C$121)*(J$98:J$121))) -> 0.7534486469 | K130: =IF($B130="","",SUMPRODUCT(($B130=$C$98:$C$121)*(K$98:K$121))) -> 1.225212761 | L130: =IF($B130="","",SUMPRODUCT(($B130=$C$98:$C$121)*(L$98:L$121))) -> 1.768528814 | M130: =IF($B130="","",SUMPRODUCT(($B130=$C$98:$C$121)*(M$98:M$121))) -> 2.348494955 | N130: =IF($B130="","",SUMPRODUCT(($B130=$C$98:$C$121)*(N$98:N$121))) -> 2.949052351 | O130: =IF($B130="","",SUMPRODUCT(($B130=$C$98:$C$121)*(O$98:O$121))) -> 3.561512217 | P130: =IF($B130="","",SUMPRODUCT(($B130=$C$98:$C$121)*(P$98:P$121))) -> 4.182149229 | Q130: =IF($B130="","",SUMPRODUCT(($B130=$C$98:$C$121)*(Q$98:Q$121))) -> 4.8086972 | R130: =IF($B130="","",SUMPRODUCT(($B130=$C$98:$C$121)*(R$98:R$121))) -> 5.439562066 | S130: =IF($B130="","",SUMPRODUCT(($B130=$C$98:$C$121)*(S$98:S$121))) -> 6.073335036 | T130: =IF($B130="","",SUMPRODUCT(($B130=$C$98:$C$121)*(T$98:T$121))) -> 6.708921419 | U130: =IF($B130="","",SUMPRODUCT(($B130=$C$98:$C$121)*(U$98:U$121))) -> 7.345276769 | V130: =IF($B130="","",SUMPRODUCT(($B130=$C$98:$C$121)*(V$98:V$121))) -> 7.981857642 | W130: =IF($B130="","",SUMPRODUCT(($B130=$C$98:$C$121)*(W$98:W$121))) -> 8.61830897 | X130: =IF($B130="","",SUMPRODUCT(($B130=$C$98:$C$121)*(X$98:X$121))) -> 9.254341905 | Y130: =IF($B130="","",SUMPRODUCT(($B130=$C$98:$C$121)*(Y$98:Y$121))) -> 9.889910009 | Z130: =IF($B130="","",SUMPRODUCT(($B130=$C$98:$C$121)*(Z$98:Z$121))) -> 10.52456144 | AA130: =IF($B130="","",SUMPRODUCT(($B130=$C$98:$C$121)*(AA$98:AA$121))) -> 11.15727291 | AB130: =IF($B130="","",SUMPRODUCT(($B130=$C$98:$C$121)*(AB$98:AB$121))) -> 11.78620613 | AC130: =IF($B130="","",SUMPRODUCT(($B130=$C$98:$C$121)*(AC$98:AC$121))) -> 12.40862591 | AD130: =IF($B130="","",SUMPRODUCT(($B130=$C$98:$C$121)*(AD$98:AD$121))) -> 13.02068843 | AE130: =IF($B130="","",SUMPRODUCT(($B130=$C$98:$C$121)*(AE$98:AE$121))) -> 13.6177318 | AF130: =IF($B130="","",SUMPRODUCT(($B130=$C$98:$C$121)*(AF$98:AF$121))) -> 14.19452811 | AG130: =IF($B130="","",SUMPRODUCT(($B130=$C$98:$C$121)*(AG$98:AG$121))) -> 14.74589704 | AH130: =IF($B130="","",SUMPRODUCT(($B130=$C$98:$C$121)*(AH$98:AH$121))) -> 15.26683642 | AI130: =IF($B130="","",SUMPRODUCT(($B130=$C$98:$C$121)*(AI$98:AI$121))) -> 15.75358742 | AJ130: =IF($B130="","",SUMPRODUCT(($B130=$C$98:$C$121)*(AJ$98:AJ$121))) -> 16.20346087 | AK130: =IF($B130="","",SUMPRODUCT(($B130=$C$98:$C$121)*(AK$98:AK$121))) -> 16.61530152 | AL130: =IF($B130="","",SUMPRODUCT(($B130=$C$98:$C$121)*(AL$98:AL$121))) -> 16.98947748 | AM130: =IF($B130="","",SUMPRODUCT(($B130=$C$98:$C$121)*(AM$98:AM$121))) -> 17.32786877
B131: =IFERROR(INDEX($C$98:$C$121, MATCH(0,COUNTIF($B$123:B130,$C$98:$C$121), 0)),"") -> not used | D131: =IF($B131="","",SUMPRODUCT(($B131=$C$98:$C$121)*(D$98:D$121))) -> 0 | E131: =IF($B131="","",SUMPRODUCT(($B131=$C$98:$C$121)*(E$98:E$121))) -> 0 | F131: =IF($B131="","",SUMPRODUCT(($B131=$C$98:$C$121)*(F$98:F$121))) -> 0 | G131: =IF($B131="","",SUMPRODUCT(($B131=$C$98:$C$121)*(G$98:G$121))) -> 0 | H131: =IF($B131="","",SUMPRODUCT(($B131=$C$98:$C$121)*(H$98:H$121))) -> 0 | I131: =IF($B131="","",SUMPRODUCT(($B131=$C$98:$C$121)*(I$98:I$121))) -> 0 | J131: =IF($B131="","",SUMPRODUCT(($B131=$C$98:$C$121)*(J$98:J$121))) -> 0 | K131: =IF($B131="","",SUMPRODUCT(($B131=$C$98:$C$121)*(K$98:K$121))) -> 0 | L131: =IF($B131="","",SUMPRODUCT(($B131=$C$98:$C$121)*(L$98:L$121))) -> 0 | M131: =IF($B131="","",SUMPRODUCT(($B131=$C$98:$C$121)*(M$98:M$121))) -> 0 | N131: =IF($B131="","",SUMPRODUCT(($B131=$C$98:$C$121)*(N$98:N$121))) -> 0 | O131: =IF($B131="","",SUMPRODUCT(($B131=$C$98:$C$121)*(O$98:O$121))) -> 0 | P131: =IF($B131="","",SUMPRODUCT(($B131=$C$98:$C$121)*(P$98:P$121))) -> 0 | Q131: =IF($B131="","",SUMPRODUCT(($B131=$C$98:$C$121)*(Q$98:Q$121))) -> 0 | R131: =IF($B131="","",SUMPRODUCT(($B131=$C$98:$C$121)*(R$98:R$121))) -> 0 | S131: =IF($B131="","",SUMPRODUCT(($B131=$C$98:$C$121)*(S$98:S$121))) -> 0 | T131: =IF($B131="","",SUMPRODUCT(($B131=$C$98:$C$121)*(T$98:T$121))) -> 0 | U131: =IF($B131="","",SUMPRODUCT(($B131=$C$98:$C$121)*(U$98:U$121))) -> 0 | V131: =IF($B131="","",SUMPRODUCT(($B131=$C$98:$C$121)*(V$98:V$121))) -> 0 | W131: =IF($B131="","",SUMPRODUCT(($B131=$C$98:$C$121)*(W$98:W$121))) -> 0 | X131: =IF($B131="","",SUMPRODUCT(($B131=$C$98:$C$121)*(X$98:X$121))) -> 0 | Y131: =IF($B131="","",SUMPRODUCT(($B131=$C$98:$C$121)*(Y$98:Y$121))) -> 0 | Z131: =IF($B131="","",SUMPRODUCT(($B131=$C$98:$C$121)*(Z$98:Z$121))) -> 0 | AA131: =IF($B131="","",SUMPRODUCT(($B131=$C$98:$C$121)*(AA$98:AA$121))) -> 0 | AB131: =IF($B131="","",SUMPRODUCT(($B131=$C$98:$C$121)*(AB$98:AB$121))) -> 0 | AC131: =IF($B131="","",SUMPRODUCT(($B131=$C$98:$C$121)*(AC$98:AC$121))) -> 0 | AD131: =IF($B131="","",SUMPRODUCT(($B131=$C$98:$C$121)*(AD$98:AD$121))) -> 0 | AE131: =IF($B131="","",SUMPRODUCT(($B131=$C$98:$C$121)*(AE$98:AE$121))) -> 0 | AF131: =IF($B131="","",SUMPRODUCT(($B131=$C$98:$C$121)*(AF$98:AF$121))) -> 0 | AG131: =IF($B131="","",SUMPRODUCT(($B131=$C$98:$C$121)*(AG$98:AG$121))) -> 0 | AH131: =IF($B131="","",SUMPRODUCT(($B131=$C$98:$C$121)*(AH$98:AH$121))) -> 0 | AI131: =IF($B131="","",SUMPRODUCT(($B131=$C$98:$C$121)*(AI$98:AI$121))) -> 0 | AJ131: =IF($B131="","",SUMPRODUCT(($B131=$C$98:$C$121)*(AJ$98:AJ$121))) -> 0 | AK131: =IF($B131="","",SUMPRODUCT(($B131=$C$98:$C$121)*(AK$98:AK$121))) -> 0 | AL131: =IF($B131="","",SUMPRODUCT(($B131=$C$98:$C$121)*(AL$98:AL$121))) -> 0 | AM131: =IF($B131="","",SUMPRODUCT(($B131=$C$98:$C$121)*(AM$98:AM$121))) -> 0
B132: =IFERROR(INDEX($C$98:$C$121, MATCH(0,COUNTIF($B$123:B131,$C$98:$C$121), 0)),"") ->  | D132: =IF($B132="","",SUMPRODUCT(($B132=$C$98:$C$121)*(D$98:D$121))) ->  | E132: =IF($B132="","",SUMPRODUCT(($B132=$C$98:$C$121)*(E$98:E$121))) ->  | F132: =IF($B132="","",SUMPRODUCT(($B132=$C$98:$C$121)*(F$98:F$121))) ->  | G132: =IF($B132="","",SUMPRODUCT(($B132=$C$98:$C$121)*(G$98:G$121))) ->  | H132: =IF($B132="","",SUMPRODUCT(($B132=$C$98:$C$121)*(H$98:H$121))) ->  | I132: =IF($B132="","",SUMPRODUCT(($B132=$C$98:$C$121)*(I$98:I$121))) ->  | J132: =IF($B132="","",SUMPRODUCT(($B132=$C$98:$C$121)*(J$98:J$121))) ->  | K132: =IF($B132="","",SUMPRODUCT(($B132=$C$98:$C$121)*(K$98:K$121))) ->  | L132: =IF($B132="","",SUMPRODUCT(($B132=$C$98:$C$121)*(L$98:L$121))) ->  | M132: =IF($B132="","",SUMPRODUCT(($B132=$C$98:$C$121)*(M$98:M$121))) ->  | N132: =IF($B132="","",SUMPRODUCT(($B132=$C$98:$C$121)*(N$98:N$121))) ->  | O132: =IF($B132="","",SUMPRODUCT(($B132=$C$98:$C$121)*(O$98:O$121))) ->  | P132: =IF($B132="","",SUMPRODUCT(($B132=$C$98:$C$121)*(P$98:P$121))) ->  | Q132: =IF($B132="","",SUMPRODUCT(($B132=$C$98:$C$121)*(Q$98:Q$121))) ->  | R132: =IF($B132="","",SUMPRODUCT(($B132=$C$98:$C$121)*(R$98:R$121))) ->  | S132: =IF($B132="","",SUMPRODUCT(($B132=$C$98:$C$121)*(S$98:S$121))) ->  | T132: =IF($B132="","",SUMPRODUCT(($B132=$C$98:$C$121)*(T$98:T$121))) ->  | U132: =IF($B132="","",SUMPRODUCT(($B132=$C$98:$C$121)*(U$98:U$121))) ->  | V132: =IF($B132="","",SUMPRODUCT(($B132=$C$98:$C$121)*(V$98:V$121))) ->  | W132: =IF($B132="","",SUMPRODUCT(($B132=$C$98:$C$121)*(W$98:W$121))) ->  | X132: =IF($B132="","",SUMPRODUCT(($B132=$C$98:$C$121)*(X$98:X$121))) ->  | Y132: =IF($B132="","",SUMPRODUCT(($B132=$C$98:$C$121)*(Y$98:Y$121))) ->  | Z132: =IF($B132="","",SUMPRODUCT(($B132=$C$98:$C$121)*(Z$98:Z$121))) ->  | AA132: =IF($B132="","",SUMPRODUCT(($B132=$C$98:$C$121)*(AA$98:AA$121))) ->  | AB132: =IF($B132="","",SUMPRODUCT(($B132=$C$98:$C$121)*(AB$98:AB$121))) ->  | AC132: =IF($B132="","",SUMPRODUCT(($B132=$C$98:$C$121)*(AC$98:AC$121))) ->  | AD132: =IF($B132="","",SUMPRODUCT(($B132=$C$98:$C$121)*(AD$98:AD$121))) ->  | AE132: =IF($B132="","",SUMPRODUCT(($B132=$C$98:$C$121)*(AE$98:AE$121))) ->  | AF132: =IF($B132="","",SUMPRODUCT(($B132=$C$98:$C$121)*(AF$98:AF$121))) ->  | AG132: =IF($B132="","",SUMPRODUCT(($B132=$C$98:$C$121)*(AG$98:AG$121))) ->  | AH132: =IF($B132="","",SUMPRODUCT(($B132=$C$98:$C$121)*(AH$98:AH$121))) ->  | AI132: =IF($B132="","",SUMPRODUCT(($B132=$C$98:$C$121)*(AI$98:AI$121))) ->  | AJ132: =IF($B132="","",SUMPRODUCT(($B132=$C$98:$C$121)*(AJ$98:AJ$121))) ->  | AK132: =IF($B132="","",SUMPRODUCT(($B132=$C$98:$C$121)*(AK$98:AK$121))) ->  | AL132: =IF($B132="","",SUMPRODUCT(($B132=$C$98:$C$121)*(AL$98:AL$121))) ->  | AM132: =IF($B132="","",SUMPRODUCT(($B132=$C$98:$C$121)*(AM$98:AM$121))) -> 
B133: =IFERROR(INDEX($C$98:$C$121, MATCH(0,COUNTIF($B$123:B132,$C$98:$C$121), 0)),"") ->  | D133: =IF($B133="","",SUMPRODUCT(($B133=$C$98:$C$121)*(D$98:D$121))) ->  | E133: =IF($B133="","",SUMPRODUCT(($B133=$C$98:$C$121)*(E$98:E$121))) ->  | F133: =IF($B133="","",SUMPRODUCT(($B133=$C$98:$C$121)*(F$98:F$121))) ->  | G133: =IF($B133="","",SUMPRODUCT(($B133=$C$98:$C$121)*(G$98:G$121))) ->  | H133: =IF($B133="","",SUMPRODUCT(($B133=$C$98:$C$121)*(H$98:H$121))) ->  | I133: =IF($B133="","",SUMPRODUCT(($B133=$C$98:$C$121)*(I$98:I$121))) ->  | J133: =IF($B133="","",SUMPRODUCT(($B133=$C$98:$C$121)*(J$98:J$121))) ->  | K133: =IF($B133="","",SUMPRODUCT(($B133=$C$98:$C$121)*(K$98:K$121))) ->  | L133: =IF($B133="","",SUMPRODUCT(($B133=$C$98:$C$121)*(L$98:L$121))) ->  | M133: =IF($B133="","",SUMPRODUCT(($B133=$C$98:$C$121)*(M$98:M$121))) ->  | N133: =IF($B133="","",SUMPRODUCT(($B133=$C$98:$C$121)*(N$98:N$121))) ->  | O133: =IF($B133="","",SUMPRODUCT(($B133=$C$98:$C$121)*(O$98:O$121))) ->  | P133: =IF($B133="","",SUMPRODUCT(($B133=$C$98:$C$121)*(P$98:P$121))) ->  | Q133: =IF($B133="","",SUMPRODUCT(($B133=$C$98:$C$121)*(Q$98:Q$121))) ->  | R133: =IF($B133="","",SUMPRODUCT(($B133=$C$98:$C$121)*(R$98:R$121))) ->  | S133: =IF($B133="","",SUMPRODUCT(($B133=$C$98:$C$121)*(S$98:S$121))) ->  | T133: =IF($B133="","",SUMPRODUCT(($B133=$C$98:$C$121)*(T$98:T$121))) ->  | U133: =IF($B133="","",SUMPRODUCT(($B133=$C$98:$C$121)*(U$98:U$121))) ->  | V133: =IF($B133="","",SUMPRODUCT(($B133=$C$98:$C$121)*(V$98:V$121))) ->  | W133: =IF($B133="","",SUMPRODUCT(($B133=$C$98:$C$121)*(W$98:W$121))) ->  | X133: =IF($B133="","",SUMPRODUCT(($B133=$C$98:$C$121)*(X$98:X$121))) ->  | Y133: =IF($B133="","",SUMPRODUCT(($B133=$C$98:$C$121)*(Y$98:Y$121))) ->  | Z133: =IF($B133="","",SUMPRODUCT(($B133=$C$98:$C$121)*(Z$98:Z$121))) ->  | AA133: =IF($B133="","",SUMPRODUCT(($B133=$C$98:$C$121)*(AA$98:AA$121))) ->  | AB133: =IF($B133="","",SUMPRODUCT(($B133=$C$98:$C$121)*(AB$98:AB$121))) ->  | AC133: =IF($B133="","",SUMPRODUCT(($B133=$C$98:$C$121)*(AC$98:AC$121))) ->  | AD133: =IF($B133="","",SUMPRODUCT(($B133=$C$98:$C$121)*(AD$98:AD$121))) ->  | AE133: =IF($B133="","",SUMPRODUCT(($B133=$C$98:$C$121)*(AE$98:AE$121))) ->  | AF133: =IF($B133="","",SUMPRODUCT(($B133=$C$98:$C$121)*(AF$98:AF$121))) ->  | AG133: =IF($B133="","",SUMPRODUCT(($B133=$C$98:$C$121)*(AG$98:AG$121))) ->  | AH133: =IF($B133="","",SUMPRODUCT(($B133=$C$98:$C$121)*(AH$98:AH$121))) ->  | AI133: =IF($B133="","",SUMPRODUCT(($B133=$C$98:$C$121)*(AI$98:AI$121))) ->  | AJ133: =IF($B133="","",SUMPRODUCT(($B133=$C$98:$C$121)*(AJ$98:AJ$121))) ->  | AK133: =IF($B133="","",SUMPRODUCT(($B133=$C$98:$C$121)*(AK$98:AK$121))) ->  | AL133: =IF($B133="","",SUMPRODUCT(($B133=$C$98:$C$121)*(AL$98:AL$121))) ->  | AM133: =IF($B133="","",SUMPRODUCT(($B133=$C$98:$C$121)*(AM$98:AM$121))) -> 
B134: =IFERROR(INDEX($C$98:$C$121, MATCH(0,COUNTIF($B$123:B133,$C$98:$C$121), 0)),"") ->  | D134: =IF($B134="","",SUMPRODUCT(($B134=$C$98:$C$121)*(D$98:D$121))) ->  | E134: =IF($B134="","",SUMPRODUCT(($B134=$C$98:$C$121)*(E$98:E$121))) ->  | F134: =IF($B134="","",SUMPRODUCT(($B134=$C$98:$C$121)*(F$98:F$121))) ->  | G134: =IF($B134="","",SUMPRODUCT(($B134=$C$98:$C$121)*(G$98:G$121))) ->  | H134: =IF($B134="","",SUMPRODUCT(($B134=$C$98:$C$121)*(H$98:H$121))) ->  | I134: =IF($B134="","",SUMPRODUCT(($B134=$C$98:$C$121)*(I$98:I$121))) ->  | J134: =IF($B134="","",SUMPRODUCT(($B134=$C$98:$C$121)*(J$98:J$121))) ->  | K134: =IF($B134="","",SUMPRODUCT(($B134=$C$98:$C$121)*(K$98:K$121))) ->  | L134: =IF($B134="","",SUMPRODUCT(($B134=$C$98:$C$121)*(L$98:L$121))) ->  | M134: =IF($B134="","",SUMPRODUCT(($B134=$C$98:$C$121)*(M$98:M$121))) ->  | N134: =IF($B134="","",SUMPRODUCT(($B134=$C$98:$C$121)*(N$98:N$121))) ->  | O134: =IF($B134="","",SUMPRODUCT(($B134=$C$98:$C$121)*(O$98:O$121))) ->  | P134: =IF($B134="","",SUMPRODUCT(($B134=$C$98:$C$121)*(P$98:P$121))) ->  | Q134: =IF($B134="","",SUMPRODUCT(($B134=$C$98:$C$121)*(Q$98:Q$121))) ->  | R134: =IF($B134="","",SUMPRODUCT(($B134=$C$98:$C$121)*(R$98:R$121))) ->  | S134: =IF($B134="","",SUMPRODUCT(($B134=$C$98:$C$121)*(S$98:S$121))) ->  | T134: =IF($B134="","",SUMPRODUCT(($B134=$C$98:$C$121)*(T$98:T$121))) ->  | U134: =IF($B134="","",SUMPRODUCT(($B134=$C$98:$C$121)*(U$98:U$121))) ->  | V134: =IF($B134="","",SUMPRODUCT(($B134=$C$98:$C$121)*(V$98:V$121))) ->  | W134: =IF($B134="","",SUMPRODUCT(($B134=$C$98:$C$121)*(W$98:W$121))) ->  | X134: =IF($B134="","",SUMPRODUCT(($B134=$C$98:$C$121)*(X$98:X$121))) ->  | Y134: =IF($B134="","",SUMPRODUCT(($B134=$C$98:$C$121)*(Y$98:Y$121))) ->  | Z134: =IF($B134="","",SUMPRODUCT(($B134=$C$98:$C$121)*(Z$98:Z$121))) ->  | AA134: =IF($B134="","",SUMPRODUCT(($B134=$C$98:$C$121)*(AA$98:AA$121))) ->  | AB134: =IF($B134="","",SUMPRODUCT(($B134=$C$98:$C$121)*(AB$98:AB$121))) ->  | AC134: =IF($B134="","",SUMPRODUCT(($B134=$C$98:$C$121)*(AC$98:AC$121))) ->  | AD134: =IF($B134="","",SUMPRODUCT(($B134=$C$98:$C$121)*(AD$98:AD$121))) ->  | AE134: =IF($B134="","",SUMPRODUCT(($B134=$C$98:$C$121)*(AE$98:AE$121))) ->  | AF134: =IF($B134="","",SUMPRODUCT(($B134=$C$98:$C$121)*(AF$98:AF$121))) ->  | AG134: =IF($B134="","",SUMPRODUCT(($B134=$C$98:$C$121)*(AG$98:AG$121))) ->  | AH134: =IF($B134="","",SUMPRODUCT(($B134=$C$98:$C$121)*(AH$98:AH$121))) ->  | AI134: =IF($B134="","",SUMPRODUCT(($B134=$C$98:$C$121)*(AI$98:AI$121))) ->  | AJ134: =IF($B134="","",SUMPRODUCT(($B134=$C$98:$C$121)*(AJ$98:AJ$121))) ->  | AK134: =IF($B134="","",SUMPRODUCT(($B134=$C$98:$C$121)*(AK$98:AK$121))) ->  | AL134: =IF($B134="","",SUMPRODUCT(($B134=$C$98:$C$121)*(AL$98:AL$121))) ->  | AM134: =IF($B134="","",SUMPRODUCT(($B134=$C$98:$C$121)*(AM$98:AM$121))) -> 
B135: =IFERROR(INDEX($C$98:$C$121, MATCH(0,COUNTIF($B$123:B134,$C$98:$C$121), 0)),"") ->  | D135: =IF($B135="","",SUMPRODUCT(($B135=$C$98:$C$121)*(D$98:D$121))) ->  | E135: =IF($B135="","",SUMPRODUCT(($B135=$C$98:$C$121)*(E$98:E$121))) ->  | F135: =IF($B135="","",SUMPRODUCT(($B135=$C$98:$C$121)*(F$98:F$121))) ->  | G135: =IF($B135="","",SUMPRODUCT(($B135=$C$98:$C$121)*(G$98:G$121))) ->  | H135: =IF($B135="","",SUMPRODUCT(($B135=$C$98:$C$121)*(H$98:H$121))) ->  | I135: =IF($B135="","",SUMPRODUCT(($B135=$C$98:$C$121)*(I$98:I$121))) ->  | J135: =IF($B135="","",SUMPRODUCT(($B135=$C$98:$C$121)*(J$98:J$121))) ->  | K135: =IF($B135="","",SUMPRODUCT(($B135=$C$98:$C$121)*(K$98:K$121))) ->  | L135: =IF($B135="","",SUMPRODUCT(($B135=$C$98:$C$121)*(L$98:L$121))) ->  | M135: =IF($B135="","",SUMPRODUCT(($B135=$C$98:$C$121)*(M$98:M$121))) ->  | N135: =IF($B135="","",SUMPRODUCT(($B135=$C$98:$C$121)*(N$98:N$121))) ->  | O135: =IF($B135="","",SUMPRODUCT(($B135=$C$98:$C$121)*(O$98:O$121))) ->  | P135: =IF($B135="","",SUMPRODUCT(($B135=$C$98:$C$121)*(P$98:P$121))) ->  | Q135: =IF($B135="","",SUMPRODUCT(($B135=$C$98:$C$121)*(Q$98:Q$121))) ->  | R135: =IF($B135="","",SUMPRODUCT(($B135=$C$98:$C$121)*(R$98:R$121))) ->  | S135: =IF($B135="","",SUMPRODUCT(($B135=$C$98:$C$121)*(S$98:S$121))) ->  | T135: =IF($B135="","",SUMPRODUCT(($B135=$C$98:$C$121)*(T$98:T$121))) ->  | U135: =IF($B135="","",SUMPRODUCT(($B135=$C$98:$C$121)*(U$98:U$121))) ->  | V135: =IF($B135="","",SUMPRODUCT(($B135=$C$98:$C$121)*(V$98:V$121))) ->  | W135: =IF($B135="","",SUMPRODUCT(($B135=$C$98:$C$121)*(W$98:W$121))) ->  | X135: =IF($B135="","",SUMPRODUCT(($B135=$C$98:$C$121)*(X$98:X$121))) ->  | Y135: =IF($B135="","",SUMPRODUCT(($B135=$C$98:$C$121)*(Y$98:Y$121))) ->  | Z135: =IF($B135="","",SUMPRODUCT(($B135=$C$98:$C$121)*(Z$98:Z$121))) ->  | AA135: =IF($B135="","",SUMPRODUCT(($B135=$C$98:$C$121)*(AA$98:AA$121))) ->  | AB135: =IF($B135="","",SUMPRODUCT(($B135=$C$98:$C$121)*(AB$98:AB$121))) ->  | AC135: =IF($B135="","",SUMPRODUCT(($B135=$C$98:$C$121)*(AC$98:AC$121))) ->  | AD135: =IF($B135="","",SUMPRODUCT(($B135=$C$98:$C$121)*(AD$98:AD$121))) ->  | AE135: =IF($B135="","",SUMPRODUCT(($B135=$C$98:$C$121)*(AE$98:AE$121))) ->  | AF135: =IF($B135="","",SUMPRODUCT(($B135=$C$98:$C$121)*(AF$98:AF$121))) ->  | AG135: =IF($B135="","",SUMPRODUCT(($B135=$C$98:$C$121)*(AG$98:AG$121))) ->  | AH135: =IF($B135="","",SUMPRODUCT(($B135=$C$98:$C$121)*(AH$98:AH$121))) ->  | AI135: =IF($B135="","",SUMPRODUCT(($B135=$C$98:$C$121)*(AI$98:AI$121))) ->  | AJ135: =IF($B135="","",SUMPRODUCT(($B135=$C$98:$C$121)*(AJ$98:AJ$121))) ->  | AK135: =IF($B135="","",SUMPRODUCT(($B135=$C$98:$C$121)*(AK$98:AK$121))) ->  | AL135: =IF($B135="","",SUMPRODUCT(($B135=$C$98:$C$121)*(AL$98:AL$121))) ->  | AM135: =IF($B135="","",SUMPRODUCT(($B135=$C$98:$C$121)*(AM$98:AM$121))) -> 
B136: =IFERROR(INDEX($C$98:$C$121, MATCH(0,COUNTIF($B$123:B135,$C$98:$C$121), 0)),"") ->  | D136: =IF($B136="","",SUMPRODUCT(($B136=$C$98:$C$121)*(D$98:D$121))) ->  | E136: =IF($B136="","",SUMPRODUCT(($B136=$C$98:$C$121)*(E$98:E$121))) ->  | F136: =IF($B136="","",SUMPRODUCT(($B136=$C$98:$C$121)*(F$98:F$121))) ->  | G136: =IF($B136="","",SUMPRODUCT(($B136=$C$98:$C$121)*(G$98:G$121))) ->  | H136: =IF($B136="","",SUMPRODUCT(($B136=$C$98:$C$121)*(H$98:H$121))) ->  | I136: =IF($B136="","",SUMPRODUCT(($B136=$C$98:$C$121)*(I$98:I$121))) ->  | J136: =IF($B136="","",SUMPRODUCT(($B136=$C$98:$C$121)*(J$98:J$121))) ->  | K136: =IF($B136="","",SUMPRODUCT(($B136=$C$98:$C$121)*(K$98:K$121))) ->  | L136: =IF($B136="","",SUMPRODUCT(($B136=$C$98:$C$121)*(L$98:L$121))) ->  | M136: =IF($B136="","",SUMPRODUCT(($B136=$C$98:$C$121)*(M$98:M$121))) ->  | N136: =IF($B136="","",SUMPRODUCT(($B136=$C$98:$C$121)*(N$98:N$121))) ->  | O136: =IF($B136="","",SUMPRODUCT(($B136=$C$98:$C$121)*(O$98:O$121))) ->  | P136: =IF($B136="","",SUMPRODUCT(($B136=$C$98:$C$121)*(P$98:P$121))) ->  | Q136: =IF($B136="","",SUMPRODUCT(($B136=$C$98:$C$121)*(Q$98:Q$121))) ->  | R136: =IF($B136="","",SUMPRODUCT(($B136=$C$98:$C$121)*(R$98:R$121))) ->  | S136: =IF($B136="","",SUMPRODUCT(($B136=$C$98:$C$121)*(S$98:S$121))) ->  | T136: =IF($B136="","",SUMPRODUCT(($B136=$C$98:$C$121)*(T$98:T$121))) ->  | U136: =IF($B136="","",SUMPRODUCT(($B136=$C$98:$C$121)*(U$98:U$121))) ->  | V136: =IF($B136="","",SUMPRODUCT(($B136=$C$98:$C$121)*(V$98:V$121))) ->  | W136: =IF($B136="","",SUMPRODUCT(($B136=$C$98:$C$121)*(W$98:W$121))) ->  | X136: =IF($B136="","",SUMPRODUCT(($B136=$C$98:$C$121)*(X$98:X$121))) ->  | Y136: =IF($B136="","",SUMPRODUCT(($B136=$C$98:$C$121)*(Y$98:Y$121))) ->  | Z136: =IF($B136="","",SUMPRODUCT(($B136=$C$98:$C$121)*(Z$98:Z$121))) ->  | AA136: =IF($B136="","",SUMPRODUCT(($B136=$C$98:$C$121)*(AA$98:AA$121))) ->  | AB136: =IF($B136="","",SUMPRODUCT(($B136=$C$98:$C$121)*(AB$98:AB$121))) ->  | AC136: =IF($B136="","",SUMPRODUCT(($B136=$C$98:$C$121)*(AC$98:AC$121))) ->  | AD136: =IF($B136="","",SUMPRODUCT(($B136=$C$98:$C$121)*(AD$98:AD$121))) ->  | AE136: =IF($B136="","",SUMPRODUCT(($B136=$C$98:$C$121)*(AE$98:AE$121))) ->  | AF136: =IF($B136="","",SUMPRODUCT(($B136=$C$98:$C$121)*(AF$98:AF$121))) ->  | AG136: =IF($B136="","",SUMPRODUCT(($B136=$C$98:$C$121)*(AG$98:AG$121))) ->  | AH136: =IF($B136="","",SUMPRODUCT(($B136=$C$98:$C$121)*(AH$98:AH$121))) ->  | AI136: =IF($B136="","",SUMPRODUCT(($B136=$C$98:$C$121)*(AI$98:AI$121))) ->  | AJ136: =IF($B136="","",SUMPRODUCT(($B136=$C$98:$C$121)*(AJ$98:AJ$121))) ->  | AK136: =IF($B136="","",SUMPRODUCT(($B136=$C$98:$C$121)*(AK$98:AK$121))) ->  | AL136: =IF($B136="","",SUMPRODUCT(($B136=$C$98:$C$121)*(AL$98:AL$121))) ->  | AM136: =IF($B136="","",SUMPRODUCT(($B136=$C$98:$C$121)*(AM$98:AM$121))) -> 
B137: =IFERROR(INDEX($C$98:$C$121, MATCH(0,COUNTIF($B$123:B136,$C$98:$C$121), 0)),"") ->  | D137: =IF($B137="","",SUMPRODUCT(($B137=$C$98:$C$121)*(D$98:D$121))) ->  | E137: =IF($B137="","",SUMPRODUCT(($B137=$C$98:$C$121)*(E$98:E$121))) ->  | F137: =IF($B137="","",SUMPRODUCT(($B137=$C$98:$C$121)*(F$98:F$121))) ->  | G137: =IF($B137="","",SUMPRODUCT(($B137=$C$98:$C$121)*(G$98:G$121))) ->  | H137: =IF($B137="","",SUMPRODUCT(($B137=$C$98:$C$121)*(H$98:H$121))) ->  | I137: =IF($B137="","",SUMPRODUCT(($B137=$C$98:$C$121)*(I$98:I$121))) ->  | J137: =IF($B137="","",SUMPRODUCT(($B137=$C$98:$C$121)*(J$98:J$121))) ->  | K137: =IF($B137="","",SUMPRODUCT(($B137=$C$98:$C$121)*(K$98:K$121))) ->  | L137: =IF($B137="","",SUMPRODUCT(($B137=$C$98:$C$121)*(L$98:L$121))) ->  | M137: =IF($B137="","",SUMPRODUCT(($B137=$C$98:$C$121)*(M$98:M$121))) ->  | N137: =IF($B137="","",SUMPRODUCT(($B137=$C$98:$C$121)*(N$98:N$121))) ->  | O137: =IF($B137="","",SUMPRODUCT(($B137=$C$98:$C$121)*(O$98:O$121))) ->  | P137: =IF($B137="","",SUMPRODUCT(($B137=$C$98:$C$121)*(P$98:P$121))) ->  | Q137: =IF($B137="","",SUMPRODUCT(($B137=$C$98:$C$121)*(Q$98:Q$121))) ->  | R137: =IF($B137="","",SUMPRODUCT(($B137=$C$98:$C$121)*(R$98:R$121))) ->  | S137: =IF($B137="","",SUMPRODUCT(($B137=$C$98:$C$121)*(S$98:S$121))) ->  | T137: =IF($B137="","",SUMPRODUCT(($B137=$C$98:$C$121)*(T$98:T$121))) ->  | U137: =IF($B137="","",SUMPRODUCT(($B137=$C$98:$C$121)*(U$98:U$121))) ->  | V137: =IF($B137="","",SUMPRODUCT(($B137=$C$98:$C$121)*(V$98:V$121))) ->  | W137: =IF($B137="","",SUMPRODUCT(($B137=$C$98:$C$121)*(W$98:W$121))) ->  | X137: =IF($B137="","",SUMPRODUCT(($B137=$C$98:$C$121)*(X$98:X$121))) ->  | Y137: =IF($B137="","",SUMPRODUCT(($B137=$C$98:$C$121)*(Y$98:Y$121))) ->  | Z137: =IF($B137="","",SUMPRODUCT(($B137=$C$98:$C$121)*(Z$98:Z$121))) ->  | AA137: =IF($B137="","",SUMPRODUCT(($B137=$C$98:$C$121)*(AA$98:AA$121))) ->  | AB137: =IF($B137="","",SUMPRODUCT(($B137=$C$98:$C$121)*(AB$98:AB$121))) ->  | AC137: =IF($B137="","",SUMPRODUCT(($B137=$C$98:$C$121)*(AC$98:AC$121))) ->  | AD137: =IF($B137="","",SUMPRODUCT(($B137=$C$98:$C$121)*(AD$98:AD$121))) ->  | AE137: =IF($B137="","",SUMPRODUCT(($B137=$C$98:$C$121)*(AE$98:AE$121))) ->  | AF137: =IF($B137="","",SUMPRODUCT(($B137=$C$98:$C$121)*(AF$98:AF$121))) ->  | AG137: =IF($B137="","",SUMPRODUCT(($B137=$C$98:$C$121)*(AG$98:AG$121))) ->  | AH137: =IF($B137="","",SUMPRODUCT(($B137=$C$98:$C$121)*(AH$98:AH$121))) ->  | AI137: =IF($B137="","",SUMPRODUCT(($B137=$C$98:$C$121)*(AI$98:AI$121))) ->  | AJ137: =IF($B137="","",SUMPRODUCT(($B137=$C$98:$C$121)*(AJ$98:AJ$121))) ->  | AK137: =IF($B137="","",SUMPRODUCT(($B137=$C$98:$C$121)*(AK$98:AK$121))) ->  | AL137: =IF($B137="","",SUMPRODUCT(($B137=$C$98:$C$121)*(AL$98:AL$121))) ->  | AM137: =IF($B137="","",SUMPRODUCT(($B137=$C$98:$C$121)*(AM$98:AM$121))) -> 
B138: =IFERROR(INDEX($C$98:$C$121, MATCH(0,COUNTIF($B$123:B137,$C$98:$C$121), 0)),"") ->  | D138: =IF($B138="","",SUMPRODUCT(($B138=$C$98:$C$121)*(D$98:D$121))) ->  | E138: =IF($B138="","",SUMPRODUCT(($B138=$C$98:$C$121)*(E$98:E$121))) ->  | F138: =IF($B138="","",SUMPRODUCT(($B138=$C$98:$C$121)*(F$98:F$121))) ->  | G138: =IF($B138="","",SUMPRODUCT(($B138=$C$98:$C$121)*(G$98:G$121))) ->  | H138: =IF($B138="","",SUMPRODUCT(($B138=$C$98:$C$121)*(H$98:H$121))) ->  | I138: =IF($B138="","",SUMPRODUCT(($B138=$C$98:$C$121)*(I$98:I$121))) ->  | J138: =IF($B138="","",SUMPRODUCT(($B138=$C$98:$C$121)*(J$98:J$121))) ->  | K138: =IF($B138="","",SUMPRODUCT(($B138=$C$98:$C$121)*(K$98:K$121))) ->  | L138: =IF($B138="","",SUMPRODUCT(($B138=$C$98:$C$121)*(L$98:L$121))) ->  | M138: =IF($B138="","",SUMPRODUCT(($B138=$C$98:$C$121)*(M$98:M$121))) ->  | N138: =IF($B138="","",SUMPRODUCT(($B138=$C$98:$C$121)*(N$98:N$121))) ->  | O138: =IF($B138="","",SUMPRODUCT(($B138=$C$98:$C$121)*(O$98:O$121))) ->  | P138: =IF($B138="","",SUMPRODUCT(($B138=$C$98:$C$121)*(P$98:P$121))) ->  | Q138: =IF($B138="","",SUMPRODUCT(($B138=$C$98:$C$121)*(Q$98:Q$121))) ->  | R138: =IF($B138="","",SUMPRODUCT(($B138=$C$98:$C$121)*(R$98:R$121))) ->  | S138: =IF($B138="","",SUMPRODUCT(($B138=$C$98:$C$121)*(S$98:S$121))) ->  | T138: =IF($B138="","",SUMPRODUCT(($B138=$C$98:$C$121)*(T$98:T$121))) ->  | U138: =IF($B138="","",SUMPRODUCT(($B138=$C$98:$C$121)*(U$98:U$121))) ->  | V138: =IF($B138="","",SUMPRODUCT(($B138=$C$98:$C$121)*(V$98:V$121))) ->  | W138: =IF($B138="","",SUMPRODUCT(($B138=$C$98:$C$121)*(W$98:W$121))) ->  | X138: =IF($B138="","",SUMPRODUCT(($B138=$C$98:$C$121)*(X$98:X$121))) ->  | Y138: =IF($B138="","",SUMPRODUCT(($B138=$C$98:$C$121)*(Y$98:Y$121))) ->  | Z138: =IF($B138="","",SUMPRODUCT(($B138=$C$98:$C$121)*(Z$98:Z$121))) ->  | AA138: =IF($B138="","",SUMPRODUCT(($B138=$C$98:$C$121)*(AA$98:AA$121))) ->  | AB138: =IF($B138="","",SUMPRODUCT(($B138=$C$98:$C$121)*(AB$98:AB$121))) ->  | AC138: =IF($B138="","",SUMPRODUCT(($B138=$C$98:$C$121)*(AC$98:AC$121))) ->  | AD138: =IF($B138="","",SUMPRODUCT(($B138=$C$98:$C$121)*(AD$98:AD$121))) ->  | AE138: =IF($B138="","",SUMPRODUCT(($B138=$C$98:$C$121)*(AE$98:AE$121))) ->  | AF138: =IF($B138="","",SUMPRODUCT(($B138=$C$98:$C$121)*(AF$98:AF$121))) ->  | AG138: =IF($B138="","",SUMPRODUCT(($B138=$C$98:$C$121)*(AG$98:AG$121))) ->  | AH138: =IF($B138="","",SUMPRODUCT(($B138=$C$98:$C$121)*(AH$98:AH$121))) ->  | AI138: =IF($B138="","",SUMPRODUCT(($B138=$C$98:$C$121)*(AI$98:AI$121))) ->  | AJ138: =IF($B138="","",SUMPRODUCT(($B138=$C$98:$C$121)*(AJ$98:AJ$121))) ->  | AK138: =IF($B138="","",SUMPRODUCT(($B138=$C$98:$C$121)*(AK$98:AK$121))) ->  | AL138: =IF($B138="","",SUMPRODUCT(($B138=$C$98:$C$121)*(AL$98:AL$121))) ->  | AM138: =IF($B138="","",SUMPRODUCT(($B138=$C$98:$C$121)*(AM$98:AM$121))) -> 
B139: =IFERROR(INDEX($C$98:$C$121, MATCH(0,COUNTIF($B$123:B138,$C$98:$C$121), 0)),"") ->  | D139: =IF($B139="","",SUMPRODUCT(($B139=$C$98:$C$121)*(D$98:D$121))) ->  | E139: =IF($B139="","",SUMPRODUCT(($B139=$C$98:$C$121)*(E$98:E$121))) ->  | F139: =IF($B139="","",SUMPRODUCT(($B139=$C$98:$C$121)*(F$98:F$121))) ->  | G139: =IF($B139="","",SUMPRODUCT(($B139=$C$98:$C$121)*(G$98:G$121))) ->  | H139: =IF($B139="","",SUMPRODUCT(($B139=$C$98:$C$121)*(H$98:H$121))) ->  | I139: =IF($B139="","",SUMPRODUCT(($B139=$C$98:$C$121)*(I$98:I$121))) ->  | J139: =IF($B139="","",SUMPRODUCT(($B139=$C$98:$C$121)*(J$98:J$121))) ->  | K139: =IF($B139="","",SUMPRODUCT(($B139=$C$98:$C$121)*(K$98:K$121))) ->  | L139: =IF($B139="","",SUMPRODUCT(($B139=$C$98:$C$121)*(L$98:L$121))) ->  | M139: =IF($B139="","",SUMPRODUCT(($B139=$C$98:$C$121)*(M$98:M$121))) ->  | N139: =IF($B139="","",SUMPRODUCT(($B139=$C$98:$C$121)*(N$98:N$121))) ->  | O139: =IF($B139="","",SUMPRODUCT(($B139=$C$98:$C$121)*(O$98:O$121))) ->  | P139: =IF($B139="","",SUMPRODUCT(($B139=$C$98:$C$121)*(P$98:P$121))) ->  | Q139: =IF($B139="","",SUMPRODUCT(($B139=$C$98:$C$121)*(Q$98:Q$121))) ->  | R139: =IF($B139="","",SUMPRODUCT(($B139=$C$98:$C$121)*(R$98:R$121))) ->  | S139: =IF($B139="","",SUMPRODUCT(($B139=$C$98:$C$121)*(S$98:S$121))) ->  | T139: =IF($B139="","",SUMPRODUCT(($B139=$C$98:$C$121)*(T$98:T$121))) ->  | U139: =IF($B139="","",SUMPRODUCT(($B139=$C$98:$C$121)*(U$98:U$121))) ->  | V139: =IF($B139="","",SUMPRODUCT(($B139=$C$98:$C$121)*(V$98:V$121))) ->  | W139: =IF($B139="","",SUMPRODUCT(($B139=$C$98:$C$121)*(W$98:W$121))) ->  | X139: =IF($B139="","",SUMPRODUCT(($B139=$C$98:$C$121)*(X$98:X$121))) ->  | Y139: =IF($B139="","",SUMPRODUCT(($B139=$C$98:$C$121)*(Y$98:Y$121))) ->  | Z139: =IF($B139="","",SUMPRODUCT(($B139=$C$98:$C$121)*(Z$98:Z$121))) ->  | AA139: =IF($B139="","",SUMPRODUCT(($B139=$C$98:$C$121)*(AA$98:AA$121))) ->  | AB139: =IF($B139="","",SUMPRODUCT(($B139=$C$98:$C$121)*(AB$98:AB$121))) ->  | AC139: =IF($B139="","",SUMPRODUCT(($B139=$C$98:$C$121)*(AC$98:AC$121))) ->  | AD139: =IF($B139="","",SUMPRODUCT(($B139=$C$98:$C$121)*(AD$98:AD$121))) ->  | AE139: =IF($B139="","",SUMPRODUCT(($B139=$C$98:$C$121)*(AE$98:AE$121))) ->  | AF139: =IF($B139="","",SUMPRODUCT(($B139=$C$98:$C$121)*(AF$98:AF$121))) ->  | AG139: =IF($B139="","",SUMPRODUCT(($B139=$C$98:$C$121)*(AG$98:AG$121))) ->  | AH139: =IF($B139="","",SUMPRODUCT(($B139=$C$98:$C$121)*(AH$98:AH$121))) ->  | AI139: =IF($B139="","",SUMPRODUCT(($B139=$C$98:$C$121)*(AI$98:AI$121))) ->  | AJ139: =IF($B139="","",SUMPRODUCT(($B139=$C$98:$C$121)*(AJ$98:AJ$121))) ->  | AK139: =IF($B139="","",SUMPRODUCT(($B139=$C$98:$C$121)*(AK$98:AK$121))) ->  | AL139: =IF($B139="","",SUMPRODUCT(($B139=$C$98:$C$121)*(AL$98:AL$121))) ->  | AM139: =IF($B139="","",SUMPRODUCT(($B139=$C$98:$C$121)*(AM$98:AM$121))) -> 
B140: =IFERROR(INDEX($C$98:$C$121, MATCH(0,COUNTIF($B$123:B139,$C$98:$C$121), 0)),"") ->  | D140: =IF($B140="","",SUMPRODUCT(($B140=$C$98:$C$121)*(D$98:D$121))) ->  | E140: =IF($B140="","",SUMPRODUCT(($B140=$C$98:$C$121)*(E$98:E$121))) ->  | F140: =IF($B140="","",SUMPRODUCT(($B140=$C$98:$C$121)*(F$98:F$121))) ->  | G140: =IF($B140="","",SUMPRODUCT(($B140=$C$98:$C$121)*(G$98:G$121))) ->  | H140: =IF($B140="","",SUMPRODUCT(($B140=$C$98:$C$121)*(H$98:H$121))) ->  | I140: =IF($B140="","",SUMPRODUCT(($B140=$C$98:$C$121)*(I$98:I$121))) ->  | J140: =IF($B140="","",SUMPRODUCT(($B140=$C$98:$C$121)*(J$98:J$121))) ->  | K140: =IF($B140="","",SUMPRODUCT(($B140=$C$98:$C$121)*(K$98:K$121))) ->  | L140: =IF($B140="","",SUMPRODUCT(($B140=$C$98:$C$121)*(L$98:L$121))) ->  | M140: =IF($B140="","",SUMPRODUCT(($B140=$C$98:$C$121)*(M$98:M$121))) ->  | N140: =IF($B140="","",SUMPRODUCT(($B140=$C$98:$C$121)*(N$98:N$121))) ->  | O140: =IF($B140="","",SUMPRODUCT(($B140=$C$98:$C$121)*(O$98:O$121))) ->  | P140: =IF($B140="","",SUMPRODUCT(($B140=$C$98:$C$121)*(P$98:P$121))) ->  | Q140: =IF($B140="","",SUMPRODUCT(($B140=$C$98:$C$121)*(Q$98:Q$121))) ->  | R140: =IF($B140="","",SUMPRODUCT(($B140=$C$98:$C$121)*(R$98:R$121))) ->  | S140: =IF($B140="","",SUMPRODUCT(($B140=$C$98:$C$121)*(S$98:S$121))) ->  | T140: =IF($B140="","",SUMPRODUCT(($B140=$C$98:$C$121)*(T$98:T$121))) ->  | U140: =IF($B140="","",SUMPRODUCT(($B140=$C$98:$C$121)*(U$98:U$121))) ->  | V140: =IF($B140="","",SUMPRODUCT(($B140=$C$98:$C$121)*(V$98:V$121))) ->  | W140: =IF($B140="","",SUMPRODUCT(($B140=$C$98:$C$121)*(W$98:W$121))) ->  | X140: =IF($B140="","",SUMPRODUCT(($B140=$C$98:$C$121)*(X$98:X$121))) ->  | Y140: =IF($B140="","",SUMPRODUCT(($B140=$C$98:$C$121)*(Y$98:Y$121))) ->  | Z140: =IF($B140="","",SUMPRODUCT(($B140=$C$98:$C$121)*(Z$98:Z$121))) ->  | AA140: =IF($B140="","",SUMPRODUCT(($B140=$C$98:$C$121)*(AA$98:AA$121))) ->  | AB140: =IF($B140="","",SUMPRODUCT(($B140=$C$98:$C$121)*(AB$98:AB$121))) ->  | AC140: =IF($B140="","",SUMPRODUCT(($B140=$C$98:$C$121)*(AC$98:AC$121))) ->  | AD140: =IF($B140="","",SUMPRODUCT(($B140=$C$98:$C$121)*(AD$98:AD$121))) ->  | AE140: =IF($B140="","",SUMPRODUCT(($B140=$C$98:$C$121)*(AE$98:AE$121))) ->  | AF140: =IF($B140="","",SUMPRODUCT(($B140=$C$98:$C$121)*(AF$98:AF$121))) ->  | AG140: =IF($B140="","",SUMPRODUCT(($B140=$C$98:$C$121)*(AG$98:AG$121))) ->  | AH140: =IF($B140="","",SUMPRODUCT(($B140=$C$98:$C$121)*(AH$98:AH$121))) ->  | AI140: =IF($B140="","",SUMPRODUCT(($B140=$C$98:$C$121)*(AI$98:AI$121))) ->  | AJ140: =IF($B140="","",SUMPRODUCT(($B140=$C$98:$C$121)*(AJ$98:AJ$121))) ->  | AK140: =IF($B140="","",SUMPRODUCT(($B140=$C$98:$C$121)*(AK$98:AK$121))) ->  | AL140: =IF($B140="","",SUMPRODUCT(($B140=$C$98:$C$121)*(AL$98:AL$121))) ->  | AM140: =IF($B140="","",SUMPRODUCT(($B140=$C$98:$C$121)*(AM$98:AM$121))) -> 
B141: =IFERROR(INDEX($C$98:$C$121, MATCH(0,COUNTIF($B$123:B140,$C$98:$C$121), 0)),"") ->  | D141: =IF($B141="","",SUMPRODUCT(($B141=$C$98:$C$121)*(D$98:D$121))) ->  | E141: =IF($B141="","",SUMPRODUCT(($B141=$C$98:$C$121)*(E$98:E$121))) ->  | F141: =IF($B141="","",SUMPRODUCT(($B141=$C$98:$C$121)*(F$98:F$121))) ->  | G141: =IF($B141="","",SUMPRODUCT(($B141=$C$98:$C$121)*(G$98:G$121))) ->  | H141: =IF($B141="","",SUMPRODUCT(($B141=$C$98:$C$121)*(H$98:H$121))) ->  | I141: =IF($B141="","",SUMPRODUCT(($B141=$C$98:$C$121)*(I$98:I$121))) ->  | J141: =IF($B141="","",SUMPRODUCT(($B141=$C$98:$C$121)*(J$98:J$121))) ->  | K141: =IF($B141="","",SUMPRODUCT(($B141=$C$98:$C$121)*(K$98:K$121))) ->  | L141: =IF($B141="","",SUMPRODUCT(($B141=$C$98:$C$121)*(L$98:L$121))) ->  | M141: =IF($B141="","",SUMPRODUCT(($B141=$C$98:$C$121)*(M$98:M$121))) ->  | N141: =IF($B141="","",SUMPRODUCT(($B141=$C$98:$C$121)*(N$98:N$121))) ->  | O141: =IF($B141="","",SUMPRODUCT(($B141=$C$98:$C$121)*(O$98:O$121))) ->  | P141: =IF($B141="","",SUMPRODUCT(($B141=$C$98:$C$121)*(P$98:P$121))) ->  | Q141: =IF($B141="","",SUMPRODUCT(($B141=$C$98:$C$121)*(Q$98:Q$121))) ->  | R141: =IF($B141="","",SUMPRODUCT(($B141=$C$98:$C$121)*(R$98:R$121))) ->  | S141: =IF($B141="","",SUMPRODUCT(($B141=$C$98:$C$121)*(S$98:S$121))) ->  | T141: =IF($B141="","",SUMPRODUCT(($B141=$C$98:$C$121)*(T$98:T$121))) ->  | U141: =IF($B141="","",SUMPRODUCT(($B141=$C$98:$C$121)*(U$98:U$121))) ->  | V141: =IF($B141="","",SUMPRODUCT(($B141=$C$98:$C$121)*(V$98:V$121))) ->  | W141: =IF($B141="","",SUMPRODUCT(($B141=$C$98:$C$121)*(W$98:W$121))) ->  | X141: =IF($B141="","",SUMPRODUCT(($B141=$C$98:$C$121)*(X$98:X$121))) ->  | Y141: =IF($B141="","",SUMPRODUCT(($B141=$C$98:$C$121)*(Y$98:Y$121))) ->  | Z141: =IF($B141="","",SUMPRODUCT(($B141=$C$98:$C$121)*(Z$98:Z$121))) ->  | AA141: =IF($B141="","",SUMPRODUCT(($B141=$C$98:$C$121)*(AA$98:AA$121))) ->  | AB141: =IF($B141="","",SUMPRODUCT(($B141=$C$98:$C$121)*(AB$98:AB$121))) ->  | AC141: =IF($B141="","",SUMPRODUCT(($B141=$C$98:$C$121)*(AC$98:AC$121))) ->  | AD141: =IF($B141="","",SUMPRODUCT(($B141=$C$98:$C$121)*(AD$98:AD$121))) ->  | AE141: =IF($B141="","",SUMPRODUCT(($B141=$C$98:$C$121)*(AE$98:AE$121))) ->  | AF141: =IF($B141="","",SUMPRODUCT(($B141=$C$98:$C$121)*(AF$98:AF$121))) ->  | AG141: =IF($B141="","",SUMPRODUCT(($B141=$C$98:$C$121)*(AG$98:AG$121))) ->  | AH141: =IF($B141="","",SUMPRODUCT(($B141=$C$98:$C$121)*(AH$98:AH$121))) ->  | AI141: =IF($B141="","",SUMPRODUCT(($B141=$C$98:$C$121)*(AI$98:AI$121))) ->  | AJ141: =IF($B141="","",SUMPRODUCT(($B141=$C$98:$C$121)*(AJ$98:AJ$121))) ->  | AK141: =IF($B141="","",SUMPRODUCT(($B141=$C$98:$C$121)*(AK$98:AK$121))) ->  | AL141: =IF($B141="","",SUMPRODUCT(($B141=$C$98:$C$121)*(AL$98:AL$121))) ->  | AM141: =IF($B141="","",SUMPRODUCT(($B141=$C$98:$C$121)*(AM$98:AM$121))) -> 
B142: =IFERROR(INDEX($C$98:$C$121, MATCH(0,COUNTIF($B$123:B141,$C$98:$C$121), 0)),"") ->  | D142: =IF($B142="","",SUMPRODUCT(($B142=$C$98:$C$121)*(D$98:D$121))) ->  | E142: =IF($B142="","",SUMPRODUCT(($B142=$C$98:$C$121)*(E$98:E$121))) ->  | F142: =IF($B142="","",SUMPRODUCT(($B142=$C$98:$C$121)*(F$98:F$121))) ->  | G142: =IF($B142="","",SUMPRODUCT(($B142=$C$98:$C$121)*(G$98:G$121))) ->  | H142: =IF($B142="","",SUMPRODUCT(($B142=$C$98:$C$121)*(H$98:H$121))) ->  | I142: =IF($B142="","",SUMPRODUCT(($B142=$C$98:$C$121)*(I$98:I$121))) ->  | J142: =IF($B142="","",SUMPRODUCT(($B142=$C$98:$C$121)*(J$98:J$121))) ->  | K142: =IF($B142="","",SUMPRODUCT(($B142=$C$98:$C$121)*(K$98:K$121))) ->  | L142: =IF($B142="","",SUMPRODUCT(($B142=$C$98:$C$121)*(L$98:L$121))) ->  | M142: =IF($B142="","",SUMPRODUCT(($B142=$C$98:$C$121)*(M$98:M$121))) ->  | N142: =IF($B142="","",SUMPRODUCT(($B142=$C$98:$C$121)*(N$98:N$121))) ->  | O142: =IF($B142="","",SUMPRODUCT(($B142=$C$98:$C$121)*(O$98:O$121))) ->  | P142: =IF($B142="","",SUMPRODUCT(($B142=$C$98:$C$121)*(P$98:P$121))) ->  | Q142: =IF($B142="","",SUMPRODUCT(($B142=$C$98:$C$121)*(Q$98:Q$121))) ->  | R142: =IF($B142="","",SUMPRODUCT(($B142=$C$98:$C$121)*(R$98:R$121))) ->  | S142: =IF($B142="","",SUMPRODUCT(($B142=$C$98:$C$121)*(S$98:S$121))) ->  | T142: =IF($B142="","",SUMPRODUCT(($B142=$C$98:$C$121)*(T$98:T$121))) ->  | U142: =IF($B142="","",SUMPRODUCT(($B142=$C$98:$C$121)*(U$98:U$121))) ->  | V142: =IF($B142="","",SUMPRODUCT(($B142=$C$98:$C$121)*(V$98:V$121))) ->  | W142: =IF($B142="","",SUMPRODUCT(($B142=$C$98:$C$121)*(W$98:W$121))) ->  | X142: =IF($B142="","",SUMPRODUCT(($B142=$C$98:$C$121)*(X$98:X$121))) ->  | Y142: =IF($B142="","",SUMPRODUCT(($B142=$C$98:$C$121)*(Y$98:Y$121))) ->  | Z142: =IF($B142="","",SUMPRODUCT(($B142=$C$98:$C$121)*(Z$98:Z$121))) ->  | AA142: =IF($B142="","",SUMPRODUCT(($B142=$C$98:$C$121)*(AA$98:AA$121))) ->  | AB142: =IF($B142="","",SUMPRODUCT(($B142=$C$98:$C$121)*(AB$98:AB$121))) ->  | AC142: =IF($B142="","",SUMPRODUCT(($B142=$C$98:$C$121)*(AC$98:AC$121))) ->  | AD142: =IF($B142="","",SUMPRODUCT(($B142=$C$98:$C$121)*(AD$98:AD$121))) ->  | AE142: =IF($B142="","",SUMPRODUCT(($B142=$C$98:$C$121)*(AE$98:AE$121))) ->  | AF142: =IF($B142="","",SUMPRODUCT(($B142=$C$98:$C$121)*(AF$98:AF$121))) ->  | AG142: =IF($B142="","",SUMPRODUCT(($B142=$C$98:$C$121)*(AG$98:AG$121))) ->  | AH142: =IF($B142="","",SUMPRODUCT(($B142=$C$98:$C$121)*(AH$98:AH$121))) ->  | AI142: =IF($B142="","",SUMPRODUCT(($B142=$C$98:$C$121)*(AI$98:AI$121))) ->  | AJ142: =IF($B142="","",SUMPRODUCT(($B142=$C$98:$C$121)*(AJ$98:AJ$121))) ->  | AK142: =IF($B142="","",SUMPRODUCT(($B142=$C$98:$C$121)*(AK$98:AK$121))) ->  | AL142: =IF($B142="","",SUMPRODUCT(($B142=$C$98:$C$121)*(AL$98:AL$121))) ->  | AM142: =IF($B142="","",SUMPRODUCT(($B142=$C$98:$C$121)*(AM$98:AM$121))) -> 
B143: =IFERROR(INDEX($C$98:$C$121, MATCH(0,COUNTIF($B$123:B142,$C$98:$C$121), 0)),"") ->  | D143: =IF($B143="","",SUMPRODUCT(($B143=$C$98:$C$121)*(D$98:D$121))) ->  | E143: =IF($B143="","",SUMPRODUCT(($B143=$C$98:$C$121)*(E$98:E$121))) ->  | F143: =IF($B143="","",SUMPRODUCT(($B143=$C$98:$C$121)*(F$98:F$121))) ->  | G143: =IF($B143="","",SUMPRODUCT(($B143=$C$98:$C$121)*(G$98:G$121))) ->  | H143: =IF($B143="","",SUMPRODUCT(($B143=$C$98:$C$121)*(H$98:H$121))) ->  | I143: =IF($B143="","",SUMPRODUCT(($B143=$C$98:$C$121)*(I$98:I$121))) ->  | J143: =IF($B143="","",SUMPRODUCT(($B143=$C$98:$C$121)*(J$98:J$121))) ->  | K143: =IF($B143="","",SUMPRODUCT(($B143=$C$98:$C$121)*(K$98:K$121))) ->  | L143: =IF($B143="","",SUMPRODUCT(($B143=$C$98:$C$121)*(L$98:L$121))) ->  | M143: =IF($B143="","",SUMPRODUCT(($B143=$C$98:$C$121)*(M$98:M$121))) ->  | N143: =IF($B143="","",SUMPRODUCT(($B143=$C$98:$C$121)*(N$98:N$121))) ->  | O143: =IF($B143="","",SUMPRODUCT(($B143=$C$98:$C$121)*(O$98:O$121))) ->  | P143: =IF($B143="","",SUMPRODUCT(($B143=$C$98:$C$121)*(P$98:P$121))) ->  | Q143: =IF($B143="","",SUMPRODUCT(($B143=$C$98:$C$121)*(Q$98:Q$121))) ->  | R143: =IF($B143="","",SUMPRODUCT(($B143=$C$98:$C$121)*(R$98:R$121))) ->  | S143: =IF($B143="","",SUMPRODUCT(($B143=$C$98:$C$121)*(S$98:S$121))) ->  | T143: =IF($B143="","",SUMPRODUCT(($B143=$C$98:$C$121)*(T$98:T$121))) ->  | U143: =IF($B143="","",SUMPRODUCT(($B143=$C$98:$C$121)*(U$98:U$121))) ->  | V143: =IF($B143="","",SUMPRODUCT(($B143=$C$98:$C$121)*(V$98:V$121))) ->  | W143: =IF($B143="","",SUMPRODUCT(($B143=$C$98:$C$121)*(W$98:W$121))) ->  | X143: =IF($B143="","",SUMPRODUCT(($B143=$C$98:$C$121)*(X$98:X$121))) ->  | Y143: =IF($B143="","",SUMPRODUCT(($B143=$C$98:$C$121)*(Y$98:Y$121))) ->  | Z143: =IF($B143="","",SUMPRODUCT(($B143=$C$98:$C$121)*(Z$98:Z$121))) ->  | AA143: =IF($B143="","",SUMPRODUCT(($B143=$C$98:$C$121)*(AA$98:AA$121))) ->  | AB143: =IF($B143="","",SUMPRODUCT(($B143=$C$98:$C$121)*(AB$98:AB$121))) ->  | AC143: =IF($B143="","",SUMPRODUCT(($B143=$C$98:$C$121)*(AC$98:AC$121))) ->  | AD143: =IF($B143="","",SUMPRODUCT(($B143=$C$98:$C$121)*(AD$98:AD$121))) ->  | AE143: =IF($B143="","",SUMPRODUCT(($B143=$C$98:$C$121)*(AE$98:AE$121))) ->  | AF143: =IF($B143="","",SUMPRODUCT(($B143=$C$98:$C$121)*(AF$98:AF$121))) ->  | AG143: =IF($B143="","",SUMPRODUCT(($B143=$C$98:$C$121)*(AG$98:AG$121))) ->  | AH143: =IF($B143="","",SUMPRODUCT(($B143=$C$98:$C$121)*(AH$98:AH$121))) ->  | AI143: =IF($B143="","",SUMPRODUCT(($B143=$C$98:$C$121)*(AI$98:AI$121))) ->  | AJ143: =IF($B143="","",SUMPRODUCT(($B143=$C$98:$C$121)*(AJ$98:AJ$121))) ->  | AK143: =IF($B143="","",SUMPRODUCT(($B143=$C$98:$C$121)*(AK$98:AK$121))) ->  | AL143: =IF($B143="","",SUMPRODUCT(($B143=$C$98:$C$121)*(AL$98:AL$121))) ->  | AM143: =IF($B143="","",SUMPRODUCT(($B143=$C$98:$C$121)*(AM$98:AM$121))) -> 
B144: =IFERROR(INDEX($C$98:$C$121, MATCH(0,COUNTIF($B$123:B143,$C$98:$C$121), 0)),"") ->  | D144: =IF($B144="","",SUMPRODUCT(($B144=$C$98:$C$121)*(D$98:D$121))) ->  | E144: =IF($B144="","",SUMPRODUCT(($B144=$C$98:$C$121)*(E$98:E$121))) ->  | F144: =IF($B144="","",SUMPRODUCT(($B144=$C$98:$C$121)*(F$98:F$121))) ->  | G144: =IF($B144="","",SUMPRODUCT(($B144=$C$98:$C$121)*(G$98:G$121))) ->  | H144: =IF($B144="","",SUMPRODUCT(($B144=$C$98:$C$121)*(H$98:H$121))) ->  | I144: =IF($B144="","",SUMPRODUCT(($B144=$C$98:$C$121)*(I$98:I$121))) ->  | J144: =IF($B144="","",SUMPRODUCT(($B144=$C$98:$C$121)*(J$98:J$121))) ->  | K144: =IF($B144="","",SUMPRODUCT(($B144=$C$98:$C$121)*(K$98:K$121))) ->  | L144: =IF($B144="","",SUMPRODUCT(($B144=$C$98:$C$121)*(L$98:L$121))) ->  | M144: =IF($B144="","",SUMPRODUCT(($B144=$C$98:$C$121)*(M$98:M$121))) ->  | N144: =IF($B144="","",SUMPRODUCT(($B144=$C$98:$C$121)*(N$98:N$121))) ->  | O144: =IF($B144="","",SUMPRODUCT(($B144=$C$98:$C$121)*(O$98:O$121))) ->  | P144: =IF($B144="","",SUMPRODUCT(($B144=$C$98:$C$121)*(P$98:P$121))) ->  | Q144: =IF($B144="","",SUMPRODUCT(($B144=$C$98:$C$121)*(Q$98:Q$121))) ->  | R144: =IF($B144="","",SUMPRODUCT(($B144=$C$98:$C$121)*(R$98:R$121))) ->  | S144: =IF($B144="","",SUMPRODUCT(($B144=$C$98:$C$121)*(S$98:S$121))) ->  | T144: =IF($B144="","",SUMPRODUCT(($B144=$C$98:$C$121)*(T$98:T$121))) ->  | U144: =IF($B144="","",SUMPRODUCT(($B144=$C$98:$C$121)*(U$98:U$121))) ->  | V144: =IF($B144="","",SUMPRODUCT(($B144=$C$98:$C$121)*(V$98:V$121))) ->  | W144: =IF($B144="","",SUMPRODUCT(($B144=$C$98:$C$121)*(W$98:W$121))) ->  | X144: =IF($B144="","",SUMPRODUCT(($B144=$C$98:$C$121)*(X$98:X$121))) ->  | Y144: =IF($B144="","",SUMPRODUCT(($B144=$C$98:$C$121)*(Y$98:Y$121))) ->  | Z144: =IF($B144="","",SUMPRODUCT(($B144=$C$98:$C$121)*(Z$98:Z$121))) ->  | AA144: =IF($B144="","",SUMPRODUCT(($B144=$C$98:$C$121)*(AA$98:AA$121))) ->  | AB144: =IF($B144="","",SUMPRODUCT(($B144=$C$98:$C$121)*(AB$98:AB$121))) ->  | AC144: =IF($B144="","",SUMPRODUCT(($B144=$C$98:$C$121)*(AC$98:AC$121))) ->  | AD144: =IF($B144="","",SUMPRODUCT(($B144=$C$98:$C$121)*(AD$98:AD$121))) ->  | AE144: =IF($B144="","",SUMPRODUCT(($B144=$C$98:$C$121)*(AE$98:AE$121))) ->  | AF144: =IF($B144="","",SUMPRODUCT(($B144=$C$98:$C$121)*(AF$98:AF$121))) ->  | AG144: =IF($B144="","",SUMPRODUCT(($B144=$C$98:$C$121)*(AG$98:AG$121))) ->  | AH144: =IF($B144="","",SUMPRODUCT(($B144=$C$98:$C$121)*(AH$98:AH$121))) ->  | AI144: =IF($B144="","",SUMPRODUCT(($B144=$C$98:$C$121)*(AI$98:AI$121))) ->  | AJ144: =IF($B144="","",SUMPRODUCT(($B144=$C$98:$C$121)*(AJ$98:AJ$121))) ->  | AK144: =IF($B144="","",SUMPRODUCT(($B144=$C$98:$C$121)*(AK$98:AK$121))) ->  | AL144: =IF($B144="","",SUMPRODUCT(($B144=$C$98:$C$121)*(AL$98:AL$121))) ->  | AM144: =IF($B144="","",SUMPRODUCT(($B144=$C$98:$C$121)*(AM$98:AM$121))) -> 
B145: =IFERROR(INDEX($C$98:$C$121, MATCH(0,COUNTIF($B$123:B144,$C$98:$C$121), 0)),"") ->  | D145: =IF($B145="","",SUMPRODUCT(($B145=$C$98:$C$121)*(D$98:D$121))) ->  | E145: =IF($B145="","",SUMPRODUCT(($B145=$C$98:$C$121)*(E$98:E$121))) ->  | F145: =IF($B145="","",SUMPRODUCT(($B145=$C$98:$C$121)*(F$98:F$121))) ->  | G145: =IF($B145="","",SUMPRODUCT(($B145=$C$98:$C$121)*(G$98:G$121))) ->  | H145: =IF($B145="","",SUMPRODUCT(($B145=$C$98:$C$121)*(H$98:H$121))) ->  | I145: =IF($B145="","",SUMPRODUCT(($B145=$C$98:$C$121)*(I$98:I$121))) ->  | J145: =IF($B145="","",SUMPRODUCT(($B145=$C$98:$C$121)*(J$98:J$121))) ->  | K145: =IF($B145="","",SUMPRODUCT(($B145=$C$98:$C$121)*(K$98:K$121))) ->  | L145: =IF($B145="","",SUMPRODUCT(($B145=$C$98:$C$121)*(L$98:L$121))) ->  | M145: =IF($B145="","",SUMPRODUCT(($B145=$C$98:$C$121)*(M$98:M$121))) ->  | N145: =IF($B145="","",SUMPRODUCT(($B145=$C$98:$C$121)*(N$98:N$121))) ->  | O145: =IF($B145="","",SUMPRODUCT(($B145=$C$98:$C$121)*(O$98:O$121))) ->  | P145: =IF($B145="","",SUMPRODUCT(($B145=$C$98:$C$121)*(P$98:P$121))) ->  | Q145: =IF($B145="","",SUMPRODUCT(($B145=$C$98:$C$121)*(Q$98:Q$121))) ->  | R145: =IF($B145="","",SUMPRODUCT(($B145=$C$98:$C$121)*(R$98:R$121))) ->  | S145: =IF($B145="","",SUMPRODUCT(($B145=$C$98:$C$121)*(S$98:S$121))) ->  | T145: =IF($B145="","",SUMPRODUCT(($B145=$C$98:$C$121)*(T$98:T$121))) ->  | U145: =IF($B145="","",SUMPRODUCT(($B145=$C$98:$C$121)*(U$98:U$121))) ->  | V145: =IF($B145="","",SUMPRODUCT(($B145=$C$98:$C$121)*(V$98:V$121))) ->  | W145: =IF($B145="","",SUMPRODUCT(($B145=$C$98:$C$121)*(W$98:W$121))) ->  | X145: =IF($B145="","",SUMPRODUCT(($B145=$C$98:$C$121)*(X$98:X$121))) ->  | Y145: =IF($B145="","",SUMPRODUCT(($B145=$C$98:$C$121)*(Y$98:Y$121))) ->  | Z145: =IF($B145="","",SUMPRODUCT(($B145=$C$98:$C$121)*(Z$98:Z$121))) ->  | AA145: =IF($B145="","",SUMPRODUCT(($B145=$C$98:$C$121)*(AA$98:AA$121))) ->  | AB145: =IF($B145="","",SUMPRODUCT(($B145=$C$98:$C$121)*(AB$98:AB$121))) ->  | AC145: =IF($B145="","",SUMPRODUCT(($B145=$C$98:$C$121)*(AC$98:AC$121))) ->  | AD145: =IF($B145="","",SUMPRODUCT(($B145=$C$98:$C$121)*(AD$98:AD$121))) ->  | AE145: =IF($B145="","",SUMPRODUCT(($B145=$C$98:$C$121)*(AE$98:AE$121))) ->  | AF145: =IF($B145="","",SUMPRODUCT(($B145=$C$98:$C$121)*(AF$98:AF$121))) ->  | AG145: =IF($B145="","",SUMPRODUCT(($B145=$C$98:$C$121)*(AG$98:AG$121))) ->  | AH145: =IF($B145="","",SUMPRODUCT(($B145=$C$98:$C$121)*(AH$98:AH$121))) ->  | AI145: =IF($B145="","",SUMPRODUCT(($B145=$C$98:$C$121)*(AI$98:AI$121))) ->  | AJ145: =IF($B145="","",SUMPRODUCT(($B145=$C$98:$C$121)*(AJ$98:AJ$121))) ->  | AK145: =IF($B145="","",SUMPRODUCT(($B145=$C$98:$C$121)*(AK$98:AK$121))) ->  | AL145: =IF($B145="","",SUMPRODUCT(($B145=$C$98:$C$121)*(AL$98:AL$121))) ->  | AM145: =IF($B145="","",SUMPRODUCT(($B145=$C$98:$C$121)*(AM$98:AM$121))) -> 
B146: =IFERROR(INDEX($C$98:$C$121, MATCH(0,COUNTIF($B$123:B145,$C$98:$C$121), 0)),"") ->  | D146: =IF($B146="","",SUMPRODUCT(($B146=$C$98:$C$121)*(D$98:D$121))) ->  | E146: =IF($B146="","",SUMPRODUCT(($B146=$C$98:$C$121)*(E$98:E$121))) ->  | F146: =IF($B146="","",SUMPRODUCT(($B146=$C$98:$C$121)*(F$98:F$121))) ->  | G146: =IF($B146="","",SUMPRODUCT(($B146=$C$98:$C$121)*(G$98:G$121))) ->  | H146: =IF($B146="","",SUMPRODUCT(($B146=$C$98:$C$121)*(H$98:H$121))) ->  | I146: =IF($B146="","",SUMPRODUCT(($B146=$C$98:$C$121)*(I$98:I$121))) ->  | J146: =IF($B146="","",SUMPRODUCT(($B146=$C$98:$C$121)*(J$98:J$121))) ->  | K146: =IF($B146="","",SUMPRODUCT(($B146=$C$98:$C$121)*(K$98:K$121))) ->  | L146: =IF($B146="","",SUMPRODUCT(($B146=$C$98:$C$121)*(L$98:L$121))) ->  | M146: =IF($B146="","",SUMPRODUCT(($B146=$C$98:$C$121)*(M$98:M$121))) ->  | N146: =IF($B146="","",SUMPRODUCT(($B146=$C$98:$C$121)*(N$98:N$121))) ->  | O146: =IF($B146="","",SUMPRODUCT(($B146=$C$98:$C$121)*(O$98:O$121))) ->  | P146: =IF($B146="","",SUMPRODUCT(($B146=$C$98:$C$121)*(P$98:P$121))) ->  | Q146: =IF($B146="","",SUMPRODUCT(($B146=$C$98:$C$121)*(Q$98:Q$121))) ->  | R146: =IF($B146="","",SUMPRODUCT(($B146=$C$98:$C$121)*(R$98:R$121))) ->  | S146: =IF($B146="","",SUMPRODUCT(($B146=$C$98:$C$121)*(S$98:S$121))) ->  | T146: =IF($B146="","",SUMPRODUCT(($B146=$C$98:$C$121)*(T$98:T$121))) ->  | U146: =IF($B146="","",SUMPRODUCT(($B146=$C$98:$C$121)*(U$98:U$121))) ->  | V146: =IF($B146="","",SUMPRODUCT(($B146=$C$98:$C$121)*(V$98:V$121))) ->  | W146: =IF($B146="","",SUMPRODUCT(($B146=$C$98:$C$121)*(W$98:W$121))) ->  | X146: =IF($B146="","",SUMPRODUCT(($B146=$C$98:$C$121)*(X$98:X$121))) ->  | Y146: =IF($B146="","",SUMPRODUCT(($B146=$C$98:$C$121)*(Y$98:Y$121))) ->  | Z146: =IF($B146="","",SUMPRODUCT(($B146=$C$98:$C$121)*(Z$98:Z$121))) ->  | AA146: =IF($B146="","",SUMPRODUCT(($B146=$C$98:$C$121)*(AA$98:AA$121))) ->  | AB146: =IF($B146="","",SUMPRODUCT(($B146=$C$98:$C$121)*(AB$98:AB$121))) ->  | AC146: =IF($B146="","",SUMPRODUCT(($B146=$C$98:$C$121)*(AC$98:AC$121))) ->  | AD146: =IF($B146="","",SUMPRODUCT(($B146=$C$98:$C$121)*(AD$98:AD$121))) ->  | AE146: =IF($B146="","",SUMPRODUCT(($B146=$C$98:$C$121)*(AE$98:AE$121))) ->  | AF146: =IF($B146="","",SUMPRODUCT(($B146=$C$98:$C$121)*(AF$98:AF$121))) ->  | AG146: =IF($B146="","",SUMPRODUCT(($B146=$C$98:$C$121)*(AG$98:AG$121))) ->  | AH146: =IF($B146="","",SUMPRODUCT(($B146=$C$98:$C$121)*(AH$98:AH$121))) ->  | AI146: =IF($B146="","",SUMPRODUCT(($B146=$C$98:$C$121)*(AI$98:AI$121))) ->  | AJ146: =IF($B146="","",SUMPRODUCT(($B146=$C$98:$C$121)*(AJ$98:AJ$121))) ->  | AK146: =IF($B146="","",SUMPRODUCT(($B146=$C$98:$C$121)*(AK$98:AK$121))) ->  | AL146: =IF($B146="","",SUMPRODUCT(($B146=$C$98:$C$121)*(AL$98:AL$121))) ->  | AM146: =IF($B146="","",SUMPRODUCT(($B146=$C$98:$C$121)*(AM$98:AM$121))) -> 
B147: =IFERROR(INDEX($C$98:$C$121, MATCH(0,COUNTIF($B$123:B146,$C$98:$C$121), 0)),"") ->  | D147: =IF($B147="","",SUMPRODUCT(($B147=$C$98:$C$121)*(D$98:D$121))) ->  | E147: =IF($B147="","",SUMPRODUCT(($B147=$C$98:$C$121)*(E$98:E$121))) ->  | F147: =IF($B147="","",SUMPRODUCT(($B147=$C$98:$C$121)*(F$98:F$121))) ->  | G147: =IF($B147="","",SUMPRODUCT(($B147=$C$98:$C$121)*(G$98:G$121))) ->  | H147: =IF($B147="","",SUMPRODUCT(($B147=$C$98:$C$121)*(H$98:H$121))) ->  | I147: =IF($B147="","",SUMPRODUCT(($B147=$C$98:$C$121)*(I$98:I$121))) ->  | J147: =IF($B147="","",SUMPRODUCT(($B147=$C$98:$C$121)*(J$98:J$121))) ->  | K147: =IF($B147="","",SUMPRODUCT(($B147=$C$98:$C$121)*(K$98:K$121))) ->  | L147: =IF($B147="","",SUMPRODUCT(($B147=$C$98:$C$121)*(L$98:L$121))) ->  | M147: =IF($B147="","",SUMPRODUCT(($B147=$C$98:$C$121)*(M$98:M$121))) ->  | N147: =IF($B147="","",SUMPRODUCT(($B147=$C$98:$C$121)*(N$98:N$121))) ->  | O147: =IF($B147="","",SUMPRODUCT(($B147=$C$98:$C$121)*(O$98:O$121))) ->  | P147: =IF($B147="","",SUMPRODUCT(($B147=$C$98:$C$121)*(P$98:P$121))) ->  | Q147: =IF($B147="","",SUMPRODUCT(($B147=$C$98:$C$121)*(Q$98:Q$121))) ->  | R147: =IF($B147="","",SUMPRODUCT(($B147=$C$98:$C$121)*(R$98:R$121))) ->  | S147: =IF($B147="","",SUMPRODUCT(($B147=$C$98:$C$121)*(S$98:S$121))) ->  | T147: =IF($B147="","",SUMPRODUCT(($B147=$C$98:$C$121)*(T$98:T$121))) ->  | U147: =IF($B147="","",SUMPRODUCT(($B147=$C$98:$C$121)*(U$98:U$121))) ->  | V147: =IF($B147="","",SUMPRODUCT(($B147=$C$98:$C$121)*(V$98:V$121))) ->  | W147: =IF($B147="","",SUMPRODUCT(($B147=$C$98:$C$121)*(W$98:W$121))) ->  | X147: =IF($B147="","",SUMPRODUCT(($B147=$C$98:$C$121)*(X$98:X$121))) ->  | Y147: =IF($B147="","",SUMPRODUCT(($B147=$C$98:$C$121)*(Y$98:Y$121))) ->  | Z147: =IF($B147="","",SUMPRODUCT(($B147=$C$98:$C$121)*(Z$98:Z$121))) ->  | AA147: =IF($B147="","",SUMPRODUCT(($B147=$C$98:$C$121)*(AA$98:AA$121))) ->  | AB147: =IF($B147="","",SUMPRODUCT(($B147=$C$98:$C$121)*(AB$98:AB$121))) ->  | AC147: =IF($B147="","",SUMPRODUCT(($B147=$C$98:$C$121)*(AC$98:AC$121))) ->  | AD147: =IF($B147="","",SUMPRODUCT(($B147=$C$98:$C$121)*(AD$98:AD$121))) ->  | AE147: =IF($B147="","",SUMPRODUCT(($B147=$C$98:$C$121)*(AE$98:AE$121))) ->  | AF147: =IF($B147="","",SUMPRODUCT(($B147=$C$98:$C$121)*(AF$98:AF$121))) ->  | AG147: =IF($B147="","",SUMPRODUCT(($B147=$C$98:$C$121)*(AG$98:AG$121))) ->  | AH147: =IF($B147="","",SUMPRODUCT(($B147=$C$98:$C$121)*(AH$98:AH$121))) ->  | AI147: =IF($B147="","",SUMPRODUCT(($B147=$C$98:$C$121)*(AI$98:AI$121))) ->  | AJ147: =IF($B147="","",SUMPRODUCT(($B147=$C$98:$C$121)*(AJ$98:AJ$121))) ->  | AK147: =IF($B147="","",SUMPRODUCT(($B147=$C$98:$C$121)*(AK$98:AK$121))) ->  | AL147: =IF($B147="","",SUMPRODUCT(($B147=$C$98:$C$121)*(AL$98:AL$121))) ->  | AM147: =IF($B147="","",SUMPRODUCT(($B147=$C$98:$C$121)*(AM$98:AM$121))) -> 
B149: Sales Share | C149: Category | D149: 2015 | E149: =+D149+1 -> 2016 | F149: 2017 | G149: 2018 | H149: 2019 | I149: 2020 | J149: 2021 | K149: 2022 | L149: 2023 | M149: 2024 | N149: 2025 | O149: 2026 | P149: 2027 | Q149: 2028 | R149: 2029 | S149: 2030 | T149: 2031 | U149: 2032 | V149: 2033 | W149: 2034 | X149: 2035 | Y149: 2036 | Z149: 2037 | AA149: 2038 | AB149: 2039 | AC149: 2040 | AD149: 2041 | AE149: 2042 | AF149: 2043 | AG149: 2044 | AH149: 2045 | AI149: 2046 | AJ149: 2047 | AK149: 2048 | AL149: 2049 | AM149: 2050
B150: =B98 -> Reference Central Air Conditioner | C150: =IF(B150="not used",B150,INDEX(Lists!$G$3:$G$12,MATCH('Comm AC'!$B150,Lists!$F$3:$F$17,0))) -> Reference AC | D150: =IF($B150="not used",0,SUMPRODUCT(($B150=COM_AC_Share_index_1)*($B$96=COM_AC_Share_index_3)*(D$97=COM_AC_Share_index_2)*COM_AC_Share_vals)) -> 0.5942322872 | E150: =IF($B150="not used",0,SUMPRODUCT(($B150=COM_AC_Share_index_1)*($B$96=COM_AC_Share_index_3)*(E$97=COM_AC_Share_index_2)*COM_AC_Share_vals)) -> 0.5902572612 | F150: =IF($B150="not used",0,SUMPRODUCT(($B150=COM_AC_Share_index_1)*($B$96=COM_AC_Share_index_3)*(F$97=COM_AC_Share_index_2)*COM_AC_Share_vals)) -> 0.5791751449 | G150: =IF($B150="not used",0,SUMPRODUCT(($B150=COM_AC_Share_index_1)*($B$96=COM_AC_Share_index_3)*(G$97=COM_AC_Share_index_2)*COM_AC_Share_vals)) -> 0.5513273954 | H150: =IF($B150="not used",0,SUMPRODUCT(($B150=COM_AC_Share_index_1)*($B$96=COM_AC_Share_index_3)*(H$97=COM_AC_Share_index_2)*COM_AC_Share_vals)) -> 0.487538678 | I150: =IF($B150="not used",0,SUMPRODUCT(($B150=COM_AC_Share_index_1)*($B$96=COM_AC_Share_index_3)*(I$97=COM_AC_Share_index_2)*COM_AC_Share_vals)) -> 0.3722976103 | J150: =IF($B150="not used",0,SUMPRODUCT(($B150=COM_AC_Share_index_1)*($B$96=COM_AC_Share_index_3)*(J$97=COM_AC_Share_index_2)*COM_AC_Share_vals)) -> 0.2283658421 | K150: =IF($B150="not used",0,SUMPRODUCT(($B150=COM_AC_Share_index_1)*($B$96=COM_AC_Share_index_3)*(K$97=COM_AC_Share_index_2)*COM_AC_Share_vals)) -> 0.1125749841 | L150: =IF($B150="not used",0,SUMPRODUCT(($B150=COM_AC_Share_index_1)*($B$96=COM_AC_Share_index_3)*(L$97=COM_AC_Share_index_2)*COM_AC_Share_vals)) -> 0.04791186958 | M150: =IF($B150="not used",0,SUMPRODUCT(($B150=COM_AC_Share_index_1)*($B$96=COM_AC_Share_index_3)*(M$97=COM_AC_Share_index_2)*COM_AC_Share_vals)) -> 0.01894341432 | N150: =IF($B150="not used",0,SUMPRODUCT(($B150=COM_AC_Share_index_1)*($B$96=COM_AC_Share_index_3)*(N$97=COM_AC_Share_index_2)*COM_AC_Share_vals)) -> 0.007257723737 | O150: =IF($B150="not used",0,SUMPRODUCT(($B150=COM_AC_Share_index_1)*($B$96=COM_AC_Share_index_3)*(O$97=COM_AC_Share_index_2)*COM_AC_Share_vals)) -> 0.002746640705 | P150: =IF($B150="not used",0,SUMPRODUCT(($B150=COM_AC_Share_index_1)*($B$96=COM_AC_Share_index_3)*(P$97=COM_AC_Share_index_2)*COM_AC_Share_vals)) -> 0.001034240794 | Q150: =IF($B150="not used",0,SUMPRODUCT(($B150=COM_AC_Share_index_1)*($B$96=COM_AC_Share_index_3)*(Q$97=COM_AC_Share_index_2)*COM_AC_Share_vals)) -> 0.0003883255427 | R150: =IF($B150="not used",0,SUMPRODUCT(($B150=COM_AC_Share_index_1)*($B$96=COM_AC_Share_index_3)*(R$97=COM_AC_Share_index_2)*COM_AC_Share_vals)) -> 0.0001453187415 | S150: =IF($B150="not used",0,SUMPRODUCT(($B150=COM_AC_Share_index_1)*($B$96=COM_AC_Share_index_3)*(S$97=COM_AC_Share_index_2)*COM_AC_Share_vals)) -> 5.408969688e-05 | T150: =IF($B150="not used",0,SUMPRODUCT(($B150=COM_AC_Share_index_1)*($B$96=COM_AC_Share_index_3)*(T$97=COM_AC_Share_index_2)*COM_AC_Share_vals)) -> 1.996614556e-05 | U150: =IF($B150="not used",0,SUMPRODUCT(($B150=COM_AC_Share_index_1)*($B$96=COM_AC_Share_index_3)*(U$97=COM_AC_Share_index_2)*COM_AC_Share_vals)) -> 7.28548208e-06 | V150: =IF($B150="not used",0,SUMPRODUCT(($B150=COM_AC_Share_index_1)*($B$96=COM_AC_Share_index_3)*(V$97=COM_AC_Share_index_2)*COM_AC_Share_vals)) -> 2.619549447e-06 | W150: =IF($B150="not used",0,SUMPRODUCT(($B150=COM_AC_Share_index_1)*($B$96=COM_AC_Share_index_3)*(W$97=COM_AC_Share_index_2)*COM_AC_Share_vals)) -> 9.25672525e-07 | X150: =IF($B150="not used",0,SUMPRODUCT(($B150=COM_AC_Share_index_1)*($B$96=COM_AC_Share_index_3)*(X$97=COM_AC_Share_index_2)*COM_AC_Share_vals)) -> 3.20910378e-07 | Y150: =IF($B150="not used",0,SUMPRODUCT(($B150=COM_AC_Share_index_1)*($B$96=COM_AC_Share_index_3)*(Y$97=COM_AC_Share_index_2)*COM_AC_Share_vals)) -> 1.09053045e-07 | Z150: =IF($B150="not used",0,SUMPRODUCT(($B150=COM_AC_Share_index_1)*($B$96=COM_AC_Share_index_3)*(Z$97=COM_AC_Share_index_2)*COM_AC_Share_vals)) -> 3.6341657e-08 | AA150: =IF($B150="not used",0,SUMPRODUCT(($B150=COM_AC_Share_index_1)*($B$96=COM_AC_Share_index_3)*(AA$97=COM_AC_Share_index_2)*COM_AC_Share_vals)) -> 1.1900758e-08 | AB150: =IF($B150="not used",0,SUMPRODUCT(($B150=COM_AC_Share_index_1)*($B$96=COM_AC_Share_index_3)*(AB$97=COM_AC_Share_index_2)*COM_AC_Share_vals)) -> 3.841984e-09 | AC150: =IF($B150="not used",0,SUMPRODUCT(($B150=COM_AC_Share_index_1)*($B$96=COM_AC_Share_index_3)*(AC$97=COM_AC_Share_index_2)*COM_AC_Share_vals)) -> 1.229313e-09 | AD150: =IF($B150="not used",0,SUMPRODUCT(($B150=COM_AC_Share_index_1)*($B$96=COM_AC_Share_index_3)*(AD$97=COM_AC_Share_index_2)*COM_AC_Share_vals)) -> 3.92436e-10 | AE150: =IF($B150="not used",0,SUMPRODUCT(($B150=COM_AC_Share_index_1)*($B$96=COM_AC_Share_index_3)*(AE$97=COM_AC_Share_index_2)*COM_AC_Share_vals)) -> 1.25932e-10 | AF150: =IF($B150="not used",0,SUMPRODUCT(($B150=COM_AC_Share_index_1)*($B$96=COM_AC_Share_index_3)*(AF$97=COM_AC_Share_index_2)*COM_AC_Share_vals)) -> 4.0945e-11 | AG150: =IF($B150="not used",0,SUMPRODUCT(($B150=COM_AC_Share_index_1)*($B$96=COM_AC_Share_index_3)*(AG$97=COM_AC_Share_index_2)*COM_AC_Share_vals)) -> 1.3574e-11 | AH150: =IF($B150="not used",0,SUMPRODUCT(($B150=COM_AC_Share_index_1)*($B$96=COM_AC_Share_index_3)*(AH$97=COM_AC_Share_index_2)*COM_AC_Share_vals)) -> 4.603e-12 | AI150: =IF($B150="not used",0,SUMPRODUCT(($B150=COM_AC_Share_index_1)*($B$96=COM_AC_Share_index_3)*(AI$97=COM_AC_Share_index_2)*COM_AC_Share_vals)) -> 1.598e-12 | AJ150: =IF($B150="not used",0,SUMPRODUCT(($B150=COM_AC_Share_index_1)*($B$96=COM_AC_Share_index_3)*(AJ$97=COM_AC_Share_index_2)*COM_AC_Share_vals)) -> 5.66e-13 | AK150: =IF($B150="not used",0,SUMPRODUCT(($B150=COM_AC_Share_index_1)*($B$96=COM_AC_Share_index_3)*(AK$97=COM_AC_Share_index_2)*COM_AC_Share_vals)) -> 2.04e-13 | AL150: =IF($B150="not used",0,SUMPRODUCT(($B150=COM_AC_Share_index_1)*($B$96=COM_AC_Share_index_3)*(AL$97=COM_AC_Share_index_2)*COM_AC_Share_vals)) -> 7.5e-14 | AM150: =IF($B150="not used",0,SUMPRODUCT(($B150=COM_AC_Share_index_1)*($B$96=COM_AC_Share_index_3)*(AM$97=COM_AC_Share_index_2)*COM_AC_Share_vals)) -> 2.7e-14
B151: Reference Electric Heat Pump (Cooling) | C151: =IF(B151="not used",B151,INDEX(Lists!$G$3:$G$12,MATCH('Comm AC'!$B151,Lists!$F$3:$F$17,0))) -> Reference Electric Heat Pump | D151: =IF($B151="not used",0,SUMPRODUCT(($B151=COM_AC_Share_index_1)*($B$96=COM_AC_Share_index_3)*(D$97=COM_AC_Share_index_2)*COM_AC_Share_vals)) -> 0.09548528224 | E151: =IF($B151="not used",0,SUMPRODUCT(($B151=COM_AC_Share_index_1)*($B$96=COM_AC_Share_index_3)*(E$97=COM_AC_Share_index_2)*COM_AC_Share_vals)) -> 0.09557313166 | F151: =IF($B151="not used",0,SUMPRODUCT(($B151=COM_AC_Share_index_1)*($B$96=COM_AC_Share_index_3)*(F$97=COM_AC_Share_index_2)*COM_AC_Share_vals)) -> 0.09567178928 | G151: =IF($B151="not used",0,SUMPRODUCT(($B151=COM_AC_Share_index_1)*($B$96=COM_AC_Share_index_3)*(G$97=COM_AC_Share_index_2)*COM_AC_Share_vals)) -> 0.09585658648 | H151: =IF($B151="not used",0,SUMPRODUCT(($B151=COM_AC_Share_index_1)*($B$96=COM_AC_Share_index_3)*(H$97=COM_AC_Share_index_2)*COM_AC_Share_vals)) -> 0.09600107712 | I151: =IF($B151="not used",0,SUMPRODUCT(($B151=COM_AC_Share_index_1)*($B$96=COM_AC_Share_index_3)*(I$97=COM_AC_Share_index_2)*COM_AC_Share_vals)) -> 0.09608980098 | J151: =IF($B151="not used",0,SUMPRODUCT(($B151=COM_AC_Share_index_1)*($B$96=COM_AC_Share_index_3)*(J$97=COM_AC_Share_index_2)*COM_AC_Share_vals)) -> 0.09604535793 | K151: =IF($B151="not used",0,SUMPRODUCT(($B151=COM_AC_Share_index_1)*($B$96=COM_AC_Share_index_3)*(K$97=COM_AC_Share_index_2)*COM_AC_Share_vals)) -> 0.09591537953 | L151: =IF($B151="not used",0,SUMPRODUCT(($B151=COM_AC_Share_index_1)*($B$96=COM_AC_Share_index_3)*(L$97=COM_AC_Share_index_2)*COM_AC_Share_vals)) -> 0.09571393524 | M151: =IF($B151="not used",0,SUMPRODUCT(($B151=COM_AC_Share_index_1)*($B$96=COM_AC_Share_index_3)*(M$97=COM_AC_Share_index_2)*COM_AC_Share_vals)) -> 0.09548704022 | N151: =IF($B151="not used",0,SUMPRODUCT(($B151=COM_AC_Share_index_1)*($B$96=COM_AC_Share_index_3)*(N$97=COM_AC_Share_index_2)*COM_AC_Share_vals)) -> 0.0952638384 | O151: =IF($B151="not used",0,SUMPRODUCT(($B151=COM_AC_Share_index_1)*($B$96=COM_AC_Share_index_3)*(O$97=COM_AC_Share_index_2)*COM_AC_Share_vals)) -> 0.09510914301 | P151: =IF($B151="not used",0,SUMPRODUCT(($B151=COM_AC_Share_index_1)*($B$96=COM_AC_Share_index_3)*(P$97=COM_AC_Share_index_2)*COM_AC_Share_vals)) -> 0.09505166186 | Q151: =IF($B151="not used",0,SUMPRODUCT(($B151=COM_AC_Share_index_1)*($B$96=COM_AC_Share_index_3)*(Q$97=COM_AC_Share_index_2)*COM_AC_Share_vals)) -> 0.09511362971 | R151: =IF($B151="not used",0,SUMPRODUCT(($B151=COM_AC_Share_index_1)*($B$96=COM_AC_Share_index_3)*(R$97=COM_AC_Share_index_2)*COM_AC_Share_vals)) -> 0.09529059398 | S151: =IF($B151="not used",0,SUMPRODUCT(($B151=COM_AC_Share_index_1)*($B$96=COM_AC_Share_index_3)*(S$97=COM_AC_Share_index_2)*COM_AC_Share_vals)) -> 0.09554962091 | T151: =IF($B151="not used",0,SUMPRODUCT(($B151=COM_AC_Share_index_1)*($B$96=COM_AC_Share_index_3)*(T$97=COM_AC_Share_index_2)*COM_AC_Share_vals)) -> 0.09584157898 | U151: =IF($B151="not used",0,SUMPRODUCT(($B151=COM_AC_Share_index_1)*($B$96=COM_AC_Share_index_3)*(U$97=COM_AC_Share_index_2)*COM_AC_Share_vals)) -> 0.09611882046 | V151: =IF($B151="not used",0,SUMPRODUCT(($B151=COM_AC_Share_index_1)*($B$96=COM_AC_Share_index_3)*(V$97=COM_AC_Share_index_2)*COM_AC_Share_vals)) -> 0.09633427721 | W151: =IF($B151="not used",0,SUMPRODUCT(($B151=COM_AC_Share_index_1)*($B$96=COM_AC_Share_index_3)*(W$97=COM_AC_Share_index_2)*COM_AC_Share_vals)) -> 0.09646065068 | X151: =IF($B151="not used",0,SUMPRODUCT(($B151=COM_AC_Share_index_1)*($B$96=COM_AC_Share_index_3)*(X$97=COM_AC_Share_index_2)*COM_AC_Share_vals)) -> 0.09649312394 | Y151: =IF($B151="not used",0,SUMPRODUCT(($B151=COM_AC_Share_index_1)*($B$96=COM_AC_Share_index_3)*(Y$97=COM_AC_Share_index_2)*COM_AC_Share_vals)) -> 0.09643505837 | Z151: =IF($B151="not used",0,SUMPRODUCT(($B151=COM_AC_Share_index_1)*($B$96=COM_AC_Share_index_3)*(Z$97=COM_AC_Share_index_2)*COM_AC_Share_vals)) -> 0.09630917171 | AA151: =IF($B151="not used",0,SUMPRODUCT(($B151=COM_AC_Share_index_1)*($B$96=COM_AC_Share_index_3)*(AA$97=COM_AC_Share_index_2)*COM_AC_Share_vals)) -> 0.0961460816 | AB151: =IF($B151="not used",0,SUMPRODUCT(($B151=COM_AC_Share_index_1)*($B$96=COM_AC_Share_index_3)*(AB$97=COM_AC_Share_index_2)*COM_AC_Share_vals)) -> 0.09596289266 | AC151: =IF($B151="not used",0,SUMPRODUCT(($B151=COM_AC_Share_index_1)*($B$96=COM_AC_Share_index_3)*(AC$97=COM_AC_Share_index_2)*COM_AC_Share_vals)) -> 0.09578737214 | AD151: =IF($B151="not used",0,SUMPRODUCT(($B151=COM_AC_Share_index_1)*($B$96=COM_AC_Share_index_3)*(AD$97=COM_AC_Share_index_2)*COM_AC_Share_vals)) -> 0.09563790078 | AE151: =IF($B151="not used",0,SUMPRODUCT(($B151=COM_AC_Share_index_1)*($B$96=COM_AC_Share_index_3)*(AE$97=COM_AC_Share_index_2)*COM_AC_Share_vals)) -> 0.09552576308 | AF151: =IF($B151="not used",0,SUMPRODUCT(($B151=COM_AC_Share_index_1)*($B$96=COM_AC_Share_index_3)*(AF$97=COM_AC_Share_index_2)*COM_AC_Share_vals)) -> 0.09546164729 | AG151: =IF($B151="not used",0,SUMPRODUCT(($B151=COM_AC_Share_index_1)*($B$96=COM_AC_Share_index_3)*(AG$97=COM_AC_Share_index_2)*COM_AC_Share_vals)) -> 0.09544818318 | AH151: =IF($B151="not used",0,SUMPRODUCT(($B151=COM_AC_Share_index_1)*($B$96=COM_AC_Share_index_3)*(AH$97=COM_AC_Share_index_2)*COM_AC_Share_vals)) -> 0.09547564675 | AI151: =IF($B151="not used",0,SUMPRODUCT(($B151=COM_AC_Share_index_1)*($B$96=COM_AC_Share_index_3)*(AI$97=COM_AC_Share_index_2)*COM_AC_Share_vals)) -> 0.09554158715 | AJ151: =IF($B151="not used",0,SUMPRODUCT(($B151=COM_AC_Share_index_1)*($B$96=COM_AC_Share_index_3)*(AJ$97=COM_AC_Share_index_2)*COM_AC_Share_vals)) -> 0.09563312411 | AK151: =IF($B151="not used",0,SUMPRODUCT(($B151=COM_AC_Share_index_1)*($B$96=COM_AC_Share_index_3)*(AK$97=COM_AC_Share_index_2)*COM_AC_Share_vals)) -> 0.09573733729 | AL151: =IF($B151="not used",0,SUMPRODUCT(($B151=COM_AC_Share_index_1)*($B$96=COM_AC_Share_index_3)*(AL$97=COM_AC_Share_index_2)*COM_AC_Share_vals)) -> 0.09584024241 | AM151: =IF($B151="not used",0,SUMPRODUCT(($B151=COM_AC_Share_index_1)*($B$96=COM_AC_Share_index_3)*(AM$97=COM_AC_Share_index_2)*COM_AC_Share_vals)) -> 0.09593462058
B152: Reference Geothermal Heat Pump (Cooling) | C152: =IF(B152="not used",B152,INDEX(Lists!$G$3:$G$12,MATCH('Comm AC'!$B152,Lists!$F$3:$F$17,0))) -> Reference Geothermal Heat Pump | D152: =IF($B152="not used",0,SUMPRODUCT(($B152=COM_AC_Share_index_1)*($B$96=COM_AC_Share_index_3)*(D$97=COM_AC_Share_index_2)*COM_AC_Share_vals)) -> 0.05130731243 | E152: =IF($B152="not used",0,SUMPRODUCT(($B152=COM_AC_Share_index_1)*($B$96=COM_AC_Share_index_3)*(E$97=COM_AC_Share_index_2)*COM_AC_Share_vals)) -> 0.051224006 | F152: =IF($B152="not used",0,SUMPRODUCT(($B152=COM_AC_Share_index_1)*($B$96=COM_AC_Share_index_3)*(F$97=COM_AC_Share_index_2)*COM_AC_Share_vals)) -> 0.05112878349 | G152: =IF($B152="not used",0,SUMPRODUCT(($B152=COM_AC_Share_index_1)*($B$96=COM_AC_Share_index_3)*(G$97=COM_AC_Share_index_2)*COM_AC_Share_vals)) -> 0.0508531661 | H152: =IF($B152="not used",0,SUMPRODUCT(($B152=COM_AC_Share_index_1)*($B$96=COM_AC_Share_index_3)*(H$97=COM_AC_Share_index_2)*COM_AC_Share_vals)) -> 0.05065033883 | I152: =IF($B152="not used",0,SUMPRODUCT(($B152=COM_AC_Share_index_1)*($B$96=COM_AC_Share_index_3)*(I$97=COM_AC_Share_index_2)*COM_AC_Share_vals)) -> 0.05053255207 | J152: =IF($B152="not used",0,SUMPRODUCT(($B152=COM_AC_Share_index_1)*($B$96=COM_AC_Share_index_3)*(J$97=COM_AC_Share_index_2)*COM_AC_Share_vals)) -> 0.05063345432 | K152: =IF($B152="not used",0,SUMPRODUCT(($B152=COM_AC_Share_index_1)*($B$96=COM_AC_Share_index_3)*(K$97=COM_AC_Share_index_2)*COM_AC_Share_vals)) -> 0.05082593084 | L152: =IF($B152="not used",0,SUMPRODUCT(($B152=COM_AC_Share_index_1)*($B$96=COM_AC_Share_index_3)*(L$97=COM_AC_Share_index_2)*COM_AC_Share_vals)) -> 0.05106858954 | M152: =IF($B152="not used",0,SUMPRODUCT(($B152=COM_AC_Share_index_1)*($B$96=COM_AC_Share_index_3)*(M$97=COM_AC_Share_index_2)*COM_AC_Share_vals)) -> 0.05127999626 | N152: =IF($B152="not used",0,SUMPRODUCT(($B152=COM_AC_Share_index_1)*($B$96=COM_AC_Share_index_3)*(N$97=COM_AC_Share_index_2)*COM_AC_Share_vals)) -> 0.05143060263 | O152: =IF($B152="not used",0,SUMPRODUCT(($B152=COM_AC_Share_index_1)*($B$96=COM_AC_Share_index_3)*(O$97=COM_AC_Share_index_2)*COM_AC_Share_vals)) -> 0.05144972086 | P152: =IF($B152="not used",0,SUMPRODUCT(($B152=COM_AC_Share_index_1)*($B$96=COM_AC_Share_index_3)*(P$97=COM_AC_Share_index_2)*COM_AC_Share_vals)) -> 0.05133233653 | Q152: =IF($B152="not used",0,SUMPRODUCT(($B152=COM_AC_Share_index_1)*($B$96=COM_AC_Share_index_3)*(Q$97=COM_AC_Share_index_2)*COM_AC_Share_vals)) -> 0.0510852456 | R152: =IF($B152="not used",0,SUMPRODUCT(($B152=COM_AC_Share_index_1)*($B$96=COM_AC_Share_index_3)*(R$97=COM_AC_Share_index_2)*COM_AC_Share_vals)) -> 0.05074213403 | S152: =IF($B152="not used",0,SUMPRODUCT(($B152=COM_AC_Share_index_1)*($B$96=COM_AC_Share_index_3)*(S$97=COM_AC_Share_index_2)*COM_AC_Share_vals)) -> 0.05036150032 | T152: =IF($B152="not used",0,SUMPRODUCT(($B152=COM_AC_Share_index_1)*($B$96=COM_AC_Share_index_3)*(T$97=COM_AC_Share_index_2)*COM_AC_Share_vals)) -> 0.05000870307 | U152: =IF($B152="not used",0,SUMPRODUCT(($B152=COM_AC_Share_index_1)*($B$96=COM_AC_Share_index_3)*(U$97=COM_AC_Share_index_2)*COM_AC_Share_vals)) -> 0.04973878403 | V152: =IF($B152="not used",0,SUMPRODUCT(($B152=COM_AC_Share_index_1)*($B$96=COM_AC_Share_index_3)*(V$97=COM_AC_Share_index_2)*COM_AC_Share_vals)) -> 0.04959332293 | W152: =IF($B152="not used",0,SUMPRODUCT(($B152=COM_AC_Share_index_1)*($B$96=COM_AC_Share_index_3)*(W$97=COM_AC_Share_index_2)*COM_AC_Share_vals)) -> 0.04958889934 | X152: =IF($B152="not used",0,SUMPRODUCT(($B152=COM_AC_Share_index_1)*($B$96=COM_AC_Share_index_3)*(X$97=COM_AC_Share_index_2)*COM_AC_Share_vals)) -> 0.04970853368 | Y152: =IF($B152="not used",0,SUMPRODUCT(($B152=COM_AC_Share_index_1)*($B$96=COM_AC_Share_index_3)*(Y$97=COM_AC_Share_index_2)*COM_AC_Share_vals)) -> 0.04992502762 | Z152: =IF($B152="not used",0,SUMPRODUCT(($B152=COM_AC_Share_index_1)*($B$96=COM_AC_Share_index_3)*(Z$97=COM_AC_Share_index_2)*COM_AC_Share_vals)) -> 0.05019529781 | AA152: =IF($B152="not used",0,SUMPRODUCT(($B152=COM_AC_Share_index_1)*($B$96=COM_AC_Share_index_3)*(AA$97=COM_AC_Share_index_2)*COM_AC_Share_vals)) -> 0.0504697996 | AB152: =IF($B152="not used",0,SUMPRODUCT(($B152=COM_AC_Share_index_1)*($B$96=COM_AC_Share_index_3)*(AB$97=COM_AC_Share_index_2)*COM_AC_Share_vals)) -> 0.05073046655 | AC152: =IF($B152="not used",0,SUMPRODUCT(($B152=COM_AC_Share_index_1)*($B$96=COM_AC_Share_index_3)*(AC$97=COM_AC_Share_index_2)*COM_AC_Share_vals)) -> 0.05094381444 | AD152: =IF($B152="not used",0,SUMPRODUCT(($B152=COM_AC_Share_index_1)*($B$96=COM_AC_Share_index_3)*(AD$97=COM_AC_Share_index_2)*COM_AC_Share_vals)) -> 0.05109550914 | AE152: =IF($B152="not used",0,SUMPRODUCT(($B152=COM_AC_Share_index_1)*($B$96=COM_AC_Share_index_3)*(AE$97=COM_AC_Share_index_2)*COM_AC_Share_vals)) -> 0.05118195279 | AF152: =IF($B152="not used",0,SUMPRODUCT(($B152=COM_AC_Share_index_1)*($B$96=COM_AC_Share_index_3)*(AF$97=COM_AC_Share_index_2)*COM_AC_Share_vals)) -> 0.051199767 | AG152: =IF($B152="not used",0,SUMPRODUCT(($B152=COM_AC_Share_index_1)*($B$96=COM_AC_Share_index_3)*(AG$97=COM_AC_Share_index_2)*COM_AC_Share_vals)) -> 0.05114956985 | AH152: =IF($B152="not used",0,SUMPRODUCT(($B152=COM_AC_Share_index_1)*($B$96=COM_AC_Share_index_3)*(AH$97=COM_AC_Share_index_2)*COM_AC_Share_vals)) -> 0.05105463123 | AI152: =IF($B152="not used",0,SUMPRODUCT(($B152=COM_AC_Share_index_1)*($B$96=COM_AC_Share_index_3)*(AI$97=COM_AC_Share_index_2)*COM_AC_Share_vals)) -> 0.05091295779 | AJ152: =IF($B152="not used",0,SUMPRODUCT(($B152=COM_AC_Share_index_1)*($B$96=COM_AC_Share_index_3)*(AJ$97=COM_AC_Share_index_2)*COM_AC_Share_vals)) -> 0.05074560674 | AK152: =IF($B152="not used",0,SUMPRODUCT(($B152=COM_AC_Share_index_1)*($B$96=COM_AC_Share_index_3)*(AK$97=COM_AC_Share_index_2)*COM_AC_Share_vals)) -> 0.0505682799 | AL152: =IF($B152="not used",0,SUMPRODUCT(($B152=COM_AC_Share_index_1)*($B$96=COM_AC_Share_index_3)*(AL$97=COM_AC_Share_index_2)*COM_AC_Share_vals)) -> 0.0503996122 | AM152: =IF($B152="not used",0,SUMPRODUCT(($B152=COM_AC_Share_index_1)*($B$96=COM_AC_Share_index_3)*(AM$97=COM_AC_Share_index_2)*COM_AC_Share_vals)) -> 0.05024422942
B153: Reference Centrifugal Chiller | C153: =IF(B153="not used",B153,INDEX(Lists!$G$3:$G$12,MATCH('Comm AC'!$B153,Lists!$F$3:$F$17,0))) -> Reference Chiller | D153: =IF($B153="not used",0,SUMPRODUCT(($B153=COM_AC_Share_index_1)*($B$96=COM_AC_Share_index_3)*(D$97=COM_AC_Share_index_2)*COM_AC_Share_vals)) -> 0.03307973816 | E153: =IF($B153="not used",0,SUMPRODUCT(($B153=COM_AC_Share_index_1)*($B$96=COM_AC_Share_index_3)*(E$97=COM_AC_Share_index_2)*COM_AC_Share_vals)) -> 0.03302333191 | F153: =IF($B153="not used",0,SUMPRODUCT(($B153=COM_AC_Share_index_1)*($B$96=COM_AC_Share_index_3)*(F$97=COM_AC_Share_index_2)*COM_AC_Share_vals)) -> 0.03253030903 | G153: =IF($B153="not used",0,SUMPRODUCT(($B153=COM_AC_Share_index_1)*($B$96=COM_AC_Share_index_3)*(G$97=COM_AC_Share_index_2)*COM_AC_Share_vals)) -> 0.03076957631 | H153: =IF($B153="not used",0,SUMPRODUCT(($B153=COM_AC_Share_index_1)*($B$96=COM_AC_Share_index_3)*(H$97=COM_AC_Share_index_2)*COM_AC_Share_vals)) -> 0.02708531672 | I153: =IF($B153="not used",0,SUMPRODUCT(($B153=COM_AC_Share_index_1)*($B$96=COM_AC_Share_index_3)*(I$97=COM_AC_Share_index_2)*COM_AC_Share_vals)) -> 0.02063475076 | J153: =IF($B153="not used",0,SUMPRODUCT(($B153=COM_AC_Share_index_1)*($B$96=COM_AC_Share_index_3)*(J$97=COM_AC_Share_index_2)*COM_AC_Share_vals)) -> 0.01273744464 | K153: =IF($B153="not used",0,SUMPRODUCT(($B153=COM_AC_Share_index_1)*($B$96=COM_AC_Share_index_3)*(K$97=COM_AC_Share_index_2)*COM_AC_Share_vals)) -> 0.006338535959 | L153: =IF($B153="not used",0,SUMPRODUCT(($B153=COM_AC_Share_index_1)*($B$96=COM_AC_Share_index_3)*(L$97=COM_AC_Share_index_2)*COM_AC_Share_vals)) -> 0.002730704472 | M153: =IF($B153="not used",0,SUMPRODUCT(($B153=COM_AC_Share_index_1)*($B$96=COM_AC_Share_index_3)*(M$97=COM_AC_Share_index_2)*COM_AC_Share_vals)) -> 0.001092335269 | N153: =IF($B153="not used",0,SUMPRODUCT(($B153=COM_AC_Share_index_1)*($B$96=COM_AC_Share_index_3)*(N$97=COM_AC_Share_index_2)*COM_AC_Share_vals)) -> 0.0004232956417 | O153: =IF($B153="not used",0,SUMPRODUCT(($B153=COM_AC_Share_index_1)*($B$96=COM_AC_Share_index_3)*(O$97=COM_AC_Share_index_2)*COM_AC_Share_vals)) -> 0.0001615219096 | P153: =IF($B153="not used",0,SUMPRODUCT(($B153=COM_AC_Share_index_1)*($B$96=COM_AC_Share_index_3)*(P$97=COM_AC_Share_index_2)*COM_AC_Share_vals)) -> 6.114567754e-05 | Q153: =IF($B153="not used",0,SUMPRODUCT(($B153=COM_AC_Share_index_1)*($B$96=COM_AC_Share_index_3)*(Q$97=COM_AC_Share_index_2)*COM_AC_Share_vals)) -> 2.301539291e-05 | R153: =IF($B153="not used",0,SUMPRODUCT(($B153=COM_AC_Share_index_1)*($B$96=COM_AC_Share_index_3)*(R$97=COM_AC_Share_index_2)*COM_AC_Share_vals)) -> 8.623615472e-06 | S153: =IF($B153="not used",0,SUMPRODUCT(($B153=COM_AC_Share_index_1)*($B$96=COM_AC_Share_index_3)*(S$97=COM_AC_Share_index_2)*COM_AC_Share_vals)) -> 3.219143856e-06 | T153: =IF($B153="not used",0,SUMPRODUCT(($B153=COM_AC_Share_index_1)*($B$96=COM_AC_Share_index_3)*(T$97=COM_AC_Share_index_2)*COM_AC_Share_vals)) -> 1.198616197e-06 | U153: =IF($B153="not used",0,SUMPRODUCT(($B153=COM_AC_Share_index_1)*($B$96=COM_AC_Share_index_3)*(U$97=COM_AC_Share_index_2)*COM_AC_Share_vals)) -> 4.45481922e-07 | V153: =IF($B153="not used",0,SUMPRODUCT(($B153=COM_AC_Share_index_1)*($B$96=COM_AC_Share_index_3)*(V$97=COM_AC_Share_index_2)*COM_AC_Share_vals)) -> 1.65518866e-07 | W153: =IF($B153="not used",0,SUMPRODUCT(($B153=COM_AC_Share_index_1)*($B$96=COM_AC_Share_index_3)*(W$97=COM_AC_Share_index_2)*COM_AC_Share_vals)) -> 6.1517385e-08 | X153: =IF($B153="not used",0,SUMPRODUCT(($B153=COM_AC_Share_index_1)*($B$96=COM_AC_Share_index_3)*(X$97=COM_AC_Share_index_2)*COM_AC_Share_vals)) -> 2.2880404e-08 | Y153: =IF($B153="not used",0,SUMPRODUCT(($B153=COM_AC_Share_index_1)*($B$96=COM_AC_Share_index_3)*(Y$97=COM_AC_Share_index_2)*COM_AC_Share_vals)) -> 8.519618e-09 | Z153: =IF($B153="not used",0,SUMPRODUCT(($B153=COM_AC_Share_index_1)*($B$96=COM_AC_Share_index_3)*(Z$97=COM_AC_Share_index_2)*COM_AC_Share_vals)) -> 3.173716e-09 | AA153: =IF($B153="not used",0,SUMPRODUCT(($B153=COM_AC_Share_index_1)*($B$96=COM_AC_Share_index_3)*(AA$97=COM_AC_Share_index_2)*COM_AC_Share_vals)) -> 1.181374e-09 | AB153: =IF($B153="not used",0,SUMPRODUCT(($B153=COM_AC_Share_index_1)*($B$96=COM_AC_Share_index_3)*(AB$97=COM_AC_Share_index_2)*COM_AC_Share_vals)) -> 4.38778e-10 | AC153: =IF($B153="not used",0,SUMPRODUCT(($B153=COM_AC_Share_index_1)*($B$96=COM_AC_Share_index_3)*(AC$97=COM_AC_Share_index_2)*COM_AC_Share_vals)) -> 1.62308e-10 | AD153: =IF($B153="not used",0,SUMPRODUCT(($B153=COM_AC_Share_index_1)*($B$96=COM_AC_Share_index_3)*(AD$97=COM_AC_Share_index_2)*COM_AC_Share_vals)) -> 5.9667e-11 | AE153: =IF($B153="not used",0,SUMPRODUCT(($B153=COM_AC_Share_index_1)*($B$96=COM_AC_Share_index_3)*(AE$97=COM_AC_Share_index_2)*COM_AC_Share_vals)) -> 2.1756e-11 | AF153: =IF($B153="not used",0,SUMPRODUCT(($B153=COM_AC_Share_index_1)*($B$96=COM_AC_Share_index_3)*(AF$97=COM_AC_Share_index_2)*COM_AC_Share_vals)) -> 7.854e-12 | AG153: =IF($B153="not used",0,SUMPRODUCT(($B153=COM_AC_Share_index_1)*($B$96=COM_AC_Share_index_3)*(AG$97=COM_AC_Share_index_2)*COM_AC_Share_vals)) -> 2.804e-12 | AH153: =IF($B153="not used",0,SUMPRODUCT(($B153=COM_AC_Share_index_1)*($B$96=COM_AC_Share_index_3)*(AH$97=COM_AC_Share_index_2)*COM_AC_Share_vals)) -> 9.89e-13 | AI153: =IF($B153="not used",0,SUMPRODUCT(($B153=COM_AC_Share_index_1)*($B$96=COM_AC_Share_index_3)*(AI$97=COM_AC_Share_index_2)*COM_AC_Share_vals)) -> 3.45e-13 | AJ153: =IF($B153="not used",0,SUMPRODUCT(($B153=COM_AC_Share_index_1)*($B$96=COM_AC_Share_index_3)*(AJ$97=COM_AC_Share_index_2)*COM_AC_Share_vals)) -> 1.19e-13 | AK153: =IF($B153="not used",0,SUMPRODUCT(($B153=COM_AC_Share_index_1)*($B$96=COM_AC_Share_index_3)*(AK$97=COM_AC_Share_index_2)*COM_AC_Share_vals)) -> 4.1e-14 | AL153: =IF($B153="not used",0,SUMPRODUCT(($B153=COM_AC_Share_index_1)*($B$96=COM_AC_Share_index_3)*(AL$97=COM_AC_Share_index_2)*COM_AC_Share_vals)) -> 1.4e-14 | AM153: =IF($B153="not used",0,SUMPRODUCT(($B153=COM_AC_Share_index_1)*($B$96=COM_AC_Share_index_3)*(AM$97=COM_AC_Share_index_2)*COM_AC_Share_vals)) -> 5e-15
B154: Reference Reciprocating Chiller | C154: =IF(B154="not used",B154,INDEX(Lists!$G$3:$G$12,MATCH('Comm AC'!$B154,Lists!$F$3:$F$17,0))) -> Reference Chiller | D154: =IF($B154="not used",0,SUMPRODUCT(($B154=COM_AC_Share_index_1)*($B$96=COM_AC_Share_index_3)*(D$97=COM_AC_Share_index_2)*COM_AC_Share_vals)) -> 0.1446979438 | E154: =IF($B154="not used",0,SUMPRODUCT(($B154=COM_AC_Share_index_1)*($B$96=COM_AC_Share_index_3)*(E$97=COM_AC_Share_index_2)*COM_AC_Share_vals)) -> 0.1433647479 | F154: =IF($B154="not used",0,SUMPRODUCT(($B154=COM_AC_Share_index_1)*($B$96=COM_AC_Share_index_3)*(F$97=COM_AC_Share_index_2)*COM_AC_Share_vals)) -> 0.1402667933 | G154: =IF($B154="not used",0,SUMPRODUCT(($B154=COM_AC_Share_index_1)*($B$96=COM_AC_Share_index_3)*(G$97=COM_AC_Share_index_2)*COM_AC_Share_vals)) -> 0.1325467845 | H154: =IF($B154="not used",0,SUMPRODUCT(($B154=COM_AC_Share_index_1)*($B$96=COM_AC_Share_index_3)*(H$97=COM_AC_Share_index_2)*COM_AC_Share_vals)) -> 0.1165680298 | I154: =IF($B154="not used",0,SUMPRODUCT(($B154=COM_AC_Share_index_1)*($B$96=COM_AC_Share_index_3)*(I$97=COM_AC_Share_index_2)*COM_AC_Share_vals)) -> 0.08872578009 | J154: =IF($B154="not used",0,SUMPRODUCT(($B154=COM_AC_Share_index_1)*($B$96=COM_AC_Share_index_3)*(J$97=COM_AC_Share_index_2)*COM_AC_Share_vals)) -> 0.05455846281 | K154: =IF($B154="not used",0,SUMPRODUCT(($B154=COM_AC_Share_index_1)*($B$96=COM_AC_Share_index_3)*(K$97=COM_AC_Share_index_2)*COM_AC_Share_vals)) -> 0.02703461546 | L154: =IF($B154="not used",0,SUMPRODUCT(($B154=COM_AC_Share_index_1)*($B$96=COM_AC_Share_index_3)*(L$97=COM_AC_Share_index_2)*COM_AC_Share_vals)) -> 0.01158601219 | M154: =IF($B154="not used",0,SUMPRODUCT(($B154=COM_AC_Share_index_1)*($B$96=COM_AC_Share_index_3)*(M$97=COM_AC_Share_index_2)*COM_AC_Share_vals)) -> 0.004611642571 | N154: =IF($B154="not used",0,SUMPRODUCT(($B154=COM_AC_Share_index_1)*($B$96=COM_AC_Share_index_3)*(N$97=COM_AC_Share_index_2)*COM_AC_Share_vals)) -> 0.001777023145 | O154: =IF($B154="not used",0,SUMPRODUCT(($B154=COM_AC_Share_index_1)*($B$96=COM_AC_Share_index_3)*(O$97=COM_AC_Share_index_2)*COM_AC_Share_vals)) -> 0.0006745899613 | P154: =IF($B154="not used",0,SUMPRODUCT(($B154=COM_AC_Share_index_1)*($B$96=COM_AC_Share_index_3)*(P$97=COM_AC_Share_index_2)*COM_AC_Share_vals)) -> 0.0002541793763 | Q154: =IF($B154="not used",0,SUMPRODUCT(($B154=COM_AC_Share_index_1)*($B$96=COM_AC_Share_index_3)*(Q$97=COM_AC_Share_index_2)*COM_AC_Share_vals)) -> 9.534018749e-05 | R154: =IF($B154="not used",0,SUMPRODUCT(($B154=COM_AC_Share_index_1)*($B$96=COM_AC_Share_index_3)*(R$97=COM_AC_Share_index_2)*COM_AC_Share_vals)) -> 3.565465896e-05 | S154: =IF($B154="not used",0,SUMPRODUCT(($B154=COM_AC_Share_index_1)*($B$96=COM_AC_Share_index_3)*(S$97=COM_AC_Share_index_2)*COM_AC_Share_vals)) -> 1.331019589e-05 | T154: =IF($B154="not used",0,SUMPRODUCT(($B154=COM_AC_Share_index_1)*($B$96=COM_AC_Share_index_3)*(T$97=COM_AC_Share_index_2)*COM_AC_Share_vals)) -> 4.964528586e-06 | U154: =IF($B154="not used",0,SUMPRODUCT(($B154=COM_AC_Share_index_1)*($B$96=COM_AC_Share_index_3)*(U$97=COM_AC_Share_index_2)*COM_AC_Share_vals)) -> 1.850735251e-06 | V154: =IF($B154="not used",0,SUMPRODUCT(($B154=COM_AC_Share_index_1)*($B$96=COM_AC_Share_index_3)*(V$97=COM_AC_Share_index_2)*COM_AC_Share_vals)) -> 6.89392303e-07 | W154: =IF($B154="not used",0,SUMPRODUCT(($B154=COM_AC_Share_index_1)*($B$96=COM_AC_Share_index_3)*(W$97=COM_AC_Share_index_2)*COM_AC_Share_vals)) -> 2.56310265e-07 | X154: =IF($B154="not used",0,SUMPRODUCT(($B154=COM_AC_Share_index_1)*($B$96=COM_AC_Share_index_3)*(X$97=COM_AC_Share_index_2)*COM_AC_Share_vals)) -> 9.4917458e-08 | Y154: =IF($B154="not used",0,SUMPRODUCT(($B154=COM_AC_Share_index_1)*($B$96=COM_AC_Share_index_3)*(Y$97=COM_AC_Share_index_2)*COM_AC_Share_vals)) -> 3.4928385e-08 | Z154: =IF($B154="not used",0,SUMPRODUCT(($B154=COM_AC_Share_index_1)*($B$96=COM_AC_Share_index_3)*(Z$97=COM_AC_Share_index_2)*COM_AC_Share_vals)) -> 1.2738279e-08 | AA154: =IF($B154="not used",0,SUMPRODUCT(($B154=COM_AC_Share_index_1)*($B$96=COM_AC_Share_index_3)*(AA$97=COM_AC_Share_index_2)*COM_AC_Share_vals)) -> 4.592193e-09 | AB154: =IF($B154="not used",0,SUMPRODUCT(($B154=COM_AC_Share_index_1)*($B$96=COM_AC_Share_index_3)*(AB$97=COM_AC_Share_index_2)*COM_AC_Share_vals)) -> 1.63386e-09 | AC154: =IF($B154="not used",0,SUMPRODUCT(($B154=COM_AC_Share_index_1)*($B$96=COM_AC_Share_index_3)*(AC$97=COM_AC_Share_index_2)*COM_AC_Share_vals)) -> 5.72842e-10 | AD154: =IF($B154="not used",0,SUMPRODUCT(($B154=COM_AC_Share_index_1)*($B$96=COM_AC_Share_index_3)*(AD$97=COM_AC_Share_index_2)*COM_AC_Share_vals)) -> 1.97809e-10 | AE154: =IF($B154="not used",0,SUMPRODUCT(($B154=COM_AC_Share_index_1)*($B$96=COM_AC_Share_index_3)*(AE$97=COM_AC_Share_index_2)*COM_AC_Share_vals)) -> 6.7307e-11 | AF154: =IF($B154="not used",0,SUMPRODUCT(($B154=COM_AC_Share_index_1)*($B$96=COM_AC_Share_index_3)*(AF$97=COM_AC_Share_index_2)*COM_AC_Share_vals)) -> 2.2599e-11 | AG154: =IF($B154="not used",0,SUMPRODUCT(($B154=COM_AC_Share_index_1)*($B$96=COM_AC_Share_index_3)*(AG$97=COM_AC_Share_index_2)*COM_AC_Share_vals)) -> 7.506e-12 | AH154: =IF($B154="not used",0,SUMPRODUCT(($B154=COM_AC_Share_index_1)*($B$96=COM_AC_Share_index_3)*(AH$97=COM_AC_Share_index_2)*COM_AC_Share_vals)) -> 2.477e-12 | AI154: =IF($B154="not used",0,SUMPRODUCT(($B154=COM_AC_Share_index_1)*($B$96=COM_AC_Share_index_3)*(AI$97=COM_AC_Share_index_2)*COM_AC_Share_vals)) -> 8.15e-13 | AJ154: =IF($B154="not used",0,SUMPRODUCT(($B154=COM_AC_Share_index_1)*($B$96=COM_AC_Share_index_3)*(AJ$97=COM_AC_Share_index_2)*COM_AC_Share_vals)) -> 2.69e-13 | AK154: =IF($B154="not used",0,SUMPRODUCT(($B154=COM_AC_Share_index_1)*($B$96=COM_AC_Share_index_3)*(AK$97=COM_AC_Share_index_2)*COM_AC_Share_vals)) -> 9e-14 | AL154: =IF($B154="not used",0,SUMPRODUCT(($B154=COM_AC_Share_index_1)*($B$96=COM_AC_Share_index_3)*(AL$97=COM_AC_Share_index_2)*COM_AC_Share_vals)) -> 3e-14 | AM154: =IF($B154="not used",0,SUMPRODUCT(($B154=COM_AC_Share_index_1)*($B$96=COM_AC_Share_index_3)*(AM$97=COM_AC_Share_index_2)*COM_AC_Share_vals)) -> 1e-14
B155: High Efficiency Room Air Conditioner | C155: =IF(B155="not used",B155,INDEX(Lists!$G$3:$G$12,MATCH('Comm AC'!$B155,Lists!$F$3:$F$17,0))) -> High Efficiency AC | D155: =IF($B155="not used",0,SUMPRODUCT(($B155=COM_AC_Share_index_1)*($B$96=COM_AC_Share_index_3)*(D$97=COM_AC_Share_index_2)*COM_AC_Share_vals)) -> 0.07760794051 | E155: =IF($B155="not used",0,SUMPRODUCT(($B155=COM_AC_Share_index_1)*($B$96=COM_AC_Share_index_3)*(E$97=COM_AC_Share_index_2)*COM_AC_Share_vals)) -> 0.07709269368 | F155: =IF($B155="not used",0,SUMPRODUCT(($B155=COM_AC_Share_index_1)*($B$96=COM_AC_Share_index_3)*(F$97=COM_AC_Share_index_2)*COM_AC_Share_vals)) -> 0.07657656722 | G155: =IF($B155="not used",0,SUMPRODUCT(($B155=COM_AC_Share_index_1)*($B$96=COM_AC_Share_index_3)*(G$97=COM_AC_Share_index_2)*COM_AC_Share_vals)) -> 0.07644176443 | H155: =IF($B155="not used",0,SUMPRODUCT(($B155=COM_AC_Share_index_1)*($B$96=COM_AC_Share_index_3)*(H$97=COM_AC_Share_index_2)*COM_AC_Share_vals)) -> 0.07627393624 | I155: =IF($B155="not used",0,SUMPRODUCT(($B155=COM_AC_Share_index_1)*($B$96=COM_AC_Share_index_3)*(I$97=COM_AC_Share_index_2)*COM_AC_Share_vals)) -> 0.07612928813 | J155: =IF($B155="not used",0,SUMPRODUCT(($B155=COM_AC_Share_index_1)*($B$96=COM_AC_Share_index_3)*(J$97=COM_AC_Share_index_2)*COM_AC_Share_vals)) -> 0.07586972394 | K155: =IF($B155="not used",0,SUMPRODUCT(($B155=COM_AC_Share_index_1)*($B$96=COM_AC_Share_index_3)*(K$97=COM_AC_Share_index_2)*COM_AC_Share_vals)) -> 0.07580382832 | L155: =IF($B155="not used",0,SUMPRODUCT(($B155=COM_AC_Share_index_1)*($B$96=COM_AC_Share_index_3)*(L$97=COM_AC_Share_index_2)*COM_AC_Share_vals)) -> 0.07599549588 | M155: =IF($B155="not used",0,SUMPRODUCT(($B155=COM_AC_Share_index_1)*($B$96=COM_AC_Share_index_3)*(M$97=COM_AC_Share_index_2)*COM_AC_Share_vals)) -> 0.07651893672 | N155: =IF($B155="not used",0,SUMPRODUCT(($B155=COM_AC_Share_index_1)*($B$96=COM_AC_Share_index_3)*(N$97=COM_AC_Share_index_2)*COM_AC_Share_vals)) -> 0.07726455824 | O155: =IF($B155="not used",0,SUMPRODUCT(($B155=COM_AC_Share_index_1)*($B$96=COM_AC_Share_index_3)*(O$97=COM_AC_Share_index_2)*COM_AC_Share_vals)) -> 0.07812227275 | P155: =IF($B155="not used",0,SUMPRODUCT(($B155=COM_AC_Share_index_1)*($B$96=COM_AC_Share_index_3)*(P$97=COM_AC_Share_index_2)*COM_AC_Share_vals)) -> 0.07890953154 | Q155: =IF($B155="not used",0,SUMPRODUCT(($B155=COM_AC_Share_index_1)*($B$96=COM_AC_Share_index_3)*(Q$97=COM_AC_Share_index_2)*COM_AC_Share_vals)) -> 0.07946430801 | R155: =IF($B155="not used",0,SUMPRODUCT(($B155=COM_AC_Share_index_1)*($B$96=COM_AC_Share_index_3)*(R$97=COM_AC_Share_index_2)*COM_AC_Share_vals)) -> 0.07968757099 | S155: =IF($B155="not used",0,SUMPRODUCT(($B155=COM_AC_Share_index_1)*($B$96=COM_AC_Share_index_3)*(S$97=COM_AC_Share_index_2)*COM_AC_Share_vals)) -> 0.07957666886 | T155: =IF($B155="not used",0,SUMPRODUCT(($B155=COM_AC_Share_index_1)*($B$96=COM_AC_Share_index_3)*(T$97=COM_AC_Share_index_2)*COM_AC_Share_vals)) -> 0.07919765868 | U155: =IF($B155="not used",0,SUMPRODUCT(($B155=COM_AC_Share_index_1)*($B$96=COM_AC_Share_index_3)*(U$97=COM_AC_Share_index_2)*COM_AC_Share_vals)) -> 0.07865593041 | V155: =IF($B155="not used",0,SUMPRODUCT(($B155=COM_AC_Share_index_1)*($B$96=COM_AC_Share_index_3)*(V$97=COM_AC_Share_index_2)*COM_AC_Share_vals)) -> 0.07807633799 | W155: =IF($B155="not used",0,SUMPRODUCT(($B155=COM_AC_Share_index_1)*($B$96=COM_AC_Share_index_3)*(W$97=COM_AC_Share_index_2)*COM_AC_Share_vals)) -> 0.07756453652 | X155: =IF($B155="not used",0,SUMPRODUCT(($B155=COM_AC_Share_index_1)*($B$96=COM_AC_Share_index_3)*(X$97=COM_AC_Share_index_2)*COM_AC_Share_vals)) -> 0.07719157501 | Y155: =IF($B155="not used",0,SUMPRODUCT(($B155=COM_AC_Share_index_1)*($B$96=COM_AC_Share_index_3)*(Y$97=COM_AC_Share_index_2)*COM_AC_Share_vals)) -> 0.07700368208 | Z155: =IF($B155="not used",0,SUMPRODUCT(($B155=COM_AC_Share_index_1)*($B$96=COM_AC_Share_index_3)*(Z$97=COM_AC_Share_index_2)*COM_AC_Share_vals)) -> 0.07699586632 | AA155: =IF($B155="not used",0,SUMPRODUCT(($B155=COM_AC_Share_index_1)*($B$96=COM_AC_Share_index_3)*(AA$97=COM_AC_Share_index_2)*COM_AC_Share_vals)) -> 0.07714104927 | AB155: =IF($B155="not used",0,SUMPRODUCT(($B155=COM_AC_Share_index_1)*($B$96=COM_AC_Share_index_3)*(AB$97=COM_AC_Share_index_2)*COM_AC_Share_vals)) -> 0.07739260848 | AC155: =IF($B155="not used",0,SUMPRODUCT(($B155=COM_AC_Share_index_1)*($B$96=COM_AC_Share_index_3)*(AC$97=COM_AC_Share_index_2)*COM_AC_Share_vals)) -> 0.07769536584 | AD155: =IF($B155="not used",0,SUMPRODUCT(($B155=COM_AC_Share_index_1)*($B$96=COM_AC_Share_index_3)*(AD$97=COM_AC_Share_index_2)*COM_AC_Share_vals)) -> 0.07799737705 | AE155: =IF($B155="not used",0,SUMPRODUCT(($B155=COM_AC_Share_index_1)*($B$96=COM_AC_Share_index_3)*(AE$97=COM_AC_Share_index_2)*COM_AC_Share_vals)) -> 0.07825551297 | AF155: =IF($B155="not used",0,SUMPRODUCT(($B155=COM_AC_Share_index_1)*($B$96=COM_AC_Share_index_3)*(AF$97=COM_AC_Share_index_2)*COM_AC_Share_vals)) -> 0.07843335981 | AG155: =IF($B155="not used",0,SUMPRODUCT(($B155=COM_AC_Share_index_1)*($B$96=COM_AC_Share_index_3)*(AG$97=COM_AC_Share_index_2)*COM_AC_Share_vals)) -> 0.07852091422 | AH155: =IF($B155="not used",0,SUMPRODUCT(($B155=COM_AC_Share_index_1)*($B$96=COM_AC_Share_index_3)*(AH$97=COM_AC_Share_index_2)*COM_AC_Share_vals)) -> 0.07852361464 | AI155: =IF($B155="not used",0,SUMPRODUCT(($B155=COM_AC_Share_index_1)*($B$96=COM_AC_Share_index_3)*(AI$97=COM_AC_Share_index_2)*COM_AC_Share_vals)) -> 0.07845941119 | AJ155: =IF($B155="not used",0,SUMPRODUCT(($B155=COM_AC_Share_index_1)*($B$96=COM_AC_Share_index_3)*(AJ$97=COM_AC_Share_index_2)*COM_AC_Share_vals)) -> 0.07835179474 | AK155: =IF($B155="not used",0,SUMPRODUCT(($B155=COM_AC_Share_index_1)*($B$96=COM_AC_Share_index_3)*(AK$97=COM_AC_Share_index_2)*COM_AC_Share_vals)) -> 0.07822761564 | AL155: =IF($B155="not used",0,SUMPRODUCT(($B155=COM_AC_Share_index_1)*($B$96=COM_AC_Share_index_3)*(AL$97=COM_AC_Share_index_2)*COM_AC_Share_vals)) -> 0.07811105396 | AM155: =IF($B155="not used",0,SUMPRODUCT(($B155=COM_AC_Share_index_1)*($B$96=COM_AC_Share_index_3)*(AM$97=COM_AC_Share_index_2)*COM_AC_Share_vals)) -> 0.07802335988
B156: High Efficiency Central Air Conditioner | C156: =IF(B156="not used",B156,INDEX(Lists!$G$3:$G$12,MATCH('Comm AC'!$B156,Lists!$F$3:$F$17,0))) -> High Efficiency AC | D156: =IF($B156="not used",0,SUMPRODUCT(($B156=COM_AC_Share_index_1)*($B$96=COM_AC_Share_index_3)*(D$97=COM_AC_Share_index_2)*COM_AC_Share_vals)) -> 0.002762916302 | E156: =IF($B156="not used",0,SUMPRODUCT(($B156=COM_AC_Share_index_1)*($B$96=COM_AC_Share_index_3)*(E$97=COM_AC_Share_index_2)*COM_AC_Share_vals)) -> 0.00728719639 | F156: =IF($B156="not used",0,SUMPRODUCT(($B156=COM_AC_Share_index_1)*($B$96=COM_AC_Share_index_3)*(F$97=COM_AC_Share_index_2)*COM_AC_Share_vals)) -> 0.01898614205 | G156: =IF($B156="not used",0,SUMPRODUCT(($B156=COM_AC_Share_index_1)*($B$96=COM_AC_Share_index_3)*(G$97=COM_AC_Share_index_2)*COM_AC_Share_vals)) -> 0.04798928472 | H156: =IF($B156="not used",0,SUMPRODUCT(($B156=COM_AC_Share_index_1)*($B$96=COM_AC_Share_index_3)*(H$97=COM_AC_Share_index_2)*COM_AC_Share_vals)) -> 0.1126813897 | I156: =IF($B156="not used",0,SUMPRODUCT(($B156=COM_AC_Share_index_1)*($B$96=COM_AC_Share_index_3)*(I$97=COM_AC_Share_index_2)*COM_AC_Share_vals)) -> 0.2284771787 | J156: =IF($B156="not used",0,SUMPRODUCT(($B156=COM_AC_Share_index_1)*($B$96=COM_AC_Share_index_3)*(J$97=COM_AC_Share_index_2)*COM_AC_Share_vals)) -> 0.3721310791 | K156: =IF($B156="not used",0,SUMPRODUCT(($B156=COM_AC_Share_index_1)*($B$96=COM_AC_Share_index_3)*(K$97=COM_AC_Share_index_2)*COM_AC_Share_vals)) -> 0.4871092832 | L156: =IF($B156="not used",0,SUMPRODUCT(($B156=COM_AC_Share_index_1)*($B$96=COM_AC_Share_index_3)*(L$97=COM_AC_Share_index_2)*COM_AC_Share_vals)) -> 0.5505129233 | M156: =IF($B156="not used",0,SUMPRODUCT(($B156=COM_AC_Share_index_1)*($B$96=COM_AC_Share_index_3)*(M$97=COM_AC_Share_index_2)*COM_AC_Share_vals)) -> 0.5780627805 | N156: =IF($B156="not used",0,SUMPRODUCT(($B156=COM_AC_Share_index_1)*($B$96=COM_AC_Share_index_3)*(N$97=COM_AC_Share_index_2)*COM_AC_Share_vals)) -> 0.5883529637 | O156: =IF($B156="not used",0,SUMPRODUCT(($B156=COM_AC_Share_index_1)*($B$96=COM_AC_Share_index_3)*(O$97=COM_AC_Share_index_2)*COM_AC_Share_vals)) -> 0.5918968568 | P156: =IF($B156="not used",0,SUMPRODUCT(($B156=COM_AC_Share_index_1)*($B$96=COM_AC_Share_index_3)*(P$97=COM_AC_Share_index_2)*COM_AC_Share_vals)) -> 0.5932498718 | Q156: =IF($B156="not used",0,SUMPRODUCT(($B156=COM_AC_Share_index_1)*($B$96=COM_AC_Share_index_3)*(Q$97=COM_AC_Share_index_2)*COM_AC_Share_vals)) -> 0.5942832238 | R156: =IF($B156="not used",0,SUMPRODUCT(($B156=COM_AC_Share_index_1)*($B$96=COM_AC_Share_index_3)*(R$97=COM_AC_Share_index_2)*COM_AC_Share_vals)) -> 0.5956326505 | S156: =IF($B156="not used",0,SUMPRODUCT(($B156=COM_AC_Share_index_1)*($B$96=COM_AC_Share_index_3)*(S$97=COM_AC_Share_index_2)*COM_AC_Share_vals)) -> 0.5973433735 | T156: =IF($B156="not used",0,SUMPRODUCT(($B156=COM_AC_Share_index_1)*($B$96=COM_AC_Share_index_3)*(T$97=COM_AC_Share_index_2)*COM_AC_Share_vals)) -> 0.5992028838 | U156: =IF($B156="not used",0,SUMPRODUCT(($B156=COM_AC_Share_index_1)*($B$96=COM_AC_Share_index_3)*(U$97=COM_AC_Share_index_2)*COM_AC_Share_vals)) -> 0.6009489398 | V156: =IF($B156="not used",0,SUMPRODUCT(($B156=COM_AC_Share_index_1)*($B$96=COM_AC_Share_index_3)*(V$97=COM_AC_Share_index_2)*COM_AC_Share_vals)) -> 0.6023006892 | W156: =IF($B156="not used",0,SUMPRODUCT(($B156=COM_AC_Share_index_1)*($B$96=COM_AC_Share_index_3)*(W$97=COM_AC_Share_index_2)*COM_AC_Share_vals)) -> 0.6030924981 | X156: =IF($B156="not used",0,SUMPRODUCT(($B156=COM_AC_Share_index_1)*($B$96=COM_AC_Share_index_3)*(X$97=COM_AC_Share_index_2)*COM_AC_Share_vals)) -> 0.6032961329 | Y156: =IF($B156="not used",0,SUMPRODUCT(($B156=COM_AC_Share_index_1)*($B$96=COM_AC_Share_index_3)*(Y$97=COM_AC_Share_index_2)*COM_AC_Share_vals)) -> 0.6029333059 | Z156: =IF($B156="not used",0,SUMPRODUCT(($B156=COM_AC_Share_index_1)*($B$96=COM_AC_Share_index_3)*(Z$97=COM_AC_Share_index_2)*COM_AC_Share_vals)) -> 0.6021463072 | AA156: =IF($B156="not used",0,SUMPRODUCT(($B156=COM_AC_Share_index_1)*($B$96=COM_AC_Share_index_3)*(AA$97=COM_AC_Share_index_2)*COM_AC_Share_vals)) -> 0.6011266561 | AB156: =IF($B156="not used",0,SUMPRODUCT(($B156=COM_AC_Share_index_1)*($B$96=COM_AC_Share_index_3)*(AB$97=COM_AC_Share_index_2)*COM_AC_Share_vals)) -> 0.5999813261 | AC156: =IF($B156="not used",0,SUMPRODUCT(($B156=COM_AC_Share_index_1)*($B$96=COM_AC_Share_index_3)*(AC$97=COM_AC_Share_index_2)*COM_AC_Share_vals)) -> 0.5988839355 | AD156: =IF($B156="not used",0,SUMPRODUCT(($B156=COM_AC_Share_index_1)*($B$96=COM_AC_Share_index_3)*(AD$97=COM_AC_Share_index_2)*COM_AC_Share_vals)) -> 0.5979494081 | AE156: =IF($B156="not used",0,SUMPRODUCT(($B156=COM_AC_Share_index_1)*($B$96=COM_AC_Share_index_3)*(AE$97=COM_AC_Share_index_2)*COM_AC_Share_vals)) -> 0.5972482986 | AF156: =IF($B156="not used",0,SUMPRODUCT(($B156=COM_AC_Share_index_1)*($B$96=COM_AC_Share_index_3)*(AF$97=COM_AC_Share_index_2)*COM_AC_Share_vals)) -> 0.5968474325 | AG156: =IF($B156="not used",0,SUMPRODUCT(($B156=COM_AC_Share_index_1)*($B$96=COM_AC_Share_index_3)*(AG$97=COM_AC_Share_index_2)*COM_AC_Share_vals)) -> 0.5967632519 | AH156: =IF($B156="not used",0,SUMPRODUCT(($B156=COM_AC_Share_index_1)*($B$96=COM_AC_Share_index_3)*(AH$97=COM_AC_Share_index_2)*COM_AC_Share_vals)) -> 0.5969349603 | AI156: =IF($B156="not used",0,SUMPRODUCT(($B156=COM_AC_Share_index_1)*($B$96=COM_AC_Share_index_3)*(AI$97=COM_AC_Share_index_2)*COM_AC_Share_vals)) -> 0.5973472343 | AJ156: =IF($B156="not used",0,SUMPRODUCT(($B156=COM_AC_Share_index_1)*($B$96=COM_AC_Share_index_3)*(AJ$97=COM_AC_Share_index_2)*COM_AC_Share_vals)) -> 0.5979195437 | AK156: =IF($B156="not used",0,SUMPRODUCT(($B156=COM_AC_Share_index_1)*($B$96=COM_AC_Share_index_3)*(AK$97=COM_AC_Share_index_2)*COM_AC_Share_vals)) -> 0.5985711077 | AL156: =IF($B156="not used",0,SUMPRODUCT(($B156=COM_AC_Share_index_1)*($B$96=COM_AC_Share_index_3)*(AL$97=COM_AC_Share_index_2)*COM_AC_Share_vals)) -> 0.5992144934 | AM156: =IF($B156="not used",0,SUMPRODUCT(($B156=COM_AC_Share_index_1)*($B$96=COM_AC_Share_index_3)*(AM$97=COM_AC_Share_index_2)*COM_AC_Share_vals)) -> 0.5998045667
B157: High Efficiency Reciprocating Chiller | C157: =IF(B157="not used",B157,INDEX(Lists!$G$3:$G$12,MATCH('Comm AC'!$B157,Lists!$F$3:$F$17,0))) -> High Efficiency Heat Pump | D157: =IF($B157="not used",0,SUMPRODUCT(($B157=COM_AC_Share_index_1)*($B$96=COM_AC_Share_index_3)*(D$97=COM_AC_Share_index_2)*COM_AC_Share_vals)) -> 0.0006727747834 | E157: =IF($B157="not used",0,SUMPRODUCT(($B157=COM_AC_Share_index_1)*($B$96=COM_AC_Share_index_3)*(E$97=COM_AC_Share_index_2)*COM_AC_Share_vals)) -> 0.001769935758 | F157: =IF($B157="not used",0,SUMPRODUCT(($B157=COM_AC_Share_index_1)*($B$96=COM_AC_Share_index_3)*(F$97=COM_AC_Share_index_2)*COM_AC_Share_vals)) -> 0.004598093304 | G157: =IF($B157="not used",0,SUMPRODUCT(($B157=COM_AC_Share_index_1)*($B$96=COM_AC_Share_index_3)*(G$97=COM_AC_Share_index_2)*COM_AC_Share_vals)) -> 0.01153718614 | H157: =IF($B157="not used",0,SUMPRODUCT(($B157=COM_AC_Share_index_1)*($B$96=COM_AC_Share_index_3)*(H$97=COM_AC_Share_index_2)*COM_AC_Share_vals)) -> 0.02694126357 | I157: =IF($B157="not used",0,SUMPRODUCT(($B157=COM_AC_Share_index_1)*($B$96=COM_AC_Share_index_3)*(I$97=COM_AC_Share_index_2)*COM_AC_Share_vals)) -> 0.05444978413 | J157: =IF($B157="not used",0,SUMPRODUCT(($B157=COM_AC_Share_index_1)*($B$96=COM_AC_Share_index_3)*(J$97=COM_AC_Share_index_2)*COM_AC_Share_vals)) -> 0.0889029911 | K157: =IF($B157="not used",0,SUMPRODUCT(($B157=COM_AC_Share_index_1)*($B$96=COM_AC_Share_index_3)*(K$97=COM_AC_Share_index_2)*COM_AC_Share_vals)) -> 0.1169721886 | L157: =IF($B157="not used",0,SUMPRODUCT(($B157=COM_AC_Share_index_1)*($B$96=COM_AC_Share_index_3)*(L$97=COM_AC_Share_index_2)*COM_AC_Share_vals)) -> 0.1331083248 | M157: =IF($B157="not used",0,SUMPRODUCT(($B157=COM_AC_Share_index_1)*($B$96=COM_AC_Share_index_3)*(M$97=COM_AC_Share_index_2)*COM_AC_Share_vals)) -> 0.1406816802 | N157: =IF($B157="not used",0,SUMPRODUCT(($B157=COM_AC_Share_index_1)*($B$96=COM_AC_Share_index_3)*(N$97=COM_AC_Share_index_2)*COM_AC_Share_vals)) -> 0.1439430176 | O157: =IF($B157="not used",0,SUMPRODUCT(($B157=COM_AC_Share_index_1)*($B$96=COM_AC_Share_index_3)*(O$97=COM_AC_Share_index_2)*COM_AC_Share_vals)) -> 0.1450996191 | P157: =IF($B157="not used",0,SUMPRODUCT(($B157=COM_AC_Share_index_1)*($B$96=COM_AC_Share_index_3)*(P$97=COM_AC_Share_index_2)*COM_AC_Share_vals)) -> 0.1451874408 | Q157: =IF($B157="not used",0,SUMPRODUCT(($B157=COM_AC_Share_index_1)*($B$96=COM_AC_Share_index_3)*(Q$97=COM_AC_Share_index_2)*COM_AC_Share_vals)) -> 0.144646189 | R157: =IF($B157="not used",0,SUMPRODUCT(($B157=COM_AC_Share_index_1)*($B$96=COM_AC_Share_index_3)*(R$97=COM_AC_Share_index_2)*COM_AC_Share_vals)) -> 0.1437337251 | S157: =IF($B157="not used",0,SUMPRODUCT(($B157=COM_AC_Share_index_1)*($B$96=COM_AC_Share_index_3)*(S$97=COM_AC_Share_index_2)*COM_AC_Share_vals)) -> 0.1426776074 | T157: =IF($B157="not used",0,SUMPRODUCT(($B157=COM_AC_Share_index_1)*($B$96=COM_AC_Share_index_3)*(T$97=COM_AC_Share_index_2)*COM_AC_Share_vals)) -> 0.1416863608 | U157: =IF($B157="not used",0,SUMPRODUCT(($B157=COM_AC_Share_index_1)*($B$96=COM_AC_Share_index_3)*(U$97=COM_AC_Share_index_2)*COM_AC_Share_vals)) -> 0.140924704 | V157: =IF($B157="not used",0,SUMPRODUCT(($B157=COM_AC_Share_index_1)*($B$96=COM_AC_Share_index_3)*(V$97=COM_AC_Share_index_2)*COM_AC_Share_vals)) -> 0.1405137256 | W157: =IF($B157="not used",0,SUMPRODUCT(($B157=COM_AC_Share_index_1)*($B$96=COM_AC_Share_index_3)*(W$97=COM_AC_Share_index_2)*COM_AC_Share_vals)) -> 0.1405016251 | X157: =IF($B157="not used",0,SUMPRODUCT(($B157=COM_AC_Share_index_1)*($B$96=COM_AC_Share_index_3)*(X$97=COM_AC_Share_index_2)*COM_AC_Share_vals)) -> 0.1408407505 | Y157: =IF($B157="not used",0,SUMPRODUCT(($B157=COM_AC_Share_index_1)*($B$96=COM_AC_Share_index_3)*(Y$97=COM_AC_Share_index_2)*COM_AC_Share_vals)) -> 0.14145421 | Z157: =IF($B157="not used",0,SUMPRODUCT(($B157=COM_AC_Share_index_1)*($B$96=COM_AC_Share_index_3)*(Z$97=COM_AC_Share_index_2)*COM_AC_Share_vals)) -> 0.1422199977 | AA157: =IF($B157="not used",0,SUMPRODUCT(($B157=COM_AC_Share_index_1)*($B$96=COM_AC_Share_index_3)*(AA$97=COM_AC_Share_index_2)*COM_AC_Share_vals)) -> 0.1429977609 | AB157: =IF($B157="not used",0,SUMPRODUCT(($B157=COM_AC_Share_index_1)*($B$96=COM_AC_Share_index_3)*(AB$97=COM_AC_Share_index_2)*COM_AC_Share_vals)) -> 0.1437363203 | AC157: =IF($B157="not used",0,SUMPRODUCT(($B157=COM_AC_Share_index_1)*($B$96=COM_AC_Share_index_3)*(AC$97=COM_AC_Share_index_2)*COM_AC_Share_vals)) -> 0.144340807 | AD157: =IF($B157="not used",0,SUMPRODUCT(($B157=COM_AC_Share_index_1)*($B$96=COM_AC_Share_index_3)*(AD$97=COM_AC_Share_index_2)*COM_AC_Share_vals)) -> 0.144770609 | AE157: =IF($B157="not used",0,SUMPRODUCT(($B157=COM_AC_Share_index_1)*($B$96=COM_AC_Share_index_3)*(AE$97=COM_AC_Share_index_2)*COM_AC_Share_vals)) -> 0.1450155328 | AF157: =IF($B157="not used",0,SUMPRODUCT(($B157=COM_AC_Share_index_1)*($B$96=COM_AC_Share_index_3)*(AF$97=COM_AC_Share_index_2)*COM_AC_Share_vals)) -> 0.1450660065 | AG157: =IF($B157="not used",0,SUMPRODUCT(($B157=COM_AC_Share_index_1)*($B$96=COM_AC_Share_index_3)*(AG$97=COM_AC_Share_index_2)*COM_AC_Share_vals)) -> 0.1449237812 | AH157: =IF($B157="not used",0,SUMPRODUCT(($B157=COM_AC_Share_index_1)*($B$96=COM_AC_Share_index_3)*(AH$97=COM_AC_Share_index_2)*COM_AC_Share_vals)) -> 0.1446547885 | AI157: =IF($B157="not used",0,SUMPRODUCT(($B157=COM_AC_Share_index_1)*($B$96=COM_AC_Share_index_3)*(AI$97=COM_AC_Share_index_2)*COM_AC_Share_vals)) -> 0.1442533804 | AJ157: =IF($B157="not used",0,SUMPRODUCT(($B157=COM_AC_Share_index_1)*($B$96=COM_AC_Share_index_3)*(AJ$97=COM_AC_Share_index_2)*COM_AC_Share_vals)) -> 0.1437792191 | AK157: =IF($B157="not used",0,SUMPRODUCT(($B157=COM_AC_Share_index_1)*($B$96=COM_AC_Share_index_3)*(AK$97=COM_AC_Share_index_2)*COM_AC_Share_vals)) -> 0.143276793 | AL157: =IF($B157="not used",0,SUMPRODUCT(($B157=COM_AC_Share_index_1)*($B$96=COM_AC_Share_index_3)*(AL$97=COM_AC_Share_index_2)*COM_AC_Share_vals)) -> 0.1427989012 | AM157: =IF($B157="not used",0,SUMPRODUCT(($B157=COM_AC_Share_index_1)*($B$96=COM_AC_Share_index_3)*(AM$97=COM_AC_Share_index_2)*COM_AC_Share_vals)) -> 0.14235865
B158: High Efficiency Centrifugal Chiller | C158: =IF(B158="not used",B158,INDEX(Lists!$G$3:$G$12,MATCH('Comm AC'!$B158,Lists!$F$3:$F$17,0))) -> High Efficiency Chiller | D158: =IF($B158="not used",0,SUMPRODUCT(($B158=COM_AC_Share_index_1)*($B$96=COM_AC_Share_index_3)*(D$97=COM_AC_Share_index_2)*COM_AC_Share_vals)) -> 0.0001538045799 | E158: =IF($B158="not used",0,SUMPRODUCT(($B158=COM_AC_Share_index_1)*($B$96=COM_AC_Share_index_3)*(E$97=COM_AC_Share_index_2)*COM_AC_Share_vals)) -> 0.0004076954607 | F158: =IF($B158="not used",0,SUMPRODUCT(($B158=COM_AC_Share_index_1)*($B$96=COM_AC_Share_index_3)*(F$97=COM_AC_Share_index_2)*COM_AC_Share_vals)) -> 0.001066377461 | G158: =IF($B158="not used",0,SUMPRODUCT(($B158=COM_AC_Share_index_1)*($B$96=COM_AC_Share_index_3)*(G$97=COM_AC_Share_index_2)*COM_AC_Share_vals)) -> 0.002678255878 | H158: =IF($B158="not used",0,SUMPRODUCT(($B158=COM_AC_Share_index_1)*($B$96=COM_AC_Share_index_3)*(H$97=COM_AC_Share_index_2)*COM_AC_Share_vals)) -> 0.006259970001 | I158: =IF($B158="not used",0,SUMPRODUCT(($B158=COM_AC_Share_index_1)*($B$96=COM_AC_Share_index_3)*(I$97=COM_AC_Share_index_2)*COM_AC_Share_vals)) -> 0.01266325479 | J158: =IF($B158="not used",0,SUMPRODUCT(($B158=COM_AC_Share_index_1)*($B$96=COM_AC_Share_index_3)*(J$97=COM_AC_Share_index_2)*COM_AC_Share_vals)) -> 0.02075564404 | K158: =IF($B158="not used",0,SUMPRODUCT(($B158=COM_AC_Share_index_1)*($B$96=COM_AC_Share_index_3)*(K$97=COM_AC_Share_index_2)*COM_AC_Share_vals)) -> 0.02742525393 | L158: =IF($B158="not used",0,SUMPRODUCT(($B158=COM_AC_Share_index_1)*($B$96=COM_AC_Share_index_3)*(L$97=COM_AC_Share_index_2)*COM_AC_Share_vals)) -> 0.03137214495 | M158: =IF($B158="not used",0,SUMPRODUCT(($B158=COM_AC_Share_index_1)*($B$96=COM_AC_Share_index_3)*(M$97=COM_AC_Share_index_2)*COM_AC_Share_vals)) -> 0.03332217399 | N158: =IF($B158="not used",0,SUMPRODUCT(($B158=COM_AC_Share_index_1)*($B$96=COM_AC_Share_index_3)*(N$97=COM_AC_Share_index_2)*COM_AC_Share_vals)) -> 0.0342869769 | O158: =IF($B158="not used",0,SUMPRODUCT(($B158=COM_AC_Share_index_1)*($B$96=COM_AC_Share_index_3)*(O$97=COM_AC_Share_index_2)*COM_AC_Share_vals)) -> 0.03473963486 | P158: =IF($B158="not used",0,SUMPRODUCT(($B158=COM_AC_Share_index_1)*($B$96=COM_AC_Share_index_3)*(P$97=COM_AC_Share_index_2)*COM_AC_Share_vals)) -> 0.03491959165 | Q158: =IF($B158="not used",0,SUMPRODUCT(($B158=COM_AC_Share_index_1)*($B$96=COM_AC_Share_index_3)*(Q$97=COM_AC_Share_index_2)*COM_AC_Share_vals)) -> 0.03490072279 | R158: =IF($B158="not used",0,SUMPRODUCT(($B158=COM_AC_Share_index_1)*($B$96=COM_AC_Share_index_3)*(R$97=COM_AC_Share_index_2)*COM_AC_Share_vals)) -> 0.03472372835 | S158: =IF($B158="not used",0,SUMPRODUCT(($B158=COM_AC_Share_index_1)*($B$96=COM_AC_Share_index_3)*(S$97=COM_AC_Share_index_2)*COM_AC_Share_vals)) -> 0.03442061002 | T158: =IF($B158="not used",0,SUMPRODUCT(($B158=COM_AC_Share_index_1)*($B$96=COM_AC_Share_index_3)*(T$97=COM_AC_Share_index_2)*COM_AC_Share_vals)) -> 0.03403668534 | U158: =IF($B158="not used",0,SUMPRODUCT(($B158=COM_AC_Share_index_1)*($B$96=COM_AC_Share_index_3)*(U$97=COM_AC_Share_index_2)*COM_AC_Share_vals)) -> 0.0336032396 | V158: =IF($B158="not used",0,SUMPRODUCT(($B158=COM_AC_Share_index_1)*($B$96=COM_AC_Share_index_3)*(V$97=COM_AC_Share_index_2)*COM_AC_Share_vals)) -> 0.03317817265 | W158: =IF($B158="not used",0,SUMPRODUCT(($B158=COM_AC_Share_index_1)*($B$96=COM_AC_Share_index_3)*(W$97=COM_AC_Share_index_2)*COM_AC_Share_vals)) -> 0.03279054672 | X158: =IF($B158="not used",0,SUMPRODUCT(($B158=COM_AC_Share_index_1)*($B$96=COM_AC_Share_index_3)*(X$97=COM_AC_Share_index_2)*COM_AC_Share_vals)) -> 0.03246944523 | Y158: =IF($B158="not used",0,SUMPRODUCT(($B158=COM_AC_Share_index_1)*($B$96=COM_AC_Share_index_3)*(Y$97=COM_AC_Share_index_2)*COM_AC_Share_vals)) -> 0.03224856356 | Z158: =IF($B158="not used",0,SUMPRODUCT(($B158=COM_AC_Share_index_1)*($B$96=COM_AC_Share_index_3)*(Z$97=COM_AC_Share_index_2)*COM_AC_Share_vals)) -> 0.03213330695 | AA158: =IF($B158="not used",0,SUMPRODUCT(($B158=COM_AC_Share_index_1)*($B$96=COM_AC_Share_index_3)*(AA$97=COM_AC_Share_index_2)*COM_AC_Share_vals)) -> 0.03211863483 | AB158: =IF($B158="not used",0,SUMPRODUCT(($B158=COM_AC_Share_index_1)*($B$96=COM_AC_Share_index_3)*(AB$97=COM_AC_Share_index_2)*COM_AC_Share_vals)) -> 0.03219638 | AC158: =IF($B158="not used",0,SUMPRODUCT(($B158=COM_AC_Share_index_1)*($B$96=COM_AC_Share_index_3)*(AC$97=COM_AC_Share_index_2)*COM_AC_Share_vals)) -> 0.0323487031 | AD158: =IF($B158="not used",0,SUMPRODUCT(($B158=COM_AC_Share_index_1)*($B$96=COM_AC_Share_index_3)*(AD$97=COM_AC_Share_index_2)*COM_AC_Share_vals)) -> 0.03254919522 | AE158: =IF($B158="not used",0,SUMPRODUCT(($B158=COM_AC_Share_index_1)*($B$96=COM_AC_Share_index_3)*(AE$97=COM_AC_Share_index_2)*COM_AC_Share_vals)) -> 0.03277293954 | AF158: =IF($B158="not used",0,SUMPRODUCT(($B158=COM_AC_Share_index_1)*($B$96=COM_AC_Share_index_3)*(AF$97=COM_AC_Share_index_2)*COM_AC_Share_vals)) -> 0.03299178683 | AG158: =IF($B158="not used",0,SUMPRODUCT(($B158=COM_AC_Share_index_1)*($B$96=COM_AC_Share_index_3)*(AG$97=COM_AC_Share_index_2)*COM_AC_Share_vals)) -> 0.03319429954 | AH158: =IF($B158="not used",0,SUMPRODUCT(($B158=COM_AC_Share_index_1)*($B$96=COM_AC_Share_index_3)*(AH$97=COM_AC_Share_index_2)*COM_AC_Share_vals)) -> 0.03335635856 | AI158: =IF($B158="not used",0,SUMPRODUCT(($B158=COM_AC_Share_index_1)*($B$96=COM_AC_Share_index_3)*(AI$97=COM_AC_Share_index_2)*COM_AC_Share_vals)) -> 0.03348542916 | AJ158: =IF($B158="not used",0,SUMPRODUCT(($B158=COM_AC_Share_index_1)*($B$96=COM_AC_Share_index_3)*(AJ$97=COM_AC_Share_index_2)*COM_AC_Share_vals)) -> 0.03357071157 | AK158: =IF($B158="not used",0,SUMPRODUCT(($B158=COM_AC_Share_index_1)*($B$96=COM_AC_Share_index_3)*(AK$97=COM_AC_Share_index_2)*COM_AC_Share_vals)) -> 0.03361886641 | AL158: =IF($B158="not used",0,SUMPRODUCT(($B158=COM_AC_Share_index_1)*($B$96=COM_AC_Share_index_3)*(AL$97=COM_AC_Share_index_2)*COM_AC_Share_vals)) -> 0.03363569684 | AM158: =IF($B158="not used",0,SUMPRODUCT(($B158=COM_AC_Share_index_1)*($B$96=COM_AC_Share_index_3)*(AM$97=COM_AC_Share_index_2)*COM_AC_Share_vals)) -> 0.03363457344
B159: High Efficiency Electric Heat Pump (Cooling) | C159: =IF(B159="not used",B159,INDEX(Lists!$G$3:$G$12,MATCH('Comm AC'!$B159,Lists!$F$3:$F$17,0))) -> High Efficiency Chiller | D159: =IF($B159="not used",0,SUMPRODUCT(($B159=COM_AC_Share_index_1)*($B$96=COM_AC_Share_index_3)*(D$97=COM_AC_Share_index_2)*COM_AC_Share_vals)) -> 0 | E159: =IF($B159="not used",0,SUMPRODUCT(($B159=COM_AC_Share_index_1)*($B$96=COM_AC_Share_index_3)*(E$97=COM_AC_Share_index_2)*COM_AC_Share_vals)) -> 0 | F159: =IF($B159="not used",0,SUMPRODUCT(($B159=COM_AC_Share_index_1)*($B$96=COM_AC_Share_index_3)*(F$97=COM_AC_Share_index_2)*COM_AC_Share_vals)) -> 0 | G159: =IF($B159="not used",0,SUMPRODUCT(($B159=COM_AC_Share_index_1)*($B$96=COM_AC_Share_index_3)*(G$97=COM_AC_Share_index_2)*COM_AC_Share_vals)) -> 0 | H159: =IF($B159="not used",0,SUMPRODUCT(($B159=COM_AC_Share_index_1)*($B$96=COM_AC_Share_index_3)*(H$97=COM_AC_Share_index_2)*COM_AC_Share_vals)) -> 0 | I159: =IF($B159="not used",0,SUMPRODUCT(($B159=COM_AC_Share_index_1)*($B$96=COM_AC_Share_index_3)*(I$97=COM_AC_Share_index_2)*COM_AC_Share_vals)) -> 0 | J159: =IF($B159="not used",0,SUMPRODUCT(($B159=COM_AC_Share_index_1)*($B$96=COM_AC_Share_index_3)*(J$97=COM_AC_Share_index_2)*COM_AC_Share_vals)) -> 0 | K159: =IF($B159="not used",0,SUMPRODUCT(($B159=COM_AC_Share_index_1)*($B$96=COM_AC_Share_index_3)*(K$97=COM_AC_Share_index_2)*COM_AC_Share_vals)) -> 0 | L159: =IF($B159="not used",0,SUMPRODUCT(($B159=COM_AC_Share_index_1)*($B$96=COM_AC_Share_index_3)*(L$97=COM_AC_Share_index_2)*COM_AC_Share_vals)) -> 0 | M159: =IF($B159="not used",0,SUMPRODUCT(($B159=COM_AC_Share_index_1)*($B$96=COM_AC_Share_index_3)*(M$97=COM_AC_Share_index_2)*COM_AC_Share_vals)) -> 0 | N159: =IF($B159="not used",0,SUMPRODUCT(($B159=COM_AC_Share_index_1)*($B$96=COM_AC_Share_index_3)*(N$97=COM_AC_Share_index_2)*COM_AC_Share_vals)) -> 0 | O159: =IF($B159="not used",0,SUMPRODUCT(($B159=COM_AC_Share_index_1)*($B$96=COM_AC_Share_index_3)*(O$97=COM_AC_Share_index_2)*COM_AC_Share_vals)) -> 0 | P159: =IF($B159="not used",0,SUMPRODUCT(($B159=COM_AC_Share_index_1)*($B$96=COM_AC_Share_index_3)*(P$97=COM_AC_Share_index_2)*COM_AC_Share_vals)) -> 0 | Q159: =IF($B159="not used",0,SUMPRODUCT(($B159=COM_AC_Share_index_1)*($B$96=COM_AC_Share_index_3)*(Q$97=COM_AC_Share_index_2)*COM_AC_Share_vals)) -> 0 | R159: =IF($B159="not used",0,SUMPRODUCT(($B159=COM_AC_Share_index_1)*($B$96=COM_AC_Share_index_3)*(R$97=COM_AC_Share_index_2)*COM_AC_Share_vals)) -> 0 | S159: =IF($B159="not used",0,SUMPRODUCT(($B159=COM_AC_Share_index_1)*($B$96=COM_AC_Share_index_3)*(S$97=COM_AC_Share_index_2)*COM_AC_Share_vals)) -> 0 | T159: =IF($B159="not used",0,SUMPRODUCT(($B159=COM_AC_Share_index_1)*($B$96=COM_AC_Share_index_3)*(T$97=COM_AC_Share_index_2)*COM_AC_Share_vals)) -> 0 | U159: =IF($B159="not used",0,SUMPRODUCT(($B159=COM_AC_Share_index_1)*($B$96=COM_AC_Share_index_3)*(U$97=COM_AC_Share_index_2)*COM_AC_Share_vals)) -> 0 | V159: =IF($B159="not used",0,SUMPRODUCT(($B159=COM_AC_Share_index_1)*($B$96=COM_AC_Share_index_3)*(V$97=COM_AC_Share_index_2)*COM_AC_Share_vals)) -> 0 | W159: =IF($B159="not used",0,SUMPRODUCT(($B159=COM_AC_Share_index_1)*($B$96=COM_AC_Share_index_3)*(W$97=COM_AC_Share_index_2)*COM_AC_Share_vals)) -> 0 | X159: =IF($B159="not used",0,SUMPRODUCT(($B159=COM_AC_Share_index_1)*($B$96=COM_AC_Share_index_3)*(X$97=COM_AC_Share_index_2)*COM_AC_Share_vals)) -> 0 | Y159: =IF($B159="not used",0,SUMPRODUCT(($B159=COM_AC_Share_index_1)*($B$96=COM_AC_Share_index_3)*(Y$97=COM_AC_Share_index_2)*COM_AC_Share_vals)) -> 0 | Z159: =IF($B159="not used",0,SUMPRODUCT(($B159=COM_AC_Share_index_1)*($B$96=COM_AC_Share_index_3)*(Z$97=COM_AC_Share_index_2)*COM_AC_Share_vals)) -> 0 | AA159: =IF($B159="not used",0,SUMPRODUCT(($B159=COM_AC_Share_index_1)*($B$96=COM_AC_Share_index_3)*(AA$97=COM_AC_Share_index_2)*COM_AC_Share_vals)) -> 0 | AB159: =IF($B159="not used",0,SUMPRODUCT(($B159=COM_AC_Share_index_1)*($B$96=COM_AC_Share_index_3)*(AB$97=COM_AC_Share_index_2)*COM_AC_Share_vals)) -> 0 | AC159: =IF($B159="not used",0,SUMPRODUCT(($B159=COM_AC_Share_index_1)*($B$96=COM_AC_Share_index_3)*(AC$97=COM_AC_Share_index_2)*COM_AC_Share_vals)) -> 0 | AD159: =IF($B159="not used",0,SUMPRODUCT(($B159=COM_AC_Share_index_1)*($B$96=COM_AC_Share_index_3)*(AD$97=COM_AC_Share_index_2)*COM_AC_Share_vals)) -> 0 | AE159: =IF($B159="not used",0,SUMPRODUCT(($B159=COM_AC_Share_index_1)*($B$96=COM_AC_Share_index_3)*(AE$97=COM_AC_Share_index_2)*COM_AC_Share_vals)) -> 0 | AF159: =IF($B159="not used",0,SUMPRODUCT(($B159=COM_AC_Share_index_1)*($B$96=COM_AC_Share_index_3)*(AF$97=COM_AC_Share_index_2)*COM_AC_Share_vals)) -> 0 | AG159: =IF($B159="not used",0,SUMPRODUCT(($B159=COM_AC_Share_index_1)*($B$96=COM_AC_Share_index_3)*(AG$97=COM_AC_Share_index_2)*COM_AC_Share_vals)) -> 0 | AH159: =IF($B159="not used",0,SUMPRODUCT(($B159=COM_AC_Share_index_1)*($B$96=COM_AC_Share_index_3)*(AH$97=COM_AC_Share_index_2)*COM_AC_Share_vals)) -> 0 | AI159: =IF($B159="not used",0,SUMPRODUCT(($B159=COM_AC_Share_index_1)*($B$96=COM_AC_Share_index_3)*(AI$97=COM_AC_Share_index_2)*COM_AC_Share_vals)) -> 0 | AJ159: =IF($B159="not used",0,SUMPRODUCT(($B159=COM_AC_Share_index_1)*($B$96=COM_AC_Share_index_3)*(AJ$97=COM_AC_Share_index_2)*COM_AC_Share_vals)) -> 0 | AK159: =IF($B159="not used",0,SUMPRODUCT(($B159=COM_AC_Share_index_1)*($B$96=COM_AC_Share_index_3)*(AK$97=COM_AC_Share_index_2)*COM_AC_Share_vals)) -> 0 | AL159: =IF($B159="not used",0,SUMPRODUCT(($B159=COM_AC_Share_index_1)*($B$96=COM_AC_Share_index_3)*(AL$97=COM_AC_Share_index_2)*COM_AC_Share_vals)) -> 0 | AM159: =IF($B159="not used",0,SUMPRODUCT(($B159=COM_AC_Share_index_1)*($B$96=COM_AC_Share_index_3)*(AM$97=COM_AC_Share_index_2)*COM_AC_Share_vals)) -> 0
